Workbook

Sheet Control
A1: Sheets | B1: Text File Names | C1: Description | D1: considered | E1: Notes: 50 sheets maximum
A2: NatGW_Bed | B2: Concentrations\NatGW_Bed_Conc_Output.txt | C2: No Action concentrations in the bedrock | D2: X | E2: Referenced text files must be in same root folder as this spreadsheet
A3: NatGW_Surf | B3: Concentrations\NatGW_Surf_Conc_Output.txt | C3: No Action concentrations in the surficial aquifer | D3: X
A4: EPCat23_Dunka | B4: Concentrations\EPCat23_Dunka_Conc_Output.txt | C4: Project concentrations in the East Pit-Cat 2/3 flowpath at Dunka Road | D4: X
A5: EPCat23_Prop | B5: Concentrations\EPCat23_Prop_Conc_Output.txt | C5: Project concentrations in the East Pit-Cat 2/3 flowpath at the Prop. Bdry. | D5: X
A6: EPCat23_Part | B6: Concentrations\EPCat23_Part_Conc_Output.txt | C6: Project concentrations in the East Pit-Cat 2/3 flowpath at the Partridge River | F6: Run Time Min: | G6: =MIN(NatGW_Bed!$B$5,NatGW_Surf!$B$5,EPCat23_Dunka!$B$5,EPCat23_Prop!$B$5,EPCat23_Part!$B$5,EPbed_Cell1!$B$5,EPbed_Prop!$B$5,EPbed_Part!$B$5,OSLA_Dunka!$B$5,OSLA_Prop!$B$5,OSLA_Part!$B$5,OSP_Dunka!$B$5,OSP_Part1!$B$5,OSP_Part2!$B$5,WWTF_Dunka!$B$5,WWTF_Prop!$B$5,WWTF_Part!$B$5,WPsurf_Dunka!$B$5,WPsurf_Prop!$B$5,WPsurf_Part!$B$5,WPbed4_Cell1!$B$5,WPbed4_Prop!$B$5,WPbed4_Part!$B$5,WPbed4a_Cell1!$B$5,WPbed4a_Prop!$B$5,WPbed4a_Part!$B$5) -> 2014-12-15T22:56:18
A7: EPbed_Cell1 | B7: Concentrations\EPbed_Cell1_Conc_Output.txt | C7: Project concentrations in the East Pit flowpath at Cell 1 | F7: Run Time Max: | G7: =MAX(NatGW_Bed!$B$5,NatGW_Surf!$B$5,EPCat23_Dunka!$B$5,EPCat23_Prop!$B$5,EPCat23_Part!$B$5,EPbed_Cell1!$B$5,EPbed_Prop!$B$5,EPbed_Part!$B$5,OSLA_Dunka!$B$5,OSLA_Prop!$B$5,OSLA_Part!$B$5,OSP_Dunka!$B$5,OSP_Part1!$B$5,OSP_Part2!$B$5,WWTF_Dunka!$B$5,WWTF_Prop!$B$5,WWTF_Part!$B$5,WPsurf_Dunka!$B$5,WPsurf_Prop!$B$5,WPsurf_Part!$B$5,WPbed4_Cell1!$B$5,WPbed4_Prop!$B$5,WPbed4_Part!$B$5,WPbed4a_Cell1!$B$5,WPbed4a_Prop!$B$5,WPbed4a_Part!$B$5) -> 2014-12-15T22:56:18
A8: EPbed_Prop | B8: Concentrations\EPbed_Prop_Conc_Output.txt | C8: Project concentrations in the East Pit flowpath at the Property Boundary | D8: X
A9: EPbed_Part | B9: Concentrations\EPbed_Part_Conc_Output.txt | C9: Project concentrations in the East Pit flowpath at the Partridge River
A10: OSLA_Dunka | B10: Concentrations\OSLA_Dunka_Conc_Output.txt | C10: Project concentrations in the OSLA flowpath at Dunka Road | D10: X
A11: OSLA_Prop | B11: Concentrations\OSLA_Prop_Conc_Output.txt | C11: Project concentrations in the OSLA flowpath at the Property Boundary | D11: X
A12: OSLA_Part | B12: Concentrations\OSLA_Part_Conc_Output.txt | C12: Project concentrations in the OSLA flowpath at the Partridge River
A13: OSP_Dunka | B13: Concentrations\OSP_Dunka_Conc_Output.txt | C13: Project concentrations in the Ore Surge Pile flowpath at Dunka Road | D13: X
A14: OSP_Part1 | B14: Concentrations\OSP_Part1_Conc_Output.txt | C14: Project concentrations in the Ore Surge Pile flowpath at the Partridge River1 | D14: X
A15: OSP_Part2 | B15: Concentrations\OSP_Part2_Conc_Output.txt | C15: Project concentrations in the Ore Surge Pile flowpath at the Partridge River2
A16: WWTF_Dunka | B16: Concentrations\WWTF_Dunka_Conc_Output.txt | C16: Project concentrations in the WWTF flowpath at Dunka Road | D16: X
A17: WWTF_Prop | B17: Concentrations\WWTF_Prop_Conc_Output.txt | C17: Project concentrations in the WWTF flowpath at the Property Boundary | D17: X
A18: WWTF_Part | B18: Concentrations\WWTF_Part_Conc_Output.txt | C18: Project concentrations in the WWTF flowpath at the Partridge River
A19: WPsurf_Dunka | B19: Concentrations\WPsurf_Dunka_Conc_Output.txt | C19: Project concentrations in the West Pit (surficial) flowpath at Dunka Road | D19: X
A20: WPsurf_Prop | B20: Concentrations\WPsurf_Prop_Conc_Output.txt | C20: Project concentrations in the West Pit (surficial) flowpath at the Property Boundary | D20: X
A21: WPsurf_Part | B21: Concentrations\WPsurf_Part_Conc_Output.txt | C21: Project concentrations in the West Pit (surficial) flowpath at the Partridge River
A22: WPbed4_Cell1 | B22: Concentrations\WPbed4_Cell1_Conc_Output.txt | C22: Project concentrations in the West Pit (bedrock to SW004) flowpath at Cell 1
A23: WPbed4_Prop | B23: Concentrations\WPbed4_Prop_Conc_Output.txt | C23: Project concentrations in the West Pit (bedrock to SW004) flowpath at the Property Boundary | D23: X
A24: WPbed4_Part | B24: Concentrations\WPbed4_Part_Conc_Output.txt | C24: Project concentrations in the West Pit (bedrock to SW004) flowpath at the Partridge River
A25: WPbed4a_Cell1 | B25: Concentrations\WPbed4a_Cell1_Conc_Output.txt | C25: Project concentrations in the West Pit (bedrock to SW004a) flowpath at Cell 1
A26: WPbed4a_Prop | B26: Concentrations\WPbed4a_Prop_Conc_Output.txt | C26: Project concentrations in the West Pit (bedrock to SW004a) flowpath at the Property Boundary | D26: X
A27: WPbed4a_Part | B27: Concentrations\WPbed4a_Part_Conc_Output.txt | C27: Project concentrations in the West Pit (bedrock to SW004a) flowpath at the Partridge River

Sheet PlotControl
A2: Model Name: | B2: Mine Site Version 6.0 | C2: =B2 & " Model Annual Maximum of Concentration Statistics " & B4 & " in the " & B6 & " Flowpath at " & B8 -> Mine Site Version 6.0 Model Annual Maximum of Concentration Statistics SO4 in the West Pit (surficial) Flowpath at the Property Bdry.
A4: Constituent to Plot (dropdown): | B4: SO4 | C4: =MATCH(B4,$A$23:$A$49,0) -> 24 | V4: Directory to save PDFs to: | W4: C:\Users\jem4\Desktop\temp
V5: Starting figure caption | W5: Figure J-08-27.2
A6: Flowpath to Plot (dropdown): | B6: West Pit (surficial) | C6: =MATCH(B6,$A$13:$A$20,0) -> 6 | D6: =FIND("surficial",B6) -> 11
V7: Note: This loops through the flowpath, constituent, and location drop down menus.
A8: Evaluation Location (dropdown): | B8: the Property Bdry. | C8: =IF(B8=B12,1,IF(B8=C12,2,IF(B8=D12,3))) -> 2
B11: Evaluation Locations
A12: Flowpaths | B12: Dunka Road | C12: the Property Bdry. | D12: the Partridge River | E12: Number
A13: East Pit - Cat 2/3 (surficial) | B13: X | C13: X | E13: 1
A14: East Pit (bedrock) | C14: X | E14: 2
A15: OSP (surficial) | B15: X | D15: X | E15: 3
A16: WWTF (surficial) | B16: X | C16: X | E16: 4
A17: OSLA (surficial) | B17: X | C17: X | E17: 5 | F17: Plot orange highlighted location for each flowpath as ".1"
A18: West Pit (surficial) | B18: X | C18: X | E18: 6 | F18: Plot yellow highlighted location for each flowpath as ".2"
A19: West Pit (bedrock to SW004) | C19: X | E19: 7
A20: West Pit (bedrock to SW004a) | C20: X | E20: 8 | G20: ="Project, " & G22 -> Project, P10 | H20: ="Project, " & H22 -> Project, P50 | I20: Project, P90 | J20: ="CEC Scenario, " & J22 -> CEC Scenario, P10 | K20: ="CEC Scenario, " & K22 -> CEC Scenario, P50 | L20: ="CEC Scenario, " & L22 -> CEC Scenario, P90
G21: Annual Project Results | J21: Annual No-Action Results
A22: Constituent | B22: Primary Standard (ug/L) | C22: Secondary Standard (ug/L) | F22: Time | G22: P10 | H22: P50 | I22: P90 | J22: P10 | K22: P50 | L22: P90 | M22: =IF(OR($B$4=$A$29,$B$4=$A$40,AND($B$4=A47,ISNUMBER(FIND("bedrock",$B$6)))),"Site Specific Evaluation Criteria","Primary Standard") -> Primary Standard | N22: Secondary Standard
A23: Ag | B23: 30 | C23: 100 | F23: 1 | G23: =IF($C$8=1,VLOOKUP($F23,P_All!$A$5:$Y$204,3*($C$6-1)+2),IF($C$8=2,VLOOKUP($F23,P_All!$AB$5:$AZ$204,3*($C$6-1)+2),VLOOKUP($F23,P_All!$BB$5:$BZ$204,3*($C$6-1)+2))) -> 9110.4 | H23: =IF($C$8=1,VLOOKUP($F23,P_All!$A$5:$Y204,3*($C$6-1)+3),IF($C$8=2,VLOOKUP($F23,P_All!$AB$5:$AZ$204,3*($C$6-1)+3),VLOOKUP($F23,P_All!$BB$5:$BZ$204,3*($C$6-1)+3))) -> 9581.1 | I23: =IF($C$8=1,VLOOKUP($F23,P_All!$A$5:$Y$204,3*($C$6-1)+4),IF($C$8=2,VLOOKUP($F23,P_All!$AB$5:$AZ$204,3*($C$6-1)+4),VLOOKUP($F23,P_All!$BB$5:$BZ$204,3*($C$6-1)+4))) -> 10077 | J23: =VLOOKUP($F23,NA_All!$A$5:$G$204,IF(ISERROR($D$6),2,5)) -> 9110.4 | K23: =VLOOKUP($F23,NA_All!$A$5:$G$204,IF(ISERROR($D$6),3,6)) -> 9581.1 | L23: =VLOOKUP($F23,NA_All!$A$5:$G$204,IF(ISERROR($D$6),4,7)) -> 10077 | M23: =IF(OR($B$4=$A$29,$B$4=$A$40,$B$4=$A$47),VLOOKUP($B$4,$A$58:$C$60,IF(ISNUMBER(FIND("bedrock",$B$6)),3,2)),VLOOKUP($B$4,$A$23:$C$49,2)) ->  | N23: =VLOOKUP($B$4,$A$23:$C$49,3) -> 250000
A24: Al | F24: 2 | G24: =IF($C$8=1,VLOOKUP($F24,P_All!$A$5:$Y$204,3*($C$6-1)+2),IF($C$8=2,VLOOKUP($F24,P_All!$AB$5:$AZ$204,3*($C$6-1)+2),VLOOKUP($F24,P_All!$BB$5:$BZ$204,3*($C$6-1)+2))) -> 9110.4 | H24: =IF($C$8=1,VLOOKUP($F24,P_All!$A$5:$Y204,3*($C$6-1)+3),IF($C$8=2,VLOOKUP($F24,P_All!$AB$5:$AZ$204,3*($C$6-1)+3),VLOOKUP($F24,P_All!$BB$5:$BZ$204,3*($C$6-1)+3))) -> 9581.1 | I24: =IF($C$8=1,VLOOKUP($F24,P_All!$A$5:$Y$204,3*($C$6-1)+4),IF($C$8=2,VLOOKUP($F24,P_All!$AB$5:$AZ$204,3*($C$6-1)+4),VLOOKUP($F24,P_All!$BB$5:$BZ$204,3*($C$6-1)+4))) -> 10077 | J24: =VLOOKUP($F24,NA_All!$A$5:$G$204,IF(ISERROR($D$6),2,5)) -> 9110.4 | K24: =VLOOKUP($F24,NA_All!$A$5:$G$204,IF(ISERROR($D$6),3,6)) -> 9581.1 | L24: =VLOOKUP($F24,NA_All!$A$5:$G$204,IF(ISERROR($D$6),4,7)) -> 10077 | M24: =IF(OR($B$4=$A$29,$B$4=$A$40,$B$4=$A$47),VLOOKUP($B$4,$A$58:$C$60,IF(ISNUMBER(FIND("bedrock",$B$6)),3,2)),VLOOKUP($B$4,$A$23:$C$49,2)) ->  | N24: =VLOOKUP($B$4,$A$23:$C$49,3) -> 250000
A25: Alkalinity | F25: 3 | G25: =IF($C$8=1,VLOOKUP($F25,P_All!$A$5:$Y$204,3*($C$6-1)+2),IF($C$8=2,VLOOKUP($F25,P_All!$AB$5:$AZ$204,3*($C$6-1)+2),VLOOKUP($F25,P_All!$BB$5:$BZ$204,3*($C$6-1)+2))) -> 9110.4 | H25: =IF($C$8=1,VLOOKUP($F25,P_All!$A$5:$Y204,3*($C$6-1)+3),IF($C$8=2,VLOOKUP($F25,P_All!$AB$5:$AZ$204,3*($C$6-1)+3),VLOOKUP($F25,P_All!$BB$5:$BZ$204,3*($C$6-1)+3))) -> 9581.1 | I25: =IF($C$8=1,VLOOKUP($F25,P_All!$A$5:$Y$204,3*($C$6-1)+4),IF($C$8=2,VLOOKUP($F25,P_All!$AB$5:$AZ$204,3*($C$6-1)+4),VLOOKUP($F25,P_All!$BB$5:$BZ$204,3*($C$6-1)+4))) -> 10077 | J25: =VLOOKUP($F25,NA_All!$A$5:$G$204,IF(ISERROR($D$6),2,5)) -> 9110.4 | K25: =VLOOKUP($F25,NA_All!$A$5:$G$204,IF(ISERROR($D$6),3,6)) -> 9581.1 | L25: =VLOOKUP($F25,NA_All!$A$5:$G$204,IF(ISERROR($D$6),4,7)) -> 10077 | N25: 250000
A26: As | B26: 10 | F26: 4 | G26: =IF($C$8=1,VLOOKUP($F26,P_All!$A$5:$Y$204,3*($C$6-1)+2),IF($C$8=2,VLOOKUP($F26,P_All!$AB$5:$AZ$204,3*($C$6-1)+2),VLOOKUP($F26,P_All!$BB$5:$BZ$204,3*($C$6-1)+2))) -> 9110.4 | H26: =IF($C$8=1,VLOOKUP($F26,P_All!$A$5:$Y204,3*($C$6-1)+3),IF($C$8=2,VLOOKUP($F26,P_All!$AB$5:$AZ$204,3*($C$6-1)+3),VLOOKUP($F26,P_All!$BB$5:$BZ$204,3*($C$6-1)+3))) -> 9581.1 | I26: =IF($C$8=1,VLOOKUP($F26,P_All!$A$5:$Y$204,3*($C$6-1)+4),IF($C$8=2,VLOOKUP($F26,P_All!$AB$5:$AZ$204,3*($C$6-1)+4),VLOOKUP($F26,P_All!$BB$5:$BZ$204,3*($C$6-1)+4))) -> 10077 | J26: =VLOOKUP($F26,NA_All!$A$5:$G$204,IF(ISERROR($D$6),2,5)) -> 9110.4 | K26: =VLOOKUP($F26,NA_All!$A$5:$G$204,IF(ISERROR($D$6),3,6)) -> 9581.1 | L26: =VLOOKUP($F26,NA_All!$A$5:$G$204,IF(ISERROR($D$6),4,7)) -> 10077 | N26: 250000
A27: B | B27: 1000 | F27: 5 | G27: =IF($C$8=1,VLOOKUP($F27,P_All!$A$5:$Y$204,3*($C$6-1)+2),IF($C$8=2,VLOOKUP($F27,P_All!$AB$5:$AZ$204,3*($C$6-1)+2),VLOOKUP($F27,P_All!$BB$5:$BZ$204,3*($C$6-1)+2))) -> 9110.4 | H27: =IF($C$8=1,VLOOKUP($F27,P_All!$A$5:$Y204,3*($C$6-1)+3),IF($C$8=2,VLOOKUP($F27,P_All!$AB$5:$AZ$204,3*($C$6-1)+3),VLOOKUP($F27,P_All!$BB$5:$BZ$204,3*($C$6-1)+3))) -> 9581.1 | I27: =IF($C$8=1,VLOOKUP($F27,P_All!$A$5:$Y$204,3*($C$6-1)+4),IF($C$8=2,VLOOKUP($F27,P_All!$AB$5:$AZ$204,3*($C$6-1)+4),VLOOKUP($F27,P_All!$BB$5:$BZ$204,3*($C$6-1)+4))) -> 10077 | J27: =VLOOKUP($F27,NA_All!$A$5:$G$204,IF(ISERROR($D$6),2,5)) -> 9110.4 | K27: =VLOOKUP($F27,NA_All!$A$5:$G$204,IF(ISERROR($D$6),3,6)) -> 9581.1 | L27: =VLOOKUP($F27,NA_All!$A$5:$G$204,IF(ISERROR($D$6),4,7)) -> 10077 | N27: 250000
A28: Ba | B28: 2000 | F28: 6 | G28: =IF($C$8=1,VLOOKUP($F28,P_All!$A$5:$Y$204,3*($C$6-1)+2),IF($C$8=2,VLOOKUP($F28,P_All!$AB$5:$AZ$204,3*($C$6-1)+2),VLOOKUP($F28,P_All!$BB$5:$BZ$204,3*($C$6-1)+2))) -> 9110.4 | H28: =IF($C$8=1,VLOOKUP($F28,P_All!$A$5:$Y204,3*($C$6-1)+3),IF($C$8=2,VLOOKUP($F28,P_All!$AB$5:$AZ$204,3*($C$6-1)+3),VLOOKUP($F28,P_All!$BB$5:$BZ$204,3*($C$6-1)+3))) -> 9581.1 | I28: =IF($C$8=1,VLOOKUP($F28,P_All!$A$5:$Y$204,3*($C$6-1)+4),IF($C$8=2,VLOOKUP($F28,P_All!$AB$5:$AZ$204,3*($C$6-1)+4),VLOOKUP($F28,P_All!$BB$5:$BZ$204,3*($C$6-1)+4))) -> 10077 | J28: =VLOOKUP($F28,NA_All!$A$5:$G$204,IF(ISERROR($D$6),2,5)) -> 9110.4 | K28: =VLOOKUP($F28,NA_All!$A$5:$G$204,IF(ISERROR($D$6),3,6)) -> 9581.1 | L28: =VLOOKUP($F28,NA_All!$A$5:$G$204,IF(ISERROR($D$6),4,7)) -> 10077 | N28: 250000
A29: Be | B29: 0.08 | F29: 7 | G29: =IF($C$8=1,VLOOKUP($F29,P_All!$A$5:$Y$204,3*($C$6-1)+2),IF($C$8=2,VLOOKUP($F29,P_All!$AB$5:$AZ$204,3*($C$6-1)+2),VLOOKUP($F29,P_All!$BB$5:$BZ$204,3*($C$6-1)+2))) -> 9110.4 | H29: =IF($C$8=1,VLOOKUP($F29,P_All!$A$5:$Y204,3*($C$6-1)+3),IF($C$8=2,VLOOKUP($F29,P_All!$AB$5:$AZ$204,3*($C$6-1)+3),VLOOKUP($F29,P_All!$BB$5:$BZ$204,3*($C$6-1)+3))) -> 9581.1 | I29: =IF($C$8=1,VLOOKUP($F29,P_All!$A$5:$Y$204,3*($C$6-1)+4),IF($C$8=2,VLOOKUP($F29,P_All!$AB$5:$AZ$204,3*($C$6-1)+4),VLOOKUP($F29,P_All!$BB$5:$BZ$204,3*($C$6-1)+4))) -> 10077 | J29: =VLOOKUP($F29,NA_All!$A$5:$G$204,IF(ISERROR($D$6),2,5)) -> 9110.4 | K29: =VLOOKUP($F29,NA_All!$A$5:$G$204,IF(ISERROR($D$6),3,6)) -> 9581.1 | L29: =VLOOKUP($F29,NA_All!$A$5:$G$204,IF(ISERROR($D$6),4,7)) -> 10077 | N29: 250000
A30: Ca | F30: 8 | G30: =IF($C$8=1,VLOOKUP($F30,P_All!$A$5:$Y$204,3*($C$6-1)+2),IF($C$8=2,VLOOKUP($F30,P_All!$AB$5:$AZ$204,3*($C$6-1)+2),VLOOKUP($F30,P_All!$BB$5:$BZ$204,3*($C$6-1)+2))) -> 9110.4 | H30: =IF($C$8=1,VLOOKUP($F30,P_All!$A$5:$Y204,3*($C$6-1)+3),IF($C$8=2,VLOOKUP($F30,P_All!$AB$5:$AZ$204,3*($C$6-1)+3),VLOOKUP($F30,P_All!$BB$5:$BZ$204,3*($C$6-1)+3))) -> 9581.1 | I30: =IF($C$8=1,VLOOKUP($F30,P_All!$A$5:$Y$204,3*($C$6-1)+4),IF($C$8=2,VLOOKUP($F30,P_All!$AB$5:$AZ$204,3*($C$6-1)+4),VLOOKUP($F30,P_All!$BB$5:$BZ$204,3*($C$6-1)+4))) -> 10077 | J30: =VLOOKUP($F30,NA_All!$A$5:$G$204,IF(ISERROR($D$6),2,5)) -> 9110.4 | K30: =VLOOKUP($F30,NA_All!$A$5:$G$204,IF(ISERROR($D$6),3,6)) -> 9581.1 | L30: =VLOOKUP($F30,NA_All!$A$5:$G$204,IF(ISERROR($D$6),4,7)) -> 10077 | N30: 250000
A31: Cd | B31: 4 | F31: 9 | G31: =IF($C$8=1,VLOOKUP($F31,P_All!$A$5:$Y$204,3*($C$6-1)+2),IF($C$8=2,VLOOKUP($F31,P_All!$AB$5:$AZ$204,3*($C$6-1)+2),VLOOKUP($F31,P_All!$BB$5:$BZ$204,3*($C$6-1)+2))) -> 9110.4 | H31: =IF($C$8=1,VLOOKUP($F31,P_All!$A$5:$Y204,3*($C$6-1)+3),IF($C$8=2,VLOOKUP($F31,P_All!$AB$5:$AZ$204,3*($C$6-1)+3),VLOOKUP($F31,P_All!$BB$5:$BZ$204,3*($C$6-1)+3))) -> 9581.1 | I31: =IF($C$8=1,VLOOKUP($F31,P_All!$A$5:$Y$204,3*($C$6-1)+4),IF($C$8=2,VLOOKUP($F31,P_All!$AB$5:$AZ$204,3*($C$6-1)+4),VLOOKUP($F31,P_All!$BB$5:$BZ$204,3*($C$6-1)+4))) -> 10077 | J31: =VLOOKUP($F31,NA_All!$A$5:$G$204,IF(ISERROR($D$6),2,5)) -> 9110.4 | K31: =VLOOKUP($F31,NA_All!$A$5:$G$204,IF(ISERROR($D$6),3,6)) -> 9581.1 | L31: =VLOOKUP($F31,NA_All!$A$5:$G$204,IF(ISERROR($D$6),4,7)) -> 10077 | N31: 250000
A32: Cl | C32: 250000 | F32: 10 | G32: =IF($C$8=1,VLOOKUP($F32,P_All!$A$5:$Y$204,3*($C$6-1)+2),IF($C$8=2,VLOOKUP($F32,P_All!$AB$5:$AZ$204,3*($C$6-1)+2),VLOOKUP($F32,P_All!$BB$5:$BZ$204,3*($C$6-1)+2))) -> 9110.4 | H32: =IF($C$8=1,VLOOKUP($F32,P_All!$A$5:$Y204,3*($C$6-1)+3),IF($C$8=2,VLOOKUP($F32,P_All!$AB$5:$AZ$204,3*($C$6-1)+3),VLOOKUP($F32,P_All!$BB$5:$BZ$204,3*($C$6-1)+3))) -> 9581.1 | I32: =IF($C$8=1,VLOOKUP($F32,P_All!$A$5:$Y$204,3*($C$6-1)+4),IF($C$8=2,VLOOKUP($F32,P_All!$AB$5:$AZ$204,3*($C$6-1)+4),VLOOKUP($F32,P_All!$BB$5:$BZ$204,3*($C$6-1)+4))) -> 10077 | J32: =VLOOKUP($F32,NA_All!$A$5:$G$204,IF(ISERROR($D$6),2,5)) -> 9110.4 | K32: =VLOOKUP($F32,NA_All!$A$5:$G$204,IF(ISERROR($D$6),3,6)) -> 9581.1 | L32: =VLOOKUP($F32,NA_All!$A$5:$G$204,IF(ISERROR($D$6),4,7)) -> 10077 | N32: 250000
A33: Co | F33: 11 | G33: =IF($C$8=1,VLOOKUP($F33,P_All!$A$5:$Y$204,3*($C$6-1)+2),IF($C$8=2,VLOOKUP($F33,P_All!$AB$5:$AZ$204,3*($C$6-1)+2),VLOOKUP($F33,P_All!$BB$5:$BZ$204,3*($C$6-1)+2))) -> 9110.4 | H33: =IF($C$8=1,VLOOKUP($F33,P_All!$A$5:$Y204,3*($C$6-1)+3),IF($C$8=2,VLOOKUP($F33,P_All!$AB$5:$AZ$204,3*($C$6-1)+3),VLOOKUP($F33,P_All!$BB$5:$BZ$204,3*($C$6-1)+3))) -> 9581.1 | I33: =IF($C$8=1,VLOOKUP($F33,P_All!$A$5:$Y$204,3*($C$6-1)+4),IF($C$8=2,VLOOKUP($F33,P_All!$AB$5:$AZ$204,3*($C$6-1)+4),VLOOKUP($F33,P_All!$BB$5:$BZ$204,3*($C$6-1)+4))) -> 10077 | J33: =VLOOKUP($F33,NA_All!$A$5:$G$204,IF(ISERROR($D$6),2,5)) -> 9110.4 | K33: =VLOOKUP($F33,NA_All!$A$5:$G$204,IF(ISERROR($D$6),3,6)) -> 9581.1 | L33: =VLOOKUP($F33,NA_All!$A$5:$G$204,IF(ISERROR($D$6),4,7)) -> 10077 | N33: 250000
A34: Cr | B34: 100 | F34: 12 | G34: =IF($C$8=1,VLOOKUP($F34,P_All!$A$5:$Y$204,3*($C$6-1)+2),IF($C$8=2,VLOOKUP($F34,P_All!$AB$5:$AZ$204,3*($C$6-1)+2),VLOOKUP($F34,P_All!$BB$5:$BZ$204,3*($C$6-1)+2))) -> 9110.4 | H34: =IF($C$8=1,VLOOKUP($F34,P_All!$A$5:$Y204,3*($C$6-1)+3),IF($C$8=2,VLOOKUP($F34,P_All!$AB$5:$AZ$204,3*($C$6-1)+3),VLOOKUP($F34,P_All!$BB$5:$BZ$204,3*($C$6-1)+3))) -> 9581.1 | I34: =IF($C$8=1,VLOOKUP($F34,P_All!$A$5:$Y$204,3*($C$6-1)+4),IF($C$8=2,VLOOKUP($F34,P_All!$AB$5:$AZ$204,3*($C$6-1)+4),VLOOKUP($F34,P_All!$BB$5:$BZ$204,3*($C$6-1)+4))) -> 10077 | J34: =VLOOKUP($F34,NA_All!$A$5:$G$204,IF(ISERROR($D$6),2,5)) -> 9110.4 | K34: =VLOOKUP($F34,NA_All!$A$5:$G$204,IF(ISERROR($D$6),3,6)) -> 9581.1 | L34: =VLOOKUP($F34,NA_All!$A$5:$G$204,IF(ISERROR($D$6),4,7)) -> 10077 | N34: 250000
A35: Cu | F35: 13 | G35: =IF($C$8=1,VLOOKUP($F35,P_All!$A$5:$Y$204,3*($C$6-1)+2),IF($C$8=2,VLOOKUP($F35,P_All!$AB$5:$AZ$204,3*($C$6-1)+2),VLOOKUP($F35,P_All!$BB$5:$BZ$204,3*($C$6-1)+2))) -> 9110.4 | H35: =IF($C$8=1,VLOOKUP($F35,P_All!$A$5:$Y204,3*($C$6-1)+3),IF($C$8=2,VLOOKUP($F35,P_All!$AB$5:$AZ$204,3*($C$6-1)+3),VLOOKUP($F35,P_All!$BB$5:$BZ$204,3*($C$6-1)+3))) -> 9581.1 | I35: =IF($C$8=1,VLOOKUP($F35,P_All!$A$5:$Y$204,3*($C$6-1)+4),IF($C$8=2,VLOOKUP($F35,P_All!$AB$5:$AZ$204,3*($C$6-1)+4),VLOOKUP($F35,P_All!$BB$5:$BZ$204,3*($C$6-1)+4))) -> 10077 | J35: =VLOOKUP($F35,NA_All!$A$5:$G$204,IF(ISERROR($D$6),2,5)) -> 9110.4 | K35: =VLOOKUP($F35,NA_All!$A$5:$G$204,IF(ISERROR($D$6),3,6)) -> 9581.1 | L35: =VLOOKUP($F35,NA_All!$A$5:$G$204,IF(ISERROR($D$6),4,7)) -> 10077 | N35: 250000
A36: F | B36: 4000 | C36: 2000 | F36: 14 | G36: =IF($C$8=1,VLOOKUP($F36,P_All!$A$5:$Y$204,3*($C$6-1)+2),IF($C$8=2,VLOOKUP($F36,P_All!$AB$5:$AZ$204,3*($C$6-1)+2),VLOOKUP($F36,P_All!$BB$5:$BZ$204,3*($C$6-1)+2))) -> 9110.4 | H36: =IF($C$8=1,VLOOKUP($F36,P_All!$A$5:$Y204,3*($C$6-1)+3),IF($C$8=2,VLOOKUP($F36,P_All!$AB$5:$AZ$204,3*($C$6-1)+3),VLOOKUP($F36,P_All!$BB$5:$BZ$204,3*($C$6-1)+3))) -> 9581.1 | I36: =IF($C$8=1,VLOOKUP($F36,P_All!$A$5:$Y$204,3*($C$6-1)+4),IF($C$8=2,VLOOKUP($F36,P_All!$AB$5:$AZ$204,3*($C$6-1)+4),VLOOKUP($F36,P_All!$BB$5:$BZ$204,3*($C$6-1)+4))) -> 10077 | J36: =VLOOKUP($F36,NA_All!$A$5:$G$204,IF(ISERROR($D$6),2,5)) -> 9110.4 | K36: =VLOOKUP($F36,NA_All!$A$5:$G$204,IF(ISERROR($D$6),3,6)) -> 9581.1 | L36: =VLOOKUP($F36,NA_All!$A$5:$G$204,IF(ISERROR($D$6),4,7)) -> 10077 | N36: 250000
A37: Fe | F37: 15 | G37: =IF($C$8=1,VLOOKUP($F37,P_All!$A$5:$Y$204,3*($C$6-1)+2),IF($C$8=2,VLOOKUP($F37,P_All!$AB$5:$AZ$204,3*($C$6-1)+2),VLOOKUP($F37,P_All!$BB$5:$BZ$204,3*($C$6-1)+2))) -> 9110.4 | H37: =IF($C$8=1,VLOOKUP($F37,P_All!$A$5:$Y204,3*($C$6-1)+3),IF($C$8=2,VLOOKUP($F37,P_All!$AB$5:$AZ$204,3*($C$6-1)+3),VLOOKUP($F37,P_All!$BB$5:$BZ$204,3*($C$6-1)+3))) -> 9581.1 | I37: =IF($C$8=1,VLOOKUP($F37,P_All!$A$5:$Y$204,3*($C$6-1)+4),IF($C$8=2,VLOOKUP($F37,P_All!$AB$5:$AZ$204,3*($C$6-1)+4),VLOOKUP($F37,P_All!$BB$5:$BZ$204,3*($C$6-1)+4))) -> 10077 | J37: =VLOOKUP($F37,NA_All!$A$5:$G$204,IF(ISERROR($D$6),2,5)) -> 9110.4 | K37: =VLOOKUP($F37,NA_All!$A$5:$G$204,IF(ISERROR($D$6),3,6)) -> 9581.1 | L37: =VLOOKUP($F37,NA_All!$A$5:$G$204,IF(ISERROR($D$6),4,7)) -> 10077 | N37: 250000
A38: K | F38: 16 | G38: =IF($C$8=1,VLOOKUP($F38,P_All!$A$5:$Y$204,3*($C$6-1)+2),IF($C$8=2,VLOOKUP($F38,P_All!$AB$5:$AZ$204,3*($C$6-1)+2),VLOOKUP($F38,P_All!$BB$5:$BZ$204,3*($C$6-1)+2))) -> 9110.4 | H38: =IF($C$8=1,VLOOKUP($F38,P_All!$A$5:$Y204,3*($C$6-1)+3),IF($C$8=2,VLOOKUP($F38,P_All!$AB$5:$AZ$204,3*($C$6-1)+3),VLOOKUP($F38,P_All!$BB$5:$BZ$204,3*($C$6-1)+3))) -> 9581.1 | I38: =IF($C$8=1,VLOOKUP($F38,P_All!$A$5:$Y$204,3*($C$6-1)+4),IF($C$8=2,VLOOKUP($F38,P_All!$AB$5:$AZ$204,3*($C$6-1)+4),VLOOKUP($F38,P_All!$BB$5:$BZ$204,3*($C$6-1)+4))) -> 10077 | J38: =VLOOKUP($F38,NA_All!$A$5:$G$204,IF(ISERROR($D$6),2,5)) -> 9110.4 | K38: =VLOOKUP($F38,NA_All!$A$5:$G$204,IF(ISERROR($D$6),3,6)) -> 9581.1 | L38: =VLOOKUP($F38,NA_All!$A$5:$G$204,IF(ISERROR($D$6),4,7)) -> 10077 | N38: 250000
A39: Mg | F39: 17 | G39: =IF($C$8=1,VLOOKUP($F39,P_All!$A$5:$Y$204,3*($C$6-1)+2),IF($C$8=2,VLOOKUP($F39,P_All!$AB$5:$AZ$204,3*($C$6-1)+2),VLOOKUP($F39,P_All!$BB$5:$BZ$204,3*($C$6-1)+2))) -> 9110.4 | H39: =IF($C$8=1,VLOOKUP($F39,P_All!$A$5:$Y204,3*($C$6-1)+3),IF($C$8=2,VLOOKUP($F39,P_All!$AB$5:$AZ$204,3*($C$6-1)+3),VLOOKUP($F39,P_All!$BB$5:$BZ$204,3*($C$6-1)+3))) -> 9581.1 | I39: =IF($C$8=1,VLOOKUP($F39,P_All!$A$5:$Y$204,3*($C$6-1)+4),IF($C$8=2,VLOOKUP($F39,P_All!$AB$5:$AZ$204,3*($C$6-1)+4),VLOOKUP($F39,P_All!$BB$5:$BZ$204,3*($C$6-1)+4))) -> 10077 | J39: =VLOOKUP($F39,NA_All!$A$5:$G$204,IF(ISERROR($D$6),2,5)) -> 9110.4 | K39: =VLOOKUP($F39,NA_All!$A$5:$G$204,IF(ISERROR($D$6),3,6)) -> 9581.1 | L39: =VLOOKUP($F39,NA_All!$A$5:$G$204,IF(ISERROR($D$6),4,7)) -> 10077 | N39: 250000
A40: Mn | B40: 100 | F40: 18 | G40: =IF($C$8=1,VLOOKUP($F40,P_All!$A$5:$Y$204,3*($C$6-1)+2),IF($C$8=2,VLOOKUP($F40,P_All!$AB$5:$AZ$204,3*($C$6-1)+2),VLOOKUP($F40,P_All!$BB$5:$BZ$204,3*($C$6-1)+2))) -> 9110.4 | H40: =IF($C$8=1,VLOOKUP($F40,P_All!$A$5:$Y204,3*($C$6-1)+3),IF($C$8=2,VLOOKUP($F40,P_All!$AB$5:$AZ$204,3*($C$6-1)+3),VLOOKUP($F40,P_All!$BB$5:$BZ$204,3*($C$6-1)+3))) -> 9581.1 | I40: =IF($C$8=1,VLOOKUP($F40,P_All!$A$5:$Y$204,3*($C$6-1)+4),IF($C$8=2,VLOOKUP($F40,P_All!$AB$5:$AZ$204,3*($C$6-1)+4),VLOOKUP($F40,P_All!$BB$5:$BZ$204,3*($C$6-1)+4))) -> 10077 | J40: =VLOOKUP($F40,NA_All!$A$5:$G$204,IF(ISERROR($D$6),2,5)) -> 9110.4 | K40: =VLOOKUP($F40,NA_All!$A$5:$G$204,IF(ISERROR($D$6),3,6)) -> 9581.1 | L40: =VLOOKUP($F40,NA_All!$A$5:$G$204,IF(ISERROR($D$6),4,7)) -> 10077 | N40: 250000
A41: Na | F41: 19 | G41: =IF($C$8=1,VLOOKUP($F41,P_All!$A$5:$Y$204,3*($C$6-1)+2),IF($C$8=2,VLOOKUP($F41,P_All!$AB$5:$AZ$204,3*($C$6-1)+2),VLOOKUP($F41,P_All!$BB$5:$BZ$204,3*($C$6-1)+2))) -> 9110.4 | H41: =IF($C$8=1,VLOOKUP($F41,P_All!$A$5:$Y204,3*($C$6-1)+3),IF($C$8=2,VLOOKUP($F41,P_All!$AB$5:$AZ$204,3*($C$6-1)+3),VLOOKUP($F41,P_All!$BB$5:$BZ$204,3*($C$6-1)+3))) -> 9581.1 | I41: =IF($C$8=1,VLOOKUP($F41,P_All!$A$5:$Y$204,3*($C$6-1)+4),IF($C$8=2,VLOOKUP($F41,P_All!$AB$5:$AZ$204,3*($C$6-1)+4),VLOOKUP($F41,P_All!$BB$5:$BZ$204,3*($C$6-1)+4))) -> 10077 | J41: =VLOOKUP($F41,NA_All!$A$5:$G$204,IF(ISERROR($D$6),2,5)) -> 9110.4 | K41: =VLOOKUP($F41,NA_All!$A$5:$G$204,IF(ISERROR($D$6),3,6)) -> 9581.1 | L41: =VLOOKUP($F41,NA_All!$A$5:$G$204,IF(ISERROR($D$6),4,7)) -> 10077 | N41: 250000
A42: Ni | B42: 100 | F42: 20 | G42: =IF($C$8=1,VLOOKUP($F42,P_All!$A$5:$Y$204,3*($C$6-1)+2),IF($C$8=2,VLOOKUP($F42,P_All!$AB$5:$AZ$204,3*($C$6-1)+2),VLOOKUP($F42,P_All!$BB$5:$BZ$204,3*($C$6-1)+2))) -> 9110.4 | H42: =IF($C$8=1,VLOOKUP($F42,P_All!$A$5:$Y204,3*($C$6-1)+3),IF($C$8=2,VLOOKUP($F42,P_All!$AB$5:$AZ$204,3*($C$6-1)+3),VLOOKUP($F42,P_All!$BB$5:$BZ$204,3*($C$6-1)+3))) -> 9581.1 | I42: =IF($C$8=1,VLOOKUP($F42,P_All!$A$5:$Y$204,3*($C$6-1)+4),IF($C$8=2,VLOOKUP($F42,P_All!$AB$5:$AZ$204,3*($C$6-1)+4),VLOOKUP($F42,P_All!$BB$5:$BZ$204,3*($C$6-1)+4))) -> 10077 | J42: =VLOOKUP($F42,NA_All!$A$5:$G$204,IF(ISERROR($D$6),2,5)) -> 9110.4 | K42: =VLOOKUP($F42,NA_All!$A$5:$G$204,IF(ISERROR($D$6),3,6)) -> 9581.1 | L42: =VLOOKUP($F42,NA_All!$A$5:$G$204,IF(ISERROR($D$6),4,7)) -> 10077 | N42: 250000
A43: Pb | F43: 21 | G43: =IF($C$8=1,VLOOKUP($F43,P_All!$A$5:$Y$204,3*($C$6-1)+2),IF($C$8=2,VLOOKUP($F43,P_All!$AB$5:$AZ$204,3*($C$6-1)+2),VLOOKUP($F43,P_All!$BB$5:$BZ$204,3*($C$6-1)+2))) -> 9110.4 | H43: =IF($C$8=1,VLOOKUP($F43,P_All!$A$5:$Y204,3*($C$6-1)+3),IF($C$8=2,VLOOKUP($F43,P_All!$AB$5:$AZ$204,3*($C$6-1)+3),VLOOKUP($F43,P_All!$BB$5:$BZ$204,3*($C$6-1)+3))) -> 9581.1 | I43: =IF($C$8=1,VLOOKUP($F43,P_All!$A$5:$Y$204,3*($C$6-1)+4),IF($C$8=2,VLOOKUP($F43,P_All!$AB$5:$AZ$204,3*($C$6-1)+4),VLOOKUP($F43,P_All!$BB$5:$BZ$204,3*($C$6-1)+4))) -> 10077 | J43: =VLOOKUP($F43,NA_All!$A$5:$G$204,IF(ISERROR($D$6),2,5)) -> 9110.4 | K43: =VLOOKUP($F43,NA_All!$A$5:$G$204,IF(ISERROR($D$6),3,6)) -> 9581.1 | L43: =VLOOKUP($F43,NA_All!$A$5:$G$204,IF(ISERROR($D$6),4,7)) -> 10077 | N43: 250000
A44: Sb | B44: 6 | F44: 22 | G44: =IF($C$8=1,VLOOKUP($F44,P_All!$A$5:$Y$204,3*($C$6-1)+2),IF($C$8=2,VLOOKUP($F44,P_All!$AB$5:$AZ$204,3*($C$6-1)+2),VLOOKUP($F44,P_All!$BB$5:$BZ$204,3*($C$6-1)+2))) -> 9110.4 | H44: =IF($C$8=1,VLOOKUP($F44,P_All!$A$5:$Y204,3*($C$6-1)+3),IF($C$8=2,VLOOKUP($F44,P_All!$AB$5:$AZ$204,3*($C$6-1)+3),VLOOKUP($F44,P_All!$BB$5:$BZ$204,3*($C$6-1)+3))) -> 9581.1 | I44: =IF($C$8=1,VLOOKUP($F44,P_All!$A$5:$Y$204,3*($C$6-1)+4),IF($C$8=2,VLOOKUP($F44,P_All!$AB$5:$AZ$204,3*($C$6-1)+4),VLOOKUP($F44,P_All!$BB$5:$BZ$204,3*($C$6-1)+4))) -> 10077 | J44: =VLOOKUP($F44,NA_All!$A$5:$G$204,IF(ISERROR($D$6),2,5)) -> 9110.4 | K44: =VLOOKUP($F44,NA_All!$A$5:$G$204,IF(ISERROR($D$6),3,6)) -> 9581.1 | L44: =VLOOKUP($F44,NA_All!$A$5:$G$204,IF(ISERROR($D$6),4,7)) -> 10077 | N44: 250000
A45: Se | B45: 30 | F45: 23 | G45: =IF($C$8=1,VLOOKUP($F45,P_All!$A$5:$Y$204,3*($C$6-1)+2),IF($C$8=2,VLOOKUP($F45,P_All!$AB$5:$AZ$204,3*($C$6-1)+2),VLOOKUP($F45,P_All!$BB$5:$BZ$204,3*($C$6-1)+2))) -> 9110.4 | H45: =IF($C$8=1,VLOOKUP($F45,P_All!$A$5:$Y204,3*($C$6-1)+3),IF($C$8=2,VLOOKUP($F45,P_All!$AB$5:$AZ$204,3*($C$6-1)+3),VLOOKUP($F45,P_All!$BB$5:$BZ$204,3*($C$6-1)+3))) -> 9581.1 | I45: =IF($C$8=1,VLOOKUP($F45,P_All!$A$5:$Y$204,3*($C$6-1)+4),IF($C$8=2,VLOOKUP($F45,P_All!$AB$5:$AZ$204,3*($C$6-1)+4),VLOOKUP($F45,P_All!$BB$5:$BZ$204,3*($C$6-1)+4))) -> 10077 | J45: =VLOOKUP($F45,NA_All!$A$5:$G$204,IF(ISERROR($D$6),2,5)) -> 9110.4 | K45: =VLOOKUP($F45,NA_All!$A$5:$G$204,IF(ISERROR($D$6),3,6)) -> 9581.1 | L45: =VLOOKUP($F45,NA_All!$A$5:$G$204,IF(ISERROR($D$6),4,7)) -> 10077 | N45: 250000
A46: SO4 | C46: 250000 | F46: 24 | G46: =IF($C$8=1,VLOOKUP($F46,P_All!$A$5:$Y$204,3*($C$6-1)+2),IF($C$8=2,VLOOKUP($F46,P_All!$AB$5:$AZ$204,3*($C$6-1)+2),VLOOKUP($F46,P_All!$BB$5:$BZ$204,3*($C$6-1)+2))) -> 9110.4 | H46: =IF($C$8=1,VLOOKUP($F46,P_All!$A$5:$Y204,3*($C$6-1)+3),IF($C$8=2,VLOOKUP($F46,P_All!$AB$5:$AZ$204,3*($C$6-1)+3),VLOOKUP($F46,P_All!$BB$5:$BZ$204,3*($C$6-1)+3))) -> 9581.1 | I46: =IF($C$8=1,VLOOKUP($F46,P_All!$A$5:$Y$204,3*($C$6-1)+4),IF($C$8=2,VLOOKUP($F46,P_All!$AB$5:$AZ$204,3*($C$6-1)+4),VLOOKUP($F46,P_All!$BB$5:$BZ$204,3*($C$6-1)+4))) -> 10077 | J46: =VLOOKUP($F46,NA_All!$A$5:$G$204,IF(ISERROR($D$6),2,5)) -> 9110.4 | K46: =VLOOKUP($F46,NA_All!$A$5:$G$204,IF(ISERROR($D$6),3,6)) -> 9581.1 | L46: =VLOOKUP($F46,NA_All!$A$5:$G$204,IF(ISERROR($D$6),4,7)) -> 10077 | N46: 250000
A47: Tl | B47: 0.6 | F47: 25 | G47: =IF($C$8=1,VLOOKUP($F47,P_All!$A$5:$Y$204,3*($C$6-1)+2),IF($C$8=2,VLOOKUP($F47,P_All!$AB$5:$AZ$204,3*($C$6-1)+2),VLOOKUP($F47,P_All!$BB$5:$BZ$204,3*($C$6-1)+2))) -> 9110.4 | H47: =IF($C$8=1,VLOOKUP($F47,P_All!$A$5:$Y204,3*($C$6-1)+3),IF($C$8=2,VLOOKUP($F47,P_All!$AB$5:$AZ$204,3*($C$6-1)+3),VLOOKUP($F47,P_All!$BB$5:$BZ$204,3*($C$6-1)+3))) -> 9581.1 | I47: =IF($C$8=1,VLOOKUP($F47,P_All!$A$5:$Y$204,3*($C$6-1)+4),IF($C$8=2,VLOOKUP($F47,P_All!$AB$5:$AZ$204,3*($C$6-1)+4),VLOOKUP($F47,P_All!$BB$5:$BZ$204,3*($C$6-1)+4))) -> 10077 | J47: =VLOOKUP($F47,NA_All!$A$5:$G$204,IF(ISERROR($D$6),2,5)) -> 9110.4 | K47: =VLOOKUP($F47,NA_All!$A$5:$G$204,IF(ISERROR($D$6),3,6)) -> 9581.1 | L47: =VLOOKUP($F47,NA_All!$A$5:$G$204,IF(ISERROR($D$6),4,7)) -> 10077 | N47: 250000
A48: V | B48: 50 | F48: 26 | G48: =IF($C$8=1,VLOOKUP($F48,P_All!$A$5:$Y$204,3*($C$6-1)+2),IF($C$8=2,VLOOKUP($F48,P_All!$AB$5:$AZ$204,3*($C$6-1)+2),VLOOKUP($F48,P_All!$BB$5:$BZ$204,3*($C$6-1)+2))) -> 9110.4 | H48: =IF($C$8=1,VLOOKUP($F48,P_All!$A$5:$Y204,3*($C$6-1)+3),IF($C$8=2,VLOOKUP($F48,P_All!$AB$5:$AZ$204,3*($C$6-1)+3),VLOOKUP($F48,P_All!$BB$5:$BZ$204,3*($C$6-1)+3))) -> 9581.1 | I48: =IF($C$8=1,VLOOKUP($F48,P_All!$A$5:$Y$204,3*($C$6-1)+4),IF($C$8=2,VLOOKUP($F48,P_All!$AB$5:$AZ$204,3*($C$6-1)+4),VLOOKUP($F48,P_All!$BB$5:$BZ$204,3*($C$6-1)+4))) -> 10077 | J48: =VLOOKUP($F48,NA_All!$A$5:$G$204,IF(ISERROR($D$6),2,5)) -> 9110.4 | K48: =VLOOKUP($F48,NA_All!$A$5:$G$204,IF(ISERROR($D$6),3,6)) -> 9581.1 | L48: =VLOOKUP($F48,NA_All!$A$5:$G$204,IF(ISERROR($D$6),4,7)) -> 10077 | N48: 250000
A49: Zn | B49: 2000 | C49: 5000 | F49: 27 | G49: =IF($C$8=1,VLOOKUP($F49,P_All!$A$5:$Y$204,3*($C$6-1)+2),IF($C$8=2,VLOOKUP($F49,P_All!$AB$5:$AZ$204,3*($C$6-1)+2),VLOOKUP($F49,P_All!$BB$5:$BZ$204,3*($C$6-1)+2))) -> 9110.4 | H49: =IF($C$8=1,VLOOKUP($F49,P_All!$A$5:$Y204,3*($C$6-1)+3),IF($C$8=2,VLOOKUP($F49,P_All!$AB$5:$AZ$204,3*($C$6-1)+3),VLOOKUP($F49,P_All!$BB$5:$BZ$204,3*($C$6-1)+3))) -> 9581.1 | I49: =IF($C$8=1,VLOOKUP($F49,P_All!$A$5:$Y$204,3*($C$6-1)+4),IF($C$8=2,VLOOKUP($F49,P_All!$AB$5:$AZ$204,3*($C$6-1)+4),VLOOKUP($F49,P_All!$BB$5:$BZ$204,3*($C$6-1)+4))) -> 10077 | J49: =VLOOKUP($F49,NA_All!$A$5:$G$204,IF(ISERROR($D$6),2,5)) -> 9110.4 | K49: =VLOOKUP($F49,NA_All!$A$5:$G$204,IF(ISERROR($D$6),3,6)) -> 9581.1 | L49: =VLOOKUP($F49,NA_All!$A$5:$G$204,IF(ISERROR($D$6),4,7)) -> 10077 | N49: 250000
F50: 28 | G50: =IF($C$8=1,VLOOKUP($F50,P_All!$A$5:$Y$204,3*($C$6-1)+2),IF($C$8=2,VLOOKUP($F50,P_All!$AB$5:$AZ$204,3*($C$6-1)+2),VLOOKUP($F50,P_All!$BB$5:$BZ$204,3*($C$6-1)+2))) -> 9110.4 | H50: =IF($C$8=1,VLOOKUP($F50,P_All!$A$5:$Y204,3*($C$6-1)+3),IF($C$8=2,VLOOKUP($F50,P_All!$AB$5:$AZ$204,3*($C$6-1)+3),VLOOKUP($F50,P_All!$BB$5:$BZ$204,3*($C$6-1)+3))) -> 9581.1 | I50: =IF($C$8=1,VLOOKUP($F50,P_All!$A$5:$Y$204,3*($C$6-1)+4),IF($C$8=2,VLOOKUP($F50,P_All!$AB$5:$AZ$204,3*($C$6-1)+4),VLOOKUP($F50,P_All!$BB$5:$BZ$204,3*($C$6-1)+4))) -> 10077 | J50: =VLOOKUP($F50,NA_All!$A$5:$G$204,IF(ISERROR($D$6),2,5)) -> 9110.4 | K50: =VLOOKUP($F50,NA_All!$A$5:$G$204,IF(ISERROR($D$6),3,6)) -> 9581.1 | L50: =VLOOKUP($F50,NA_All!$A$5:$G$204,IF(ISERROR($D$6),4,7)) -> 10077 | N50: 250000
F51: 29 | G51: =IF($C$8=1,VLOOKUP($F51,P_All!$A$5:$Y$204,3*($C$6-1)+2),IF($C$8=2,VLOOKUP($F51,P_All!$AB$5:$AZ$204,3*($C$6-1)+2),VLOOKUP($F51,P_All!$BB$5:$BZ$204,3*($C$6-1)+2))) -> 9110.4 | H51: =IF($C$8=1,VLOOKUP($F51,P_All!$A$5:$Y204,3*($C$6-1)+3),IF($C$8=2,VLOOKUP($F51,P_All!$AB$5:$AZ$204,3*($C$6-1)+3),VLOOKUP($F51,P_All!$BB$5:$BZ$204,3*($C$6-1)+3))) -> 9581.1 | I51: =IF($C$8=1,VLOOKUP($F51,P_All!$A$5:$Y$204,3*($C$6-1)+4),IF($C$8=2,VLOOKUP($F51,P_All!$AB$5:$AZ$204,3*($C$6-1)+4),VLOOKUP($F51,P_All!$BB$5:$BZ$204,3*($C$6-1)+4))) -> 10077 | J51: =VLOOKUP($F51,NA_All!$A$5:$G$204,IF(ISERROR($D$6),2,5)) -> 9110.4 | K51: =VLOOKUP($F51,NA_All!$A$5:$G$204,IF(ISERROR($D$6),3,6)) -> 9581.1 | L51: =VLOOKUP($F51,NA_All!$A$5:$G$204,IF(ISERROR($D$6),4,7)) -> 10077 | N51: 250000
A52: Evaluation Location | F52: 30 | G52: =IF($C$8=1,VLOOKUP($F52,P_All!$A$5:$Y$204,3*($C$6-1)+2),IF($C$8=2,VLOOKUP($F52,P_All!$AB$5:$AZ$204,3*($C$6-1)+2),VLOOKUP($F52,P_All!$BB$5:$BZ$204,3*($C$6-1)+2))) -> 9110.4 | H52: =IF($C$8=1,VLOOKUP($F52,P_All!$A$5:$Y204,3*($C$6-1)+3),IF($C$8=2,VLOOKUP($F52,P_All!$AB$5:$AZ$204,3*($C$6-1)+3),VLOOKUP($F52,P_All!$BB$5:$BZ$204,3*($C$6-1)+3))) -> 9581.1 | I52: =IF($C$8=1,VLOOKUP($F52,P_All!$A$5:$Y$204,3*($C$6-1)+4),IF($C$8=2,VLOOKUP($F52,P_All!$AB$5:$AZ$204,3*($C$6-1)+4),VLOOKUP($F52,P_All!$BB$5:$BZ$204,3*($C$6-1)+4))) -> 10077 | J52: =VLOOKUP($F52,NA_All!$A$5:$G$204,IF(ISERROR($D$6),2,5)) -> 9110.4 | K52: =VLOOKUP($F52,NA_All!$A$5:$G$204,IF(ISERROR($D$6),3,6)) -> 9581.1 | L52: =VLOOKUP($F52,NA_All!$A$5:$G$204,IF(ISERROR($D$6),4,7)) -> 10077 | N52: 250000
A53: Dunka Road | F53: 31 | G53: =IF($C$8=1,VLOOKUP($F53,P_All!$A$5:$Y$204,3*($C$6-1)+2),IF($C$8=2,VLOOKUP($F53,P_All!$AB$5:$AZ$204,3*($C$6-1)+2),VLOOKUP($F53,P_All!$BB$5:$BZ$204,3*($C$6-1)+2))) -> 9110.4 | H53: =IF($C$8=1,VLOOKUP($F53,P_All!$A$5:$Y204,3*($C$6-1)+3),IF($C$8=2,VLOOKUP($F53,P_All!$AB$5:$AZ$204,3*($C$6-1)+3),VLOOKUP($F53,P_All!$BB$5:$BZ$204,3*($C$6-1)+3))) -> 9581.1 | I53: =IF($C$8=1,VLOOKUP($F53,P_All!$A$5:$Y$204,3*($C$6-1)+4),IF($C$8=2,VLOOKUP($F53,P_All!$AB$5:$AZ$204,3*($C$6-1)+4),VLOOKUP($F53,P_All!$BB$5:$BZ$204,3*($C$6-1)+4))) -> 10077 | J53: =VLOOKUP($F53,NA_All!$A$5:$G$204,IF(ISERROR($D$6),2,5)) -> 9110.4 | K53: =VLOOKUP($F53,NA_All!$A$5:$G$204,IF(ISERROR($D$6),3,6)) -> 9581.1 | L53: =VLOOKUP($F53,NA_All!$A$5:$G$204,IF(ISERROR($D$6),4,7)) -> 10077 | N53: 250000
A54: the Property Bdry. | F54: 32 | G54: =IF($C$8=1,VLOOKUP($F54,P_All!$A$5:$Y$204,3*($C$6-1)+2),IF($C$8=2,VLOOKUP($F54,P_All!$AB$5:$AZ$204,3*($C$6-1)+2),VLOOKUP($F54,P_All!$BB$5:$BZ$204,3*($C$6-1)+2))) -> 9110.4 | H54: =IF($C$8=1,VLOOKUP($F54,P_All!$A$5:$Y204,3*($C$6-1)+3),IF($C$8=2,VLOOKUP($F54,P_All!$AB$5:$AZ$204,3*($C$6-1)+3),VLOOKUP($F54,P_All!$BB$5:$BZ$204,3*($C$6-1)+3))) -> 9581.1 | I54: =IF($C$8=1,VLOOKUP($F54,P_All!$A$5:$Y$204,3*($C$6-1)+4),IF($C$8=2,VLOOKUP($F54,P_All!$AB$5:$AZ$204,3*($C$6-1)+4),VLOOKUP($F54,P_All!$BB$5:$BZ$204,3*($C$6-1)+4))) -> 10077 | J54: =VLOOKUP($F54,NA_All!$A$5:$G$204,IF(ISERROR($D$6),2,5)) -> 9110.4 | K54: =VLOOKUP($F54,NA_All!$A$5:$G$204,IF(ISERROR($D$6),3,6)) -> 9581.1 | L54: =VLOOKUP($F54,NA_All!$A$5:$G$204,IF(ISERROR($D$6),4,7)) -> 10077 | N54: 250000
A55: Partridge River | F55: 33 | G55: =IF($C$8=1,VLOOKUP($F55,P_All!$A$5:$Y$204,3*($C$6-1)+2),IF($C$8=2,VLOOKUP($F55,P_All!$AB$5:$AZ$204,3*($C$6-1)+2),VLOOKUP($F55,P_All!$BB$5:$BZ$204,3*($C$6-1)+2))) -> 9110.4 | H55: =IF($C$8=1,VLOOKUP($F55,P_All!$A$5:$Y204,3*($C$6-1)+3),IF($C$8=2,VLOOKUP($F55,P_All!$AB$5:$AZ$204,3*($C$6-1)+3),VLOOKUP($F55,P_All!$BB$5:$BZ$204,3*($C$6-1)+3))) -> 9581.1 | I55: =IF($C$8=1,VLOOKUP($F55,P_All!$A$5:$Y$204,3*($C$6-1)+4),IF($C$8=2,VLOOKUP($F55,P_All!$AB$5:$AZ$204,3*($C$6-1)+4),VLOOKUP($F55,P_All!$BB$5:$BZ$204,3*($C$6-1)+4))) -> 10077 | J55: =VLOOKUP($F55,NA_All!$A$5:$G$204,IF(ISERROR($D$6),2,5)) -> 9110.4 | K55: =VLOOKUP($F55,NA_All!$A$5:$G$204,IF(ISERROR($D$6),3,6)) -> 9581.1 | L55: =VLOOKUP($F55,NA_All!$A$5:$G$204,IF(ISERROR($D$6),4,7)) -> 10077 | N55: 250000
F56: 34 | G56: =IF($C$8=1,VLOOKUP($F56,P_All!$A$5:$Y$204,3*($C$6-1)+2),IF($C$8=2,VLOOKUP($F56,P_All!$AB$5:$AZ$204,3*($C$6-1)+2),VLOOKUP($F56,P_All!$BB$5:$BZ$204,3*($C$6-1)+2))) -> 9110.4 | H56: =IF($C$8=1,VLOOKUP($F56,P_All!$A$5:$Y204,3*($C$6-1)+3),IF($C$8=2,VLOOKUP($F56,P_All!$AB$5:$AZ$204,3*($C$6-1)+3),VLOOKUP($F56,P_All!$BB$5:$BZ$204,3*($C$6-1)+3))) -> 9581.1 | I56: =IF($C$8=1,VLOOKUP($F56,P_All!$A$5:$Y$204,3*($C$6-1)+4),IF($C$8=2,VLOOKUP($F56,P_All!$AB$5:$AZ$204,3*($C$6-1)+4),VLOOKUP($F56,P_All!$BB$5:$BZ$204,3*($C$6-1)+4))) -> 10077 | J56: =VLOOKUP($F56,NA_All!$A$5:$G$204,IF(ISERROR($D$6),2,5)) -> 9110.4 | K56: =VLOOKUP($F56,NA_All!$A$5:$G$204,IF(ISERROR($D$6),3,6)) -> 9581.1 | L56: =VLOOKUP($F56,NA_All!$A$5:$G$204,IF(ISERROR($D$6),4,7)) -> 10077 | N56: 250000
A57: Site-Specific | B57: Surficial (ug/L) | C57: Bedrock (ug/L) | F57: 35 | G57: =IF($C$8=1,VLOOKUP($F57,P_All!$A$5:$Y$204,3*($C$6-1)+2),IF($C$8=2,VLOOKUP($F57,P_All!$AB$5:$AZ$204,3*($C$6-1)+2),VLOOKUP($F57,P_All!$BB$5:$BZ$204,3*($C$6-1)+2))) -> 9110.4 | H57: =IF($C$8=1,VLOOKUP($F57,P_All!$A$5:$Y204,3*($C$6-1)+3),IF($C$8=2,VLOOKUP($F57,P_All!$AB$5:$AZ$204,3*($C$6-1)+3),VLOOKUP($F57,P_All!$BB$5:$BZ$204,3*($C$6-1)+3))) -> 9581.1 | I57: =IF($C$8=1,VLOOKUP($F57,P_All!$A$5:$Y$204,3*($C$6-1)+4),IF($C$8=2,VLOOKUP($F57,P_All!$AB$5:$AZ$204,3*($C$6-1)+4),VLOOKUP($F57,P_All!$BB$5:$BZ$204,3*($C$6-1)+4))) -> 10077 | J57: =VLOOKUP($F57,NA_All!$A$5:$G$204,IF(ISERROR($D$6),2,5)) -> 9110.4 | K57: =VLOOKUP($F57,NA_All!$A$5:$G$204,IF(ISERROR($D$6),3,6)) -> 9581.1 | L57: =VLOOKUP($F57,NA_All!$A$5:$G$204,IF(ISERROR($D$6),4,7)) -> 10077 | N57: 250000
A58: Be | B58: 0.39 | C58: 0.2 | F58: 36 | G58: =IF($C$8=1,VLOOKUP($F58,P_All!$A$5:$Y$204,3*($C$6-1)+2),IF($C$8=2,VLOOKUP($F58,P_All!$AB$5:$AZ$204,3*($C$6-1)+2),VLOOKUP($F58,P_All!$BB$5:$BZ$204,3*($C$6-1)+2))) -> 9110.4 | H58: =IF($C$8=1,VLOOKUP($F58,P_All!$A$5:$Y204,3*($C$6-1)+3),IF($C$8=2,VLOOKUP($F58,P_All!$AB$5:$AZ$204,3*($C$6-1)+3),VLOOKUP($F58,P_All!$BB$5:$BZ$204,3*($C$6-1)+3))) -> 9581.1 | I58: =IF($C$8=1,VLOOKUP($F58,P_All!$A$5:$Y$204,3*($C$6-1)+4),IF($C$8=2,VLOOKUP($F58,P_All!$AB$5:$AZ$204,3*($C$6-1)+4),VLOOKUP($F58,P_All!$BB$5:$BZ$204,3*($C$6-1)+4))) -> 10077 | J58: =VLOOKUP($F58,NA_All!$A$5:$G$204,IF(ISERROR($D$6),2,5)) -> 9110.4 | K58: =VLOOKUP($F58,NA_All!$A$5:$G$204,IF(ISERROR($D$6),3,6)) -> 9581.1 | L58: =VLOOKUP($F58,NA_All!$A$5:$G$204,IF(ISERROR($D$6),4,7)) -> 10077 | N58: 250000
A59: Mn | B59: 1002 | C59: 306.6 | F59: 37 | G59: =IF($C$8=1,VLOOKUP($F59,P_All!$A$5:$Y$204,3*($C$6-1)+2),IF($C$8=2,VLOOKUP($F59,P_All!$AB$5:$AZ$204,3*($C$6-1)+2),VLOOKUP($F59,P_All!$BB$5:$BZ$204,3*($C$6-1)+2))) -> 9110.4 | H59: =IF($C$8=1,VLOOKUP($F59,P_All!$A$5:$Y204,3*($C$6-1)+3),IF($C$8=2,VLOOKUP($F59,P_All!$AB$5:$AZ$204,3*($C$6-1)+3),VLOOKUP($F59,P_All!$BB$5:$BZ$204,3*($C$6-1)+3))) -> 9581.1 | I59: =IF($C$8=1,VLOOKUP($F59,P_All!$A$5:$Y$204,3*($C$6-1)+4),IF($C$8=2,VLOOKUP($F59,P_All!$AB$5:$AZ$204,3*($C$6-1)+4),VLOOKUP($F59,P_All!$BB$5:$BZ$204,3*($C$6-1)+4))) -> 10077 | J59: =VLOOKUP($F59,NA_All!$A$5:$G$204,IF(ISERROR($D$6),2,5)) -> 9110.4 | K59: =VLOOKUP($F59,NA_All!$A$5:$G$204,IF(ISERROR($D$6),3,6)) -> 9581.1 | L59: =VLOOKUP($F59,NA_All!$A$5:$G$204,IF(ISERROR($D$6),4,7)) -> 10077 | N59: 250000
A60: Tl | B60: =B47 -> 0.6 | C60: 1 | F60: 38 | G60: =IF($C$8=1,VLOOKUP($F60,P_All!$A$5:$Y$204,3*($C$6-1)+2),IF($C$8=2,VLOOKUP($F60,P_All!$AB$5:$AZ$204,3*($C$6-1)+2),VLOOKUP($F60,P_All!$BB$5:$BZ$204,3*($C$6-1)+2))) -> 9110.4 | H60: =IF($C$8=1,VLOOKUP($F60,P_All!$A$5:$Y204,3*($C$6-1)+3),IF($C$8=2,VLOOKUP($F60,P_All!$AB$5:$AZ$204,3*($C$6-1)+3),VLOOKUP($F60,P_All!$BB$5:$BZ$204,3*($C$6-1)+3))) -> 9581.1 | I60: =IF($C$8=1,VLOOKUP($F60,P_All!$A$5:$Y$204,3*($C$6-1)+4),IF($C$8=2,VLOOKUP($F60,P_All!$AB$5:$AZ$204,3*($C$6-1)+4),VLOOKUP($F60,P_All!$BB$5:$BZ$204,3*($C$6-1)+4))) -> 10077 | J60: =VLOOKUP($F60,NA_All!$A$5:$G$204,IF(ISERROR($D$6),2,5)) -> 9110.4 | K60: =VLOOKUP($F60,NA_All!$A$5:$G$204,IF(ISERROR($D$6),3,6)) -> 9581.1 | L60: =VLOOKUP($F60,NA_All!$A$5:$G$204,IF(ISERROR($D$6),4,7)) -> 10077 | N60: 250000
F61: 39 | G61: =IF($C$8=1,VLOOKUP($F61,P_All!$A$5:$Y$204,3*($C$6-1)+2),IF($C$8=2,VLOOKUP($F61,P_All!$AB$5:$AZ$204,3*($C$6-1)+2),VLOOKUP($F61,P_All!$BB$5:$BZ$204,3*($C$6-1)+2))) -> 9110.4 | H61: =IF($C$8=1,VLOOKUP($F61,P_All!$A$5:$Y204,3*($C$6-1)+3),IF($C$8=2,VLOOKUP($F61,P_All!$AB$5:$AZ$204,3*($C$6-1)+3),VLOOKUP($F61,P_All!$BB$5:$BZ$204,3*($C$6-1)+3))) -> 9581.1 | I61: =IF($C$8=1,VLOOKUP($F61,P_All!$A$5:$Y$204,3*($C$6-1)+4),IF($C$8=2,VLOOKUP($F61,P_All!$AB$5:$AZ$204,3*($C$6-1)+4),VLOOKUP($F61,P_All!$BB$5:$BZ$204,3*($C$6-1)+4))) -> 10077 | J61: =VLOOKUP($F61,NA_All!$A$5:$G$204,IF(ISERROR($D$6),2,5)) -> 9110.4 | K61: =VLOOKUP($F61,NA_All!$A$5:$G$204,IF(ISERROR($D$6),3,6)) -> 9581.1 | L61: =VLOOKUP($F61,NA_All!$A$5:$G$204,IF(ISERROR($D$6),4,7)) -> 10077 | N61: 250000
B62: = not used for evaluation criteria, see site-specific criteria | F62: 40 | G62: =IF($C$8=1,VLOOKUP($F62,P_All!$A$5:$Y$204,3*($C$6-1)+2),IF($C$8=2,VLOOKUP($F62,P_All!$AB$5:$AZ$204,3*($C$6-1)+2),VLOOKUP($F62,P_All!$BB$5:$BZ$204,3*($C$6-1)+2))) -> 9110.4 | H62: =IF($C$8=1,VLOOKUP($F62,P_All!$A$5:$Y204,3*($C$6-1)+3),IF($C$8=2,VLOOKUP($F62,P_All!$AB$5:$AZ$204,3*($C$6-1)+3),VLOOKUP($F62,P_All!$BB$5:$BZ$204,3*($C$6-1)+3))) -> 9581.1 | I62: =IF($C$8=1,VLOOKUP($F62,P_All!$A$5:$Y$204,3*($C$6-1)+4),IF($C$8=2,VLOOKUP($F62,P_All!$AB$5:$AZ$204,3*($C$6-1)+4),VLOOKUP($F62,P_All!$BB$5:$BZ$204,3*($C$6-1)+4))) -> 10077 | J62: =VLOOKUP($F62,NA_All!$A$5:$G$204,IF(ISERROR($D$6),2,5)) -> 9110.4 | K62: =VLOOKUP($F62,NA_All!$A$5:$G$204,IF(ISERROR($D$6),3,6)) -> 9581.1 | L62: =VLOOKUP($F62,NA_All!$A$5:$G$204,IF(ISERROR($D$6),4,7)) -> 10077 | N62: 250000
F63: 41 | G63: =IF($C$8=1,VLOOKUP($F63,P_All!$A$5:$Y$204,3*($C$6-1)+2),IF($C$8=2,VLOOKUP($F63,P_All!$AB$5:$AZ$204,3*($C$6-1)+2),VLOOKUP($F63,P_All!$BB$5:$BZ$204,3*($C$6-1)+2))) -> 9110.4 | H63: =IF($C$8=1,VLOOKUP($F63,P_All!$A$5:$Y204,3*($C$6-1)+3),IF($C$8=2,VLOOKUP($F63,P_All!$AB$5:$AZ$204,3*($C$6-1)+3),VLOOKUP($F63,P_All!$BB$5:$BZ$204,3*($C$6-1)+3))) -> 9581.1 | I63: =IF($C$8=1,VLOOKUP($F63,P_All!$A$5:$Y$204,3*($C$6-1)+4),IF($C$8=2,VLOOKUP($F63,P_All!$AB$5:$AZ$204,3*($C$6-1)+4),VLOOKUP($F63,P_All!$BB$5:$BZ$204,3*($C$6-1)+4))) -> 10077 | J63: =VLOOKUP($F63,NA_All!$A$5:$G$204,IF(ISERROR($D$6),2,5)) -> 9110.4 | K63: =VLOOKUP($F63,NA_All!$A$5:$G$204,IF(ISERROR($D$6),3,6)) -> 9581.1 | L63: =VLOOKUP($F63,NA_All!$A$5:$G$204,IF(ISERROR($D$6),4,7)) -> 10077 | N63: 250000
F64: 42 | G64: =IF($C$8=1,VLOOKUP($F64,P_All!$A$5:$Y$204,3*($C$6-1)+2),IF($C$8=2,VLOOKUP($F64,P_All!$AB$5:$AZ$204,3*($C$6-1)+2),VLOOKUP($F64,P_All!$BB$5:$BZ$204,3*($C$6-1)+2))) -> 9110.4 | H64: =IF($C$8=1,VLOOKUP($F64,P_All!$A$5:$Y204,3*($C$6-1)+3),IF($C$8=2,VLOOKUP($F64,P_All!$AB$5:$AZ$204,3*($C$6-1)+3),VLOOKUP($F64,P_All!$BB$5:$BZ$204,3*($C$6-1)+3))) -> 9581.1 | I64: =IF($C$8=1,VLOOKUP($F64,P_All!$A$5:$Y$204,3*($C$6-1)+4),IF($C$8=2,VLOOKUP($F64,P_All!$AB$5:$AZ$204,3*($C$6-1)+4),VLOOKUP($F64,P_All!$BB$5:$BZ$204,3*($C$6-1)+4))) -> 10077 | J64: =VLOOKUP($F64,NA_All!$A$5:$G$204,IF(ISERROR($D$6),2,5)) -> 9110.4 | K64: =VLOOKUP($F64,NA_All!$A$5:$G$204,IF(ISERROR($D$6),3,6)) -> 9581.1 | L64: =VLOOKUP($F64,NA_All!$A$5:$G$204,IF(ISERROR($D$6),4,7)) -> 10077 | N64: 250000
F65: 43 | G65: =IF($C$8=1,VLOOKUP($F65,P_All!$A$5:$Y$204,3*($C$6-1)+2),IF($C$8=2,VLOOKUP($F65,P_All!$AB$5:$AZ$204,3*($C$6-1)+2),VLOOKUP($F65,P_All!$BB$5:$BZ$204,3*($C$6-1)+2))) -> 9110.4 | H65: =IF($C$8=1,VLOOKUP($F65,P_All!$A$5:$Y204,3*($C$6-1)+3),IF($C$8=2,VLOOKUP($F65,P_All!$AB$5:$AZ$204,3*($C$6-1)+3),VLOOKUP($F65,P_All!$BB$5:$BZ$204,3*($C$6-1)+3))) -> 9581.1 | I65: =IF($C$8=1,VLOOKUP($F65,P_All!$A$5:$Y$204,3*($C$6-1)+4),IF($C$8=2,VLOOKUP($F65,P_All!$AB$5:$AZ$204,3*($C$6-1)+4),VLOOKUP($F65,P_All!$BB$5:$BZ$204,3*($C$6-1)+4))) -> 10077 | J65: =VLOOKUP($F65,NA_All!$A$5:$G$204,IF(ISERROR($D$6),2,5)) -> 9110.4 | K65: =VLOOKUP($F65,NA_All!$A$5:$G$204,IF(ISERROR($D$6),3,6)) -> 9581.1 | L65: =VLOOKUP($F65,NA_All!$A$5:$G$204,IF(ISERROR($D$6),4,7)) -> 10077 | N65: 250000
F66: 44 | G66: =IF($C$8=1,VLOOKUP($F66,P_All!$A$5:$Y$204,3*($C$6-1)+2),IF($C$8=2,VLOOKUP($F66,P_All!$AB$5:$AZ$204,3*($C$6-1)+2),VLOOKUP($F66,P_All!$BB$5:$BZ$204,3*($C$6-1)+2))) -> 9110.4 | H66: =IF($C$8=1,VLOOKUP($F66,P_All!$A$5:$Y204,3*($C$6-1)+3),IF($C$8=2,VLOOKUP($F66,P_All!$AB$5:$AZ$204,3*($C$6-1)+3),VLOOKUP($F66,P_All!$BB$5:$BZ$204,3*($C$6-1)+3))) -> 9581.1 | I66: =IF($C$8=1,VLOOKUP($F66,P_All!$A$5:$Y$204,3*($C$6-1)+4),IF($C$8=2,VLOOKUP($F66,P_All!$AB$5:$AZ$204,3*($C$6-1)+4),VLOOKUP($F66,P_All!$BB$5:$BZ$204,3*($C$6-1)+4))) -> 10077 | J66: =VLOOKUP($F66,NA_All!$A$5:$G$204,IF(ISERROR($D$6),2,5)) -> 9110.4 | K66: =VLOOKUP($F66,NA_All!$A$5:$G$204,IF(ISERROR($D$6),3,6)) -> 9581.1 | L66: =VLOOKUP($F66,NA_All!$A$5:$G$204,IF(ISERROR($D$6),4,7)) -> 10077 | N66: 250000
F67: 45 | G67: =IF($C$8=1,VLOOKUP($F67,P_All!$A$5:$Y$204,3*($C$6-1)+2),IF($C$8=2,VLOOKUP($F67,P_All!$AB$5:$AZ$204,3*($C$6-1)+2),VLOOKUP($F67,P_All!$BB$5:$BZ$204,3*($C$6-1)+2))) -> 9110.4 | H67: =IF($C$8=1,VLOOKUP($F67,P_All!$A$5:$Y204,3*($C$6-1)+3),IF($C$8=2,VLOOKUP($F67,P_All!$AB$5:$AZ$204,3*($C$6-1)+3),VLOOKUP($F67,P_All!$BB$5:$BZ$204,3*($C$6-1)+3))) -> 9581.1 | I67: =IF($C$8=1,VLOOKUP($F67,P_All!$A$5:$Y$204,3*($C$6-1)+4),IF($C$8=2,VLOOKUP($F67,P_All!$AB$5:$AZ$204,3*($C$6-1)+4),VLOOKUP($F67,P_All!$BB$5:$BZ$204,3*($C$6-1)+4))) -> 10077 | J67: =VLOOKUP($F67,NA_All!$A$5:$G$204,IF(ISERROR($D$6),2,5)) -> 9110.4 | K67: =VLOOKUP($F67,NA_All!$A$5:$G$204,IF(ISERROR($D$6),3,6)) -> 9581.1 | L67: =VLOOKUP($F67,NA_All!$A$5:$G$204,IF(ISERROR($D$6),4,7)) -> 10077 | N67: 250000
F68: 46 | G68: =IF($C$8=1,VLOOKUP($F68,P_All!$A$5:$Y$204,3*($C$6-1)+2),IF($C$8=2,VLOOKUP($F68,P_All!$AB$5:$AZ$204,3*($C$6-1)+2),VLOOKUP($F68,P_All!$BB$5:$BZ$204,3*($C$6-1)+2))) -> 9110.4 | H68: =IF($C$8=1,VLOOKUP($F68,P_All!$A$5:$Y204,3*($C$6-1)+3),IF($C$8=2,VLOOKUP($F68,P_All!$AB$5:$AZ$204,3*($C$6-1)+3),VLOOKUP($F68,P_All!$BB$5:$BZ$204,3*($C$6-1)+3))) -> 9581.1 | I68: =IF($C$8=1,VLOOKUP($F68,P_All!$A$5:$Y$204,3*($C$6-1)+4),IF($C$8=2,VLOOKUP($F68,P_All!$AB$5:$AZ$204,3*($C$6-1)+4),VLOOKUP($F68,P_All!$BB$5:$BZ$204,3*($C$6-1)+4))) -> 10077 | J68: =VLOOKUP($F68,NA_All!$A$5:$G$204,IF(ISERROR($D$6),2,5)) -> 9110.4 | K68: =VLOOKUP($F68,NA_All!$A$5:$G$204,IF(ISERROR($D$6),3,6)) -> 9581.1 | L68: =VLOOKUP($F68,NA_All!$A$5:$G$204,IF(ISERROR($D$6),4,7)) -> 10077 | N68: 250000
F69: 47 | G69: =IF($C$8=1,VLOOKUP($F69,P_All!$A$5:$Y$204,3*($C$6-1)+2),IF($C$8=2,VLOOKUP($F69,P_All!$AB$5:$AZ$204,3*($C$6-1)+2),VLOOKUP($F69,P_All!$BB$5:$BZ$204,3*($C$6-1)+2))) -> 9110.4 | H69: =IF($C$8=1,VLOOKUP($F69,P_All!$A$5:$Y204,3*($C$6-1)+3),IF($C$8=2,VLOOKUP($F69,P_All!$AB$5:$AZ$204,3*($C$6-1)+3),VLOOKUP($F69,P_All!$BB$5:$BZ$204,3*($C$6-1)+3))) -> 9581.1 | I69: =IF($C$8=1,VLOOKUP($F69,P_All!$A$5:$Y$204,3*($C$6-1)+4),IF($C$8=2,VLOOKUP($F69,P_All!$AB$5:$AZ$204,3*($C$6-1)+4),VLOOKUP($F69,P_All!$BB$5:$BZ$204,3*($C$6-1)+4))) -> 10077 | J69: =VLOOKUP($F69,NA_All!$A$5:$G$204,IF(ISERROR($D$6),2,5)) -> 9110.4 | K69: =VLOOKUP($F69,NA_All!$A$5:$G$204,IF(ISERROR($D$6),3,6)) -> 9581.1 | L69: =VLOOKUP($F69,NA_All!$A$5:$G$204,IF(ISERROR($D$6),4,7)) -> 10077 | N69: 250000
F70: 48 | G70: =IF($C$8=1,VLOOKUP($F70,P_All!$A$5:$Y$204,3*($C$6-1)+2),IF($C$8=2,VLOOKUP($F70,P_All!$AB$5:$AZ$204,3*($C$6-1)+2),VLOOKUP($F70,P_All!$BB$5:$BZ$204,3*($C$6-1)+2))) -> 9110.4 | H70: =IF($C$8=1,VLOOKUP($F70,P_All!$A$5:$Y204,3*($C$6-1)+3),IF($C$8=2,VLOOKUP($F70,P_All!$AB$5:$AZ$204,3*($C$6-1)+3),VLOOKUP($F70,P_All!$BB$5:$BZ$204,3*($C$6-1)+3))) -> 9581.1 | I70: =IF($C$8=1,VLOOKUP($F70,P_All!$A$5:$Y$204,3*($C$6-1)+4),IF($C$8=2,VLOOKUP($F70,P_All!$AB$5:$AZ$204,3*($C$6-1)+4),VLOOKUP($F70,P_All!$BB$5:$BZ$204,3*($C$6-1)+4))) -> 10077 | J70: =VLOOKUP($F70,NA_All!$A$5:$G$204,IF(ISERROR($D$6),2,5)) -> 9110.4 | K70: =VLOOKUP($F70,NA_All!$A$5:$G$204,IF(ISERROR($D$6),3,6)) -> 9581.1 | L70: =VLOOKUP($F70,NA_All!$A$5:$G$204,IF(ISERROR($D$6),4,7)) -> 10077 | N70: 250000
F71: 49 | G71: =IF($C$8=1,VLOOKUP($F71,P_All!$A$5:$Y$204,3*($C$6-1)+2),IF($C$8=2,VLOOKUP($F71,P_All!$AB$5:$AZ$204,3*($C$6-1)+2),VLOOKUP($F71,P_All!$BB$5:$BZ$204,3*($C$6-1)+2))) -> 9110.4 | H71: =IF($C$8=1,VLOOKUP($F71,P_All!$A$5:$Y204,3*($C$6-1)+3),IF($C$8=2,VLOOKUP($F71,P_All!$AB$5:$AZ$204,3*($C$6-1)+3),VLOOKUP($F71,P_All!$BB$5:$BZ$204,3*($C$6-1)+3))) -> 9581.1 | I71: =IF($C$8=1,VLOOKUP($F71,P_All!$A$5:$Y$204,3*($C$6-1)+4),IF($C$8=2,VLOOKUP($F71,P_All!$AB$5:$AZ$204,3*($C$6-1)+4),VLOOKUP($F71,P_All!$BB$5:$BZ$204,3*($C$6-1)+4))) -> 10077 | J71: =VLOOKUP($F71,NA_All!$A$5:$G$204,IF(ISERROR($D$6),2,5)) -> 9110.4 | K71: =VLOOKUP($F71,NA_All!$A$5:$G$204,IF(ISERROR($D$6),3,6)) -> 9581.1 | L71: =VLOOKUP($F71,NA_All!$A$5:$G$204,IF(ISERROR($D$6),4,7)) -> 10077 | N71: 250000
F72: 50 | G72: =IF($C$8=1,VLOOKUP($F72,P_All!$A$5:$Y$204,3*($C$6-1)+2),IF($C$8=2,VLOOKUP($F72,P_All!$AB$5:$AZ$204,3*($C$6-1)+2),VLOOKUP($F72,P_All!$BB$5:$BZ$204,3*($C$6-1)+2))) -> 9110.4 | H72: =IF($C$8=1,VLOOKUP($F72,P_All!$A$5:$Y204,3*($C$6-1)+3),IF($C$8=2,VLOOKUP($F72,P_All!$AB$5:$AZ$204,3*($C$6-1)+3),VLOOKUP($F72,P_All!$BB$5:$BZ$204,3*($C$6-1)+3))) -> 9581.1 | I72: =IF($C$8=1,VLOOKUP($F72,P_All!$A$5:$Y$204,3*($C$6-1)+4),IF($C$8=2,VLOOKUP($F72,P_All!$AB$5:$AZ$204,3*($C$6-1)+4),VLOOKUP($F72,P_All!$BB$5:$BZ$204,3*($C$6-1)+4))) -> 10077 | J72: =VLOOKUP($F72,NA_All!$A$5:$G$204,IF(ISERROR($D$6),2,5)) -> 9110.4 | K72: =VLOOKUP($F72,NA_All!$A$5:$G$204,IF(ISERROR($D$6),3,6)) -> 9581.1 | L72: =VLOOKUP($F72,NA_All!$A$5:$G$204,IF(ISERROR($D$6),4,7)) -> 10077 | N72: 250000
F73: 51 | G73: =IF($C$8=1,VLOOKUP($F73,P_All!$A$5:$Y$204,3*($C$6-1)+2),IF($C$8=2,VLOOKUP($F73,P_All!$AB$5:$AZ$204,3*($C$6-1)+2),VLOOKUP($F73,P_All!$BB$5:$BZ$204,3*($C$6-1)+2))) -> 9110.4 | H73: =IF($C$8=1,VLOOKUP($F73,P_All!$A$5:$Y204,3*($C$6-1)+3),IF($C$8=2,VLOOKUP($F73,P_All!$AB$5:$AZ$204,3*($C$6-1)+3),VLOOKUP($F73,P_All!$BB$5:$BZ$204,3*($C$6-1)+3))) -> 9581.1 | I73: =IF($C$8=1,VLOOKUP($F73,P_All!$A$5:$Y$204,3*($C$6-1)+4),IF($C$8=2,VLOOKUP($F73,P_All!$AB$5:$AZ$204,3*($C$6-1)+4),VLOOKUP($F73,P_All!$BB$5:$BZ$204,3*($C$6-1)+4))) -> 10077 | J73: =VLOOKUP($F73,NA_All!$A$5:$G$204,IF(ISERROR($D$6),2,5)) -> 9110.4 | K73: =VLOOKUP($F73,NA_All!$A$5:$G$204,IF(ISERROR($D$6),3,6)) -> 9581.1 | L73: =VLOOKUP($F73,NA_All!$A$5:$G$204,IF(ISERROR($D$6),4,7)) -> 10077 | N73: 250000
F74: 52 | G74: =IF($C$8=1,VLOOKUP($F74,P_All!$A$5:$Y$204,3*($C$6-1)+2),IF($C$8=2,VLOOKUP($F74,P_All!$AB$5:$AZ$204,3*($C$6-1)+2),VLOOKUP($F74,P_All!$BB$5:$BZ$204,3*($C$6-1)+2))) -> 9110.4 | H74: =IF($C$8=1,VLOOKUP($F74,P_All!$A$5:$Y204,3*($C$6-1)+3),IF($C$8=2,VLOOKUP($F74,P_All!$AB$5:$AZ$204,3*($C$6-1)+3),VLOOKUP($F74,P_All!$BB$5:$BZ$204,3*($C$6-1)+3))) -> 9581.1 | I74: =IF($C$8=1,VLOOKUP($F74,P_All!$A$5:$Y$204,3*($C$6-1)+4),IF($C$8=2,VLOOKUP($F74,P_All!$AB$5:$AZ$204,3*($C$6-1)+4),VLOOKUP($F74,P_All!$BB$5:$BZ$204,3*($C$6-1)+4))) -> 10077 | J74: =VLOOKUP($F74,NA_All!$A$5:$G$204,IF(ISERROR($D$6),2,5)) -> 9110.4 | K74: =VLOOKUP($F74,NA_All!$A$5:$G$204,IF(ISERROR($D$6),3,6)) -> 9581.1 | L74: =VLOOKUP($F74,NA_All!$A$5:$G$204,IF(ISERROR($D$6),4,7)) -> 10077 | N74: 250000
F75: 53 | G75: =IF($C$8=1,VLOOKUP($F75,P_All!$A$5:$Y$204,3*($C$6-1)+2),IF($C$8=2,VLOOKUP($F75,P_All!$AB$5:$AZ$204,3*($C$6-1)+2),VLOOKUP($F75,P_All!$BB$5:$BZ$204,3*($C$6-1)+2))) -> 9110.4 | H75: =IF($C$8=1,VLOOKUP($F75,P_All!$A$5:$Y204,3*($C$6-1)+3),IF($C$8=2,VLOOKUP($F75,P_All!$AB$5:$AZ$204,3*($C$6-1)+3),VLOOKUP($F75,P_All!$BB$5:$BZ$204,3*($C$6-1)+3))) -> 9581.1 | I75: =IF($C$8=1,VLOOKUP($F75,P_All!$A$5:$Y$204,3*($C$6-1)+4),IF($C$8=2,VLOOKUP($F75,P_All!$AB$5:$AZ$204,3*($C$6-1)+4),VLOOKUP($F75,P_All!$BB$5:$BZ$204,3*($C$6-1)+4))) -> 10077 | J75: =VLOOKUP($F75,NA_All!$A$5:$G$204,IF(ISERROR($D$6),2,5)) -> 9110.4 | K75: =VLOOKUP($F75,NA_All!$A$5:$G$204,IF(ISERROR($D$6),3,6)) -> 9581.1 | L75: =VLOOKUP($F75,NA_All!$A$5:$G$204,IF(ISERROR($D$6),4,7)) -> 10077 | N75: 250000
F76: 54 | G76: =IF($C$8=1,VLOOKUP($F76,P_All!$A$5:$Y$204,3*($C$6-1)+2),IF($C$8=2,VLOOKUP($F76,P_All!$AB$5:$AZ$204,3*($C$6-1)+2),VLOOKUP($F76,P_All!$BB$5:$BZ$204,3*($C$6-1)+2))) -> 9110.4 | H76: =IF($C$8=1,VLOOKUP($F76,P_All!$A$5:$Y204,3*($C$6-1)+3),IF($C$8=2,VLOOKUP($F76,P_All!$AB$5:$AZ$204,3*($C$6-1)+3),VLOOKUP($F76,P_All!$BB$5:$BZ$204,3*($C$6-1)+3))) -> 9581.1 | I76: =IF($C$8=1,VLOOKUP($F76,P_All!$A$5:$Y$204,3*($C$6-1)+4),IF($C$8=2,VLOOKUP($F76,P_All!$AB$5:$AZ$204,3*($C$6-1)+4),VLOOKUP($F76,P_All!$BB$5:$BZ$204,3*($C$6-1)+4))) -> 10077 | J76: =VLOOKUP($F76,NA_All!$A$5:$G$204,IF(ISERROR($D$6),2,5)) -> 9110.4 | K76: =VLOOKUP($F76,NA_All!$A$5:$G$204,IF(ISERROR($D$6),3,6)) -> 9581.1 | L76: =VLOOKUP($F76,NA_All!$A$5:$G$204,IF(ISERROR($D$6),4,7)) -> 10077 | N76: 250000
F77: 55 | G77: =IF($C$8=1,VLOOKUP($F77,P_All!$A$5:$Y$204,3*($C$6-1)+2),IF($C$8=2,VLOOKUP($F77,P_All!$AB$5:$AZ$204,3*($C$6-1)+2),VLOOKUP($F77,P_All!$BB$5:$BZ$204,3*($C$6-1)+2))) -> 9110.4 | H77: =IF($C$8=1,VLOOKUP($F77,P_All!$A$5:$Y204,3*($C$6-1)+3),IF($C$8=2,VLOOKUP($F77,P_All!$AB$5:$AZ$204,3*($C$6-1)+3),VLOOKUP($F77,P_All!$BB$5:$BZ$204,3*($C$6-1)+3))) -> 9581.1 | I77: =IF($C$8=1,VLOOKUP($F77,P_All!$A$5:$Y$204,3*($C$6-1)+4),IF($C$8=2,VLOOKUP($F77,P_All!$AB$5:$AZ$204,3*($C$6-1)+4),VLOOKUP($F77,P_All!$BB$5:$BZ$204,3*($C$6-1)+4))) -> 10077 | J77: =VLOOKUP($F77,NA_All!$A$5:$G$204,IF(ISERROR($D$6),2,5)) -> 9110.4 | K77: =VLOOKUP($F77,NA_All!$A$5:$G$204,IF(ISERROR($D$6),3,6)) -> 9581.1 | L77: =VLOOKUP($F77,NA_All!$A$5:$G$204,IF(ISERROR($D$6),4,7)) -> 10077 | N77: 250000
F78: 56 | G78: =IF($C$8=1,VLOOKUP($F78,P_All!$A$5:$Y$204,3*($C$6-1)+2),IF($C$8=2,VLOOKUP($F78,P_All!$AB$5:$AZ$204,3*($C$6-1)+2),VLOOKUP($F78,P_All!$BB$5:$BZ$204,3*($C$6-1)+2))) -> 9110.4 | H78: =IF($C$8=1,VLOOKUP($F78,P_All!$A$5:$Y204,3*($C$6-1)+3),IF($C$8=2,VLOOKUP($F78,P_All!$AB$5:$AZ$204,3*($C$6-1)+3),VLOOKUP($F78,P_All!$BB$5:$BZ$204,3*($C$6-1)+3))) -> 9581.1 | I78: =IF($C$8=1,VLOOKUP($F78,P_All!$A$5:$Y$204,3*($C$6-1)+4),IF($C$8=2,VLOOKUP($F78,P_All!$AB$5:$AZ$204,3*($C$6-1)+4),VLOOKUP($F78,P_All!$BB$5:$BZ$204,3*($C$6-1)+4))) -> 10077 | J78: =VLOOKUP($F78,NA_All!$A$5:$G$204,IF(ISERROR($D$6),2,5)) -> 9110.4 | K78: =VLOOKUP($F78,NA_All!$A$5:$G$204,IF(ISERROR($D$6),3,6)) -> 9581.1 | L78: =VLOOKUP($F78,NA_All!$A$5:$G$204,IF(ISERROR($D$6),4,7)) -> 10077 | N78: 250000
F79: 57 | G79: =IF($C$8=1,VLOOKUP($F79,P_All!$A$5:$Y$204,3*($C$6-1)+2),IF($C$8=2,VLOOKUP($F79,P_All!$AB$5:$AZ$204,3*($C$6-1)+2),VLOOKUP($F79,P_All!$BB$5:$BZ$204,3*($C$6-1)+2))) -> 9110.4 | H79: =IF($C$8=1,VLOOKUP($F79,P_All!$A$5:$Y204,3*($C$6-1)+3),IF($C$8=2,VLOOKUP($F79,P_All!$AB$5:$AZ$204,3*($C$6-1)+3),VLOOKUP($F79,P_All!$BB$5:$BZ$204,3*($C$6-1)+3))) -> 9581.1 | I79: =IF($C$8=1,VLOOKUP($F79,P_All!$A$5:$Y$204,3*($C$6-1)+4),IF($C$8=2,VLOOKUP($F79,P_All!$AB$5:$AZ$204,3*($C$6-1)+4),VLOOKUP($F79,P_All!$BB$5:$BZ$204,3*($C$6-1)+4))) -> 10077 | J79: =VLOOKUP($F79,NA_All!$A$5:$G$204,IF(ISERROR($D$6),2,5)) -> 9110.4 | K79: =VLOOKUP($F79,NA_All!$A$5:$G$204,IF(ISERROR($D$6),3,6)) -> 9581.1 | L79: =VLOOKUP($F79,NA_All!$A$5:$G$204,IF(ISERROR($D$6),4,7)) -> 10077 | N79: 250000
F80: 58 | G80: =IF($C$8=1,VLOOKUP($F80,P_All!$A$5:$Y$204,3*($C$6-1)+2),IF($C$8=2,VLOOKUP($F80,P_All!$AB$5:$AZ$204,3*($C$6-1)+2),VLOOKUP($F80,P_All!$BB$5:$BZ$204,3*($C$6-1)+2))) -> 9110.4 | H80: =IF($C$8=1,VLOOKUP($F80,P_All!$A$5:$Y204,3*($C$6-1)+3),IF($C$8=2,VLOOKUP($F80,P_All!$AB$5:$AZ$204,3*($C$6-1)+3),VLOOKUP($F80,P_All!$BB$5:$BZ$204,3*($C$6-1)+3))) -> 9583 | I80: =IF($C$8=1,VLOOKUP($F80,P_All!$A$5:$Y$204,3*($C$6-1)+4),IF($C$8=2,VLOOKUP($F80,P_All!$AB$5:$AZ$204,3*($C$6-1)+4),VLOOKUP($F80,P_All!$BB$5:$BZ$204,3*($C$6-1)+4))) -> 10079 | J80: =VLOOKUP($F80,NA_All!$A$5:$G$204,IF(ISERROR($D$6),2,5)) -> 9110.4 | K80: =VLOOKUP($F80,NA_All!$A$5:$G$204,IF(ISERROR($D$6),3,6)) -> 9581.1 | L80: =VLOOKUP($F80,NA_All!$A$5:$G$204,IF(ISERROR($D$6),4,7)) -> 10077 | N80: 250000
F81: 59 | G81: =IF($C$8=1,VLOOKUP($F81,P_All!$A$5:$Y$204,3*($C$6-1)+2),IF($C$8=2,VLOOKUP($F81,P_All!$AB$5:$AZ$204,3*($C$6-1)+2),VLOOKUP($F81,P_All!$BB$5:$BZ$204,3*($C$6-1)+2))) -> 9110.4 | H81: =IF($C$8=1,VLOOKUP($F81,P_All!$A$5:$Y204,3*($C$6-1)+3),IF($C$8=2,VLOOKUP($F81,P_All!$AB$5:$AZ$204,3*($C$6-1)+3),VLOOKUP($F81,P_All!$BB$5:$BZ$204,3*($C$6-1)+3))) -> 9585.7 | I81: =IF($C$8=1,VLOOKUP($F81,P_All!$A$5:$Y$204,3*($C$6-1)+4),IF($C$8=2,VLOOKUP($F81,P_All!$AB$5:$AZ$204,3*($C$6-1)+4),VLOOKUP($F81,P_All!$BB$5:$BZ$204,3*($C$6-1)+4))) -> 10082 | J81: =VLOOKUP($F81,NA_All!$A$5:$G$204,IF(ISERROR($D$6),2,5)) -> 9110.4 | K81: =VLOOKUP($F81,NA_All!$A$5:$G$204,IF(ISERROR($D$6),3,6)) -> 9581.1 | L81: =VLOOKUP($F81,NA_All!$A$5:$G$204,IF(ISERROR($D$6),4,7)) -> 10077 | N81: 250000
F82: 60 | G82: =IF($C$8=1,VLOOKUP($F82,P_All!$A$5:$Y$204,3*($C$6-1)+2),IF($C$8=2,VLOOKUP($F82,P_All!$AB$5:$AZ$204,3*($C$6-1)+2),VLOOKUP($F82,P_All!$BB$5:$BZ$204,3*($C$6-1)+2))) -> 9120.5 | H82: =IF($C$8=1,VLOOKUP($F82,P_All!$A$5:$Y204,3*($C$6-1)+3),IF($C$8=2,VLOOKUP($F82,P_All!$AB$5:$AZ$204,3*($C$6-1)+3),VLOOKUP($F82,P_All!$BB$5:$BZ$204,3*($C$6-1)+3))) -> 9592.7 | I82: =IF($C$8=1,VLOOKUP($F82,P_All!$A$5:$Y$204,3*($C$6-1)+4),IF($C$8=2,VLOOKUP($F82,P_All!$AB$5:$AZ$204,3*($C$6-1)+4),VLOOKUP($F82,P_All!$BB$5:$BZ$204,3*($C$6-1)+4))) -> 10082 | J82: =VLOOKUP($F82,NA_All!$A$5:$G$204,IF(ISERROR($D$6),2,5)) -> 9110.4 | K82: =VLOOKUP($F82,NA_All!$A$5:$G$204,IF(ISERROR($D$6),3,6)) -> 9581.1 | L82: =VLOOKUP($F82,NA_All!$A$5:$G$204,IF(ISERROR($D$6),4,7)) -> 10077 | N82: 250000
F83: 61 | G83: =IF($C$8=1,VLOOKUP($F83,P_All!$A$5:$Y$204,3*($C$6-1)+2),IF($C$8=2,VLOOKUP($F83,P_All!$AB$5:$AZ$204,3*($C$6-1)+2),VLOOKUP($F83,P_All!$BB$5:$BZ$204,3*($C$6-1)+2))) -> 9120.5 | H83: =IF($C$8=1,VLOOKUP($F83,P_All!$A$5:$Y204,3*($C$6-1)+3),IF($C$8=2,VLOOKUP($F83,P_All!$AB$5:$AZ$204,3*($C$6-1)+3),VLOOKUP($F83,P_All!$BB$5:$BZ$204,3*($C$6-1)+3))) -> 9601.8 | I83: =IF($C$8=1,VLOOKUP($F83,P_All!$A$5:$Y$204,3*($C$6-1)+4),IF($C$8=2,VLOOKUP($F83,P_All!$AB$5:$AZ$204,3*($C$6-1)+4),VLOOKUP($F83,P_All!$BB$5:$BZ$204,3*($C$6-1)+4))) -> 10096 | J83: =VLOOKUP($F83,NA_All!$A$5:$G$204,IF(ISERROR($D$6),2,5)) -> 9110.4 | K83: =VLOOKUP($F83,NA_All!$A$5:$G$204,IF(ISERROR($D$6),3,6)) -> 9581.1 | L83: =VLOOKUP($F83,NA_All!$A$5:$G$204,IF(ISERROR($D$6),4,7)) -> 10077 | N83: 250000
F84: 62 | G84: =IF($C$8=1,VLOOKUP($F84,P_All!$A$5:$Y$204,3*($C$6-1)+2),IF($C$8=2,VLOOKUP($F84,P_All!$AB$5:$AZ$204,3*($C$6-1)+2),VLOOKUP($F84,P_All!$BB$5:$BZ$204,3*($C$6-1)+2))) -> 9127.3 | H84: =IF($C$8=1,VLOOKUP($F84,P_All!$A$5:$Y204,3*($C$6-1)+3),IF($C$8=2,VLOOKUP($F84,P_All!$AB$5:$AZ$204,3*($C$6-1)+3),VLOOKUP($F84,P_All!$BB$5:$BZ$204,3*($C$6-1)+3))) -> 9611.3 | I84: =IF($C$8=1,VLOOKUP($F84,P_All!$A$5:$Y$204,3*($C$6-1)+4),IF($C$8=2,VLOOKUP($F84,P_All!$AB$5:$AZ$204,3*($C$6-1)+4),VLOOKUP($F84,P_All!$BB$5:$BZ$204,3*($C$6-1)+4))) -> 10120 | J84: =VLOOKUP($F84,NA_All!$A$5:$G$204,IF(ISERROR($D$6),2,5)) -> 9110.4 | K84: =VLOOKUP($F84,NA_All!$A$5:$G$204,IF(ISERROR($D$6),3,6)) -> 9581.1 | L84: =VLOOKUP($F84,NA_All!$A$5:$G$204,IF(ISERROR($D$6),4,7)) -> 10077 | N84: 250000
F85: 63 | G85: =IF($C$8=1,VLOOKUP($F85,P_All!$A$5:$Y$204,3*($C$6-1)+2),IF($C$8=2,VLOOKUP($F85,P_All!$AB$5:$AZ$204,3*($C$6-1)+2),VLOOKUP($F85,P_All!$BB$5:$BZ$204,3*($C$6-1)+2))) -> 9136 | H85: =IF($C$8=1,VLOOKUP($F85,P_All!$A$5:$Y204,3*($C$6-1)+3),IF($C$8=2,VLOOKUP($F85,P_All!$AB$5:$AZ$204,3*($C$6-1)+3),VLOOKUP($F85,P_All!$BB$5:$BZ$204,3*($C$6-1)+3))) -> 9617.2 | I85: =IF($C$8=1,VLOOKUP($F85,P_All!$A$5:$Y$204,3*($C$6-1)+4),IF($C$8=2,VLOOKUP($F85,P_All!$AB$5:$AZ$204,3*($C$6-1)+4),VLOOKUP($F85,P_All!$BB$5:$BZ$204,3*($C$6-1)+4))) -> 10157 | J85: =VLOOKUP($F85,NA_All!$A$5:$G$204,IF(ISERROR($D$6),2,5)) -> 9110.4 | K85: =VLOOKUP($F85,NA_All!$A$5:$G$204,IF(ISERROR($D$6),3,6)) -> 9581.1 | L85: =VLOOKUP($F85,NA_All!$A$5:$G$204,IF(ISERROR($D$6),4,7)) -> 10077 | N85: 250000
F86: 64 | G86: =IF($C$8=1,VLOOKUP($F86,P_All!$A$5:$Y$204,3*($C$6-1)+2),IF($C$8=2,VLOOKUP($F86,P_All!$AB$5:$AZ$204,3*($C$6-1)+2),VLOOKUP($F86,P_All!$BB$5:$BZ$204,3*($C$6-1)+2))) -> 9136 | H86: =IF($C$8=1,VLOOKUP($F86,P_All!$A$5:$Y204,3*($C$6-1)+3),IF($C$8=2,VLOOKUP($F86,P_All!$AB$5:$AZ$204,3*($C$6-1)+3),VLOOKUP($F86,P_All!$BB$5:$BZ$204,3*($C$6-1)+3))) -> 9631.6 | I86: =IF($C$8=1,VLOOKUP($F86,P_All!$A$5:$Y$204,3*($C$6-1)+4),IF($C$8=2,VLOOKUP($F86,P_All!$AB$5:$AZ$204,3*($C$6-1)+4),VLOOKUP($F86,P_All!$BB$5:$BZ$204,3*($C$6-1)+4))) -> 10217 | J86: =VLOOKUP($F86,NA_All!$A$5:$G$204,IF(ISERROR($D$6),2,5)) -> 9110.4 | K86: =VLOOKUP($F86,NA_All!$A$5:$G$204,IF(ISERROR($D$6),3,6)) -> 9581.1 | L86: =VLOOKUP($F86,NA_All!$A$5:$G$204,IF(ISERROR($D$6),4,7)) -> 10077 | N86: 250000
F87: 65 | G87: =IF($C$8=1,VLOOKUP($F87,P_All!$A$5:$Y$204,3*($C$6-1)+2),IF($C$8=2,VLOOKUP($F87,P_All!$AB$5:$AZ$204,3*($C$6-1)+2),VLOOKUP($F87,P_All!$BB$5:$BZ$204,3*($C$6-1)+2))) -> 9140.8 | H87: =IF($C$8=1,VLOOKUP($F87,P_All!$A$5:$Y204,3*($C$6-1)+3),IF($C$8=2,VLOOKUP($F87,P_All!$AB$5:$AZ$204,3*($C$6-1)+3),VLOOKUP($F87,P_All!$BB$5:$BZ$204,3*($C$6-1)+3))) -> 9644.7 | I87: =IF($C$8=1,VLOOKUP($F87,P_All!$A$5:$Y$204,3*($C$6-1)+4),IF($C$8=2,VLOOKUP($F87,P_All!$AB$5:$AZ$204,3*($C$6-1)+4),VLOOKUP($F87,P_All!$BB$5:$BZ$204,3*($C$6-1)+4))) -> 10313 | J87: =VLOOKUP($F87,NA_All!$A$5:$G$204,IF(ISERROR($D$6),2,5)) -> 9110.4 | K87: =VLOOKUP($F87,NA_All!$A$5:$G$204,IF(ISERROR($D$6),3,6)) -> 9581.1 | L87: =VLOOKUP($F87,NA_All!$A$5:$G$204,IF(ISERROR($D$6),4,7)) -> 10077 | N87: 250000
F88: 66 | G88: =IF($C$8=1,VLOOKUP($F88,P_All!$A$5:$Y$204,3*($C$6-1)+2),IF($C$8=2,VLOOKUP($F88,P_All!$AB$5:$AZ$204,3*($C$6-1)+2),VLOOKUP($F88,P_All!$BB$5:$BZ$204,3*($C$6-1)+2))) -> 9151.5 | H88: =IF($C$8=1,VLOOKUP($F88,P_All!$A$5:$Y204,3*($C$6-1)+3),IF($C$8=2,VLOOKUP($F88,P_All!$AB$5:$AZ$204,3*($C$6-1)+3),VLOOKUP($F88,P_All!$BB$5:$BZ$204,3*($C$6-1)+3))) -> 9662.1 | I88: =IF($C$8=1,VLOOKUP($F88,P_All!$A$5:$Y$204,3*($C$6-1)+4),IF($C$8=2,VLOOKUP($F88,P_All!$AB$5:$AZ$204,3*($C$6-1)+4),VLOOKUP($F88,P_All!$BB$5:$BZ$204,3*($C$6-1)+4))) -> 10413 | J88: =VLOOKUP($F88,NA_All!$A$5:$G$204,IF(ISERROR($D$6),2,5)) -> 9110.4 | K88: =VLOOKUP($F88,NA_All!$A$5:$G$204,IF(ISERROR($D$6),3,6)) -> 9581.1 | L88: =VLOOKUP($F88,NA_All!$A$5:$G$204,IF(ISERROR($D$6),4,7)) -> 10077 | M88: =IF(OR($B$4=$A$29,$B$4=$A$40,$B$4=$A$47),VLOOKUP($B$4,$A$58:$C$60,IF(ISNUMBER(FIND("bedrock",$B$6)),3,2)),VLOOKUP($B$4,$A$23:$C$49,2)) ->  | N88: =VLOOKUP($B$4,$A$23:$C$49,3) -> 250000
F89: 67 | G89: =IF($C$8=1,VLOOKUP($F89,P_All!$A$5:$Y$204,3*($C$6-1)+2),IF($C$8=2,VLOOKUP($F89,P_All!$AB$5:$AZ$204,3*($C$6-1)+2),VLOOKUP($F89,P_All!$BB$5:$BZ$204,3*($C$6-1)+2))) -> 9170.2 | H89: =IF($C$8=1,VLOOKUP($F89,P_All!$A$5:$Y204,3*($C$6-1)+3),IF($C$8=2,VLOOKUP($F89,P_All!$AB$5:$AZ$204,3*($C$6-1)+3),VLOOKUP($F89,P_All!$BB$5:$BZ$204,3*($C$6-1)+3))) -> 9690.5 | I89: =IF($C$8=1,VLOOKUP($F89,P_All!$A$5:$Y$204,3*($C$6-1)+4),IF($C$8=2,VLOOKUP($F89,P_All!$AB$5:$AZ$204,3*($C$6-1)+4),VLOOKUP($F89,P_All!$BB$5:$BZ$204,3*($C$6-1)+4))) -> 10628 | J89: =VLOOKUP($F89,NA_All!$A$5:$G$204,IF(ISERROR($D$6),2,5)) -> 9110.4 | K89: =VLOOKUP($F89,NA_All!$A$5:$G$204,IF(ISERROR($D$6),3,6)) -> 9581.1 | L89: =VLOOKUP($F89,NA_All!$A$5:$G$204,IF(ISERROR($D$6),4,7)) -> 10077 | N89: 250000
F90: 68 | G90: =IF($C$8=1,VLOOKUP($F90,P_All!$A$5:$Y$204,3*($C$6-1)+2),IF($C$8=2,VLOOKUP($F90,P_All!$AB$5:$AZ$204,3*($C$6-1)+2),VLOOKUP($F90,P_All!$BB$5:$BZ$204,3*($C$6-1)+2))) -> 9181.6 | H90: =IF($C$8=1,VLOOKUP($F90,P_All!$A$5:$Y204,3*($C$6-1)+3),IF($C$8=2,VLOOKUP($F90,P_All!$AB$5:$AZ$204,3*($C$6-1)+3),VLOOKUP($F90,P_All!$BB$5:$BZ$204,3*($C$6-1)+3))) -> 9719.8 | I90: =IF($C$8=1,VLOOKUP($F90,P_All!$A$5:$Y$204,3*($C$6-1)+4),IF($C$8=2,VLOOKUP($F90,P_All!$AB$5:$AZ$204,3*($C$6-1)+4),VLOOKUP($F90,P_All!$BB$5:$BZ$204,3*($C$6-1)+4))) -> 11198 | J90: =VLOOKUP($F90,NA_All!$A$5:$G$204,IF(ISERROR($D$6),2,5)) -> 9110.4 | K90: =VLOOKUP($F90,NA_All!$A$5:$G$204,IF(ISERROR($D$6),3,6)) -> 9581.1 | L90: =VLOOKUP($F90,NA_All!$A$5:$G$204,IF(ISERROR($D$6),4,7)) -> 10077 | N90: 250000
F91: 69 | G91: =IF($C$8=1,VLOOKUP($F91,P_All!$A$5:$Y$204,3*($C$6-1)+2),IF($C$8=2,VLOOKUP($F91,P_All!$AB$5:$AZ$204,3*($C$6-1)+2),VLOOKUP($F91,P_All!$BB$5:$BZ$204,3*($C$6-1)+2))) -> 9194.1 | H91: =IF($C$8=1,VLOOKUP($F91,P_All!$A$5:$Y204,3*($C$6-1)+3),IF($C$8=2,VLOOKUP($F91,P_All!$AB$5:$AZ$204,3*($C$6-1)+3),VLOOKUP($F91,P_All!$BB$5:$BZ$204,3*($C$6-1)+3))) -> 9752.3 | I91: =IF($C$8=1,VLOOKUP($F91,P_All!$A$5:$Y$204,3*($C$6-1)+4),IF($C$8=2,VLOOKUP($F91,P_All!$AB$5:$AZ$204,3*($C$6-1)+4),VLOOKUP($F91,P_All!$BB$5:$BZ$204,3*($C$6-1)+4))) -> 12017 | J91: =VLOOKUP($F91,NA_All!$A$5:$G$204,IF(ISERROR($D$6),2,5)) -> 9110.4 | K91: =VLOOKUP($F91,NA_All!$A$5:$G$204,IF(ISERROR($D$6),3,6)) -> 9581.1 | L91: =VLOOKUP($F91,NA_All!$A$5:$G$204,IF(ISERROR($D$6),4,7)) -> 10077 | N91: 250000
F92: 70 | G92: =IF($C$8=1,VLOOKUP($F92,P_All!$A$5:$Y$204,3*($C$6-1)+2),IF($C$8=2,VLOOKUP($F92,P_All!$AB$5:$AZ$204,3*($C$6-1)+2),VLOOKUP($F92,P_All!$BB$5:$BZ$204,3*($C$6-1)+2))) -> 9208.5 | H92: =IF($C$8=1,VLOOKUP($F92,P_All!$A$5:$Y204,3*($C$6-1)+3),IF($C$8=2,VLOOKUP($F92,P_All!$AB$5:$AZ$204,3*($C$6-1)+3),VLOOKUP($F92,P_All!$BB$5:$BZ$204,3*($C$6-1)+3))) -> 9787.3 | I92: =IF($C$8=1,VLOOKUP($F92,P_All!$A$5:$Y$204,3*($C$6-1)+4),IF($C$8=2,VLOOKUP($F92,P_All!$AB$5:$AZ$204,3*($C$6-1)+4),VLOOKUP($F92,P_All!$BB$5:$BZ$204,3*($C$6-1)+4))) -> 13074 | J92: =VLOOKUP($F92,NA_All!$A$5:$G$204,IF(ISERROR($D$6),2,5)) -> 9110.4 | K92: =VLOOKUP($F92,NA_All!$A$5:$G$204,IF(ISERROR($D$6),3,6)) -> 9581.1 | L92: =VLOOKUP($F92,NA_All!$A$5:$G$204,IF(ISERROR($D$6),4,7)) -> 10077 | N92: 250000
F93: 71 | G93: =IF($C$8=1,VLOOKUP($F93,P_All!$A$5:$Y$204,3*($C$6-1)+2),IF($C$8=2,VLOOKUP($F93,P_All!$AB$5:$AZ$204,3*($C$6-1)+2),VLOOKUP($F93,P_All!$BB$5:$BZ$204,3*($C$6-1)+2))) -> 9218 | H93: =IF($C$8=1,VLOOKUP($F93,P_All!$A$5:$Y204,3*($C$6-1)+3),IF($C$8=2,VLOOKUP($F93,P_All!$AB$5:$AZ$204,3*($C$6-1)+3),VLOOKUP($F93,P_All!$BB$5:$BZ$204,3*($C$6-1)+3))) -> 9827.4 | I93: =IF($C$8=1,VLOOKUP($F93,P_All!$A$5:$Y$204,3*($C$6-1)+4),IF($C$8=2,VLOOKUP($F93,P_All!$AB$5:$AZ$204,3*($C$6-1)+4),VLOOKUP($F93,P_All!$BB$5:$BZ$204,3*($C$6-1)+4))) -> 14271 | J93: =VLOOKUP($F93,NA_All!$A$5:$G$204,IF(ISERROR($D$6),2,5)) -> 9110.4 | K93: =VLOOKUP($F93,NA_All!$A$5:$G$204,IF(ISERROR($D$6),3,6)) -> 9581.1 | L93: =VLOOKUP($F93,NA_All!$A$5:$G$204,IF(ISERROR($D$6),4,7)) -> 10077 | N93: 250000
F94: 72 | G94: =IF($C$8=1,VLOOKUP($F94,P_All!$A$5:$Y$204,3*($C$6-1)+2),IF($C$8=2,VLOOKUP($F94,P_All!$AB$5:$AZ$204,3*($C$6-1)+2),VLOOKUP($F94,P_All!$BB$5:$BZ$204,3*($C$6-1)+2))) -> 9229.7 | H94: =IF($C$8=1,VLOOKUP($F94,P_All!$A$5:$Y204,3*($C$6-1)+3),IF($C$8=2,VLOOKUP($F94,P_All!$AB$5:$AZ$204,3*($C$6-1)+3),VLOOKUP($F94,P_All!$BB$5:$BZ$204,3*($C$6-1)+3))) -> 9866.4 | I94: =IF($C$8=1,VLOOKUP($F94,P_All!$A$5:$Y$204,3*($C$6-1)+4),IF($C$8=2,VLOOKUP($F94,P_All!$AB$5:$AZ$204,3*($C$6-1)+4),VLOOKUP($F94,P_All!$BB$5:$BZ$204,3*($C$6-1)+4))) -> 15906 | J94: =VLOOKUP($F94,NA_All!$A$5:$G$204,IF(ISERROR($D$6),2,5)) -> 9110.4 | K94: =VLOOKUP($F94,NA_All!$A$5:$G$204,IF(ISERROR($D$6),3,6)) -> 9581.1 | L94: =VLOOKUP($F94,NA_All!$A$5:$G$204,IF(ISERROR($D$6),4,7)) -> 10077 | N94: 250000
F95: 73 | G95: =IF($C$8=1,VLOOKUP($F95,P_All!$A$5:$Y$204,3*($C$6-1)+2),IF($C$8=2,VLOOKUP($F95,P_All!$AB$5:$AZ$204,3*($C$6-1)+2),VLOOKUP($F95,P_All!$BB$5:$BZ$204,3*($C$6-1)+2))) -> 9234.9 | H95: =IF($C$8=1,VLOOKUP($F95,P_All!$A$5:$Y204,3*($C$6-1)+3),IF($C$8=2,VLOOKUP($F95,P_All!$AB$5:$AZ$204,3*($C$6-1)+3),VLOOKUP($F95,P_All!$BB$5:$BZ$204,3*($C$6-1)+3))) -> 9919.5 | I95: =IF($C$8=1,VLOOKUP($F95,P_All!$A$5:$Y$204,3*($C$6-1)+4),IF($C$8=2,VLOOKUP($F95,P_All!$AB$5:$AZ$204,3*($C$6-1)+4),VLOOKUP($F95,P_All!$BB$5:$BZ$204,3*($C$6-1)+4))) -> 17920 | J95: =VLOOKUP($F95,NA_All!$A$5:$G$204,IF(ISERROR($D$6),2,5)) -> 9110.4 | K95: =VLOOKUP($F95,NA_All!$A$5:$G$204,IF(ISERROR($D$6),3,6)) -> 9581.1 | L95: =VLOOKUP($F95,NA_All!$A$5:$G$204,IF(ISERROR($D$6),4,7)) -> 10077 | N95: 250000
F96: 74 | G96: =IF($C$8=1,VLOOKUP($F96,P_All!$A$5:$Y$204,3*($C$6-1)+2),IF($C$8=2,VLOOKUP($F96,P_All!$AB$5:$AZ$204,3*($C$6-1)+2),VLOOKUP($F96,P_All!$BB$5:$BZ$204,3*($C$6-1)+2))) -> 9244 | H96: =IF($C$8=1,VLOOKUP($F96,P_All!$A$5:$Y204,3*($C$6-1)+3),IF($C$8=2,VLOOKUP($F96,P_All!$AB$5:$AZ$204,3*($C$6-1)+3),VLOOKUP($F96,P_All!$BB$5:$BZ$204,3*($C$6-1)+3))) -> 9954.1 | I96: =IF($C$8=1,VLOOKUP($F96,P_All!$A$5:$Y$204,3*($C$6-1)+4),IF($C$8=2,VLOOKUP($F96,P_All!$AB$5:$AZ$204,3*($C$6-1)+4),VLOOKUP($F96,P_All!$BB$5:$BZ$204,3*($C$6-1)+4))) -> 19781 | J96: =VLOOKUP($F96,NA_All!$A$5:$G$204,IF(ISERROR($D$6),2,5)) -> 9110.4 | K96: =VLOOKUP($F96,NA_All!$A$5:$G$204,IF(ISERROR($D$6),3,6)) -> 9581.1 | L96: =VLOOKUP($F96,NA_All!$A$5:$G$204,IF(ISERROR($D$6),4,7)) -> 10077 | N96: 250000
F97: 75 | G97: =IF($C$8=1,VLOOKUP($F97,P_All!$A$5:$Y$204,3*($C$6-1)+2),IF($C$8=2,VLOOKUP($F97,P_All!$AB$5:$AZ$204,3*($C$6-1)+2),VLOOKUP($F97,P_All!$BB$5:$BZ$204,3*($C$6-1)+2))) -> 9245.3 | H97: =IF($C$8=1,VLOOKUP($F97,P_All!$A$5:$Y204,3*($C$6-1)+3),IF($C$8=2,VLOOKUP($F97,P_All!$AB$5:$AZ$204,3*($C$6-1)+3),VLOOKUP($F97,P_All!$BB$5:$BZ$204,3*($C$6-1)+3))) -> 9995.9 | I97: =IF($C$8=1,VLOOKUP($F97,P_All!$A$5:$Y$204,3*($C$6-1)+4),IF($C$8=2,VLOOKUP($F97,P_All!$AB$5:$AZ$204,3*($C$6-1)+4),VLOOKUP($F97,P_All!$BB$5:$BZ$204,3*($C$6-1)+4))) -> 21610 | J97: =VLOOKUP($F97,NA_All!$A$5:$G$204,IF(ISERROR($D$6),2,5)) -> 9110.4 | K97: =VLOOKUP($F97,NA_All!$A$5:$G$204,IF(ISERROR($D$6),3,6)) -> 9581.1 | L97: =VLOOKUP($F97,NA_All!$A$5:$G$204,IF(ISERROR($D$6),4,7)) -> 10077 | N97: 250000
F98: 76 | G98: =IF($C$8=1,VLOOKUP($F98,P_All!$A$5:$Y$204,3*($C$6-1)+2),IF($C$8=2,VLOOKUP($F98,P_All!$AB$5:$AZ$204,3*($C$6-1)+2),VLOOKUP($F98,P_All!$BB$5:$BZ$204,3*($C$6-1)+2))) -> 9248.3 | H98: =IF($C$8=1,VLOOKUP($F98,P_All!$A$5:$Y204,3*($C$6-1)+3),IF($C$8=2,VLOOKUP($F98,P_All!$AB$5:$AZ$204,3*($C$6-1)+3),VLOOKUP($F98,P_All!$BB$5:$BZ$204,3*($C$6-1)+3))) -> 10057 | I98: =IF($C$8=1,VLOOKUP($F98,P_All!$A$5:$Y$204,3*($C$6-1)+4),IF($C$8=2,VLOOKUP($F98,P_All!$AB$5:$AZ$204,3*($C$6-1)+4),VLOOKUP($F98,P_All!$BB$5:$BZ$204,3*($C$6-1)+4))) -> 23345 | J98: =VLOOKUP($F98,NA_All!$A$5:$G$204,IF(ISERROR($D$6),2,5)) -> 9110.4 | K98: =VLOOKUP($F98,NA_All!$A$5:$G$204,IF(ISERROR($D$6),3,6)) -> 9581.1 | L98: =VLOOKUP($F98,NA_All!$A$5:$G$204,IF(ISERROR($D$6),4,7)) -> 10077 | N98: 250000
F99: 77 | G99: =IF($C$8=1,VLOOKUP($F99,P_All!$A$5:$Y$204,3*($C$6-1)+2),IF($C$8=2,VLOOKUP($F99,P_All!$AB$5:$AZ$204,3*($C$6-1)+2),VLOOKUP($F99,P_All!$BB$5:$BZ$204,3*($C$6-1)+2))) -> 9272.3 | H99: =IF($C$8=1,VLOOKUP($F99,P_All!$A$5:$Y204,3*($C$6-1)+3),IF($C$8=2,VLOOKUP($F99,P_All!$AB$5:$AZ$204,3*($C$6-1)+3),VLOOKUP($F99,P_All!$BB$5:$BZ$204,3*($C$6-1)+3))) -> 10078 | I99: =IF($C$8=1,VLOOKUP($F99,P_All!$A$5:$Y$204,3*($C$6-1)+4),IF($C$8=2,VLOOKUP($F99,P_All!$AB$5:$AZ$204,3*($C$6-1)+4),VLOOKUP($F99,P_All!$BB$5:$BZ$204,3*($C$6-1)+4))) -> 25125 | J99: =VLOOKUP($F99,NA_All!$A$5:$G$204,IF(ISERROR($D$6),2,5)) -> 9110.4 | K99: =VLOOKUP($F99,NA_All!$A$5:$G$204,IF(ISERROR($D$6),3,6)) -> 9581.1 | L99: =VLOOKUP($F99,NA_All!$A$5:$G$204,IF(ISERROR($D$6),4,7)) -> 10077 | N99: 250000
F100: 78 | G100: =IF($C$8=1,VLOOKUP($F100,P_All!$A$5:$Y$204,3*($C$6-1)+2),IF($C$8=2,VLOOKUP($F100,P_All!$AB$5:$AZ$204,3*($C$6-1)+2),VLOOKUP($F100,P_All!$BB$5:$BZ$204,3*($C$6-1)+2))) -> 9299.7 | H100: =IF($C$8=1,VLOOKUP($F100,P_All!$A$5:$Y204,3*($C$6-1)+3),IF($C$8=2,VLOOKUP($F100,P_All!$AB$5:$AZ$204,3*($C$6-1)+3),VLOOKUP($F100,P_All!$BB$5:$BZ$204,3*($C$6-1)+3))) -> 10139 | I100: =IF($C$8=1,VLOOKUP($F100,P_All!$A$5:$Y$204,3*($C$6-1)+4),IF($C$8=2,VLOOKUP($F100,P_All!$AB$5:$AZ$204,3*($C$6-1)+4),VLOOKUP($F100,P_All!$BB$5:$BZ$204,3*($C$6-1)+4))) -> 26840 | J100: =VLOOKUP($F100,NA_All!$A$5:$G$204,IF(ISERROR($D$6),2,5)) -> 9110.4 | K100: =VLOOKUP($F100,NA_All!$A$5:$G$204,IF(ISERROR($D$6),3,6)) -> 9581.1 | L100: =VLOOKUP($F100,NA_All!$A$5:$G$204,IF(ISERROR($D$6),4,7)) -> 10077 | N100: 250000
F101: 79 | G101: =IF($C$8=1,VLOOKUP($F101,P_All!$A$5:$Y$204,3*($C$6-1)+2),IF($C$8=2,VLOOKUP($F101,P_All!$AB$5:$AZ$204,3*($C$6-1)+2),VLOOKUP($F101,P_All!$BB$5:$BZ$204,3*($C$6-1)+2))) -> 9314.4 | H101: =IF($C$8=1,VLOOKUP($F101,P_All!$A$5:$Y204,3*($C$6-1)+3),IF($C$8=2,VLOOKUP($F101,P_All!$AB$5:$AZ$204,3*($C$6-1)+3),VLOOKUP($F101,P_All!$BB$5:$BZ$204,3*($C$6-1)+3))) -> 10232 | I101: =IF($C$8=1,VLOOKUP($F101,P_All!$A$5:$Y$204,3*($C$6-1)+4),IF($C$8=2,VLOOKUP($F101,P_All!$AB$5:$AZ$204,3*($C$6-1)+4),VLOOKUP($F101,P_All!$BB$5:$BZ$204,3*($C$6-1)+4))) -> 28415 | J101: =VLOOKUP($F101,NA_All!$A$5:$G$204,IF(ISERROR($D$6),2,5)) -> 9110.4 | K101: =VLOOKUP($F101,NA_All!$A$5:$G$204,IF(ISERROR($D$6),3,6)) -> 9581.1 | L101: =VLOOKUP($F101,NA_All!$A$5:$G$204,IF(ISERROR($D$6),4,7)) -> 10077 | N101: 250000
F102: 80 | G102: =IF($C$8=1,VLOOKUP($F102,P_All!$A$5:$Y$204,3*($C$6-1)+2),IF($C$8=2,VLOOKUP($F102,P_All!$AB$5:$AZ$204,3*($C$6-1)+2),VLOOKUP($F102,P_All!$BB$5:$BZ$204,3*($C$6-1)+2))) -> 9321 | H102: =IF($C$8=1,VLOOKUP($F102,P_All!$A$5:$Y204,3*($C$6-1)+3),IF($C$8=2,VLOOKUP($F102,P_All!$AB$5:$AZ$204,3*($C$6-1)+3),VLOOKUP($F102,P_All!$BB$5:$BZ$204,3*($C$6-1)+3))) -> 10306 | I102: =IF($C$8=1,VLOOKUP($F102,P_All!$A$5:$Y$204,3*($C$6-1)+4),IF($C$8=2,VLOOKUP($F102,P_All!$AB$5:$AZ$204,3*($C$6-1)+4),VLOOKUP($F102,P_All!$BB$5:$BZ$204,3*($C$6-1)+4))) -> 29187 | J102: =VLOOKUP($F102,NA_All!$A$5:$G$204,IF(ISERROR($D$6),2,5)) -> 9110.4 | K102: =VLOOKUP($F102,NA_All!$A$5:$G$204,IF(ISERROR($D$6),3,6)) -> 9581.1 | L102: =VLOOKUP($F102,NA_All!$A$5:$G$204,IF(ISERROR($D$6),4,7)) -> 10077 | N102: 250000
F103: 81 | G103: =IF($C$8=1,VLOOKUP($F103,P_All!$A$5:$Y$204,3*($C$6-1)+2),IF($C$8=2,VLOOKUP($F103,P_All!$AB$5:$AZ$204,3*($C$6-1)+2),VLOOKUP($F103,P_All!$BB$5:$BZ$204,3*($C$6-1)+2))) -> 9344.8 | H103: =IF($C$8=1,VLOOKUP($F103,P_All!$A$5:$Y204,3*($C$6-1)+3),IF($C$8=2,VLOOKUP($F103,P_All!$AB$5:$AZ$204,3*($C$6-1)+3),VLOOKUP($F103,P_All!$BB$5:$BZ$204,3*($C$6-1)+3))) -> 10440 | I103: =IF($C$8=1,VLOOKUP($F103,P_All!$A$5:$Y$204,3*($C$6-1)+4),IF($C$8=2,VLOOKUP($F103,P_All!$AB$5:$AZ$204,3*($C$6-1)+4),VLOOKUP($F103,P_All!$BB$5:$BZ$204,3*($C$6-1)+4))) -> 29876 | J103: =VLOOKUP($F103,NA_All!$A$5:$G$204,IF(ISERROR($D$6),2,5)) -> 9110.4 | K103: =VLOOKUP($F103,NA_All!$A$5:$G$204,IF(ISERROR($D$6),3,6)) -> 9581.1 | L103: =VLOOKUP($F103,NA_All!$A$5:$G$204,IF(ISERROR($D$6),4,7)) -> 10077 | N103: 250000
F104: 82 | G104: =IF($C$8=1,VLOOKUP($F104,P_All!$A$5:$Y$204,3*($C$6-1)+2),IF($C$8=2,VLOOKUP($F104,P_All!$AB$5:$AZ$204,3*($C$6-1)+2),VLOOKUP($F104,P_All!$BB$5:$BZ$204,3*($C$6-1)+2))) -> 9348.9 | H104: =IF($C$8=1,VLOOKUP($F104,P_All!$A$5:$Y204,3*($C$6-1)+3),IF($C$8=2,VLOOKUP($F104,P_All!$AB$5:$AZ$204,3*($C$6-1)+3),VLOOKUP($F104,P_All!$BB$5:$BZ$204,3*($C$6-1)+3))) -> 10664 | I104: =IF($C$8=1,VLOOKUP($F104,P_All!$A$5:$Y$204,3*($C$6-1)+4),IF($C$8=2,VLOOKUP($F104,P_All!$AB$5:$AZ$204,3*($C$6-1)+4),VLOOKUP($F104,P_All!$BB$5:$BZ$204,3*($C$6-1)+4))) -> 30800 | J104: =VLOOKUP($F104,NA_All!$A$5:$G$204,IF(ISERROR($D$6),2,5)) -> 9110.4 | K104: =VLOOKUP($F104,NA_All!$A$5:$G$204,IF(ISERROR($D$6),3,6)) -> 9581.1 | L104: =VLOOKUP($F104,NA_All!$A$5:$G$204,IF(ISERROR($D$6),4,7)) -> 10077 | N104: 250000
F105: 83 | G105: =IF($C$8=1,VLOOKUP($F105,P_All!$A$5:$Y$204,3*($C$6-1)+2),IF($C$8=2,VLOOKUP($F105,P_All!$AB$5:$AZ$204,3*($C$6-1)+2),VLOOKUP($F105,P_All!$BB$5:$BZ$204,3*($C$6-1)+2))) -> 9362.4 | H105: =IF($C$8=1,VLOOKUP($F105,P_All!$A$5:$Y204,3*($C$6-1)+3),IF($C$8=2,VLOOKUP($F105,P_All!$AB$5:$AZ$204,3*($C$6-1)+3),VLOOKUP($F105,P_All!$BB$5:$BZ$204,3*($C$6-1)+3))) -> 10950 | I105: =IF($C$8=1,VLOOKUP($F105,P_All!$A$5:$Y$204,3*($C$6-1)+4),IF($C$8=2,VLOOKUP($F105,P_All!$AB$5:$AZ$204,3*($C$6-1)+4),VLOOKUP($F105,P_All!$BB$5:$BZ$204,3*($C$6-1)+4))) -> 31466 | J105: =VLOOKUP($F105,NA_All!$A$5:$G$204,IF(ISERROR($D$6),2,5)) -> 9110.4 | K105: =VLOOKUP($F105,NA_All!$A$5:$G$204,IF(ISERROR($D$6),3,6)) -> 9581.1 | L105: =VLOOKUP($F105,NA_All!$A$5:$G$204,IF(ISERROR($D$6),4,7)) -> 10077 | N105: 250000
F106: 84 | G106: =IF($C$8=1,VLOOKUP($F106,P_All!$A$5:$Y$204,3*($C$6-1)+2),IF($C$8=2,VLOOKUP($F106,P_All!$AB$5:$AZ$204,3*($C$6-1)+2),VLOOKUP($F106,P_All!$BB$5:$BZ$204,3*($C$6-1)+2))) -> 9372 | H106: =IF($C$8=1,VLOOKUP($F106,P_All!$A$5:$Y204,3*($C$6-1)+3),IF($C$8=2,VLOOKUP($F106,P_All!$AB$5:$AZ$204,3*($C$6-1)+3),VLOOKUP($F106,P_All!$BB$5:$BZ$204,3*($C$6-1)+3))) -> 11300 | I106: =IF($C$8=1,VLOOKUP($F106,P_All!$A$5:$Y$204,3*($C$6-1)+4),IF($C$8=2,VLOOKUP($F106,P_All!$AB$5:$AZ$204,3*($C$6-1)+4),VLOOKUP($F106,P_All!$BB$5:$BZ$204,3*($C$6-1)+4))) -> 32312 | J106: =VLOOKUP($F106,NA_All!$A$5:$G$204,IF(ISERROR($D$6),2,5)) -> 9110.4 | K106: =VLOOKUP($F106,NA_All!$A$5:$G$204,IF(ISERROR($D$6),3,6)) -> 9581.1 | L106: =VLOOKUP($F106,NA_All!$A$5:$G$204,IF(ISERROR($D$6),4,7)) -> 10077 | N106: 250000
F107: 85 | G107: =IF($C$8=1,VLOOKUP($F107,P_All!$A$5:$Y$204,3*($C$6-1)+2),IF($C$8=2,VLOOKUP($F107,P_All!$AB$5:$AZ$204,3*($C$6-1)+2),VLOOKUP($F107,P_All!$BB$5:$BZ$204,3*($C$6-1)+2))) -> 9378.8 | H107: =IF($C$8=1,VLOOKUP($F107,P_All!$A$5:$Y204,3*($C$6-1)+3),IF($C$8=2,VLOOKUP($F107,P_All!$AB$5:$AZ$204,3*($C$6-1)+3),VLOOKUP($F107,P_All!$BB$5:$BZ$204,3*($C$6-1)+3))) -> 11798 | I107: =IF($C$8=1,VLOOKUP($F107,P_All!$A$5:$Y$204,3*($C$6-1)+4),IF($C$8=2,VLOOKUP($F107,P_All!$AB$5:$AZ$204,3*($C$6-1)+4),VLOOKUP($F107,P_All!$BB$5:$BZ$204,3*($C$6-1)+4))) -> 32756 | J107: =VLOOKUP($F107,NA_All!$A$5:$G$204,IF(ISERROR($D$6),2,5)) -> 9110.4 | K107: =VLOOKUP($F107,NA_All!$A$5:$G$204,IF(ISERROR($D$6),3,6)) -> 9581.1 | L107: =VLOOKUP($F107,NA_All!$A$5:$G$204,IF(ISERROR($D$6),4,7)) -> 10077 | N107: 250000
F108: 86 | G108: =IF($C$8=1,VLOOKUP($F108,P_All!$A$5:$Y$204,3*($C$6-1)+2),IF($C$8=2,VLOOKUP($F108,P_All!$AB$5:$AZ$204,3*($C$6-1)+2),VLOOKUP($F108,P_All!$BB$5:$BZ$204,3*($C$6-1)+2))) -> 9386.8 | H108: =IF($C$8=1,VLOOKUP($F108,P_All!$A$5:$Y204,3*($C$6-1)+3),IF($C$8=2,VLOOKUP($F108,P_All!$AB$5:$AZ$204,3*($C$6-1)+3),VLOOKUP($F108,P_All!$BB$5:$BZ$204,3*($C$6-1)+3))) -> 12435 | I108: =IF($C$8=1,VLOOKUP($F108,P_All!$A$5:$Y$204,3*($C$6-1)+4),IF($C$8=2,VLOOKUP($F108,P_All!$AB$5:$AZ$204,3*($C$6-1)+4),VLOOKUP($F108,P_All!$BB$5:$BZ$204,3*($C$6-1)+4))) -> 33268 | J108: =VLOOKUP($F108,NA_All!$A$5:$G$204,IF(ISERROR($D$6),2,5)) -> 9110.4 | K108: =VLOOKUP($F108,NA_All!$A$5:$G$204,IF(ISERROR($D$6),3,6)) -> 9581.1 | L108: =VLOOKUP($F108,NA_All!$A$5:$G$204,IF(ISERROR($D$6),4,7)) -> 10077 | N108: 250000
F109: 87 | G109: =IF($C$8=1,VLOOKUP($F109,P_All!$A$5:$Y$204,3*($C$6-1)+2),IF($C$8=2,VLOOKUP($F109,P_All!$AB$5:$AZ$204,3*($C$6-1)+2),VLOOKUP($F109,P_All!$BB$5:$BZ$204,3*($C$6-1)+2))) -> 9414 | H109: =IF($C$8=1,VLOOKUP($F109,P_All!$A$5:$Y204,3*($C$6-1)+3),IF($C$8=2,VLOOKUP($F109,P_All!$AB$5:$AZ$204,3*($C$6-1)+3),VLOOKUP($F109,P_All!$BB$5:$BZ$204,3*($C$6-1)+3))) -> 13118 | I109: =IF($C$8=1,VLOOKUP($F109,P_All!$A$5:$Y$204,3*($C$6-1)+4),IF($C$8=2,VLOOKUP($F109,P_All!$AB$5:$AZ$204,3*($C$6-1)+4),VLOOKUP($F109,P_All!$BB$5:$BZ$204,3*($C$6-1)+4))) -> 33729 | J109: =VLOOKUP($F109,NA_All!$A$5:$G$204,IF(ISERROR($D$6),2,5)) -> 9110.4 | K109: =VLOOKUP($F109,NA_All!$A$5:$G$204,IF(ISERROR($D$6),3,6)) -> 9581.1 | L109: =VLOOKUP($F109,NA_All!$A$5:$G$204,IF(ISERROR($D$6),4,7)) -> 10077 | N109: 250000
F110: 88 | G110: =IF($C$8=1,VLOOKUP($F110,P_All!$A$5:$Y$204,3*($C$6-1)+2),IF($C$8=2,VLOOKUP($F110,P_All!$AB$5:$AZ$204,3*($C$6-1)+2),VLOOKUP($F110,P_All!$BB$5:$BZ$204,3*($C$6-1)+2))) -> 9440.7 | H110: =IF($C$8=1,VLOOKUP($F110,P_All!$A$5:$Y204,3*($C$6-1)+3),IF($C$8=2,VLOOKUP($F110,P_All!$AB$5:$AZ$204,3*($C$6-1)+3),VLOOKUP($F110,P_All!$BB$5:$BZ$204,3*($C$6-1)+3))) -> 13831 | I110: =IF($C$8=1,VLOOKUP($F110,P_All!$A$5:$Y$204,3*($C$6-1)+4),IF($C$8=2,VLOOKUP($F110,P_All!$AB$5:$AZ$204,3*($C$6-1)+4),VLOOKUP($F110,P_All!$BB$5:$BZ$204,3*($C$6-1)+4))) -> 33954 | J110: =VLOOKUP($F110,NA_All!$A$5:$G$204,IF(ISERROR($D$6),2,5)) -> 9110.4 | K110: =VLOOKUP($F110,NA_All!$A$5:$G$204,IF(ISERROR($D$6),3,6)) -> 9581.1 | L110: =VLOOKUP($F110,NA_All!$A$5:$G$204,IF(ISERROR($D$6),4,7)) -> 10077 | N110: 250000
F111: 89 | G111: =IF($C$8=1,VLOOKUP($F111,P_All!$A$5:$Y$204,3*($C$6-1)+2),IF($C$8=2,VLOOKUP($F111,P_All!$AB$5:$AZ$204,3*($C$6-1)+2),VLOOKUP($F111,P_All!$BB$5:$BZ$204,3*($C$6-1)+2))) -> 9470.3 | H111: =IF($C$8=1,VLOOKUP($F111,P_All!$A$5:$Y204,3*($C$6-1)+3),IF($C$8=2,VLOOKUP($F111,P_All!$AB$5:$AZ$204,3*($C$6-1)+3),VLOOKUP($F111,P_All!$BB$5:$BZ$204,3*($C$6-1)+3))) -> 14684 | I111: =IF($C$8=1,VLOOKUP($F111,P_All!$A$5:$Y$204,3*($C$6-1)+4),IF($C$8=2,VLOOKUP($F111,P_All!$AB$5:$AZ$204,3*($C$6-1)+4),VLOOKUP($F111,P_All!$BB$5:$BZ$204,3*($C$6-1)+4))) -> 34004 | J111: =VLOOKUP($F111,NA_All!$A$5:$G$204,IF(ISERROR($D$6),2,5)) -> 9110.4 | K111: =VLOOKUP($F111,NA_All!$A$5:$G$204,IF(ISERROR($D$6),3,6)) -> 9581.1 | L111: =VLOOKUP($F111,NA_All!$A$5:$G$204,IF(ISERROR($D$6),4,7)) -> 10077 | N111: 250000
F112: 90 | G112: =IF($C$8=1,VLOOKUP($F112,P_All!$A$5:$Y$204,3*($C$6-1)+2),IF($C$8=2,VLOOKUP($F112,P_All!$AB$5:$AZ$204,3*($C$6-1)+2),VLOOKUP($F112,P_All!$BB$5:$BZ$204,3*($C$6-1)+2))) -> 9490.2 | H112: =IF($C$8=1,VLOOKUP($F112,P_All!$A$5:$Y204,3*($C$6-1)+3),IF($C$8=2,VLOOKUP($F112,P_All!$AB$5:$AZ$204,3*($C$6-1)+3),VLOOKUP($F112,P_All!$BB$5:$BZ$204,3*($C$6-1)+3))) -> 15664 | I112: =IF($C$8=1,VLOOKUP($F112,P_All!$A$5:$Y$204,3*($C$6-1)+4),IF($C$8=2,VLOOKUP($F112,P_All!$AB$5:$AZ$204,3*($C$6-1)+4),VLOOKUP($F112,P_All!$BB$5:$BZ$204,3*($C$6-1)+4))) -> 34039 | J112: =VLOOKUP($F112,NA_All!$A$5:$G$204,IF(ISERROR($D$6),2,5)) -> 9110.4 | K112: =VLOOKUP($F112,NA_All!$A$5:$G$204,IF(ISERROR($D$6),3,6)) -> 9581.1 | L112: =VLOOKUP($F112,NA_All!$A$5:$G$204,IF(ISERROR($D$6),4,7)) -> 10077 | N112: 250000
F113: 91 | G113: =IF($C$8=1,VLOOKUP($F113,P_All!$A$5:$Y$204,3*($C$6-1)+2),IF($C$8=2,VLOOKUP($F113,P_All!$AB$5:$AZ$204,3*($C$6-1)+2),VLOOKUP($F113,P_All!$BB$5:$BZ$204,3*($C$6-1)+2))) -> 9491.1 | H113: =IF($C$8=1,VLOOKUP($F113,P_All!$A$5:$Y204,3*($C$6-1)+3),IF($C$8=2,VLOOKUP($F113,P_All!$AB$5:$AZ$204,3*($C$6-1)+3),VLOOKUP($F113,P_All!$BB$5:$BZ$204,3*($C$6-1)+3))) -> 16546 | I113: =IF($C$8=1,VLOOKUP($F113,P_All!$A$5:$Y$204,3*($C$6-1)+4),IF($C$8=2,VLOOKUP($F113,P_All!$AB$5:$AZ$204,3*($C$6-1)+4),VLOOKUP($F113,P_All!$BB$5:$BZ$204,3*($C$6-1)+4))) -> 33967 | J113: =VLOOKUP($F113,NA_All!$A$5:$G$204,IF(ISERROR($D$6),2,5)) -> 9110.4 | K113: =VLOOKUP($F113,NA_All!$A$5:$G$204,IF(ISERROR($D$6),3,6)) -> 9581.1 | L113: =VLOOKUP($F113,NA_All!$A$5:$G$204,IF(ISERROR($D$6),4,7)) -> 10077 | N113: 250000
F114: 92 | G114: =IF($C$8=1,VLOOKUP($F114,P_All!$A$5:$Y$204,3*($C$6-1)+2),IF($C$8=2,VLOOKUP($F114,P_All!$AB$5:$AZ$204,3*($C$6-1)+2),VLOOKUP($F114,P_All!$BB$5:$BZ$204,3*($C$6-1)+2))) -> 9526.1 | H114: =IF($C$8=1,VLOOKUP($F114,P_All!$A$5:$Y204,3*($C$6-1)+3),IF($C$8=2,VLOOKUP($F114,P_All!$AB$5:$AZ$204,3*($C$6-1)+3),VLOOKUP($F114,P_All!$BB$5:$BZ$204,3*($C$6-1)+3))) -> 17471 | I114: =IF($C$8=1,VLOOKUP($F114,P_All!$A$5:$Y$204,3*($C$6-1)+4),IF($C$8=2,VLOOKUP($F114,P_All!$AB$5:$AZ$204,3*($C$6-1)+4),VLOOKUP($F114,P_All!$BB$5:$BZ$204,3*($C$6-1)+4))) -> 33940 | J114: =VLOOKUP($F114,NA_All!$A$5:$G$204,IF(ISERROR($D$6),2,5)) -> 9110.4 | K114: =VLOOKUP($F114,NA_All!$A$5:$G$204,IF(ISERROR($D$6),3,6)) -> 9581.1 | L114: =VLOOKUP($F114,NA_All!$A$5:$G$204,IF(ISERROR($D$6),4,7)) -> 10077 | N114: 250000
F115: 93 | G115: =IF($C$8=1,VLOOKUP($F115,P_All!$A$5:$Y$204,3*($C$6-1)+2),IF($C$8=2,VLOOKUP($F115,P_All!$AB$5:$AZ$204,3*($C$6-1)+2),VLOOKUP($F115,P_All!$BB$5:$BZ$204,3*($C$6-1)+2))) -> 9556.6 | H115: =IF($C$8=1,VLOOKUP($F115,P_All!$A$5:$Y204,3*($C$6-1)+3),IF($C$8=2,VLOOKUP($F115,P_All!$AB$5:$AZ$204,3*($C$6-1)+3),VLOOKUP($F115,P_All!$BB$5:$BZ$204,3*($C$6-1)+3))) -> 18431 | I115: =IF($C$8=1,VLOOKUP($F115,P_All!$A$5:$Y$204,3*($C$6-1)+4),IF($C$8=2,VLOOKUP($F115,P_All!$AB$5:$AZ$204,3*($C$6-1)+4),VLOOKUP($F115,P_All!$BB$5:$BZ$204,3*($C$6-1)+4))) -> 33914 | J115: =VLOOKUP($F115,NA_All!$A$5:$G$204,IF(ISERROR($D$6),2,5)) -> 9110.4 | K115: =VLOOKUP($F115,NA_All!$A$5:$G$204,IF(ISERROR($D$6),3,6)) -> 9581.1 | L115: =VLOOKUP($F115,NA_All!$A$5:$G$204,IF(ISERROR($D$6),4,7)) -> 10077 | N115: 250000
F116: 94 | G116: =IF($C$8=1,VLOOKUP($F116,P_All!$A$5:$Y$204,3*($C$6-1)+2),IF($C$8=2,VLOOKUP($F116,P_All!$AB$5:$AZ$204,3*($C$6-1)+2),VLOOKUP($F116,P_All!$BB$5:$BZ$204,3*($C$6-1)+2))) -> 9573.3 | H116: =IF($C$8=1,VLOOKUP($F116,P_All!$A$5:$Y204,3*($C$6-1)+3),IF($C$8=2,VLOOKUP($F116,P_All!$AB$5:$AZ$204,3*($C$6-1)+3),VLOOKUP($F116,P_All!$BB$5:$BZ$204,3*($C$6-1)+3))) -> 19443 | I116: =IF($C$8=1,VLOOKUP($F116,P_All!$A$5:$Y$204,3*($C$6-1)+4),IF($C$8=2,VLOOKUP($F116,P_All!$AB$5:$AZ$204,3*($C$6-1)+4),VLOOKUP($F116,P_All!$BB$5:$BZ$204,3*($C$6-1)+4))) -> 33917 | J116: =VLOOKUP($F116,NA_All!$A$5:$G$204,IF(ISERROR($D$6),2,5)) -> 9110.4 | K116: =VLOOKUP($F116,NA_All!$A$5:$G$204,IF(ISERROR($D$6),3,6)) -> 9581.1 | L116: =VLOOKUP($F116,NA_All!$A$5:$G$204,IF(ISERROR($D$6),4,7)) -> 10077 | N116: 250000
F117: 95 | G117: =IF($C$8=1,VLOOKUP($F117,P_All!$A$5:$Y$204,3*($C$6-1)+2),IF($C$8=2,VLOOKUP($F117,P_All!$AB$5:$AZ$204,3*($C$6-1)+2),VLOOKUP($F117,P_All!$BB$5:$BZ$204,3*($C$6-1)+2))) -> 9579 | H117: =IF($C$8=1,VLOOKUP($F117,P_All!$A$5:$Y204,3*($C$6-1)+3),IF($C$8=2,VLOOKUP($F117,P_All!$AB$5:$AZ$204,3*($C$6-1)+3),VLOOKUP($F117,P_All!$BB$5:$BZ$204,3*($C$6-1)+3))) -> 20322 | I117: =IF($C$8=1,VLOOKUP($F117,P_All!$A$5:$Y$204,3*($C$6-1)+4),IF($C$8=2,VLOOKUP($F117,P_All!$AB$5:$AZ$204,3*($C$6-1)+4),VLOOKUP($F117,P_All!$BB$5:$BZ$204,3*($C$6-1)+4))) -> 33946 | J117: =VLOOKUP($F117,NA_All!$A$5:$G$204,IF(ISERROR($D$6),2,5)) -> 9110.4 | K117: =VLOOKUP($F117,NA_All!$A$5:$G$204,IF(ISERROR($D$6),3,6)) -> 9581.1 | L117: =VLOOKUP($F117,NA_All!$A$5:$G$204,IF(ISERROR($D$6),4,7)) -> 10077 | N117: 250000
F118: 96 | G118: =IF($C$8=1,VLOOKUP($F118,P_All!$A$5:$Y$204,3*($C$6-1)+2),IF($C$8=2,VLOOKUP($F118,P_All!$AB$5:$AZ$204,3*($C$6-1)+2),VLOOKUP($F118,P_All!$BB$5:$BZ$204,3*($C$6-1)+2))) -> 9602.6 | H118: =IF($C$8=1,VLOOKUP($F118,P_All!$A$5:$Y204,3*($C$6-1)+3),IF($C$8=2,VLOOKUP($F118,P_All!$AB$5:$AZ$204,3*($C$6-1)+3),VLOOKUP($F118,P_All!$BB$5:$BZ$204,3*($C$6-1)+3))) -> 21338 | I118: =IF($C$8=1,VLOOKUP($F118,P_All!$A$5:$Y$204,3*($C$6-1)+4),IF($C$8=2,VLOOKUP($F118,P_All!$AB$5:$AZ$204,3*($C$6-1)+4),VLOOKUP($F118,P_All!$BB$5:$BZ$204,3*($C$6-1)+4))) -> 33939 | J118: =VLOOKUP($F118,NA_All!$A$5:$G$204,IF(ISERROR($D$6),2,5)) -> 9110.4 | K118: =VLOOKUP($F118,NA_All!$A$5:$G$204,IF(ISERROR($D$6),3,6)) -> 9581.1 | L118: =VLOOKUP($F118,NA_All!$A$5:$G$204,IF(ISERROR($D$6),4,7)) -> 10077 | N118: 250000
F119: 97 | G119: =IF($C$8=1,VLOOKUP($F119,P_All!$A$5:$Y$204,3*($C$6-1)+2),IF($C$8=2,VLOOKUP($F119,P_All!$AB$5:$AZ$204,3*($C$6-1)+2),VLOOKUP($F119,P_All!$BB$5:$BZ$204,3*($C$6-1)+2))) -> 9613.6 | H119: =IF($C$8=1,VLOOKUP($F119,P_All!$A$5:$Y204,3*($C$6-1)+3),IF($C$8=2,VLOOKUP($F119,P_All!$AB$5:$AZ$204,3*($C$6-1)+3),VLOOKUP($F119,P_All!$BB$5:$BZ$204,3*($C$6-1)+3))) -> 22311 | I119: =IF($C$8=1,VLOOKUP($F119,P_All!$A$5:$Y$204,3*($C$6-1)+4),IF($C$8=2,VLOOKUP($F119,P_All!$AB$5:$AZ$204,3*($C$6-1)+4),VLOOKUP($F119,P_All!$BB$5:$BZ$204,3*($C$6-1)+4))) -> 33958 | J119: =VLOOKUP($F119,NA_All!$A$5:$G$204,IF(ISERROR($D$6),2,5)) -> 9110.4 | K119: =VLOOKUP($F119,NA_All!$A$5:$G$204,IF(ISERROR($D$6),3,6)) -> 9581.1 | L119: =VLOOKUP($F119,NA_All!$A$5:$G$204,IF(ISERROR($D$6),4,7)) -> 10077 | N119: 250000
F120: 98 | G120: =IF($C$8=1,VLOOKUP($F120,P_All!$A$5:$Y$204,3*($C$6-1)+2),IF($C$8=2,VLOOKUP($F120,P_All!$AB$5:$AZ$204,3*($C$6-1)+2),VLOOKUP($F120,P_All!$BB$5:$BZ$204,3*($C$6-1)+2))) -> 9651.3 | H120: =IF($C$8=1,VLOOKUP($F120,P_All!$A$5:$Y204,3*($C$6-1)+3),IF($C$8=2,VLOOKUP($F120,P_All!$AB$5:$AZ$204,3*($C$6-1)+3),VLOOKUP($F120,P_All!$BB$5:$BZ$204,3*($C$6-1)+3))) -> 23245 | I120: =IF($C$8=1,VLOOKUP($F120,P_All!$A$5:$Y$204,3*($C$6-1)+4),IF($C$8=2,VLOOKUP($F120,P_All!$AB$5:$AZ$204,3*($C$6-1)+4),VLOOKUP($F120,P_All!$BB$5:$BZ$204,3*($C$6-1)+4))) -> 33975 | J120: =VLOOKUP($F120,NA_All!$A$5:$G$204,IF(ISERROR($D$6),2,5)) -> 9110.4 | K120: =VLOOKUP($F120,NA_All!$A$5:$G$204,IF(ISERROR($D$6),3,6)) -> 9581.1 | L120: =VLOOKUP($F120,NA_All!$A$5:$G$204,IF(ISERROR($D$6),4,7)) -> 10077 | N120: 250000
F121: 99 | G121: =IF($C$8=1,VLOOKUP($F121,P_All!$A$5:$Y$204,3*($C$6-1)+2),IF($C$8=2,VLOOKUP($F121,P_All!$AB$5:$AZ$204,3*($C$6-1)+2),VLOOKUP($F121,P_All!$BB$5:$BZ$204,3*($C$6-1)+2))) -> 9708.3 | H121: =IF($C$8=1,VLOOKUP($F121,P_All!$A$5:$Y204,3*($C$6-1)+3),IF($C$8=2,VLOOKUP($F121,P_All!$AB$5:$AZ$204,3*($C$6-1)+3),VLOOKUP($F121,P_All!$BB$5:$BZ$204,3*($C$6-1)+3))) -> 24280 | I121: =IF($C$8=1,VLOOKUP($F121,P_All!$A$5:$Y$204,3*($C$6-1)+4),IF($C$8=2,VLOOKUP($F121,P_All!$AB$5:$AZ$204,3*($C$6-1)+4),VLOOKUP($F121,P_All!$BB$5:$BZ$204,3*($C$6-1)+4))) -> 33961 | J121: =VLOOKUP($F121,NA_All!$A$5:$G$204,IF(ISERROR($D$6),2,5)) -> 9110.4 | K121: =VLOOKUP($F121,NA_All!$A$5:$G$204,IF(ISERROR($D$6),3,6)) -> 9581.1 | L121: =VLOOKUP($F121,NA_All!$A$5:$G$204,IF(ISERROR($D$6),4,7)) -> 10077 | N121: 250000
F122: 100 | G122: =IF($C$8=1,VLOOKUP($F122,P_All!$A$5:$Y$204,3*($C$6-1)+2),IF($C$8=2,VLOOKUP($F122,P_All!$AB$5:$AZ$204,3*($C$6-1)+2),VLOOKUP($F122,P_All!$BB$5:$BZ$204,3*($C$6-1)+2))) -> 9744.7 | H122: =IF($C$8=1,VLOOKUP($F122,P_All!$A$5:$Y204,3*($C$6-1)+3),IF($C$8=2,VLOOKUP($F122,P_All!$AB$5:$AZ$204,3*($C$6-1)+3),VLOOKUP($F122,P_All!$BB$5:$BZ$204,3*($C$6-1)+3))) -> 24814 | I122: =IF($C$8=1,VLOOKUP($F122,P_All!$A$5:$Y$204,3*($C$6-1)+4),IF($C$8=2,VLOOKUP($F122,P_All!$AB$5:$AZ$204,3*($C$6-1)+4),VLOOKUP($F122,P_All!$BB$5:$BZ$204,3*($C$6-1)+4))) -> 33855 | J122: =VLOOKUP($F122,NA_All!$A$5:$G$204,IF(ISERROR($D$6),2,5)) -> 9110.4 | K122: =VLOOKUP($F122,NA_All!$A$5:$G$204,IF(ISERROR($D$6),3,6)) -> 9581.1 | L122: =VLOOKUP($F122,NA_All!$A$5:$G$204,IF(ISERROR($D$6),4,7)) -> 10077 | N122: 250000
F123: 101 | G123: =IF($C$8=1,VLOOKUP($F123,P_All!$A$5:$Y$204,3*($C$6-1)+2),IF($C$8=2,VLOOKUP($F123,P_All!$AB$5:$AZ$204,3*($C$6-1)+2),VLOOKUP($F123,P_All!$BB$5:$BZ$204,3*($C$6-1)+2))) -> 9788 | H123: =IF($C$8=1,VLOOKUP($F123,P_All!$A$5:$Y204,3*($C$6-1)+3),IF($C$8=2,VLOOKUP($F123,P_All!$AB$5:$AZ$204,3*($C$6-1)+3),VLOOKUP($F123,P_All!$BB$5:$BZ$204,3*($C$6-1)+3))) -> 25186 | I123: =IF($C$8=1,VLOOKUP($F123,P_All!$A$5:$Y$204,3*($C$6-1)+4),IF($C$8=2,VLOOKUP($F123,P_All!$AB$5:$AZ$204,3*($C$6-1)+4),VLOOKUP($F123,P_All!$BB$5:$BZ$204,3*($C$6-1)+4))) -> 33796 | J123: =VLOOKUP($F123,NA_All!$A$5:$G$204,IF(ISERROR($D$6),2,5)) -> 9110.4 | K123: =VLOOKUP($F123,NA_All!$A$5:$G$204,IF(ISERROR($D$6),3,6)) -> 9581.1 | L123: =VLOOKUP($F123,NA_All!$A$5:$G$204,IF(ISERROR($D$6),4,7)) -> 10077 | N123: 250000
F124: 102 | G124: =IF($C$8=1,VLOOKUP($F124,P_All!$A$5:$Y$204,3*($C$6-1)+2),IF($C$8=2,VLOOKUP($F124,P_All!$AB$5:$AZ$204,3*($C$6-1)+2),VLOOKUP($F124,P_All!$BB$5:$BZ$204,3*($C$6-1)+2))) -> 9804 | H124: =IF($C$8=1,VLOOKUP($F124,P_All!$A$5:$Y204,3*($C$6-1)+3),IF($C$8=2,VLOOKUP($F124,P_All!$AB$5:$AZ$204,3*($C$6-1)+3),VLOOKUP($F124,P_All!$BB$5:$BZ$204,3*($C$6-1)+3))) -> 25689 | I124: =IF($C$8=1,VLOOKUP($F124,P_All!$A$5:$Y$204,3*($C$6-1)+4),IF($C$8=2,VLOOKUP($F124,P_All!$AB$5:$AZ$204,3*($C$6-1)+4),VLOOKUP($F124,P_All!$BB$5:$BZ$204,3*($C$6-1)+4))) -> 33779 | J124: =VLOOKUP($F124,NA_All!$A$5:$G$204,IF(ISERROR($D$6),2,5)) -> 9110.4 | K124: =VLOOKUP($F124,NA_All!$A$5:$G$204,IF(ISERROR($D$6),3,6)) -> 9581.1 | L124: =VLOOKUP($F124,NA_All!$A$5:$G$204,IF(ISERROR($D$6),4,7)) -> 10077 | N124: 250000
F125: 103 | G125: =IF($C$8=1,VLOOKUP($F125,P_All!$A$5:$Y$204,3*($C$6-1)+2),IF($C$8=2,VLOOKUP($F125,P_All!$AB$5:$AZ$204,3*($C$6-1)+2),VLOOKUP($F125,P_All!$BB$5:$BZ$204,3*($C$6-1)+2))) -> 9843 | H125: =IF($C$8=1,VLOOKUP($F125,P_All!$A$5:$Y204,3*($C$6-1)+3),IF($C$8=2,VLOOKUP($F125,P_All!$AB$5:$AZ$204,3*($C$6-1)+3),VLOOKUP($F125,P_All!$BB$5:$BZ$204,3*($C$6-1)+3))) -> 25975 | I125: =IF($C$8=1,VLOOKUP($F125,P_All!$A$5:$Y$204,3*($C$6-1)+4),IF($C$8=2,VLOOKUP($F125,P_All!$AB$5:$AZ$204,3*($C$6-1)+4),VLOOKUP($F125,P_All!$BB$5:$BZ$204,3*($C$6-1)+4))) -> 33759 | J125: =VLOOKUP($F125,NA_All!$A$5:$G$204,IF(ISERROR($D$6),2,5)) -> 9110.4 | K125: =VLOOKUP($F125,NA_All!$A$5:$G$204,IF(ISERROR($D$6),3,6)) -> 9581.1 | L125: =VLOOKUP($F125,NA_All!$A$5:$G$204,IF(ISERROR($D$6),4,7)) -> 10077 | N125: 250000
F126: 104 | G126: =IF($C$8=1,VLOOKUP($F126,P_All!$A$5:$Y$204,3*($C$6-1)+2),IF($C$8=2,VLOOKUP($F126,P_All!$AB$5:$AZ$204,3*($C$6-1)+2),VLOOKUP($F126,P_All!$BB$5:$BZ$204,3*($C$6-1)+2))) -> 9875.5 | H126: =IF($C$8=1,VLOOKUP($F126,P_All!$A$5:$Y204,3*($C$6-1)+3),IF($C$8=2,VLOOKUP($F126,P_All!$AB$5:$AZ$204,3*($C$6-1)+3),VLOOKUP($F126,P_All!$BB$5:$BZ$204,3*($C$6-1)+3))) -> 26201 | I126: =IF($C$8=1,VLOOKUP($F126,P_All!$A$5:$Y$204,3*($C$6-1)+4),IF($C$8=2,VLOOKUP($F126,P_All!$AB$5:$AZ$204,3*($C$6-1)+4),VLOOKUP($F126,P_All!$BB$5:$BZ$204,3*($C$6-1)+4))) -> 33679 | J126: =VLOOKUP($F126,NA_All!$A$5:$G$204,IF(ISERROR($D$6),2,5)) -> 9110.4 | K126: =VLOOKUP($F126,NA_All!$A$5:$G$204,IF(ISERROR($D$6),3,6)) -> 9581.1 | L126: =VLOOKUP($F126,NA_All!$A$5:$G$204,IF(ISERROR($D$6),4,7)) -> 10077 | N126: 250000
F127: 105 | G127: =IF($C$8=1,VLOOKUP($F127,P_All!$A$5:$Y$204,3*($C$6-1)+2),IF($C$8=2,VLOOKUP($F127,P_All!$AB$5:$AZ$204,3*($C$6-1)+2),VLOOKUP($F127,P_All!$BB$5:$BZ$204,3*($C$6-1)+2))) -> 9913.7 | H127: =IF($C$8=1,VLOOKUP($F127,P_All!$A$5:$Y204,3*($C$6-1)+3),IF($C$8=2,VLOOKUP($F127,P_All!$AB$5:$AZ$204,3*($C$6-1)+3),VLOOKUP($F127,P_All!$BB$5:$BZ$204,3*($C$6-1)+3))) -> 26384 | I127: =IF($C$8=1,VLOOKUP($F127,P_All!$A$5:$Y$204,3*($C$6-1)+4),IF($C$8=2,VLOOKUP($F127,P_All!$AB$5:$AZ$204,3*($C$6-1)+4),VLOOKUP($F127,P_All!$BB$5:$BZ$204,3*($C$6-1)+4))) -> 33629 | J127: =VLOOKUP($F127,NA_All!$A$5:$G$204,IF(ISERROR($D$6),2,5)) -> 9110.4 | K127: =VLOOKUP($F127,NA_All!$A$5:$G$204,IF(ISERROR($D$6),3,6)) -> 9581.1 | L127: =VLOOKUP($F127,NA_All!$A$5:$G$204,IF(ISERROR($D$6),4,7)) -> 10077 | N127: 250000
F128: 106 | G128: =IF($C$8=1,VLOOKUP($F128,P_All!$A$5:$Y$204,3*($C$6-1)+2),IF($C$8=2,VLOOKUP($F128,P_All!$AB$5:$AZ$204,3*($C$6-1)+2),VLOOKUP($F128,P_All!$BB$5:$BZ$204,3*($C$6-1)+2))) -> 9937.2 | H128: =IF($C$8=1,VLOOKUP($F128,P_All!$A$5:$Y204,3*($C$6-1)+3),IF($C$8=2,VLOOKUP($F128,P_All!$AB$5:$AZ$204,3*($C$6-1)+3),VLOOKUP($F128,P_All!$BB$5:$BZ$204,3*($C$6-1)+3))) -> 26616 | I128: =IF($C$8=1,VLOOKUP($F128,P_All!$A$5:$Y$204,3*($C$6-1)+4),IF($C$8=2,VLOOKUP($F128,P_All!$AB$5:$AZ$204,3*($C$6-1)+4),VLOOKUP($F128,P_All!$BB$5:$BZ$204,3*($C$6-1)+4))) -> 33554 | J128: =VLOOKUP($F128,NA_All!$A$5:$G$204,IF(ISERROR($D$6),2,5)) -> 9110.4 | K128: =VLOOKUP($F128,NA_All!$A$5:$G$204,IF(ISERROR($D$6),3,6)) -> 9581.1 | L128: =VLOOKUP($F128,NA_All!$A$5:$G$204,IF(ISERROR($D$6),4,7)) -> 10077 | N128: 250000
F129: 107 | G129: =IF($C$8=1,VLOOKUP($F129,P_All!$A$5:$Y$204,3*($C$6-1)+2),IF($C$8=2,VLOOKUP($F129,P_All!$AB$5:$AZ$204,3*($C$6-1)+2),VLOOKUP($F129,P_All!$BB$5:$BZ$204,3*($C$6-1)+2))) -> 9998.6 | H129: =IF($C$8=1,VLOOKUP($F129,P_All!$A$5:$Y204,3*($C$6-1)+3),IF($C$8=2,VLOOKUP($F129,P_All!$AB$5:$AZ$204,3*($C$6-1)+3),VLOOKUP($F129,P_All!$BB$5:$BZ$204,3*($C$6-1)+3))) -> 26748 | I129: =IF($C$8=1,VLOOKUP($F129,P_All!$A$5:$Y$204,3*($C$6-1)+4),IF($C$8=2,VLOOKUP($F129,P_All!$AB$5:$AZ$204,3*($C$6-1)+4),VLOOKUP($F129,P_All!$BB$5:$BZ$204,3*($C$6-1)+4))) -> 33540 | J129: =VLOOKUP($F129,NA_All!$A$5:$G$204,IF(ISERROR($D$6),2,5)) -> 9110.4 | K129: =VLOOKUP($F129,NA_All!$A$5:$G$204,IF(ISERROR($D$6),3,6)) -> 9581.1 | L129: =VLOOKUP($F129,NA_All!$A$5:$G$204,IF(ISERROR($D$6),4,7)) -> 10077 | N129: 250000
F130: 108 | G130: =IF($C$8=1,VLOOKUP($F130,P_All!$A$5:$Y$204,3*($C$6-1)+2),IF($C$8=2,VLOOKUP($F130,P_All!$AB$5:$AZ$204,3*($C$6-1)+2),VLOOKUP($F130,P_All!$BB$5:$BZ$204,3*($C$6-1)+2))) -> 10048 | H130: =IF($C$8=1,VLOOKUP($F130,P_All!$A$5:$Y204,3*($C$6-1)+3),IF($C$8=2,VLOOKUP($F130,P_All!$AB$5:$AZ$204,3*($C$6-1)+3),VLOOKUP($F130,P_All!$BB$5:$BZ$204,3*($C$6-1)+3))) -> 26881 | I130: =IF($C$8=1,VLOOKUP($F130,P_All!$A$5:$Y$204,3*($C$6-1)+4),IF($C$8=2,VLOOKUP($F130,P_All!$AB$5:$AZ$204,3*($C$6-1)+4),VLOOKUP($F130,P_All!$BB$5:$BZ$204,3*($C$6-1)+4))) -> 33519 | J130: =VLOOKUP($F130,NA_All!$A$5:$G$204,IF(ISERROR($D$6),2,5)) -> 9110.4 | K130: =VLOOKUP($F130,NA_All!$A$5:$G$204,IF(ISERROR($D$6),3,6)) -> 9581.1 | L130: =VLOOKUP($F130,NA_All!$A$5:$G$204,IF(ISERROR($D$6),4,7)) -> 10077 | N130: 250000
F131: 109 | G131: =IF($C$8=1,VLOOKUP($F131,P_All!$A$5:$Y$204,3*($C$6-1)+2),IF($C$8=2,VLOOKUP($F131,P_All!$AB$5:$AZ$204,3*($C$6-1)+2),VLOOKUP($F131,P_All!$BB$5:$BZ$204,3*($C$6-1)+2))) -> 10114 | H131: =IF($C$8=1,VLOOKUP($F131,P_All!$A$5:$Y204,3*($C$6-1)+3),IF($C$8=2,VLOOKUP($F131,P_All!$AB$5:$AZ$204,3*($C$6-1)+3),VLOOKUP($F131,P_All!$BB$5:$BZ$204,3*($C$6-1)+3))) -> 26940 | I131: =IF($C$8=1,VLOOKUP($F131,P_All!$A$5:$Y$204,3*($C$6-1)+4),IF($C$8=2,VLOOKUP($F131,P_All!$AB$5:$AZ$204,3*($C$6-1)+4),VLOOKUP($F131,P_All!$BB$5:$BZ$204,3*($C$6-1)+4))) -> 33494 | J131: =VLOOKUP($F131,NA_All!$A$5:$G$204,IF(ISERROR($D$6),2,5)) -> 9110.4 | K131: =VLOOKUP($F131,NA_All!$A$5:$G$204,IF(ISERROR($D$6),3,6)) -> 9581.1 | L131: =VLOOKUP($F131,NA_All!$A$5:$G$204,IF(ISERROR($D$6),4,7)) -> 10077 | N131: 250000
F132: 110 | G132: =IF($C$8=1,VLOOKUP($F132,P_All!$A$5:$Y$204,3*($C$6-1)+2),IF($C$8=2,VLOOKUP($F132,P_All!$AB$5:$AZ$204,3*($C$6-1)+2),VLOOKUP($F132,P_All!$BB$5:$BZ$204,3*($C$6-1)+2))) -> 10185 | H132: =IF($C$8=1,VLOOKUP($F132,P_All!$A$5:$Y204,3*($C$6-1)+3),IF($C$8=2,VLOOKUP($F132,P_All!$AB$5:$AZ$204,3*($C$6-1)+3),VLOOKUP($F132,P_All!$BB$5:$BZ$204,3*($C$6-1)+3))) -> 27087 | I132: =IF($C$8=1,VLOOKUP($F132,P_All!$A$5:$Y$204,3*($C$6-1)+4),IF($C$8=2,VLOOKUP($F132,P_All!$AB$5:$AZ$204,3*($C$6-1)+4),VLOOKUP($F132,P_All!$BB$5:$BZ$204,3*($C$6-1)+4))) -> 33679 | J132: =VLOOKUP($F132,NA_All!$A$5:$G$204,IF(ISERROR($D$6),2,5)) -> 9110.4 | K132: =VLOOKUP($F132,NA_All!$A$5:$G$204,IF(ISERROR($D$6),3,6)) -> 9581.1 | L132: =VLOOKUP($F132,NA_All!$A$5:$G$204,IF(ISERROR($D$6),4,7)) -> 10077 | N132: 250000
F133: 111 | G133: =IF($C$8=1,VLOOKUP($F133,P_All!$A$5:$Y$204,3*($C$6-1)+2),IF($C$8=2,VLOOKUP($F133,P_All!$AB$5:$AZ$204,3*($C$6-1)+2),VLOOKUP($F133,P_All!$BB$5:$BZ$204,3*($C$6-1)+2))) -> 10289 | H133: =IF($C$8=1,VLOOKUP($F133,P_All!$A$5:$Y204,3*($C$6-1)+3),IF($C$8=2,VLOOKUP($F133,P_All!$AB$5:$AZ$204,3*($C$6-1)+3),VLOOKUP($F133,P_All!$BB$5:$BZ$204,3*($C$6-1)+3))) -> 27218 | I133: =IF($C$8=1,VLOOKUP($F133,P_All!$A$5:$Y$204,3*($C$6-1)+4),IF($C$8=2,VLOOKUP($F133,P_All!$AB$5:$AZ$204,3*($C$6-1)+4),VLOOKUP($F133,P_All!$BB$5:$BZ$204,3*($C$6-1)+4))) -> 33734 | J133: =VLOOKUP($F133,NA_All!$A$5:$G$204,IF(ISERROR($D$6),2,5)) -> 9110.4 | K133: =VLOOKUP($F133,NA_All!$A$5:$G$204,IF(ISERROR($D$6),3,6)) -> 9581.1 | L133: =VLOOKUP($F133,NA_All!$A$5:$G$204,IF(ISERROR($D$6),4,7)) -> 10077 | N133: 250000
F134: 112 | G134: =IF($C$8=1,VLOOKUP($F134,P_All!$A$5:$Y$204,3*($C$6-1)+2),IF($C$8=2,VLOOKUP($F134,P_All!$AB$5:$AZ$204,3*($C$6-1)+2),VLOOKUP($F134,P_All!$BB$5:$BZ$204,3*($C$6-1)+2))) -> 10382 | H134: =IF($C$8=1,VLOOKUP($F134,P_All!$A$5:$Y204,3*($C$6-1)+3),IF($C$8=2,VLOOKUP($F134,P_All!$AB$5:$AZ$204,3*($C$6-1)+3),VLOOKUP($F134,P_All!$BB$5:$BZ$204,3*($C$6-1)+3))) -> 27301 | I134: =IF($C$8=1,VLOOKUP($F134,P_All!$A$5:$Y$204,3*($C$6-1)+4),IF($C$8=2,VLOOKUP($F134,P_All!$AB$5:$AZ$204,3*($C$6-1)+4),VLOOKUP($F134,P_All!$BB$5:$BZ$204,3*($C$6-1)+4))) -> 33799 | J134: =VLOOKUP($F134,NA_All!$A$5:$G$204,IF(ISERROR($D$6),2,5)) -> 9110.4 | K134: =VLOOKUP($F134,NA_All!$A$5:$G$204,IF(ISERROR($D$6),3,6)) -> 9581.1 | L134: =VLOOKUP($F134,NA_All!$A$5:$G$204,IF(ISERROR($D$6),4,7)) -> 10077 | N134: 250000
F135: 113 | G135: =IF($C$8=1,VLOOKUP($F135,P_All!$A$5:$Y$204,3*($C$6-1)+2),IF($C$8=2,VLOOKUP($F135,P_All!$AB$5:$AZ$204,3*($C$6-1)+2),VLOOKUP($F135,P_All!$BB$5:$BZ$204,3*($C$6-1)+2))) -> 10474 | H135: =IF($C$8=1,VLOOKUP($F135,P_All!$A$5:$Y204,3*($C$6-1)+3),IF($C$8=2,VLOOKUP($F135,P_All!$AB$5:$AZ$204,3*($C$6-1)+3),VLOOKUP($F135,P_All!$BB$5:$BZ$204,3*($C$6-1)+3))) -> 27326 | I135: =IF($C$8=1,VLOOKUP($F135,P_All!$A$5:$Y$204,3*($C$6-1)+4),IF($C$8=2,VLOOKUP($F135,P_All!$AB$5:$AZ$204,3*($C$6-1)+4),VLOOKUP($F135,P_All!$BB$5:$BZ$204,3*($C$6-1)+4))) -> 33757 | J135: =VLOOKUP($F135,NA_All!$A$5:$G$204,IF(ISERROR($D$6),2,5)) -> 9110.4 | K135: =VLOOKUP($F135,NA_All!$A$5:$G$204,IF(ISERROR($D$6),3,6)) -> 9581.1 | L135: =VLOOKUP($F135,NA_All!$A$5:$G$204,IF(ISERROR($D$6),4,7)) -> 10077 | N135: 250000
F136: 114 | G136: =IF($C$8=1,VLOOKUP($F136,P_All!$A$5:$Y$204,3*($C$6-1)+2),IF($C$8=2,VLOOKUP($F136,P_All!$AB$5:$AZ$204,3*($C$6-1)+2),VLOOKUP($F136,P_All!$BB$5:$BZ$204,3*($C$6-1)+2))) -> 10594 | H136: =IF($C$8=1,VLOOKUP($F136,P_All!$A$5:$Y204,3*($C$6-1)+3),IF($C$8=2,VLOOKUP($F136,P_All!$AB$5:$AZ$204,3*($C$6-1)+3),VLOOKUP($F136,P_All!$BB$5:$BZ$204,3*($C$6-1)+3))) -> 27304 | I136: =IF($C$8=1,VLOOKUP($F136,P_All!$A$5:$Y$204,3*($C$6-1)+4),IF($C$8=2,VLOOKUP($F136,P_All!$AB$5:$AZ$204,3*($C$6-1)+4),VLOOKUP($F136,P_All!$BB$5:$BZ$204,3*($C$6-1)+4))) -> 33641 | J136: =VLOOKUP($F136,NA_All!$A$5:$G$204,IF(ISERROR($D$6),2,5)) -> 9110.4 | K136: =VLOOKUP($F136,NA_All!$A$5:$G$204,IF(ISERROR($D$6),3,6)) -> 9581.1 | L136: =VLOOKUP($F136,NA_All!$A$5:$G$204,IF(ISERROR($D$6),4,7)) -> 10077 | N136: 250000
F137: 115 | G137: =IF($C$8=1,VLOOKUP($F137,P_All!$A$5:$Y$204,3*($C$6-1)+2),IF($C$8=2,VLOOKUP($F137,P_All!$AB$5:$AZ$204,3*($C$6-1)+2),VLOOKUP($F137,P_All!$BB$5:$BZ$204,3*($C$6-1)+2))) -> 10723 | H137: =IF($C$8=1,VLOOKUP($F137,P_All!$A$5:$Y204,3*($C$6-1)+3),IF($C$8=2,VLOOKUP($F137,P_All!$AB$5:$AZ$204,3*($C$6-1)+3),VLOOKUP($F137,P_All!$BB$5:$BZ$204,3*($C$6-1)+3))) -> 27306 | I137: =IF($C$8=1,VLOOKUP($F137,P_All!$A$5:$Y$204,3*($C$6-1)+4),IF($C$8=2,VLOOKUP($F137,P_All!$AB$5:$AZ$204,3*($C$6-1)+4),VLOOKUP($F137,P_All!$BB$5:$BZ$204,3*($C$6-1)+4))) -> 33517 | J137: =VLOOKUP($F137,NA_All!$A$5:$G$204,IF(ISERROR($D$6),2,5)) -> 9110.4 | K137: =VLOOKUP($F137,NA_All!$A$5:$G$204,IF(ISERROR($D$6),3,6)) -> 9581.1 | L137: =VLOOKUP($F137,NA_All!$A$5:$G$204,IF(ISERROR($D$6),4,7)) -> 10077 | N137: 250000
F138: 116 | G138: =IF($C$8=1,VLOOKUP($F138,P_All!$A$5:$Y$204,3*($C$6-1)+2),IF($C$8=2,VLOOKUP($F138,P_All!$AB$5:$AZ$204,3*($C$6-1)+2),VLOOKUP($F138,P_All!$BB$5:$BZ$204,3*($C$6-1)+2))) -> 10871 | H138: =IF($C$8=1,VLOOKUP($F138,P_All!$A$5:$Y204,3*($C$6-1)+3),IF($C$8=2,VLOOKUP($F138,P_All!$AB$5:$AZ$204,3*($C$6-1)+3),VLOOKUP($F138,P_All!$BB$5:$BZ$204,3*($C$6-1)+3))) -> 27382 | I138: =IF($C$8=1,VLOOKUP($F138,P_All!$A$5:$Y$204,3*($C$6-1)+4),IF($C$8=2,VLOOKUP($F138,P_All!$AB$5:$AZ$204,3*($C$6-1)+4),VLOOKUP($F138,P_All!$BB$5:$BZ$204,3*($C$6-1)+4))) -> 33413 | J138: =VLOOKUP($F138,NA_All!$A$5:$G$204,IF(ISERROR($D$6),2,5)) -> 9110.4 | K138: =VLOOKUP($F138,NA_All!$A$5:$G$204,IF(ISERROR($D$6),3,6)) -> 9581.1 | L138: =VLOOKUP($F138,NA_All!$A$5:$G$204,IF(ISERROR($D$6),4,7)) -> 10077 | N138: 250000
F139: 117 | G139: =IF($C$8=1,VLOOKUP($F139,P_All!$A$5:$Y$204,3*($C$6-1)+2),IF($C$8=2,VLOOKUP($F139,P_All!$AB$5:$AZ$204,3*($C$6-1)+2),VLOOKUP($F139,P_All!$BB$5:$BZ$204,3*($C$6-1)+2))) -> 11068 | H139: =IF($C$8=1,VLOOKUP($F139,P_All!$A$5:$Y204,3*($C$6-1)+3),IF($C$8=2,VLOOKUP($F139,P_All!$AB$5:$AZ$204,3*($C$6-1)+3),VLOOKUP($F139,P_All!$BB$5:$BZ$204,3*($C$6-1)+3))) -> 27394 | I139: =IF($C$8=1,VLOOKUP($F139,P_All!$A$5:$Y$204,3*($C$6-1)+4),IF($C$8=2,VLOOKUP($F139,P_All!$AB$5:$AZ$204,3*($C$6-1)+4),VLOOKUP($F139,P_All!$BB$5:$BZ$204,3*($C$6-1)+4))) -> 33418 | J139: =VLOOKUP($F139,NA_All!$A$5:$G$204,IF(ISERROR($D$6),2,5)) -> 9110.4 | K139: =VLOOKUP($F139,NA_All!$A$5:$G$204,IF(ISERROR($D$6),3,6)) -> 9581.1 | L139: =VLOOKUP($F139,NA_All!$A$5:$G$204,IF(ISERROR($D$6),4,7)) -> 10077 | N139: 250000
F140: 118 | G140: =IF($C$8=1,VLOOKUP($F140,P_All!$A$5:$Y$204,3*($C$6-1)+2),IF($C$8=2,VLOOKUP($F140,P_All!$AB$5:$AZ$204,3*($C$6-1)+2),VLOOKUP($F140,P_All!$BB$5:$BZ$204,3*($C$6-1)+2))) -> 11292 | H140: =IF($C$8=1,VLOOKUP($F140,P_All!$A$5:$Y204,3*($C$6-1)+3),IF($C$8=2,VLOOKUP($F140,P_All!$AB$5:$AZ$204,3*($C$6-1)+3),VLOOKUP($F140,P_All!$BB$5:$BZ$204,3*($C$6-1)+3))) -> 27352 | I140: =IF($C$8=1,VLOOKUP($F140,P_All!$A$5:$Y$204,3*($C$6-1)+4),IF($C$8=2,VLOOKUP($F140,P_All!$AB$5:$AZ$204,3*($C$6-1)+4),VLOOKUP($F140,P_All!$BB$5:$BZ$204,3*($C$6-1)+4))) -> 33439 | J140: =VLOOKUP($F140,NA_All!$A$5:$G$204,IF(ISERROR($D$6),2,5)) -> 9110.4 | K140: =VLOOKUP($F140,NA_All!$A$5:$G$204,IF(ISERROR($D$6),3,6)) -> 9581.1 | L140: =VLOOKUP($F140,NA_All!$A$5:$G$204,IF(ISERROR($D$6),4,7)) -> 10077 | N140: 250000
F141: 119 | G141: =IF($C$8=1,VLOOKUP($F141,P_All!$A$5:$Y$204,3*($C$6-1)+2),IF($C$8=2,VLOOKUP($F141,P_All!$AB$5:$AZ$204,3*($C$6-1)+2),VLOOKUP($F141,P_All!$BB$5:$BZ$204,3*($C$6-1)+2))) -> 11531 | H141: =IF($C$8=1,VLOOKUP($F141,P_All!$A$5:$Y204,3*($C$6-1)+3),IF($C$8=2,VLOOKUP($F141,P_All!$AB$5:$AZ$204,3*($C$6-1)+3),VLOOKUP($F141,P_All!$BB$5:$BZ$204,3*($C$6-1)+3))) -> 27406 | I141: =IF($C$8=1,VLOOKUP($F141,P_All!$A$5:$Y$204,3*($C$6-1)+4),IF($C$8=2,VLOOKUP($F141,P_All!$AB$5:$AZ$204,3*($C$6-1)+4),VLOOKUP($F141,P_All!$BB$5:$BZ$204,3*($C$6-1)+4))) -> 33455 | J141: =VLOOKUP($F141,NA_All!$A$5:$G$204,IF(ISERROR($D$6),2,5)) -> 9110.4 | K141: =VLOOKUP($F141,NA_All!$A$5:$G$204,IF(ISERROR($D$6),3,6)) -> 9581.1 | L141: =VLOOKUP($F141,NA_All!$A$5:$G$204,IF(ISERROR($D$6),4,7)) -> 10077 | N141: 250000
F142: 120 | G142: =IF($C$8=1,VLOOKUP($F142,P_All!$A$5:$Y$204,3*($C$6-1)+2),IF($C$8=2,VLOOKUP($F142,P_All!$AB$5:$AZ$204,3*($C$6-1)+2),VLOOKUP($F142,P_All!$BB$5:$BZ$204,3*($C$6-1)+2))) -> 11787 | H142: =IF($C$8=1,VLOOKUP($F142,P_All!$A$5:$Y204,3*($C$6-1)+3),IF($C$8=2,VLOOKUP($F142,P_All!$AB$5:$AZ$204,3*($C$6-1)+3),VLOOKUP($F142,P_All!$BB$5:$BZ$204,3*($C$6-1)+3))) -> 27371 | I142: =IF($C$8=1,VLOOKUP($F142,P_All!$A$5:$Y$204,3*($C$6-1)+4),IF($C$8=2,VLOOKUP($F142,P_All!$AB$5:$AZ$204,3*($C$6-1)+4),VLOOKUP($F142,P_All!$BB$5:$BZ$204,3*($C$6-1)+4))) -> 33434 | J142: =VLOOKUP($F142,NA_All!$A$5:$G$204,IF(ISERROR($D$6),2,5)) -> 9110.4 | K142: =VLOOKUP($F142,NA_All!$A$5:$G$204,IF(ISERROR($D$6),3,6)) -> 9581.1 | L142: =VLOOKUP($F142,NA_All!$A$5:$G$204,IF(ISERROR($D$6),4,7)) -> 10077 | N142: 250000
F143: 121 | G143: =IF($C$8=1,VLOOKUP($F143,P_All!$A$5:$Y$204,3*($C$6-1)+2),IF($C$8=2,VLOOKUP($F143,P_All!$AB$5:$AZ$204,3*($C$6-1)+2),VLOOKUP($F143,P_All!$BB$5:$BZ$204,3*($C$6-1)+2))) -> 12077 | H143: =IF($C$8=1,VLOOKUP($F143,P_All!$A$5:$Y204,3*($C$6-1)+3),IF($C$8=2,VLOOKUP($F143,P_All!$AB$5:$AZ$204,3*($C$6-1)+3),VLOOKUP($F143,P_All!$BB$5:$BZ$204,3*($C$6-1)+3))) -> 27323 | I143: =IF($C$8=1,VLOOKUP($F143,P_All!$A$5:$Y$204,3*($C$6-1)+4),IF($C$8=2,VLOOKUP($F143,P_All!$AB$5:$AZ$204,3*($C$6-1)+4),VLOOKUP($F143,P_All!$BB$5:$BZ$204,3*($C$6-1)+4))) -> 33416 | J143: =VLOOKUP($F143,NA_All!$A$5:$G$204,IF(ISERROR($D$6),2,5)) -> 9110.4 | K143: =VLOOKUP($F143,NA_All!$A$5:$G$204,IF(ISERROR($D$6),3,6)) -> 9581.1 | L143: =VLOOKUP($F143,NA_All!$A$5:$G$204,IF(ISERROR($D$6),4,7)) -> 10077 | N143: 250000
F144: 122 | G144: =IF($C$8=1,VLOOKUP($F144,P_All!$A$5:$Y$204,3*($C$6-1)+2),IF($C$8=2,VLOOKUP($F144,P_All!$AB$5:$AZ$204,3*($C$6-1)+2),VLOOKUP($F144,P_All!$BB$5:$BZ$204,3*($C$6-1)+2))) -> 12384 | H144: =IF($C$8=1,VLOOKUP($F144,P_All!$A$5:$Y204,3*($C$6-1)+3),IF($C$8=2,VLOOKUP($F144,P_All!$AB$5:$AZ$204,3*($C$6-1)+3),VLOOKUP($F144,P_All!$BB$5:$BZ$204,3*($C$6-1)+3))) -> 27290 | I144: =IF($C$8=1,VLOOKUP($F144,P_All!$A$5:$Y$204,3*($C$6-1)+4),IF($C$8=2,VLOOKUP($F144,P_All!$AB$5:$AZ$204,3*($C$6-1)+4),VLOOKUP($F144,P_All!$BB$5:$BZ$204,3*($C$6-1)+4))) -> 33336 | J144: =VLOOKUP($F144,NA_All!$A$5:$G$204,IF(ISERROR($D$6),2,5)) -> 9110.4 | K144: =VLOOKUP($F144,NA_All!$A$5:$G$204,IF(ISERROR($D$6),3,6)) -> 9581.1 | L144: =VLOOKUP($F144,NA_All!$A$5:$G$204,IF(ISERROR($D$6),4,7)) -> 10077 | N144: 250000
F145: 123 | G145: =IF($C$8=1,VLOOKUP($F145,P_All!$A$5:$Y$204,3*($C$6-1)+2),IF($C$8=2,VLOOKUP($F145,P_All!$AB$5:$AZ$204,3*($C$6-1)+2),VLOOKUP($F145,P_All!$BB$5:$BZ$204,3*($C$6-1)+2))) -> 12703 | H145: =IF($C$8=1,VLOOKUP($F145,P_All!$A$5:$Y204,3*($C$6-1)+3),IF($C$8=2,VLOOKUP($F145,P_All!$AB$5:$AZ$204,3*($C$6-1)+3),VLOOKUP($F145,P_All!$BB$5:$BZ$204,3*($C$6-1)+3))) -> 27245 | I145: =IF($C$8=1,VLOOKUP($F145,P_All!$A$5:$Y$204,3*($C$6-1)+4),IF($C$8=2,VLOOKUP($F145,P_All!$AB$5:$AZ$204,3*($C$6-1)+4),VLOOKUP($F145,P_All!$BB$5:$BZ$204,3*($C$6-1)+4))) -> 33387 | J145: =VLOOKUP($F145,NA_All!$A$5:$G$204,IF(ISERROR($D$6),2,5)) -> 9110.4 | K145: =VLOOKUP($F145,NA_All!$A$5:$G$204,IF(ISERROR($D$6),3,6)) -> 9581.1 | L145: =VLOOKUP($F145,NA_All!$A$5:$G$204,IF(ISERROR($D$6),4,7)) -> 10077 | N145: 250000
F146: 124 | G146: =IF($C$8=1,VLOOKUP($F146,P_All!$A$5:$Y$204,3*($C$6-1)+2),IF($C$8=2,VLOOKUP($F146,P_All!$AB$5:$AZ$204,3*($C$6-1)+2),VLOOKUP($F146,P_All!$BB$5:$BZ$204,3*($C$6-1)+2))) -> 13047 | H146: =IF($C$8=1,VLOOKUP($F146,P_All!$A$5:$Y204,3*($C$6-1)+3),IF($C$8=2,VLOOKUP($F146,P_All!$AB$5:$AZ$204,3*($C$6-1)+3),VLOOKUP($F146,P_All!$BB$5:$BZ$204,3*($C$6-1)+3))) -> 27223 | I146: =IF($C$8=1,VLOOKUP($F146,P_All!$A$5:$Y$204,3*($C$6-1)+4),IF($C$8=2,VLOOKUP($F146,P_All!$AB$5:$AZ$204,3*($C$6-1)+4),VLOOKUP($F146,P_All!$BB$5:$BZ$204,3*($C$6-1)+4))) -> 33303 | J146: =VLOOKUP($F146,NA_All!$A$5:$G$204,IF(ISERROR($D$6),2,5)) -> 9110.4 | K146: =VLOOKUP($F146,NA_All!$A$5:$G$204,IF(ISERROR($D$6),3,6)) -> 9581.1 | L146: =VLOOKUP($F146,NA_All!$A$5:$G$204,IF(ISERROR($D$6),4,7)) -> 10077 | N146: 250000
F147: 125 | G147: =IF($C$8=1,VLOOKUP($F147,P_All!$A$5:$Y$204,3*($C$6-1)+2),IF($C$8=2,VLOOKUP($F147,P_All!$AB$5:$AZ$204,3*($C$6-1)+2),VLOOKUP($F147,P_All!$BB$5:$BZ$204,3*($C$6-1)+2))) -> 13417 | H147: =IF($C$8=1,VLOOKUP($F147,P_All!$A$5:$Y204,3*($C$6-1)+3),IF($C$8=2,VLOOKUP($F147,P_All!$AB$5:$AZ$204,3*($C$6-1)+3),VLOOKUP($F147,P_All!$BB$5:$BZ$204,3*($C$6-1)+3))) -> 27105 | I147: =IF($C$8=1,VLOOKUP($F147,P_All!$A$5:$Y$204,3*($C$6-1)+4),IF($C$8=2,VLOOKUP($F147,P_All!$AB$5:$AZ$204,3*($C$6-1)+4),VLOOKUP($F147,P_All!$BB$5:$BZ$204,3*($C$6-1)+4))) -> 33230 | J147: =VLOOKUP($F147,NA_All!$A$5:$G$204,IF(ISERROR($D$6),2,5)) -> 9110.4 | K147: =VLOOKUP($F147,NA_All!$A$5:$G$204,IF(ISERROR($D$6),3,6)) -> 9581.1 | L147: =VLOOKUP($F147,NA_All!$A$5:$G$204,IF(ISERROR($D$6),4,7)) -> 10077 | N147: 250000
F148: 126 | G148: =IF($C$8=1,VLOOKUP($F148,P_All!$A$5:$Y$204,3*($C$6-1)+2),IF($C$8=2,VLOOKUP($F148,P_All!$AB$5:$AZ$204,3*($C$6-1)+2),VLOOKUP($F148,P_All!$BB$5:$BZ$204,3*($C$6-1)+2))) -> 13832 | H148: =IF($C$8=1,VLOOKUP($F148,P_All!$A$5:$Y204,3*($C$6-1)+3),IF($C$8=2,VLOOKUP($F148,P_All!$AB$5:$AZ$204,3*($C$6-1)+3),VLOOKUP($F148,P_All!$BB$5:$BZ$204,3*($C$6-1)+3))) -> 27048 | I148: =IF($C$8=1,VLOOKUP($F148,P_All!$A$5:$Y$204,3*($C$6-1)+4),IF($C$8=2,VLOOKUP($F148,P_All!$AB$5:$AZ$204,3*($C$6-1)+4),VLOOKUP($F148,P_All!$BB$5:$BZ$204,3*($C$6-1)+4))) -> 33289 | J148: =VLOOKUP($F148,NA_All!$A$5:$G$204,IF(ISERROR($D$6),2,5)) -> 9110.4 | K148: =VLOOKUP($F148,NA_All!$A$5:$G$204,IF(ISERROR($D$6),3,6)) -> 9581.1 | L148: =VLOOKUP($F148,NA_All!$A$5:$G$204,IF(ISERROR($D$6),4,7)) -> 10077 | N148: 250000
F149: 127 | G149: =IF($C$8=1,VLOOKUP($F149,P_All!$A$5:$Y$204,3*($C$6-1)+2),IF($C$8=2,VLOOKUP($F149,P_All!$AB$5:$AZ$204,3*($C$6-1)+2),VLOOKUP($F149,P_All!$BB$5:$BZ$204,3*($C$6-1)+2))) -> 14238 | H149: =IF($C$8=1,VLOOKUP($F149,P_All!$A$5:$Y204,3*($C$6-1)+3),IF($C$8=2,VLOOKUP($F149,P_All!$AB$5:$AZ$204,3*($C$6-1)+3),VLOOKUP($F149,P_All!$BB$5:$BZ$204,3*($C$6-1)+3))) -> 26998 | I149: =IF($C$8=1,VLOOKUP($F149,P_All!$A$5:$Y$204,3*($C$6-1)+4),IF($C$8=2,VLOOKUP($F149,P_All!$AB$5:$AZ$204,3*($C$6-1)+4),VLOOKUP($F149,P_All!$BB$5:$BZ$204,3*($C$6-1)+4))) -> 33272 | J149: =VLOOKUP($F149,NA_All!$A$5:$G$204,IF(ISERROR($D$6),2,5)) -> 9110.4 | K149: =VLOOKUP($F149,NA_All!$A$5:$G$204,IF(ISERROR($D$6),3,6)) -> 9581.1 | L149: =VLOOKUP($F149,NA_All!$A$5:$G$204,IF(ISERROR($D$6),4,7)) -> 10077 | N149: 250000
F150: 128 | G150: =IF($C$8=1,VLOOKUP($F150,P_All!$A$5:$Y$204,3*($C$6-1)+2),IF($C$8=2,VLOOKUP($F150,P_All!$AB$5:$AZ$204,3*($C$6-1)+2),VLOOKUP($F150,P_All!$BB$5:$BZ$204,3*($C$6-1)+2))) -> 14673 | H150: =IF($C$8=1,VLOOKUP($F150,P_All!$A$5:$Y204,3*($C$6-1)+3),IF($C$8=2,VLOOKUP($F150,P_All!$AB$5:$AZ$204,3*($C$6-1)+3),VLOOKUP($F150,P_All!$BB$5:$BZ$204,3*($C$6-1)+3))) -> 26961 | I150: =IF($C$8=1,VLOOKUP($F150,P_All!$A$5:$Y$204,3*($C$6-1)+4),IF($C$8=2,VLOOKUP($F150,P_All!$AB$5:$AZ$204,3*($C$6-1)+4),VLOOKUP($F150,P_All!$BB$5:$BZ$204,3*($C$6-1)+4))) -> 33125 | J150: =VLOOKUP($F150,NA_All!$A$5:$G$204,IF(ISERROR($D$6),2,5)) -> 9110.4 | K150: =VLOOKUP($F150,NA_All!$A$5:$G$204,IF(ISERROR($D$6),3,6)) -> 9581.1 | L150: =VLOOKUP($F150,NA_All!$A$5:$G$204,IF(ISERROR($D$6),4,7)) -> 10077 | N150: 250000
F151: 129 | G151: =IF($C$8=1,VLOOKUP($F151,P_All!$A$5:$Y$204,3*($C$6-1)+2),IF($C$8=2,VLOOKUP($F151,P_All!$AB$5:$AZ$204,3*($C$6-1)+2),VLOOKUP($F151,P_All!$BB$5:$BZ$204,3*($C$6-1)+2))) -> 15139 | H151: =IF($C$8=1,VLOOKUP($F151,P_All!$A$5:$Y204,3*($C$6-1)+3),IF($C$8=2,VLOOKUP($F151,P_All!$AB$5:$AZ$204,3*($C$6-1)+3),VLOOKUP($F151,P_All!$BB$5:$BZ$204,3*($C$6-1)+3))) -> 26959 | I151: =IF($C$8=1,VLOOKUP($F151,P_All!$A$5:$Y$204,3*($C$6-1)+4),IF($C$8=2,VLOOKUP($F151,P_All!$AB$5:$AZ$204,3*($C$6-1)+4),VLOOKUP($F151,P_All!$BB$5:$BZ$204,3*($C$6-1)+4))) -> 33178 | J151: =VLOOKUP($F151,NA_All!$A$5:$G$204,IF(ISERROR($D$6),2,5)) -> 9110.4 | K151: =VLOOKUP($F151,NA_All!$A$5:$G$204,IF(ISERROR($D$6),3,6)) -> 9581.1 | L151: =VLOOKUP($F151,NA_All!$A$5:$G$204,IF(ISERROR($D$6),4,7)) -> 10077 | N151: 250000
F152: 130 | G152: =IF($C$8=1,VLOOKUP($F152,P_All!$A$5:$Y$204,3*($C$6-1)+2),IF($C$8=2,VLOOKUP($F152,P_All!$AB$5:$AZ$204,3*($C$6-1)+2),VLOOKUP($F152,P_All!$BB$5:$BZ$204,3*($C$6-1)+2))) -> 15601 | H152: =IF($C$8=1,VLOOKUP($F152,P_All!$A$5:$Y204,3*($C$6-1)+3),IF($C$8=2,VLOOKUP($F152,P_All!$AB$5:$AZ$204,3*($C$6-1)+3),VLOOKUP($F152,P_All!$BB$5:$BZ$204,3*($C$6-1)+3))) -> 26904 | I152: =IF($C$8=1,VLOOKUP($F152,P_All!$A$5:$Y$204,3*($C$6-1)+4),IF($C$8=2,VLOOKUP($F152,P_All!$AB$5:$AZ$204,3*($C$6-1)+4),VLOOKUP($F152,P_All!$BB$5:$BZ$204,3*($C$6-1)+4))) -> 33179 | J152: =VLOOKUP($F152,NA_All!$A$5:$G$204,IF(ISERROR($D$6),2,5)) -> 9110.4 | K152: =VLOOKUP($F152,NA_All!$A$5:$G$204,IF(ISERROR($D$6),3,6)) -> 9581.1 | L152: =VLOOKUP($F152,NA_All!$A$5:$G$204,IF(ISERROR($D$6),4,7)) -> 10077 | M152: =IF(OR($B$4=$A$29,$B$4=$A$40,$B$4=$A$47),VLOOKUP($B$4,$A$58:$C$60,IF(ISNUMBER(FIND("bedrock",$B$6)),3,2)),VLOOKUP($B$4,$A$23:$C$49,2)) ->  | N152: =VLOOKUP($B$4,$A$23:$C$49,3) -> 250000
F153: 131 | G153: =IF($C$8=1,VLOOKUP($F153,P_All!$A$5:$Y$204,3*($C$6-1)+2),IF($C$8=2,VLOOKUP($F153,P_All!$AB$5:$AZ$204,3*($C$6-1)+2),VLOOKUP($F153,P_All!$BB$5:$BZ$204,3*($C$6-1)+2))) -> 16077 | H153: =IF($C$8=1,VLOOKUP($F153,P_All!$A$5:$Y204,3*($C$6-1)+3),IF($C$8=2,VLOOKUP($F153,P_All!$AB$5:$AZ$204,3*($C$6-1)+3),VLOOKUP($F153,P_All!$BB$5:$BZ$204,3*($C$6-1)+3))) -> 27045 | I153: =IF($C$8=1,VLOOKUP($F153,P_All!$A$5:$Y$204,3*($C$6-1)+4),IF($C$8=2,VLOOKUP($F153,P_All!$AB$5:$AZ$204,3*($C$6-1)+4),VLOOKUP($F153,P_All!$BB$5:$BZ$204,3*($C$6-1)+4))) -> 33067 | J153: =VLOOKUP($F153,NA_All!$A$5:$G$204,IF(ISERROR($D$6),2,5)) -> 9110.4 | K153: =VLOOKUP($F153,NA_All!$A$5:$G$204,IF(ISERROR($D$6),3,6)) -> 9581.1 | L153: =VLOOKUP($F153,NA_All!$A$5:$G$204,IF(ISERROR($D$6),4,7)) -> 10077 | N153: 250000
F154: 132 | G154: =IF($C$8=1,VLOOKUP($F154,P_All!$A$5:$Y$204,3*($C$6-1)+2),IF($C$8=2,VLOOKUP($F154,P_All!$AB$5:$AZ$204,3*($C$6-1)+2),VLOOKUP($F154,P_All!$BB$5:$BZ$204,3*($C$6-1)+2))) -> 16590 | H154: =IF($C$8=1,VLOOKUP($F154,P_All!$A$5:$Y204,3*($C$6-1)+3),IF($C$8=2,VLOOKUP($F154,P_All!$AB$5:$AZ$204,3*($C$6-1)+3),VLOOKUP($F154,P_All!$BB$5:$BZ$204,3*($C$6-1)+3))) -> 26979 | I154: =IF($C$8=1,VLOOKUP($F154,P_All!$A$5:$Y$204,3*($C$6-1)+4),IF($C$8=2,VLOOKUP($F154,P_All!$AB$5:$AZ$204,3*($C$6-1)+4),VLOOKUP($F154,P_All!$BB$5:$BZ$204,3*($C$6-1)+4))) -> 32916 | J154: =VLOOKUP($F154,NA_All!$A$5:$G$204,IF(ISERROR($D$6),2,5)) -> 9110.4 | K154: =VLOOKUP($F154,NA_All!$A$5:$G$204,IF(ISERROR($D$6),3,6)) -> 9581.1 | L154: =VLOOKUP($F154,NA_All!$A$5:$G$204,IF(ISERROR($D$6),4,7)) -> 10077 | N154: 250000
F155: 133 | G155: =IF($C$8=1,VLOOKUP($F155,P_All!$A$5:$Y$204,3*($C$6-1)+2),IF($C$8=2,VLOOKUP($F155,P_All!$AB$5:$AZ$204,3*($C$6-1)+2),VLOOKUP($F155,P_All!$BB$5:$BZ$204,3*($C$6-1)+2))) -> 17211 | H155: =IF($C$8=1,VLOOKUP($F155,P_All!$A$5:$Y204,3*($C$6-1)+3),IF($C$8=2,VLOOKUP($F155,P_All!$AB$5:$AZ$204,3*($C$6-1)+3),VLOOKUP($F155,P_All!$BB$5:$BZ$204,3*($C$6-1)+3))) -> 27016 | I155: =IF($C$8=1,VLOOKUP($F155,P_All!$A$5:$Y$204,3*($C$6-1)+4),IF($C$8=2,VLOOKUP($F155,P_All!$AB$5:$AZ$204,3*($C$6-1)+4),VLOOKUP($F155,P_All!$BB$5:$BZ$204,3*($C$6-1)+4))) -> 32913 | J155: =VLOOKUP($F155,NA_All!$A$5:$G$204,IF(ISERROR($D$6),2,5)) -> 9110.4 | K155: =VLOOKUP($F155,NA_All!$A$5:$G$204,IF(ISERROR($D$6),3,6)) -> 9581.1 | L155: =VLOOKUP($F155,NA_All!$A$5:$G$204,IF(ISERROR($D$6),4,7)) -> 10077 | N155: 250000
F156: 134 | G156: =IF($C$8=1,VLOOKUP($F156,P_All!$A$5:$Y$204,3*($C$6-1)+2),IF($C$8=2,VLOOKUP($F156,P_All!$AB$5:$AZ$204,3*($C$6-1)+2),VLOOKUP($F156,P_All!$BB$5:$BZ$204,3*($C$6-1)+2))) -> 17785 | H156: =IF($C$8=1,VLOOKUP($F156,P_All!$A$5:$Y204,3*($C$6-1)+3),IF($C$8=2,VLOOKUP($F156,P_All!$AB$5:$AZ$204,3*($C$6-1)+3),VLOOKUP($F156,P_All!$BB$5:$BZ$204,3*($C$6-1)+3))) -> 27018 | I156: =IF($C$8=1,VLOOKUP($F156,P_All!$A$5:$Y$204,3*($C$6-1)+4),IF($C$8=2,VLOOKUP($F156,P_All!$AB$5:$AZ$204,3*($C$6-1)+4),VLOOKUP($F156,P_All!$BB$5:$BZ$204,3*($C$6-1)+4))) -> 32819 | J156: =VLOOKUP($F156,NA_All!$A$5:$G$204,IF(ISERROR($D$6),2,5)) -> 9110.4 | K156: =VLOOKUP($F156,NA_All!$A$5:$G$204,IF(ISERROR($D$6),3,6)) -> 9581.1 | L156: =VLOOKUP($F156,NA_All!$A$5:$G$204,IF(ISERROR($D$6),4,7)) -> 10077 | N156: 250000
F157: 135 | G157: =IF($C$8=1,VLOOKUP($F157,P_All!$A$5:$Y$204,3*($C$6-1)+2),IF($C$8=2,VLOOKUP($F157,P_All!$AB$5:$AZ$204,3*($C$6-1)+2),VLOOKUP($F157,P_All!$BB$5:$BZ$204,3*($C$6-1)+2))) -> 18296 | H157: =IF($C$8=1,VLOOKUP($F157,P_All!$A$5:$Y204,3*($C$6-1)+3),IF($C$8=2,VLOOKUP($F157,P_All!$AB$5:$AZ$204,3*($C$6-1)+3),VLOOKUP($F157,P_All!$BB$5:$BZ$204,3*($C$6-1)+3))) -> 26934 | I157: =IF($C$8=1,VLOOKUP($F157,P_All!$A$5:$Y$204,3*($C$6-1)+4),IF($C$8=2,VLOOKUP($F157,P_All!$AB$5:$AZ$204,3*($C$6-1)+4),VLOOKUP($F157,P_All!$BB$5:$BZ$204,3*($C$6-1)+4))) -> 32710 | J157: =VLOOKUP($F157,NA_All!$A$5:$G$204,IF(ISERROR($D$6),2,5)) -> 9110.4 | K157: =VLOOKUP($F157,NA_All!$A$5:$G$204,IF(ISERROR($D$6),3,6)) -> 9581.1 | L157: =VLOOKUP($F157,NA_All!$A$5:$G$204,IF(ISERROR($D$6),4,7)) -> 10077 | N157: 250000
F158: 136 | G158: =IF($C$8=1,VLOOKUP($F158,P_All!$A$5:$Y$204,3*($C$6-1)+2),IF($C$8=2,VLOOKUP($F158,P_All!$AB$5:$AZ$204,3*($C$6-1)+2),VLOOKUP($F158,P_All!$BB$5:$BZ$204,3*($C$6-1)+2))) -> 18732 | H158: =IF($C$8=1,VLOOKUP($F158,P_All!$A$5:$Y204,3*($C$6-1)+3),IF($C$8=2,VLOOKUP($F158,P_All!$AB$5:$AZ$204,3*($C$6-1)+3),VLOOKUP($F158,P_All!$BB$5:$BZ$204,3*($C$6-1)+3))) -> 26953 | I158: =IF($C$8=1,VLOOKUP($F158,P_All!$A$5:$Y$204,3*($C$6-1)+4),IF($C$8=2,VLOOKUP($F158,P_All!$AB$5:$AZ$204,3*($C$6-1)+4),VLOOKUP($F158,P_All!$BB$5:$BZ$204,3*($C$6-1)+4))) -> 32594 | J158: =VLOOKUP($F158,NA_All!$A$5:$G$204,IF(ISERROR($D$6),2,5)) -> 9110.4 | K158: =VLOOKUP($F158,NA_All!$A$5:$G$204,IF(ISERROR($D$6),3,6)) -> 9581.1 | L158: =VLOOKUP($F158,NA_All!$A$5:$G$204,IF(ISERROR($D$6),4,7)) -> 10077 | N158: 250000
F159: 137 | G159: =IF($C$8=1,VLOOKUP($F159,P_All!$A$5:$Y$204,3*($C$6-1)+2),IF($C$8=2,VLOOKUP($F159,P_All!$AB$5:$AZ$204,3*($C$6-1)+2),VLOOKUP($F159,P_All!$BB$5:$BZ$204,3*($C$6-1)+2))) -> 19269 | H159: =IF($C$8=1,VLOOKUP($F159,P_All!$A$5:$Y204,3*($C$6-1)+3),IF($C$8=2,VLOOKUP($F159,P_All!$AB$5:$AZ$204,3*($C$6-1)+3),VLOOKUP($F159,P_All!$BB$5:$BZ$204,3*($C$6-1)+3))) -> 26897 | I159: =IF($C$8=1,VLOOKUP($F159,P_All!$A$5:$Y$204,3*($C$6-1)+4),IF($C$8=2,VLOOKUP($F159,P_All!$AB$5:$AZ$204,3*($C$6-1)+4),VLOOKUP($F159,P_All!$BB$5:$BZ$204,3*($C$6-1)+4))) -> 32448 | J159: =VLOOKUP($F159,NA_All!$A$5:$G$204,IF(ISERROR($D$6),2,5)) -> 9110.4 | K159: =VLOOKUP($F159,NA_All!$A$5:$G$204,IF(ISERROR($D$6),3,6)) -> 9581.1 | L159: =VLOOKUP($F159,NA_All!$A$5:$G$204,IF(ISERROR($D$6),4,7)) -> 10077 | N159: 250000
F160: 138 | G160: =IF($C$8=1,VLOOKUP($F160,P_All!$A$5:$Y$204,3*($C$6-1)+2),IF($C$8=2,VLOOKUP($F160,P_All!$AB$5:$AZ$204,3*($C$6-1)+2),VLOOKUP($F160,P_All!$BB$5:$BZ$204,3*($C$6-1)+2))) -> 19799 | H160: =IF($C$8=1,VLOOKUP($F160,P_All!$A$5:$Y204,3*($C$6-1)+3),IF($C$8=2,VLOOKUP($F160,P_All!$AB$5:$AZ$204,3*($C$6-1)+3),VLOOKUP($F160,P_All!$BB$5:$BZ$204,3*($C$6-1)+3))) -> 26870 | I160: =IF($C$8=1,VLOOKUP($F160,P_All!$A$5:$Y$204,3*($C$6-1)+4),IF($C$8=2,VLOOKUP($F160,P_All!$AB$5:$AZ$204,3*($C$6-1)+4),VLOOKUP($F160,P_All!$BB$5:$BZ$204,3*($C$6-1)+4))) -> 32381 | J160: =VLOOKUP($F160,NA_All!$A$5:$G$204,IF(ISERROR($D$6),2,5)) -> 9110.4 | K160: =VLOOKUP($F160,NA_All!$A$5:$G$204,IF(ISERROR($D$6),3,6)) -> 9581.1 | L160: =VLOOKUP($F160,NA_All!$A$5:$G$204,IF(ISERROR($D$6),4,7)) -> 10077 | N160: 250000
F161: 139 | G161: =IF($C$8=1,VLOOKUP($F161,P_All!$A$5:$Y$204,3*($C$6-1)+2),IF($C$8=2,VLOOKUP($F161,P_All!$AB$5:$AZ$204,3*($C$6-1)+2),VLOOKUP($F161,P_All!$BB$5:$BZ$204,3*($C$6-1)+2))) -> 20226 | H161: =IF($C$8=1,VLOOKUP($F161,P_All!$A$5:$Y204,3*($C$6-1)+3),IF($C$8=2,VLOOKUP($F161,P_All!$AB$5:$AZ$204,3*($C$6-1)+3),VLOOKUP($F161,P_All!$BB$5:$BZ$204,3*($C$6-1)+3))) -> 26804 | I161: =IF($C$8=1,VLOOKUP($F161,P_All!$A$5:$Y$204,3*($C$6-1)+4),IF($C$8=2,VLOOKUP($F161,P_All!$AB$5:$AZ$204,3*($C$6-1)+4),VLOOKUP($F161,P_All!$BB$5:$BZ$204,3*($C$6-1)+4))) -> 32306 | J161: =VLOOKUP($F161,NA_All!$A$5:$G$204,IF(ISERROR($D$6),2,5)) -> 9110.4 | K161: =VLOOKUP($F161,NA_All!$A$5:$G$204,IF(ISERROR($D$6),3,6)) -> 9581.1 | L161: =VLOOKUP($F161,NA_All!$A$5:$G$204,IF(ISERROR($D$6),4,7)) -> 10077 | N161: 250000
F162: 140 | G162: =IF($C$8=1,VLOOKUP($F162,P_All!$A$5:$Y$204,3*($C$6-1)+2),IF($C$8=2,VLOOKUP($F162,P_All!$AB$5:$AZ$204,3*($C$6-1)+2),VLOOKUP($F162,P_All!$BB$5:$BZ$204,3*($C$6-1)+2))) -> 20740 | H162: =IF($C$8=1,VLOOKUP($F162,P_All!$A$5:$Y204,3*($C$6-1)+3),IF($C$8=2,VLOOKUP($F162,P_All!$AB$5:$AZ$204,3*($C$6-1)+3),VLOOKUP($F162,P_All!$BB$5:$BZ$204,3*($C$6-1)+3))) -> 26713 | I162: =IF($C$8=1,VLOOKUP($F162,P_All!$A$5:$Y$204,3*($C$6-1)+4),IF($C$8=2,VLOOKUP($F162,P_All!$AB$5:$AZ$204,3*($C$6-1)+4),VLOOKUP($F162,P_All!$BB$5:$BZ$204,3*($C$6-1)+4))) -> 32165 | J162: =VLOOKUP($F162,NA_All!$A$5:$G$204,IF(ISERROR($D$6),2,5)) -> 9110.4 | K162: =VLOOKUP($F162,NA_All!$A$5:$G$204,IF(ISERROR($D$6),3,6)) -> 9581.1 | L162: =VLOOKUP($F162,NA_All!$A$5:$G$204,IF(ISERROR($D$6),4,7)) -> 10077 | N162: 250000
F163: 141 | G163: =IF($C$8=1,VLOOKUP($F163,P_All!$A$5:$Y$204,3*($C$6-1)+2),IF($C$8=2,VLOOKUP($F163,P_All!$AB$5:$AZ$204,3*($C$6-1)+2),VLOOKUP($F163,P_All!$BB$5:$BZ$204,3*($C$6-1)+2))) -> 20991 | H163: =IF($C$8=1,VLOOKUP($F163,P_All!$A$5:$Y204,3*($C$6-1)+3),IF($C$8=2,VLOOKUP($F163,P_All!$AB$5:$AZ$204,3*($C$6-1)+3),VLOOKUP($F163,P_All!$BB$5:$BZ$204,3*($C$6-1)+3))) -> 26628 | I163: =IF($C$8=1,VLOOKUP($F163,P_All!$A$5:$Y$204,3*($C$6-1)+4),IF($C$8=2,VLOOKUP($F163,P_All!$AB$5:$AZ$204,3*($C$6-1)+4),VLOOKUP($F163,P_All!$BB$5:$BZ$204,3*($C$6-1)+4))) -> 32024 | J163: =VLOOKUP($F163,NA_All!$A$5:$G$204,IF(ISERROR($D$6),2,5)) -> 9110.4 | K163: =VLOOKUP($F163,NA_All!$A$5:$G$204,IF(ISERROR($D$6),3,6)) -> 9581.1 | L163: =VLOOKUP($F163,NA_All!$A$5:$G$204,IF(ISERROR($D$6),4,7)) -> 10077 | N163: 250000
F164: 142 | G164: =IF($C$8=1,VLOOKUP($F164,P_All!$A$5:$Y$204,3*($C$6-1)+2),IF($C$8=2,VLOOKUP($F164,P_All!$AB$5:$AZ$204,3*($C$6-1)+2),VLOOKUP($F164,P_All!$BB$5:$BZ$204,3*($C$6-1)+2))) -> 21280 | H164: =IF($C$8=1,VLOOKUP($F164,P_All!$A$5:$Y204,3*($C$6-1)+3),IF($C$8=2,VLOOKUP($F164,P_All!$AB$5:$AZ$204,3*($C$6-1)+3),VLOOKUP($F164,P_All!$BB$5:$BZ$204,3*($C$6-1)+3))) -> 26555 | I164: =IF($C$8=1,VLOOKUP($F164,P_All!$A$5:$Y$204,3*($C$6-1)+4),IF($C$8=2,VLOOKUP($F164,P_All!$AB$5:$AZ$204,3*($C$6-1)+4),VLOOKUP($F164,P_All!$BB$5:$BZ$204,3*($C$6-1)+4))) -> 31931 | J164: =VLOOKUP($F164,NA_All!$A$5:$G$204,IF(ISERROR($D$6),2,5)) -> 9110.4 | K164: =VLOOKUP($F164,NA_All!$A$5:$G$204,IF(ISERROR($D$6),3,6)) -> 9581.1 | L164: =VLOOKUP($F164,NA_All!$A$5:$G$204,IF(ISERROR($D$6),4,7)) -> 10077 | N164: 250000
F165: 143 | G165: =IF($C$8=1,VLOOKUP($F165,P_All!$A$5:$Y$204,3*($C$6-1)+2),IF($C$8=2,VLOOKUP($F165,P_All!$AB$5:$AZ$204,3*($C$6-1)+2),VLOOKUP($F165,P_All!$BB$5:$BZ$204,3*($C$6-1)+2))) -> 21502 | H165: =IF($C$8=1,VLOOKUP($F165,P_All!$A$5:$Y204,3*($C$6-1)+3),IF($C$8=2,VLOOKUP($F165,P_All!$AB$5:$AZ$204,3*($C$6-1)+3),VLOOKUP($F165,P_All!$BB$5:$BZ$204,3*($C$6-1)+3))) -> 26499 | I165: =IF($C$8=1,VLOOKUP($F165,P_All!$A$5:$Y$204,3*($C$6-1)+4),IF($C$8=2,VLOOKUP($F165,P_All!$AB$5:$AZ$204,3*($C$6-1)+4),VLOOKUP($F165,P_All!$BB$5:$BZ$204,3*($C$6-1)+4))) -> 31855 | J165: =VLOOKUP($F165,NA_All!$A$5:$G$204,IF(ISERROR($D$6),2,5)) -> 9110.4 | K165: =VLOOKUP($F165,NA_All!$A$5:$G$204,IF(ISERROR($D$6),3,6)) -> 9581.1 | L165: =VLOOKUP($F165,NA_All!$A$5:$G$204,IF(ISERROR($D$6),4,7)) -> 10077 | N165: 250000
F166: 144 | G166: =IF($C$8=1,VLOOKUP($F166,P_All!$A$5:$Y$204,3*($C$6-1)+2),IF($C$8=2,VLOOKUP($F166,P_All!$AB$5:$AZ$204,3*($C$6-1)+2),VLOOKUP($F166,P_All!$BB$5:$BZ$204,3*($C$6-1)+2))) -> 21489 | H166: =IF($C$8=1,VLOOKUP($F166,P_All!$A$5:$Y204,3*($C$6-1)+3),IF($C$8=2,VLOOKUP($F166,P_All!$AB$5:$AZ$204,3*($C$6-1)+3),VLOOKUP($F166,P_All!$BB$5:$BZ$204,3*($C$6-1)+3))) -> 26444 | I166: =IF($C$8=1,VLOOKUP($F166,P_All!$A$5:$Y$204,3*($C$6-1)+4),IF($C$8=2,VLOOKUP($F166,P_All!$AB$5:$AZ$204,3*($C$6-1)+4),VLOOKUP($F166,P_All!$BB$5:$BZ$204,3*($C$6-1)+4))) -> 31729 | J166: =VLOOKUP($F166,NA_All!$A$5:$G$204,IF(ISERROR($D$6),2,5)) -> 9110.4 | K166: =VLOOKUP($F166,NA_All!$A$5:$G$204,IF(ISERROR($D$6),3,6)) -> 9581.1 | L166: =VLOOKUP($F166,NA_All!$A$5:$G$204,IF(ISERROR($D$6),4,7)) -> 10077 | N166: 250000
F167: 145 | G167: =IF($C$8=1,VLOOKUP($F167,P_All!$A$5:$Y$204,3*($C$6-1)+2),IF($C$8=2,VLOOKUP($F167,P_All!$AB$5:$AZ$204,3*($C$6-1)+2),VLOOKUP($F167,P_All!$BB$5:$BZ$204,3*($C$6-1)+2))) -> 21482 | H167: =IF($C$8=1,VLOOKUP($F167,P_All!$A$5:$Y204,3*($C$6-1)+3),IF($C$8=2,VLOOKUP($F167,P_All!$AB$5:$AZ$204,3*($C$6-1)+3),VLOOKUP($F167,P_All!$BB$5:$BZ$204,3*($C$6-1)+3))) -> 26384 | I167: =IF($C$8=1,VLOOKUP($F167,P_All!$A$5:$Y$204,3*($C$6-1)+4),IF($C$8=2,VLOOKUP($F167,P_All!$AB$5:$AZ$204,3*($C$6-1)+4),VLOOKUP($F167,P_All!$BB$5:$BZ$204,3*($C$6-1)+4))) -> 31635 | J167: =VLOOKUP($F167,NA_All!$A$5:$G$204,IF(ISERROR($D$6),2,5)) -> 9110.4 | K167: =VLOOKUP($F167,NA_All!$A$5:$G$204,IF(ISERROR($D$6),3,6)) -> 9581.1 | L167: =VLOOKUP($F167,NA_All!$A$5:$G$204,IF(ISERROR($D$6),4,7)) -> 10077 | N167: 250000
F168: 146 | G168: =IF($C$8=1,VLOOKUP($F168,P_All!$A$5:$Y$204,3*($C$6-1)+2),IF($C$8=2,VLOOKUP($F168,P_All!$AB$5:$AZ$204,3*($C$6-1)+2),VLOOKUP($F168,P_All!$BB$5:$BZ$204,3*($C$6-1)+2))) -> 21565 | H168: =IF($C$8=1,VLOOKUP($F168,P_All!$A$5:$Y204,3*($C$6-1)+3),IF($C$8=2,VLOOKUP($F168,P_All!$AB$5:$AZ$204,3*($C$6-1)+3),VLOOKUP($F168,P_All!$BB$5:$BZ$204,3*($C$6-1)+3))) -> 26356 | I168: =IF($C$8=1,VLOOKUP($F168,P_All!$A$5:$Y$204,3*($C$6-1)+4),IF($C$8=2,VLOOKUP($F168,P_All!$AB$5:$AZ$204,3*($C$6-1)+4),VLOOKUP($F168,P_All!$BB$5:$BZ$204,3*($C$6-1)+4))) -> 31584 | J168: =VLOOKUP($F168,NA_All!$A$5:$G$204,IF(ISERROR($D$6),2,5)) -> 9110.4 | K168: =VLOOKUP($F168,NA_All!$A$5:$G$204,IF(ISERROR($D$6),3,6)) -> 9581.1 | L168: =VLOOKUP($F168,NA_All!$A$5:$G$204,IF(ISERROR($D$6),4,7)) -> 10077 | N168: 250000
F169: 147 | G169: =IF($C$8=1,VLOOKUP($F169,P_All!$A$5:$Y$204,3*($C$6-1)+2),IF($C$8=2,VLOOKUP($F169,P_All!$AB$5:$AZ$204,3*($C$6-1)+2),VLOOKUP($F169,P_All!$BB$5:$BZ$204,3*($C$6-1)+2))) -> 21644 | H169: =IF($C$8=1,VLOOKUP($F169,P_All!$A$5:$Y204,3*($C$6-1)+3),IF($C$8=2,VLOOKUP($F169,P_All!$AB$5:$AZ$204,3*($C$6-1)+3),VLOOKUP($F169,P_All!$BB$5:$BZ$204,3*($C$6-1)+3))) -> 26305 | I169: =IF($C$8=1,VLOOKUP($F169,P_All!$A$5:$Y$204,3*($C$6-1)+4),IF($C$8=2,VLOOKUP($F169,P_All!$AB$5:$AZ$204,3*($C$6-1)+4),VLOOKUP($F169,P_All!$BB$5:$BZ$204,3*($C$6-1)+4))) -> 31593 | J169: =VLOOKUP($F169,NA_All!$A$5:$G$204,IF(ISERROR($D$6),2,5)) -> 9110.4 | K169: =VLOOKUP($F169,NA_All!$A$5:$G$204,IF(ISERROR($D$6),3,6)) -> 9581.1 | L169: =VLOOKUP($F169,NA_All!$A$5:$G$204,IF(ISERROR($D$6),4,7)) -> 10077 | N169: 250000
F170: 148 | G170: =IF($C$8=1,VLOOKUP($F170,P_All!$A$5:$Y$204,3*($C$6-1)+2),IF($C$8=2,VLOOKUP($F170,P_All!$AB$5:$AZ$204,3*($C$6-1)+2),VLOOKUP($F170,P_All!$BB$5:$BZ$204,3*($C$6-1)+2))) -> 21651 | H170: =IF($C$8=1,VLOOKUP($F170,P_All!$A$5:$Y204,3*($C$6-1)+3),IF($C$8=2,VLOOKUP($F170,P_All!$AB$5:$AZ$204,3*($C$6-1)+3),VLOOKUP($F170,P_All!$BB$5:$BZ$204,3*($C$6-1)+3))) -> 26257 | I170: =IF($C$8=1,VLOOKUP($F170,P_All!$A$5:$Y$204,3*($C$6-1)+4),IF($C$8=2,VLOOKUP($F170,P_All!$AB$5:$AZ$204,3*($C$6-1)+4),VLOOKUP($F170,P_All!$BB$5:$BZ$204,3*($C$6-1)+4))) -> 31767 | J170: =VLOOKUP($F170,NA_All!$A$5:$G$204,IF(ISERROR($D$6),2,5)) -> 9110.4 | K170: =VLOOKUP($F170,NA_All!$A$5:$G$204,IF(ISERROR($D$6),3,6)) -> 9581.1 | L170: =VLOOKUP($F170,NA_All!$A$5:$G$204,IF(ISERROR($D$6),4,7)) -> 10077 | N170: 250000
F171: 149 | G171: =IF($C$8=1,VLOOKUP($F171,P_All!$A$5:$Y$204,3*($C$6-1)+2),IF($C$8=2,VLOOKUP($F171,P_All!$AB$5:$AZ$204,3*($C$6-1)+2),VLOOKUP($F171,P_All!$BB$5:$BZ$204,3*($C$6-1)+2))) -> 21644 | H171: =IF($C$8=1,VLOOKUP($F171,P_All!$A$5:$Y204,3*($C$6-1)+3),IF($C$8=2,VLOOKUP($F171,P_All!$AB$5:$AZ$204,3*($C$6-1)+3),VLOOKUP($F171,P_All!$BB$5:$BZ$204,3*($C$6-1)+3))) -> 26216 | I171: =IF($C$8=1,VLOOKUP($F171,P_All!$A$5:$Y$204,3*($C$6-1)+4),IF($C$8=2,VLOOKUP($F171,P_All!$AB$5:$AZ$204,3*($C$6-1)+4),VLOOKUP($F171,P_All!$BB$5:$BZ$204,3*($C$6-1)+4))) -> 31674 | J171: =VLOOKUP($F171,NA_All!$A$5:$G$204,IF(ISERROR($D$6),2,5)) -> 9110.4 | K171: =VLOOKUP($F171,NA_All!$A$5:$G$204,IF(ISERROR($D$6),3,6)) -> 9581.1 | L171: =VLOOKUP($F171,NA_All!$A$5:$G$204,IF(ISERROR($D$6),4,7)) -> 10077 | N171: 250000
F172: 150 | G172: =IF($C$8=1,VLOOKUP($F172,P_All!$A$5:$Y$204,3*($C$6-1)+2),IF($C$8=2,VLOOKUP($F172,P_All!$AB$5:$AZ$204,3*($C$6-1)+2),VLOOKUP($F172,P_All!$BB$5:$BZ$204,3*($C$6-1)+2))) -> 21582 | H172: =IF($C$8=1,VLOOKUP($F172,P_All!$A$5:$Y204,3*($C$6-1)+3),IF($C$8=2,VLOOKUP($F172,P_All!$AB$5:$AZ$204,3*($C$6-1)+3),VLOOKUP($F172,P_All!$BB$5:$BZ$204,3*($C$6-1)+3))) -> 26163 | I172: =IF($C$8=1,VLOOKUP($F172,P_All!$A$5:$Y$204,3*($C$6-1)+4),IF($C$8=2,VLOOKUP($F172,P_All!$AB$5:$AZ$204,3*($C$6-1)+4),VLOOKUP($F172,P_All!$BB$5:$BZ$204,3*($C$6-1)+4))) -> 31560 | J172: =VLOOKUP($F172,NA_All!$A$5:$G$204,IF(ISERROR($D$6),2,5)) -> 9110.4 | K172: =VLOOKUP($F172,NA_All!$A$5:$G$204,IF(ISERROR($D$6),3,6)) -> 9581.1 | L172: =VLOOKUP($F172,NA_All!$A$5:$G$204,IF(ISERROR($D$6),4,7)) -> 10077 | N172: 250000
F173: 151 | G173: =IF($C$8=1,VLOOKUP($F173,P_All!$A$5:$Y$204,3*($C$6-1)+2),IF($C$8=2,VLOOKUP($F173,P_All!$AB$5:$AZ$204,3*($C$6-1)+2),VLOOKUP($F173,P_All!$BB$5:$BZ$204,3*($C$6-1)+2))) -> 21564 | H173: =IF($C$8=1,VLOOKUP($F173,P_All!$A$5:$Y204,3*($C$6-1)+3),IF($C$8=2,VLOOKUP($F173,P_All!$AB$5:$AZ$204,3*($C$6-1)+3),VLOOKUP($F173,P_All!$BB$5:$BZ$204,3*($C$6-1)+3))) -> 26087 | I173: =IF($C$8=1,VLOOKUP($F173,P_All!$A$5:$Y$204,3*($C$6-1)+4),IF($C$8=2,VLOOKUP($F173,P_All!$AB$5:$AZ$204,3*($C$6-1)+4),VLOOKUP($F173,P_All!$BB$5:$BZ$204,3*($C$6-1)+4))) -> 31481 | J173: =VLOOKUP($F173,NA_All!$A$5:$G$204,IF(ISERROR($D$6),2,5)) -> 9110.4 | K173: =VLOOKUP($F173,NA_All!$A$5:$G$204,IF(ISERROR($D$6),3,6)) -> 9581.1 | L173: =VLOOKUP($F173,NA_All!$A$5:$G$204,IF(ISERROR($D$6),4,7)) -> 10077 | N173: 250000
F174: 152 | G174: =IF($C$8=1,VLOOKUP($F174,P_All!$A$5:$Y$204,3*($C$6-1)+2),IF($C$8=2,VLOOKUP($F174,P_All!$AB$5:$AZ$204,3*($C$6-1)+2),VLOOKUP($F174,P_All!$BB$5:$BZ$204,3*($C$6-1)+2))) -> 21558 | H174: =IF($C$8=1,VLOOKUP($F174,P_All!$A$5:$Y204,3*($C$6-1)+3),IF($C$8=2,VLOOKUP($F174,P_All!$AB$5:$AZ$204,3*($C$6-1)+3),VLOOKUP($F174,P_All!$BB$5:$BZ$204,3*($C$6-1)+3))) -> 26069 | I174: =IF($C$8=1,VLOOKUP($F174,P_All!$A$5:$Y$204,3*($C$6-1)+4),IF($C$8=2,VLOOKUP($F174,P_All!$AB$5:$AZ$204,3*($C$6-1)+4),VLOOKUP($F174,P_All!$BB$5:$BZ$204,3*($C$6-1)+4))) -> 31329 | J174: =VLOOKUP($F174,NA_All!$A$5:$G$204,IF(ISERROR($D$6),2,5)) -> 9110.4 | K174: =VLOOKUP($F174,NA_All!$A$5:$G$204,IF(ISERROR($D$6),3,6)) -> 9581.1 | L174: =VLOOKUP($F174,NA_All!$A$5:$G$204,IF(ISERROR($D$6),4,7)) -> 10077 | N174: 250000
F175: 153 | G175: =IF($C$8=1,VLOOKUP($F175,P_All!$A$5:$Y$204,3*($C$6-1)+2),IF($C$8=2,VLOOKUP($F175,P_All!$AB$5:$AZ$204,3*($C$6-1)+2),VLOOKUP($F175,P_All!$BB$5:$BZ$204,3*($C$6-1)+2))) -> 21658 | H175: =IF($C$8=1,VLOOKUP($F175,P_All!$A$5:$Y204,3*($C$6-1)+3),IF($C$8=2,VLOOKUP($F175,P_All!$AB$5:$AZ$204,3*($C$6-1)+3),VLOOKUP($F175,P_All!$BB$5:$BZ$204,3*($C$6-1)+3))) -> 26044 | I175: =IF($C$8=1,VLOOKUP($F175,P_All!$A$5:$Y$204,3*($C$6-1)+4),IF($C$8=2,VLOOKUP($F175,P_All!$AB$5:$AZ$204,3*($C$6-1)+4),VLOOKUP($F175,P_All!$BB$5:$BZ$204,3*($C$6-1)+4))) -> 31220 | J175: =VLOOKUP($F175,NA_All!$A$5:$G$204,IF(ISERROR($D$6),2,5)) -> 9110.4 | K175: =VLOOKUP($F175,NA_All!$A$5:$G$204,IF(ISERROR($D$6),3,6)) -> 9581.1 | L175: =VLOOKUP($F175,NA_All!$A$5:$G$204,IF(ISERROR($D$6),4,7)) -> 10077 | N175: 250000
F176: 154 | G176: =IF($C$8=1,VLOOKUP($F176,P_All!$A$5:$Y$204,3*($C$6-1)+2),IF($C$8=2,VLOOKUP($F176,P_All!$AB$5:$AZ$204,3*($C$6-1)+2),VLOOKUP($F176,P_All!$BB$5:$BZ$204,3*($C$6-1)+2))) -> 21672 | H176: =IF($C$8=1,VLOOKUP($F176,P_All!$A$5:$Y204,3*($C$6-1)+3),IF($C$8=2,VLOOKUP($F176,P_All!$AB$5:$AZ$204,3*($C$6-1)+3),VLOOKUP($F176,P_All!$BB$5:$BZ$204,3*($C$6-1)+3))) -> 25957 | I176: =IF($C$8=1,VLOOKUP($F176,P_All!$A$5:$Y$204,3*($C$6-1)+4),IF($C$8=2,VLOOKUP($F176,P_All!$AB$5:$AZ$204,3*($C$6-1)+4),VLOOKUP($F176,P_All!$BB$5:$BZ$204,3*($C$6-1)+4))) -> 31204 | J176: =VLOOKUP($F176,NA_All!$A$5:$G$204,IF(ISERROR($D$6),2,5)) -> 9110.4 | K176: =VLOOKUP($F176,NA_All!$A$5:$G$204,IF(ISERROR($D$6),3,6)) -> 9581.1 | L176: =VLOOKUP($F176,NA_All!$A$5:$G$204,IF(ISERROR($D$6),4,7)) -> 10077 | N176: 250000
F177: 155 | G177: =IF($C$8=1,VLOOKUP($F177,P_All!$A$5:$Y$204,3*($C$6-1)+2),IF($C$8=2,VLOOKUP($F177,P_All!$AB$5:$AZ$204,3*($C$6-1)+2),VLOOKUP($F177,P_All!$BB$5:$BZ$204,3*($C$6-1)+2))) -> 21638 | H177: =IF($C$8=1,VLOOKUP($F177,P_All!$A$5:$Y204,3*($C$6-1)+3),IF($C$8=2,VLOOKUP($F177,P_All!$AB$5:$AZ$204,3*($C$6-1)+3),VLOOKUP($F177,P_All!$BB$5:$BZ$204,3*($C$6-1)+3))) -> 25854 | I177: =IF($C$8=1,VLOOKUP($F177,P_All!$A$5:$Y$204,3*($C$6-1)+4),IF($C$8=2,VLOOKUP($F177,P_All!$AB$5:$AZ$204,3*($C$6-1)+4),VLOOKUP($F177,P_All!$BB$5:$BZ$204,3*($C$6-1)+4))) -> 31113 | J177: =VLOOKUP($F177,NA_All!$A$5:$G$204,IF(ISERROR($D$6),2,5)) -> 9110.4 | K177: =VLOOKUP($F177,NA_All!$A$5:$G$204,IF(ISERROR($D$6),3,6)) -> 9581.1 | L177: =VLOOKUP($F177,NA_All!$A$5:$G$204,IF(ISERROR($D$6),4,7)) -> 10077 | N177: 250000
F178: 156 | G178: =IF($C$8=1,VLOOKUP($F178,P_All!$A$5:$Y$204,3*($C$6-1)+2),IF($C$8=2,VLOOKUP($F178,P_All!$AB$5:$AZ$204,3*($C$6-1)+2),VLOOKUP($F178,P_All!$BB$5:$BZ$204,3*($C$6-1)+2))) -> 21646 | H178: =IF($C$8=1,VLOOKUP($F178,P_All!$A$5:$Y204,3*($C$6-1)+3),IF($C$8=2,VLOOKUP($F178,P_All!$AB$5:$AZ$204,3*($C$6-1)+3),VLOOKUP($F178,P_All!$BB$5:$BZ$204,3*($C$6-1)+3))) -> 25773 | I178: =IF($C$8=1,VLOOKUP($F178,P_All!$A$5:$Y$204,3*($C$6-1)+4),IF($C$8=2,VLOOKUP($F178,P_All!$AB$5:$AZ$204,3*($C$6-1)+4),VLOOKUP($F178,P_All!$BB$5:$BZ$204,3*($C$6-1)+4))) -> 31029 | J178: =VLOOKUP($F178,NA_All!$A$5:$G$204,IF(ISERROR($D$6),2,5)) -> 9110.4 | K178: =VLOOKUP($F178,NA_All!$A$5:$G$204,IF(ISERROR($D$6),3,6)) -> 9581.1 | L178: =VLOOKUP($F178,NA_All!$A$5:$G$204,IF(ISERROR($D$6),4,7)) -> 10077 | N178: 250000
F179: 157 | G179: =IF($C$8=1,VLOOKUP($F179,P_All!$A$5:$Y$204,3*($C$6-1)+2),IF($C$8=2,VLOOKUP($F179,P_All!$AB$5:$AZ$204,3*($C$6-1)+2),VLOOKUP($F179,P_All!$BB$5:$BZ$204,3*($C$6-1)+2))) -> 21671 | H179: =IF($C$8=1,VLOOKUP($F179,P_All!$A$5:$Y204,3*($C$6-1)+3),IF($C$8=2,VLOOKUP($F179,P_All!$AB$5:$AZ$204,3*($C$6-1)+3),VLOOKUP($F179,P_All!$BB$5:$BZ$204,3*($C$6-1)+3))) -> 25739 | I179: =IF($C$8=1,VLOOKUP($F179,P_All!$A$5:$Y$204,3*($C$6-1)+4),IF($C$8=2,VLOOKUP($F179,P_All!$AB$5:$AZ$204,3*($C$6-1)+4),VLOOKUP($F179,P_All!$BB$5:$BZ$204,3*($C$6-1)+4))) -> 30919 | J179: =VLOOKUP($F179,NA_All!$A$5:$G$204,IF(ISERROR($D$6),2,5)) -> 9110.4 | K179: =VLOOKUP($F179,NA_All!$A$5:$G$204,IF(ISERROR($D$6),3,6)) -> 9581.1 | L179: =VLOOKUP($F179,NA_All!$A$5:$G$204,IF(ISERROR($D$6),4,7)) -> 10077 | N179: 250000
F180: 158 | G180: =IF($C$8=1,VLOOKUP($F180,P_All!$A$5:$Y$204,3*($C$6-1)+2),IF($C$8=2,VLOOKUP($F180,P_All!$AB$5:$AZ$204,3*($C$6-1)+2),VLOOKUP($F180,P_All!$BB$5:$BZ$204,3*($C$6-1)+2))) -> 21642 | H180: =IF($C$8=1,VLOOKUP($F180,P_All!$A$5:$Y204,3*($C$6-1)+3),IF($C$8=2,VLOOKUP($F180,P_All!$AB$5:$AZ$204,3*($C$6-1)+3),VLOOKUP($F180,P_All!$BB$5:$BZ$204,3*($C$6-1)+3))) -> 25729 | I180: =IF($C$8=1,VLOOKUP($F180,P_All!$A$5:$Y$204,3*($C$6-1)+4),IF($C$8=2,VLOOKUP($F180,P_All!$AB$5:$AZ$204,3*($C$6-1)+4),VLOOKUP($F180,P_All!$BB$5:$BZ$204,3*($C$6-1)+4))) -> 30856 | J180: =VLOOKUP($F180,NA_All!$A$5:$G$204,IF(ISERROR($D$6),2,5)) -> 9110.4 | K180: =VLOOKUP($F180,NA_All!$A$5:$G$204,IF(ISERROR($D$6),3,6)) -> 9581.1 | L180: =VLOOKUP($F180,NA_All!$A$5:$G$204,IF(ISERROR($D$6),4,7)) -> 10077 | N180: 250000
F181: 159 | G181: =IF($C$8=1,VLOOKUP($F181,P_All!$A$5:$Y$204,3*($C$6-1)+2),IF($C$8=2,VLOOKUP($F181,P_All!$AB$5:$AZ$204,3*($C$6-1)+2),VLOOKUP($F181,P_All!$BB$5:$BZ$204,3*($C$6-1)+2))) -> 21566 | H181: =IF($C$8=1,VLOOKUP($F181,P_All!$A$5:$Y204,3*($C$6-1)+3),IF($C$8=2,VLOOKUP($F181,P_All!$AB$5:$AZ$204,3*($C$6-1)+3),VLOOKUP($F181,P_All!$BB$5:$BZ$204,3*($C$6-1)+3))) -> 25615 | I181: =IF($C$8=1,VLOOKUP($F181,P_All!$A$5:$Y$204,3*($C$6-1)+4),IF($C$8=2,VLOOKUP($F181,P_All!$AB$5:$AZ$204,3*($C$6-1)+4),VLOOKUP($F181,P_All!$BB$5:$BZ$204,3*($C$6-1)+4))) -> 30778 | J181: =VLOOKUP($F181,NA_All!$A$5:$G$204,IF(ISERROR($D$6),2,5)) -> 9110.4 | K181: =VLOOKUP($F181,NA_All!$A$5:$G$204,IF(ISERROR($D$6),3,6)) -> 9581.1 | L181: =VLOOKUP($F181,NA_All!$A$5:$G$204,IF(ISERROR($D$6),4,7)) -> 10077 | N181: 250000
F182: 160 | G182: =IF($C$8=1,VLOOKUP($F182,P_All!$A$5:$Y$204,3*($C$6-1)+2),IF($C$8=2,VLOOKUP($F182,P_All!$AB$5:$AZ$204,3*($C$6-1)+2),VLOOKUP($F182,P_All!$BB$5:$BZ$204,3*($C$6-1)+2))) -> 21510 | H182: =IF($C$8=1,VLOOKUP($F182,P_All!$A$5:$Y204,3*($C$6-1)+3),IF($C$8=2,VLOOKUP($F182,P_All!$AB$5:$AZ$204,3*($C$6-1)+3),VLOOKUP($F182,P_All!$BB$5:$BZ$204,3*($C$6-1)+3))) -> 25526 | I182: =IF($C$8=1,VLOOKUP($F182,P_All!$A$5:$Y$204,3*($C$6-1)+4),IF($C$8=2,VLOOKUP($F182,P_All!$AB$5:$AZ$204,3*($C$6-1)+4),VLOOKUP($F182,P_All!$BB$5:$BZ$204,3*($C$6-1)+4))) -> 30672 | J182: =VLOOKUP($F182,NA_All!$A$5:$G$204,IF(ISERROR($D$6),2,5)) -> 9110.4 | K182: =VLOOKUP($F182,NA_All!$A$5:$G$204,IF(ISERROR($D$6),3,6)) -> 9581.1 | L182: =VLOOKUP($F182,NA_All!$A$5:$G$204,IF(ISERROR($D$6),4,7)) -> 10077 | N182: 250000
F183: 161 | G183: =IF($C$8=1,VLOOKUP($F183,P_All!$A$5:$Y$204,3*($C$6-1)+2),IF($C$8=2,VLOOKUP($F183,P_All!$AB$5:$AZ$204,3*($C$6-1)+2),VLOOKUP($F183,P_All!$BB$5:$BZ$204,3*($C$6-1)+2))) -> 21474 | H183: =IF($C$8=1,VLOOKUP($F183,P_All!$A$5:$Y204,3*($C$6-1)+3),IF($C$8=2,VLOOKUP($F183,P_All!$AB$5:$AZ$204,3*($C$6-1)+3),VLOOKUP($F183,P_All!$BB$5:$BZ$204,3*($C$6-1)+3))) -> 25444 | I183: =IF($C$8=1,VLOOKUP($F183,P_All!$A$5:$Y$204,3*($C$6-1)+4),IF($C$8=2,VLOOKUP($F183,P_All!$AB$5:$AZ$204,3*($C$6-1)+4),VLOOKUP($F183,P_All!$BB$5:$BZ$204,3*($C$6-1)+4))) -> 30585 | J183: =VLOOKUP($F183,NA_All!$A$5:$G$204,IF(ISERROR($D$6),2,5)) -> 9110.4 | K183: =VLOOKUP($F183,NA_All!$A$5:$G$204,IF(ISERROR($D$6),3,6)) -> 9581.1 | L183: =VLOOKUP($F183,NA_All!$A$5:$G$204,IF(ISERROR($D$6),4,7)) -> 10077 | N183: 250000
F184: 162 | G184: =IF($C$8=1,VLOOKUP($F184,P_All!$A$5:$Y$204,3*($C$6-1)+2),IF($C$8=2,VLOOKUP($F184,P_All!$AB$5:$AZ$204,3*($C$6-1)+2),VLOOKUP($F184,P_All!$BB$5:$BZ$204,3*($C$6-1)+2))) -> 21414 | H184: =IF($C$8=1,VLOOKUP($F184,P_All!$A$5:$Y204,3*($C$6-1)+3),IF($C$8=2,VLOOKUP($F184,P_All!$AB$5:$AZ$204,3*($C$6-1)+3),VLOOKUP($F184,P_All!$BB$5:$BZ$204,3*($C$6-1)+3))) -> 25360 | I184: =IF($C$8=1,VLOOKUP($F184,P_All!$A$5:$Y$204,3*($C$6-1)+4),IF($C$8=2,VLOOKUP($F184,P_All!$AB$5:$AZ$204,3*($C$6-1)+4),VLOOKUP($F184,P_All!$BB$5:$BZ$204,3*($C$6-1)+4))) -> 30566 | J184: =VLOOKUP($F184,NA_All!$A$5:$G$204,IF(ISERROR($D$6),2,5)) -> 9110.4 | K184: =VLOOKUP($F184,NA_All!$A$5:$G$204,IF(ISERROR($D$6),3,6)) -> 9581.1 | L184: =VLOOKUP($F184,NA_All!$A$5:$G$204,IF(ISERROR($D$6),4,7)) -> 10077 | N184: 250000
F185: 163 | G185: =IF($C$8=1,VLOOKUP($F185,P_All!$A$5:$Y$204,3*($C$6-1)+2),IF($C$8=2,VLOOKUP($F185,P_All!$AB$5:$AZ$204,3*($C$6-1)+2),VLOOKUP($F185,P_All!$BB$5:$BZ$204,3*($C$6-1)+2))) -> 21408 | H185: =IF($C$8=1,VLOOKUP($F185,P_All!$A$5:$Y204,3*($C$6-1)+3),IF($C$8=2,VLOOKUP($F185,P_All!$AB$5:$AZ$204,3*($C$6-1)+3),VLOOKUP($F185,P_All!$BB$5:$BZ$204,3*($C$6-1)+3))) -> 25305 | I185: =IF($C$8=1,VLOOKUP($F185,P_All!$A$5:$Y$204,3*($C$6-1)+4),IF($C$8=2,VLOOKUP($F185,P_All!$AB$5:$AZ$204,3*($C$6-1)+4),VLOOKUP($F185,P_All!$BB$5:$BZ$204,3*($C$6-1)+4))) -> 30509 | J185: =VLOOKUP($F185,NA_All!$A$5:$G$204,IF(ISERROR($D$6),2,5)) -> 9110.4 | K185: =VLOOKUP($F185,NA_All!$A$5:$G$204,IF(ISERROR($D$6),3,6)) -> 9581.1 | L185: =VLOOKUP($F185,NA_All!$A$5:$G$204,IF(ISERROR($D$6),4,7)) -> 10077 | N185: 250000
F186: 164 | G186: =IF($C$8=1,VLOOKUP($F186,P_All!$A$5:$Y$204,3*($C$6-1)+2),IF($C$8=2,VLOOKUP($F186,P_All!$AB$5:$AZ$204,3*($C$6-1)+2),VLOOKUP($F186,P_All!$BB$5:$BZ$204,3*($C$6-1)+2))) -> 21321 | H186: =IF($C$8=1,VLOOKUP($F186,P_All!$A$5:$Y204,3*($C$6-1)+3),IF($C$8=2,VLOOKUP($F186,P_All!$AB$5:$AZ$204,3*($C$6-1)+3),VLOOKUP($F186,P_All!$BB$5:$BZ$204,3*($C$6-1)+3))) -> 25233 | I186: =IF($C$8=1,VLOOKUP($F186,P_All!$A$5:$Y$204,3*($C$6-1)+4),IF($C$8=2,VLOOKUP($F186,P_All!$AB$5:$AZ$204,3*($C$6-1)+4),VLOOKUP($F186,P_All!$BB$5:$BZ$204,3*($C$6-1)+4))) -> 30449 | J186: =VLOOKUP($F186,NA_All!$A$5:$G$204,IF(ISERROR($D$6),2,5)) -> 9110.4 | K186: =VLOOKUP($F186,NA_All!$A$5:$G$204,IF(ISERROR($D$6),3,6)) -> 9581.1 | L186: =VLOOKUP($F186,NA_All!$A$5:$G$204,IF(ISERROR($D$6),4,7)) -> 10077 | N186: 250000
F187: 165 | G187: =IF($C$8=1,VLOOKUP($F187,P_All!$A$5:$Y$204,3*($C$6-1)+2),IF($C$8=2,VLOOKUP($F187,P_All!$AB$5:$AZ$204,3*($C$6-1)+2),VLOOKUP($F187,P_All!$BB$5:$BZ$204,3*($C$6-1)+2))) -> 21235 | H187: =IF($C$8=1,VLOOKUP($F187,P_All!$A$5:$Y204,3*($C$6-1)+3),IF($C$8=2,VLOOKUP($F187,P_All!$AB$5:$AZ$204,3*($C$6-1)+3),VLOOKUP($F187,P_All!$BB$5:$BZ$204,3*($C$6-1)+3))) -> 25220 | I187: =IF($C$8=1,VLOOKUP($F187,P_All!$A$5:$Y$204,3*($C$6-1)+4),IF($C$8=2,VLOOKUP($F187,P_All!$AB$5:$AZ$204,3*($C$6-1)+4),VLOOKUP($F187,P_All!$BB$5:$BZ$204,3*($C$6-1)+4))) -> 30346 | J187: =VLOOKUP($F187,NA_All!$A$5:$G$204,IF(ISERROR($D$6),2,5)) -> 9110.4 | K187: =VLOOKUP($F187,NA_All!$A$5:$G$204,IF(ISERROR($D$6),3,6)) -> 9581.1 | L187: =VLOOKUP($F187,NA_All!$A$5:$G$204,IF(ISERROR($D$6),4,7)) -> 10077 | N187: 250000
F188: 166 | G188: =IF($C$8=1,VLOOKUP($F188,P_All!$A$5:$Y$204,3*($C$6-1)+2),IF($C$8=2,VLOOKUP($F188,P_All!$AB$5:$AZ$204,3*($C$6-1)+2),VLOOKUP($F188,P_All!$BB$5:$BZ$204,3*($C$6-1)+2))) -> 21150 | H188: =IF($C$8=1,VLOOKUP($F188,P_All!$A$5:$Y204,3*($C$6-1)+3),IF($C$8=2,VLOOKUP($F188,P_All!$AB$5:$AZ$204,3*($C$6-1)+3),VLOOKUP($F188,P_All!$BB$5:$BZ$204,3*($C$6-1)+3))) -> 25190 | I188: =IF($C$8=1,VLOOKUP($F188,P_All!$A$5:$Y$204,3*($C$6-1)+4),IF($C$8=2,VLOOKUP($F188,P_All!$AB$5:$AZ$204,3*($C$6-1)+4),VLOOKUP($F188,P_All!$BB$5:$BZ$204,3*($C$6-1)+4))) -> 30276 | J188: =VLOOKUP($F188,NA_All!$A$5:$G$204,IF(ISERROR($D$6),2,5)) -> 9110.4 | K188: =VLOOKUP($F188,NA_All!$A$5:$G$204,IF(ISERROR($D$6),3,6)) -> 9581.1 | L188: =VLOOKUP($F188,NA_All!$A$5:$G$204,IF(ISERROR($D$6),4,7)) -> 10077 | N188: 250000
F189: 167 | G189: =IF($C$8=1,VLOOKUP($F189,P_All!$A$5:$Y$204,3*($C$6-1)+2),IF($C$8=2,VLOOKUP($F189,P_All!$AB$5:$AZ$204,3*($C$6-1)+2),VLOOKUP($F189,P_All!$BB$5:$BZ$204,3*($C$6-1)+2))) -> 21065 | H189: =IF($C$8=1,VLOOKUP($F189,P_All!$A$5:$Y204,3*($C$6-1)+3),IF($C$8=2,VLOOKUP($F189,P_All!$AB$5:$AZ$204,3*($C$6-1)+3),VLOOKUP($F189,P_All!$BB$5:$BZ$204,3*($C$6-1)+3))) -> 25096 | I189: =IF($C$8=1,VLOOKUP($F189,P_All!$A$5:$Y$204,3*($C$6-1)+4),IF($C$8=2,VLOOKUP($F189,P_All!$AB$5:$AZ$204,3*($C$6-1)+4),VLOOKUP($F189,P_All!$BB$5:$BZ$204,3*($C$6-1)+4))) -> 30265 | J189: =VLOOKUP($F189,NA_All!$A$5:$G$204,IF(ISERROR($D$6),2,5)) -> 9110.4 | K189: =VLOOKUP($F189,NA_All!$A$5:$G$204,IF(ISERROR($D$6),3,6)) -> 9581.1 | L189: =VLOOKUP($F189,NA_All!$A$5:$G$204,IF(ISERROR($D$6),4,7)) -> 10077 | N189: 250000
F190: 168 | G190: =IF($C$8=1,VLOOKUP($F190,P_All!$A$5:$Y$204,3*($C$6-1)+2),IF($C$8=2,VLOOKUP($F190,P_All!$AB$5:$AZ$204,3*($C$6-1)+2),VLOOKUP($F190,P_All!$BB$5:$BZ$204,3*($C$6-1)+2))) -> 21027 | H190: =IF($C$8=1,VLOOKUP($F190,P_All!$A$5:$Y204,3*($C$6-1)+3),IF($C$8=2,VLOOKUP($F190,P_All!$AB$5:$AZ$204,3*($C$6-1)+3),VLOOKUP($F190,P_All!$BB$5:$BZ$204,3*($C$6-1)+3))) -> 25033 | I190: =IF($C$8=1,VLOOKUP($F190,P_All!$A$5:$Y$204,3*($C$6-1)+4),IF($C$8=2,VLOOKUP($F190,P_All!$AB$5:$AZ$204,3*($C$6-1)+4),VLOOKUP($F190,P_All!$BB$5:$BZ$204,3*($C$6-1)+4))) -> 30336 | J190: =VLOOKUP($F190,NA_All!$A$5:$G$204,IF(ISERROR($D$6),2,5)) -> 9110.4 | K190: =VLOOKUP($F190,NA_All!$A$5:$G$204,IF(ISERROR($D$6),3,6)) -> 9581.1 | L190: =VLOOKUP($F190,NA_All!$A$5:$G$204,IF(ISERROR($D$6),4,7)) -> 10077 | N190: 250000
F191: 169 | G191: =IF($C$8=1,VLOOKUP($F191,P_All!$A$5:$Y$204,3*($C$6-1)+2),IF($C$8=2,VLOOKUP($F191,P_All!$AB$5:$AZ$204,3*($C$6-1)+2),VLOOKUP($F191,P_All!$BB$5:$BZ$204,3*($C$6-1)+2))) -> 20987 | H191: =IF($C$8=1,VLOOKUP($F191,P_All!$A$5:$Y204,3*($C$6-1)+3),IF($C$8=2,VLOOKUP($F191,P_All!$AB$5:$AZ$204,3*($C$6-1)+3),VLOOKUP($F191,P_All!$BB$5:$BZ$204,3*($C$6-1)+3))) -> 24982 | I191: =IF($C$8=1,VLOOKUP($F191,P_All!$A$5:$Y$204,3*($C$6-1)+4),IF($C$8=2,VLOOKUP($F191,P_All!$AB$5:$AZ$204,3*($C$6-1)+4),VLOOKUP($F191,P_All!$BB$5:$BZ$204,3*($C$6-1)+4))) -> 30339 | J191: =VLOOKUP($F191,NA_All!$A$5:$G$204,IF(ISERROR($D$6),2,5)) -> 9110.4 | K191: =VLOOKUP($F191,NA_All!$A$5:$G$204,IF(ISERROR($D$6),3,6)) -> 9581.1 | L191: =VLOOKUP($F191,NA_All!$A$5:$G$204,IF(ISERROR($D$6),4,7)) -> 10077 | N191: 250000
F192: 170 | G192: =IF($C$8=1,VLOOKUP($F192,P_All!$A$5:$Y$204,3*($C$6-1)+2),IF($C$8=2,VLOOKUP($F192,P_All!$AB$5:$AZ$204,3*($C$6-1)+2),VLOOKUP($F192,P_All!$BB$5:$BZ$204,3*($C$6-1)+2))) -> 20902 | H192: =IF($C$8=1,VLOOKUP($F192,P_All!$A$5:$Y204,3*($C$6-1)+3),IF($C$8=2,VLOOKUP($F192,P_All!$AB$5:$AZ$204,3*($C$6-1)+3),VLOOKUP($F192,P_All!$BB$5:$BZ$204,3*($C$6-1)+3))) -> 24880 | I192: =IF($C$8=1,VLOOKUP($F192,P_All!$A$5:$Y$204,3*($C$6-1)+4),IF($C$8=2,VLOOKUP($F192,P_All!$AB$5:$AZ$204,3*($C$6-1)+4),VLOOKUP($F192,P_All!$BB$5:$BZ$204,3*($C$6-1)+4))) -> 30284 | J192: =VLOOKUP($F192,NA_All!$A$5:$G$204,IF(ISERROR($D$6),2,5)) -> 9110.4 | K192: =VLOOKUP($F192,NA_All!$A$5:$G$204,IF(ISERROR($D$6),3,6)) -> 9581.1 | L192: =VLOOKUP($F192,NA_All!$A$5:$G$204,IF(ISERROR($D$6),4,7)) -> 10077 | N192: 250000
F193: 171 | G193: =IF($C$8=1,VLOOKUP($F193,P_All!$A$5:$Y$204,3*($C$6-1)+2),IF($C$8=2,VLOOKUP($F193,P_All!$AB$5:$AZ$204,3*($C$6-1)+2),VLOOKUP($F193,P_All!$BB$5:$BZ$204,3*($C$6-1)+2))) -> 20816 | H193: =IF($C$8=1,VLOOKUP($F193,P_All!$A$5:$Y204,3*($C$6-1)+3),IF($C$8=2,VLOOKUP($F193,P_All!$AB$5:$AZ$204,3*($C$6-1)+3),VLOOKUP($F193,P_All!$BB$5:$BZ$204,3*($C$6-1)+3))) -> 24792 | I193: =IF($C$8=1,VLOOKUP($F193,P_All!$A$5:$Y$204,3*($C$6-1)+4),IF($C$8=2,VLOOKUP($F193,P_All!$AB$5:$AZ$204,3*($C$6-1)+4),VLOOKUP($F193,P_All!$BB$5:$BZ$204,3*($C$6-1)+4))) -> 30341 | J193: =VLOOKUP($F193,NA_All!$A$5:$G$204,IF(ISERROR($D$6),2,5)) -> 9110.4 | K193: =VLOOKUP($F193,NA_All!$A$5:$G$204,IF(ISERROR($D$6),3,6)) -> 9581.1 | L193: =VLOOKUP($F193,NA_All!$A$5:$G$204,IF(ISERROR($D$6),4,7)) -> 10077 | N193: 250000
F194: 172 | G194: =IF($C$8=1,VLOOKUP($F194,P_All!$A$5:$Y$204,3*($C$6-1)+2),IF($C$8=2,VLOOKUP($F194,P_All!$AB$5:$AZ$204,3*($C$6-1)+2),VLOOKUP($F194,P_All!$BB$5:$BZ$204,3*($C$6-1)+2))) -> 20763 | H194: =IF($C$8=1,VLOOKUP($F194,P_All!$A$5:$Y204,3*($C$6-1)+3),IF($C$8=2,VLOOKUP($F194,P_All!$AB$5:$AZ$204,3*($C$6-1)+3),VLOOKUP($F194,P_All!$BB$5:$BZ$204,3*($C$6-1)+3))) -> 24678 | I194: =IF($C$8=1,VLOOKUP($F194,P_All!$A$5:$Y$204,3*($C$6-1)+4),IF($C$8=2,VLOOKUP($F194,P_All!$AB$5:$AZ$204,3*($C$6-1)+4),VLOOKUP($F194,P_All!$BB$5:$BZ$204,3*($C$6-1)+4))) -> 30349 | J194: =VLOOKUP($F194,NA_All!$A$5:$G$204,IF(ISERROR($D$6),2,5)) -> 9110.4 | K194: =VLOOKUP($F194,NA_All!$A$5:$G$204,IF(ISERROR($D$6),3,6)) -> 9581.1 | L194: =VLOOKUP($F194,NA_All!$A$5:$G$204,IF(ISERROR($D$6),4,7)) -> 10077 | N194: 250000
F195: 173 | G195: =IF($C$8=1,VLOOKUP($F195,P_All!$A$5:$Y$204,3*($C$6-1)+2),IF($C$8=2,VLOOKUP($F195,P_All!$AB$5:$AZ$204,3*($C$6-1)+2),VLOOKUP($F195,P_All!$BB$5:$BZ$204,3*($C$6-1)+2))) -> 20679 | H195: =IF($C$8=1,VLOOKUP($F195,P_All!$A$5:$Y204,3*($C$6-1)+3),IF($C$8=2,VLOOKUP($F195,P_All!$AB$5:$AZ$204,3*($C$6-1)+3),VLOOKUP($F195,P_All!$BB$5:$BZ$204,3*($C$6-1)+3))) -> 24576 | I195: =IF($C$8=1,VLOOKUP($F195,P_All!$A$5:$Y$204,3*($C$6-1)+4),IF($C$8=2,VLOOKUP($F195,P_All!$AB$5:$AZ$204,3*($C$6-1)+4),VLOOKUP($F195,P_All!$BB$5:$BZ$204,3*($C$6-1)+4))) -> 30313 | J195: =VLOOKUP($F195,NA_All!$A$5:$G$204,IF(ISERROR($D$6),2,5)) -> 9110.4 | K195: =VLOOKUP($F195,NA_All!$A$5:$G$204,IF(ISERROR($D$6),3,6)) -> 9581.1 | L195: =VLOOKUP($F195,NA_All!$A$5:$G$204,IF(ISERROR($D$6),4,7)) -> 10077 | N195: 250000
F196: 174 | G196: =IF($C$8=1,VLOOKUP($F196,P_All!$A$5:$Y$204,3*($C$6-1)+2),IF($C$8=2,VLOOKUP($F196,P_All!$AB$5:$AZ$204,3*($C$6-1)+2),VLOOKUP($F196,P_All!$BB$5:$BZ$204,3*($C$6-1)+2))) -> 20674 | H196: =IF($C$8=1,VLOOKUP($F196,P_All!$A$5:$Y204,3*($C$6-1)+3),IF($C$8=2,VLOOKUP($F196,P_All!$AB$5:$AZ$204,3*($C$6-1)+3),VLOOKUP($F196,P_All!$BB$5:$BZ$204,3*($C$6-1)+3))) -> 24490 | I196: =IF($C$8=1,VLOOKUP($F196,P_All!$A$5:$Y$204,3*($C$6-1)+4),IF($C$8=2,VLOOKUP($F196,P_All!$AB$5:$AZ$204,3*($C$6-1)+4),VLOOKUP($F196,P_All!$BB$5:$BZ$204,3*($C$6-1)+4))) -> 30229 | J196: =VLOOKUP($F196,NA_All!$A$5:$G$204,IF(ISERROR($D$6),2,5)) -> 9110.4 | K196: =VLOOKUP($F196,NA_All!$A$5:$G$204,IF(ISERROR($D$6),3,6)) -> 9581.1 | L196: =VLOOKUP($F196,NA_All!$A$5:$G$204,IF(ISERROR($D$6),4,7)) -> 10077 | N196: 250000
F197: 175 | G197: =IF($C$8=1,VLOOKUP($F197,P_All!$A$5:$Y$204,3*($C$6-1)+2),IF($C$8=2,VLOOKUP($F197,P_All!$AB$5:$AZ$204,3*($C$6-1)+2),VLOOKUP($F197,P_All!$BB$5:$BZ$204,3*($C$6-1)+2))) -> 20604 | H197: =IF($C$8=1,VLOOKUP($F197,P_All!$A$5:$Y204,3*($C$6-1)+3),IF($C$8=2,VLOOKUP($F197,P_All!$AB$5:$AZ$204,3*($C$6-1)+3),VLOOKUP($F197,P_All!$BB$5:$BZ$204,3*($C$6-1)+3))) -> 24394 | I197: =IF($C$8=1,VLOOKUP($F197,P_All!$A$5:$Y$204,3*($C$6-1)+4),IF($C$8=2,VLOOKUP($F197,P_All!$AB$5:$AZ$204,3*($C$6-1)+4),VLOOKUP($F197,P_All!$BB$5:$BZ$204,3*($C$6-1)+4))) -> 30125 | J197: =VLOOKUP($F197,NA_All!$A$5:$G$204,IF(ISERROR($D$6),2,5)) -> 9110.4 | K197: =VLOOKUP($F197,NA_All!$A$5:$G$204,IF(ISERROR($D$6),3,6)) -> 9581.1 | L197: =VLOOKUP($F197,NA_All!$A$5:$G$204,IF(ISERROR($D$6),4,7)) -> 10077 | N197: 250000
F198: 176 | G198: =IF($C$8=1,VLOOKUP($F198,P_All!$A$5:$Y$204,3*($C$6-1)+2),IF($C$8=2,VLOOKUP($F198,P_All!$AB$5:$AZ$204,3*($C$6-1)+2),VLOOKUP($F198,P_All!$BB$5:$BZ$204,3*($C$6-1)+2))) -> 20554 | H198: =IF($C$8=1,VLOOKUP($F198,P_All!$A$5:$Y204,3*($C$6-1)+3),IF($C$8=2,VLOOKUP($F198,P_All!$AB$5:$AZ$204,3*($C$6-1)+3),VLOOKUP($F198,P_All!$BB$5:$BZ$204,3*($C$6-1)+3))) -> 24305 | I198: =IF($C$8=1,VLOOKUP($F198,P_All!$A$5:$Y$204,3*($C$6-1)+4),IF($C$8=2,VLOOKUP($F198,P_All!$AB$5:$AZ$204,3*($C$6-1)+4),VLOOKUP($F198,P_All!$BB$5:$BZ$204,3*($C$6-1)+4))) -> 30107 | J198: =VLOOKUP($F198,NA_All!$A$5:$G$204,IF(ISERROR($D$6),2,5)) -> 9110.4 | K198: =VLOOKUP($F198,NA_All!$A$5:$G$204,IF(ISERROR($D$6),3,6)) -> 9581.1 | L198: =VLOOKUP($F198,NA_All!$A$5:$G$204,IF(ISERROR($D$6),4,7)) -> 10077 | N198: 250000
F199: 177 | G199: =IF($C$8=1,VLOOKUP($F199,P_All!$A$5:$Y$204,3*($C$6-1)+2),IF($C$8=2,VLOOKUP($F199,P_All!$AB$5:$AZ$204,3*($C$6-1)+2),VLOOKUP($F199,P_All!$BB$5:$BZ$204,3*($C$6-1)+2))) -> 20467 | H199: =IF($C$8=1,VLOOKUP($F199,P_All!$A$5:$Y204,3*($C$6-1)+3),IF($C$8=2,VLOOKUP($F199,P_All!$AB$5:$AZ$204,3*($C$6-1)+3),VLOOKUP($F199,P_All!$BB$5:$BZ$204,3*($C$6-1)+3))) -> 24206 | I199: =IF($C$8=1,VLOOKUP($F199,P_All!$A$5:$Y$204,3*($C$6-1)+4),IF($C$8=2,VLOOKUP($F199,P_All!$AB$5:$AZ$204,3*($C$6-1)+4),VLOOKUP($F199,P_All!$BB$5:$BZ$204,3*($C$6-1)+4))) -> 30072 | J199: =VLOOKUP($F199,NA_All!$A$5:$G$204,IF(ISERROR($D$6),2,5)) -> 9110.4 | K199: =VLOOKUP($F199,NA_All!$A$5:$G$204,IF(ISERROR($D$6),3,6)) -> 9581.1 | L199: =VLOOKUP($F199,NA_All!$A$5:$G$204,IF(ISERROR($D$6),4,7)) -> 10077 | N199: 250000
F200: 178 | G200: =IF($C$8=1,VLOOKUP($F200,P_All!$A$5:$Y$204,3*($C$6-1)+2),IF($C$8=2,VLOOKUP($F200,P_All!$AB$5:$AZ$204,3*($C$6-1)+2),VLOOKUP($F200,P_All!$BB$5:$BZ$204,3*($C$6-1)+2))) -> 20403 | H200: =IF($C$8=1,VLOOKUP($F200,P_All!$A$5:$Y204,3*($C$6-1)+3),IF($C$8=2,VLOOKUP($F200,P_All!$AB$5:$AZ$204,3*($C$6-1)+3),VLOOKUP($F200,P_All!$BB$5:$BZ$204,3*($C$6-1)+3))) -> 24107 | I200: =IF($C$8=1,VLOOKUP($F200,P_All!$A$5:$Y$204,3*($C$6-1)+4),IF($C$8=2,VLOOKUP($F200,P_All!$AB$5:$AZ$204,3*($C$6-1)+4),VLOOKUP($F200,P_All!$BB$5:$BZ$204,3*($C$6-1)+4))) -> 30007 | J200: =VLOOKUP($F200,NA_All!$A$5:$G$204,IF(ISERROR($D$6),2,5)) -> 9110.4 | K200: =VLOOKUP($F200,NA_All!$A$5:$G$204,IF(ISERROR($D$6),3,6)) -> 9581.1 | L200: =VLOOKUP($F200,NA_All!$A$5:$G$204,IF(ISERROR($D$6),4,7)) -> 10077 | N200: 250000
F201: 179 | G201: =IF($C$8=1,VLOOKUP($F201,P_All!$A$5:$Y$204,3*($C$6-1)+2),IF($C$8=2,VLOOKUP($F201,P_All!$AB$5:$AZ$204,3*($C$6-1)+2),VLOOKUP($F201,P_All!$BB$5:$BZ$204,3*($C$6-1)+2))) -> 20312 | H201: =IF($C$8=1,VLOOKUP($F201,P_All!$A$5:$Y204,3*($C$6-1)+3),IF($C$8=2,VLOOKUP($F201,P_All!$AB$5:$AZ$204,3*($C$6-1)+3),VLOOKUP($F201,P_All!$BB$5:$BZ$204,3*($C$6-1)+3))) -> 24009 | I201: =IF($C$8=1,VLOOKUP($F201,P_All!$A$5:$Y$204,3*($C$6-1)+4),IF($C$8=2,VLOOKUP($F201,P_All!$AB$5:$AZ$204,3*($C$6-1)+4),VLOOKUP($F201,P_All!$BB$5:$BZ$204,3*($C$6-1)+4))) -> 29950 | J201: =VLOOKUP($F201,NA_All!$A$5:$G$204,IF(ISERROR($D$6),2,5)) -> 9110.4 | K201: =VLOOKUP($F201,NA_All!$A$5:$G$204,IF(ISERROR($D$6),3,6)) -> 9581.1 | L201: =VLOOKUP($F201,NA_All!$A$5:$G$204,IF(ISERROR($D$6),4,7)) -> 10077 | N201: 250000
F202: 180 | G202: =IF($C$8=1,VLOOKUP($F202,P_All!$A$5:$Y$204,3*($C$6-1)+2),IF($C$8=2,VLOOKUP($F202,P_All!$AB$5:$AZ$204,3*($C$6-1)+2),VLOOKUP($F202,P_All!$BB$5:$BZ$204,3*($C$6-1)+2))) -> 20225 | H202: =IF($C$8=1,VLOOKUP($F202,P_All!$A$5:$Y204,3*($C$6-1)+3),IF($C$8=2,VLOOKUP($F202,P_All!$AB$5:$AZ$204,3*($C$6-1)+3),VLOOKUP($F202,P_All!$BB$5:$BZ$204,3*($C$6-1)+3))) -> 23918 | I202: =IF($C$8=1,VLOOKUP($F202,P_All!$A$5:$Y$204,3*($C$6-1)+4),IF($C$8=2,VLOOKUP($F202,P_All!$AB$5:$AZ$204,3*($C$6-1)+4),VLOOKUP($F202,P_All!$BB$5:$BZ$204,3*($C$6-1)+4))) -> 29917 | J202: =VLOOKUP($F202,NA_All!$A$5:$G$204,IF(ISERROR($D$6),2,5)) -> 9110.4 | K202: =VLOOKUP($F202,NA_All!$A$5:$G$204,IF(ISERROR($D$6),3,6)) -> 9581.1 | L202: =VLOOKUP($F202,NA_All!$A$5:$G$204,IF(ISERROR($D$6),4,7)) -> 10077 | N202: 250000
F203: 181 | G203: =IF($C$8=1,VLOOKUP($F203,P_All!$A$5:$Y$204,3*($C$6-1)+2),IF($C$8=2,VLOOKUP($F203,P_All!$AB$5:$AZ$204,3*($C$6-1)+2),VLOOKUP($F203,P_All!$BB$5:$BZ$204,3*($C$6-1)+2))) -> 20141 | H203: =IF($C$8=1,VLOOKUP($F203,P_All!$A$5:$Y204,3*($C$6-1)+3),IF($C$8=2,VLOOKUP($F203,P_All!$AB$5:$AZ$204,3*($C$6-1)+3),VLOOKUP($F203,P_All!$BB$5:$BZ$204,3*($C$6-1)+3))) -> 23821 | I203: =IF($C$8=1,VLOOKUP($F203,P_All!$A$5:$Y$204,3*($C$6-1)+4),IF($C$8=2,VLOOKUP($F203,P_All!$AB$5:$AZ$204,3*($C$6-1)+4),VLOOKUP($F203,P_All!$BB$5:$BZ$204,3*($C$6-1)+4))) -> 29889 | J203: =VLOOKUP($F203,NA_All!$A$5:$G$204,IF(ISERROR($D$6),2,5)) -> 9110.4 | K203: =VLOOKUP($F203,NA_All!$A$5:$G$204,IF(ISERROR($D$6),3,6)) -> 9581.1 | L203: =VLOOKUP($F203,NA_All!$A$5:$G$204,IF(ISERROR($D$6),4,7)) -> 10077 | N203: 250000
F204: 182 | G204: =IF($C$8=1,VLOOKUP($F204,P_All!$A$5:$Y$204,3*($C$6-1)+2),IF($C$8=2,VLOOKUP($F204,P_All!$AB$5:$AZ$204,3*($C$6-1)+2),VLOOKUP($F204,P_All!$BB$5:$BZ$204,3*($C$6-1)+2))) -> 20057 | H204: =IF($C$8=1,VLOOKUP($F204,P_All!$A$5:$Y204,3*($C$6-1)+3),IF($C$8=2,VLOOKUP($F204,P_All!$AB$5:$AZ$204,3*($C$6-1)+3),VLOOKUP($F204,P_All!$BB$5:$BZ$204,3*($C$6-1)+3))) -> 23725 | I204: =IF($C$8=1,VLOOKUP($F204,P_All!$A$5:$Y$204,3*($C$6-1)+4),IF($C$8=2,VLOOKUP($F204,P_All!$AB$5:$AZ$204,3*($C$6-1)+4),VLOOKUP($F204,P_All!$BB$5:$BZ$204,3*($C$6-1)+4))) -> 29835 | J204: =VLOOKUP($F204,NA_All!$A$5:$G$204,IF(ISERROR($D$6),2,5)) -> 9110.4 | K204: =VLOOKUP($F204,NA_All!$A$5:$G$204,IF(ISERROR($D$6),3,6)) -> 9581.1 | L204: =VLOOKUP($F204,NA_All!$A$5:$G$204,IF(ISERROR($D$6),4,7)) -> 10077 | N204: 250000
... 18 more rows

Sheet P_All
B1: Values shown for constituent selected on PlotControl tab | AC1: Values shown for constituent selected on PlotControl tab | BC1: Values shown for constituent selected on PlotControl tab
B2: =Control!$A4 -> EPCat23_Dunka | E2: EPbed_Dunka | H2: =Control!$A13 -> OSP_Dunka | K2: =Control!$A16 -> WWTF_Dunka | N2: =Control!$A10 -> OSLA_Dunka | Q2: =Control!$A19 -> WPsurf_Dunka | T2: WPbed4_Dunka | W2: WPbed4a_Dunka | AC2: =Control!$A5 -> EPCat23_Prop | AF2: =Control!$A8 -> EPbed_Prop | AI2: OSP_Prop | AL2: =Control!$A17 -> WWTF_Prop | AO2: =Control!$A11 -> OSLA_Prop | AR2: =Control!$A20 -> WPsurf_Prop | AU2: =Control!$A23 -> WPbed4_Prop | AX2: =Control!$A26 -> WPbed4a_Prop | BC2: =Control!$A6 -> EPCat23_Part | BF2: =Control!$A9 -> EPbed_Part | BI2: OSP_Part1 | BL2: =Control!$A18 -> WWTF_Part | BO2: =Control!$A12 -> OSLA_Part | BR2: =Control!$A21 -> WPsurf_Part | BU2: =Control!$A24 -> WPbed4_Part | BX2: =Control!$A27 -> WPbed4a_Part
B3: Annual Results at Dunka | E3: Annual Results at Dunka | H3: Annual Results at Dunka | K3: Annual Results at Dunka | N3: Annual Results at Dunka | Q3: Annual Results at Dunka | T3: Annual Results at Dunka | W3: Annual Results at Dunka | AC3: Annual Results at Prop. Bdry | AF3: Annual Results at Prop. Bdry | AI3: Annual Results at Prop. Bdry | AL3: Annual Results at Prop. Bdry | AO3: Annual Results at Prop. Bdry | AR3: Annual Results at Prop. Bdry | AU3: Annual Results at Prop. Bdry | AX3: Annual Results at Prop. Bdry | BC3: Annual Results at Partridge | BF3: Annual Results at Partridge | BI3: Annual Results at Partridge | BL3: Annual Results at Partridge | BO3: Annual Results at Partridge | BR3: Annual Results at Partridge | BU3: Annual Results at Partridge | BX3: Annual Results at Partridge
A4: Time | B4: P10 | C4: P50 | D4: P90 | E4: P10 | F4: P50 | G4: P90 | H4: P10 | I4: P50 | J4: P90 | K4: P10 | L4: P50 | M4: P90 | N4: P10 | O4: P50 | P4: P90 | Q4: P10 | R4: P50 | S4: P90 | T4: P10 | U4: P50 | V4: P90 | W4: P10 | X4: P50 | Y4: P90 | AB4: Time | AC4: P10 | AD4: P50 | AE4: P90 | AF4: P10 | AG4: P50 | AH4: P90 | AI4: P10 | AJ4: P50 | AK4: P90 | AL4: P10 | AM4: P50 | AN4: P90 | AO4: P10 | AP4: P50 | AQ4: P90 | AR4: P10 | AS4: P50 | AT4: P90 | AU4: P10 | AV4: P50 | AW4: P90 | AX4: P10 | AY4: P50 | AZ4: P90 | BB4: Time | BC4: P10 | BD4: P50 | BE4: P90 | BF4: P10 | BG4: P50 | BH4: P90 | BI4: P10 | BJ4: P50 | BK4: P90 | BL4: P10 | BM4: P50 | BN4: P90 | BO4: P10 | BP4: P50 | BQ4: P90 | BR4: P10 | BS4: P50 | BT4: P90 | BU4: P10 | BV4: P50 | BW4: P90 | BX4: P10 | BY4: P50 | BZ4: P90
A5: 1 | B5: =MAX(OFFSET(EPCat23_Dunka!$C$10,12*($A5-1),4*(PlotControl!$C$4-1),12,1)) -> 9113.2 | C5: =MAX(OFFSET(EPCat23_Dunka!$D$10,12*($A5-1),4*(PlotControl!$C$4-1),12,1)) -> 9583.4 | D5: =MAX(OFFSET(EPCat23_Dunka!$E$10,12*($A5-1),4*(PlotControl!$C$4-1),12,1)) -> 10078 | H5: =MAX(OFFSET(OSP_Dunka!$C$10,12*($A5-1),4*(PlotControl!$C$4-1),12,1)) -> 9110.4 | I5: =MAX(OFFSET(OSP_Dunka!$D$10,12*($A5-1),4*(PlotControl!$C$4-1),12,1)) -> 9581.1 | J5: =MAX(OFFSET(OSP_Dunka!$E$10,12*($A5-1),4*(PlotControl!$C$4-1),12,1)) -> 10077 | K5: =MAX(OFFSET(WWTF_Dunka!$C$10,12*($A5-1),4*(PlotControl!$C$4-1),12,1)) -> 9110.4 | L5: =MAX(OFFSET(WWTF_Dunka!$D$10,12*($A5-1),4*(PlotControl!$C$4-1),12,1)) -> 9581.1 | M5: =MAX(OFFSET(WWTF_Dunka!$E$10,12*($A5-1),4*(PlotControl!$C$4-1),12,1)) -> 10077 | N5: =MAX(OFFSET(OSLA_Dunka!$C$10,12*($A5-1),4*(PlotControl!$C$4-1),12,1)) -> 11580 | O5: =MAX(OFFSET(OSLA_Dunka!$D$10,12*($A5-1),4*(PlotControl!$C$4-1),12,1)) -> 12458 | P5: =MAX(OFFSET(OSLA_Dunka!$E$10,12*($A5-1),4*(PlotControl!$C$4-1),12,1)) -> 13540 | Q5: =MAX(OFFSET(WPsurf_Dunka!$C$10,12*($A5-1),4*(PlotControl!$C$4-1),12,1)) -> 9110.4 | R5: =MAX(OFFSET(WPsurf_Dunka!$D$10,12*($A5-1),4*(PlotControl!$C$4-1),12,1)) -> 9581.1 | S5: =MAX(OFFSET(WPsurf_Dunka!$E$10,12*($A5-1),4*(PlotControl!$C$4-1),12,1)) -> 10077 | AB5: 1 | AC5: =MAX(OFFSET(EPCat23_Prop!$C$10,12*($AB5-1),4*(PlotControl!$C$4-1),12,1)) -> 9110.4 | AD5: =MAX(OFFSET(EPCat23_Prop!$D$10,12*($AB5-1),4*(PlotControl!$C$4-1),12,1)) -> 9581.1 | AE5: =MAX(OFFSET(EPCat23_Prop!$E$10,12*($AB5-1),4*(PlotControl!$C$4-1),12,1)) -> 10077 | AF5: =MAX(OFFSET(EPbed_Prop!$C$10,12*($AB5-1),4*(PlotControl!$C$4-1),12,1)) -> 20929 | AG5: =MAX(OFFSET(EPbed_Prop!$D$10,12*($AB5-1),4*(PlotControl!$C$4-1),12,1)) -> 24964 | AH5: =MAX(OFFSET(EPbed_Prop!$E$10,12*($AB5-1),4*(PlotControl!$C$4-1),12,1)) -> 29770 | AL5: =MAX(OFFSET(WWTF_Prop!$C$10,12*($AB5-1),4*(PlotControl!$C$4-1),12,1)) -> 9110.4 | AM5: =MAX(OFFSET(WWTF_Prop!$D$10,12*($AB5-1),4*(PlotControl!$C$4-1),12,1)) -> 9581.1 | AN5: =MAX(OFFSET(WWTF_Prop!$E$10,12*($AB5-1),4*(PlotControl!$C$4-1),12,1)) -> 10077 | AO5: =MAX(OFFSET(OSLA_Prop!$C$10,12*($AB5-1),4*(PlotControl!$C$4-1),12,1)) -> 9110.7 | AP5: =MAX(OFFSET(OSLA_Prop!$D$10,12*($AB5-1),4*(PlotControl!$C$4-1),12,1)) -> 9581.1 | AQ5: =MAX(OFFSET(OSLA_Prop!$E$10,12*($AB5-1),4*(PlotControl!$C$4-1),12,1)) -> 10077 | AR5: =MAX(OFFSET(WPsurf_Prop!$C$10,12*($AB5-1),4*(PlotControl!$C$4-1),12,1)) -> 9110.4 | AS5: =MAX(OFFSET(WPsurf_Prop!$D$10,12*($AB5-1),4*(PlotControl!$C$4-1),12,1)) -> 9581.1 | AT5: =MAX(OFFSET(WPsurf_Prop!$E$10,12*($AB5-1),4*(PlotControl!$C$4-1),12,1)) -> 10077 | AU5: =MAX(OFFSET(WPbed4_Prop!$C$10,12*($AB5-1),4*(PlotControl!$C$4-1),12,1)) -> 20929 | AV5: =MAX(OFFSET(WPbed4_Prop!$D$10,12*($AB5-1),4*(PlotControl!$C$4-1),12,1)) -> 24964 | AW5: =MAX(OFFSET(WPbed4_Prop!$E$10,12*($AB5-1),4*(PlotControl!$C$4-1),12,1)) -> 29770 | AX5: =MAX(OFFSET(WPbed4a_Prop!$C$10,12*($AB5-1),4*(PlotControl!$C$4-1),12,1)) -> 20929 | AY5: =MAX(OFFSET(WPbed4a_Prop!$D$10,12*($AB5-1),4*(PlotControl!$C$4-1),12,1)) -> 24964 | AZ5: =MAX(OFFSET(WPbed4a_Prop!$E$10,12*($AB5-1),4*(PlotControl!$C$4-1),12,1)) -> 29770 | BB5: 1 | BC5: =MAX(OFFSET(EPCat23_Part!$C$10,12*($BB5-1),4*(PlotControl!$C$4-1),12,1)) -> 9110.4 | BD5: =MAX(OFFSET(EPCat23_Part!$D$10,12*($BB5-1),4*(PlotControl!$C$4-1),12,1)) -> 9581.1 | BE5: =MAX(OFFSET(EPCat23_Part!$E$10,12*($BB5-1),4*(PlotControl!$C$4-1),12,1)) -> 10077 | BI5: =MAX(OFFSET(OSP_Part1!$C$10,12*($BB5-1),4*(PlotControl!$C$4-1),12,1)) -> 9110.4 | BJ5: =MAX(OFFSET(OSP_Part1!$D$10,12*($BB5-1),4*(PlotControl!$C$4-1),12,1)) -> 9581.1 | BK5: =MAX(OFFSET(OSP_Part1!$E$10,12*($BB5-1),4*(PlotControl!$C$4-1),12,1)) -> 10077 | BL5: =MAX(OFFSET(WWTF_Part!$C$10,12*($BB5-1),4*(PlotControl!$C$4-1),12,1)) -> 9110.4 | BM5: =MAX(OFFSET(WWTF_Part!$D$10,12*($BB5-1),4*(PlotControl!$C$4-1),12,1)) -> 9581.1 | BN5: =MAX(OFFSET(WWTF_Part!$E$10,12*($BB5-1),4*(PlotControl!$C$4-1),12,1)) -> 10077 | BO5: =MAX(OFFSET(OSLA_Part!$C$10,12*($BB5-1),4*(PlotControl!$C$4-1),12,1)) -> 9110.4 | BP5: =MAX(OFFSET(OSLA_Part!$D$10,12*($BB5-1),4*(PlotControl!$C$4-1),12,1)) -> 9581.1 | BQ5: =MAX(OFFSET(OSLA_Part!$E$10,12*($BB5-1),4*(PlotControl!$C$4-1),12,1)) -> 10077 | BR5: =MAX(OFFSET(WPsurf_Part!$C$10,12*($BB5-1),4*(PlotControl!$C$4-1),12,1)) -> 9110.4 | BS5: =MAX(OFFSET(WPsurf_Part!$D$10,12*($BB5-1),4*(PlotControl!$C$4-1),12,1)) -> 9581.1 | BT5: =MAX(OFFSET(WPsurf_Part!$E$10,12*($BB5-1),4*(PlotControl!$C$4-1),12,1)) -> 10077
A6: 2 | B6: =MAX(OFFSET(EPCat23_Dunka!$C$10,12*($A6-1),4*(PlotControl!$C$4-1),12,1)) -> 9124.3 | C6: =MAX(OFFSET(EPCat23_Dunka!$D$10,12*($A6-1),4*(PlotControl!$C$4-1),12,1)) -> 9594.4 | D6: =MAX(OFFSET(EPCat23_Dunka!$E$10,12*($A6-1),4*(PlotControl!$C$4-1),12,1)) -> 10096 | H6: =MAX(OFFSET(OSP_Dunka!$C$10,12*($A6-1),4*(PlotControl!$C$4-1),12,1)) -> 9110.4 | I6: =MAX(OFFSET(OSP_Dunka!$D$10,12*($A6-1),4*(PlotControl!$C$4-1),12,1)) -> 9581.1 | J6: =MAX(OFFSET(OSP_Dunka!$E$10,12*($A6-1),4*(PlotControl!$C$4-1),12,1)) -> 10077 | K6: =MAX(OFFSET(WWTF_Dunka!$C$10,12*($A6-1),4*(PlotControl!$C$4-1),12,1)) -> 9110.5 | L6: =MAX(OFFSET(WWTF_Dunka!$D$10,12*($A6-1),4*(PlotControl!$C$4-1),12,1)) -> 9581.1 | M6: =MAX(OFFSET(WWTF_Dunka!$E$10,12*($A6-1),4*(PlotControl!$C$4-1),12,1)) -> 10077 | N6: =MAX(OFFSET(OSLA_Dunka!$C$10,12*($A6-1),4*(PlotControl!$C$4-1),12,1)) -> 13916 | O6: =MAX(OFFSET(OSLA_Dunka!$D$10,12*($A6-1),4*(PlotControl!$C$4-1),12,1)) -> 15190 | P6: =MAX(OFFSET(OSLA_Dunka!$E$10,12*($A6-1),4*(PlotControl!$C$4-1),12,1)) -> 16947 | Q6: =MAX(OFFSET(WPsurf_Dunka!$C$10,12*($A6-1),4*(PlotControl!$C$4-1),12,1)) -> 9110.4 | R6: =MAX(OFFSET(WPsurf_Dunka!$D$10,12*($A6-1),4*(PlotControl!$C$4-1),12,1)) -> 9581.1 | S6: =MAX(OFFSET(WPsurf_Dunka!$E$10,12*($A6-1),4*(PlotControl!$C$4-1),12,1)) -> 10077 | AB6: 2 | AC6: =MAX(OFFSET(EPCat23_Prop!$C$10,12*($AB6-1),4*(PlotControl!$C$4-1),12,1)) -> 9110.5 | AD6: =MAX(OFFSET(EPCat23_Prop!$D$10,12*($AB6-1),4*(PlotControl!$C$4-1),12,1)) -> 9581.1 | AE6: =MAX(OFFSET(EPCat23_Prop!$E$10,12*($AB6-1),4*(PlotControl!$C$4-1),12,1)) -> 10077 | AF6: =MAX(OFFSET(EPbed_Prop!$C$10,12*($AB6-1),4*(PlotControl!$C$4-1),12,1)) -> 20929 | AG6: =MAX(OFFSET(EPbed_Prop!$D$10,12*($AB6-1),4*(PlotControl!$C$4-1),12,1)) -> 24964 | AH6: =MAX(OFFSET(EPbed_Prop!$E$10,12*($AB6-1),4*(PlotControl!$C$4-1),12,1)) -> 29770 | AL6: =MAX(OFFSET(WWTF_Prop!$C$10,12*($AB6-1),4*(PlotControl!$C$4-1),12,1)) -> 9110.4 | AM6: =MAX(OFFSET(WWTF_Prop!$D$10,12*($AB6-1),4*(PlotControl!$C$4-1),12,1)) -> 9581.1 | AN6: =MAX(OFFSET(WWTF_Prop!$E$10,12*($AB6-1),4*(PlotControl!$C$4-1),12,1)) -> 10077 | AO6: =MAX(OFFSET(OSLA_Prop!$C$10,12*($AB6-1),4*(PlotControl!$C$4-1),12,1)) -> 9116.4 | AP6: =MAX(OFFSET(OSLA_Prop!$D$10,12*($AB6-1),4*(PlotControl!$C$4-1),12,1)) -> 9585.9 | AQ6: =MAX(OFFSET(OSLA_Prop!$E$10,12*($AB6-1),4*(PlotControl!$C$4-1),12,1)) -> 10088 | AR6: =MAX(OFFSET(WPsurf_Prop!$C$10,12*($AB6-1),4*(PlotControl!$C$4-1),12,1)) -> 9110.4 | AS6: =MAX(OFFSET(WPsurf_Prop!$D$10,12*($AB6-1),4*(PlotControl!$C$4-1),12,1)) -> 9581.1 | AT6: =MAX(OFFSET(WPsurf_Prop!$E$10,12*($AB6-1),4*(PlotControl!$C$4-1),12,1)) -> 10077 | AU6: =MAX(OFFSET(WPbed4_Prop!$C$10,12*($AB6-1),4*(PlotControl!$C$4-1),12,1)) -> 20929 | AV6: =MAX(OFFSET(WPbed4_Prop!$D$10,12*($AB6-1),4*(PlotControl!$C$4-1),12,1)) -> 24964 | AW6: =MAX(OFFSET(WPbed4_Prop!$E$10,12*($AB6-1),4*(PlotControl!$C$4-1),12,1)) -> 29770 | AX6: =MAX(OFFSET(WPbed4a_Prop!$C$10,12*($AB6-1),4*(PlotControl!$C$4-1),12,1)) -> 20929 | AY6: =MAX(OFFSET(WPbed4a_Prop!$D$10,12*($AB6-1),4*(PlotControl!$C$4-1),12,1)) -> 24964 | AZ6: =MAX(OFFSET(WPbed4a_Prop!$E$10,12*($AB6-1),4*(PlotControl!$C$4-1),12,1)) -> 29770 | BB6: 2 | BC6: =MAX(OFFSET(EPCat23_Part!$C$10,12*($BB6-1),4*(PlotControl!$C$4-1),12,1)) -> 9110.4 | BD6: =MAX(OFFSET(EPCat23_Part!$D$10,12*($BB6-1),4*(PlotControl!$C$4-1),12,1)) -> 9581.1 | BE6: =MAX(OFFSET(EPCat23_Part!$E$10,12*($BB6-1),4*(PlotControl!$C$4-1),12,1)) -> 10077 | BI6: =MAX(OFFSET(OSP_Part1!$C$10,12*($BB6-1),4*(PlotControl!$C$4-1),12,1)) -> 9110.4 | BJ6: =MAX(OFFSET(OSP_Part1!$D$10,12*($BB6-1),4*(PlotControl!$C$4-1),12,1)) -> 9581.1 | BK6: =MAX(OFFSET(OSP_Part1!$E$10,12*($BB6-1),4*(PlotControl!$C$4-1),12,1)) -> 10077 | BL6: =MAX(OFFSET(WWTF_Part!$C$10,12*($BB6-1),4*(PlotControl!$C$4-1),12,1)) -> 9110.4 | BM6: =MAX(OFFSET(WWTF_Part!$D$10,12*($BB6-1),4*(PlotControl!$C$4-1),12,1)) -> 9581.1 | BN6: =MAX(OFFSET(WWTF_Part!$E$10,12*($BB6-1),4*(PlotControl!$C$4-1),12,1)) -> 10077 | BO6: =MAX(OFFSET(OSLA_Part!$C$10,12*($BB6-1),4*(PlotControl!$C$4-1),12,1)) -> 9110.4 | BP6: =MAX(OFFSET(OSLA_Part!$D$10,12*($BB6-1),4*(PlotControl!$C$4-1),12,1)) -> 9581.1 | BQ6: =MAX(OFFSET(OSLA_Part!$E$10,12*($BB6-1),4*(PlotControl!$C$4-1),12,1)) -> 10077 | BR6: =MAX(OFFSET(WPsurf_Part!$C$10,12*($BB6-1),4*(PlotControl!$C$4-1),12,1)) -> 9110.4 | BS6: =MAX(OFFSET(WPsurf_Part!$D$10,12*($BB6-1),4*(PlotControl!$C$4-1),12,1)) -> 9581.1 | BT6: =MAX(OFFSET(WPsurf_Part!$E$10,12*($BB6-1),4*(PlotControl!$C$4-1),12,1)) -> 10077
A7: 3 | B7: =MAX(OFFSET(EPCat23_Dunka!$C$10,12*($A7-1),4*(PlotControl!$C$4-1),12,1)) -> 9148.5 | C7: =MAX(OFFSET(EPCat23_Dunka!$D$10,12*($A7-1),4*(PlotControl!$C$4-1),12,1)) -> 9613.6 | D7: =MAX(OFFSET(EPCat23_Dunka!$E$10,12*($A7-1),4*(PlotControl!$C$4-1),12,1)) -> 10115 | H7: =MAX(OFFSET(OSP_Dunka!$C$10,12*($A7-1),4*(PlotControl!$C$4-1),12,1)) -> 9110.4 | I7: =MAX(OFFSET(OSP_Dunka!$D$10,12*($A7-1),4*(PlotControl!$C$4-1),12,1)) -> 9581.1 | J7: =MAX(OFFSET(OSP_Dunka!$E$10,12*($A7-1),4*(PlotControl!$C$4-1),12,1)) -> 10077 | K7: =MAX(OFFSET(WWTF_Dunka!$C$10,12*($A7-1),4*(PlotControl!$C$4-1),12,1)) -> 9110.8 | L7: =MAX(OFFSET(WWTF_Dunka!$D$10,12*($A7-1),4*(PlotControl!$C$4-1),12,1)) -> 9581.3 | M7: =MAX(OFFSET(WWTF_Dunka!$E$10,12*($A7-1),4*(PlotControl!$C$4-1),12,1)) -> 10077 | N7: =MAX(OFFSET(OSLA_Dunka!$C$10,12*($A7-1),4*(PlotControl!$C$4-1),12,1)) -> 15975 | O7: =MAX(OFFSET(OSLA_Dunka!$D$10,12*($A7-1),4*(PlotControl!$C$4-1),12,1)) -> 17716 | P7: =MAX(OFFSET(OSLA_Dunka!$E$10,12*($A7-1),4*(PlotControl!$C$4-1),12,1)) -> 19905 | Q7: =MAX(OFFSET(WPsurf_Dunka!$C$10,12*($A7-1),4*(PlotControl!$C$4-1),12,1)) -> 9110.4 | R7: =MAX(OFFSET(WPsurf_Dunka!$D$10,12*($A7-1),4*(PlotControl!$C$4-1),12,1)) -> 9581.1 | S7: =MAX(OFFSET(WPsurf_Dunka!$E$10,12*($A7-1),4*(PlotControl!$C$4-1),12,1)) -> 10077 | AB7: 3 | AC7: =MAX(OFFSET(EPCat23_Prop!$C$10,12*($AB7-1),4*(PlotControl!$C$4-1),12,1)) -> 9110.5 | AD7: =MAX(OFFSET(EPCat23_Prop!$D$10,12*($AB7-1),4*(PlotControl!$C$4-1),12,1)) -> 9581.4 | AE7: =MAX(OFFSET(EPCat23_Prop!$E$10,12*($AB7-1),4*(PlotControl!$C$4-1),12,1)) -> 10077 | AF7: =MAX(OFFSET(EPbed_Prop!$C$10,12*($AB7-1),4*(PlotControl!$C$4-1),12,1)) -> 20929 | AG7: =MAX(OFFSET(EPbed_Prop!$D$10,12*($AB7-1),4*(PlotControl!$C$4-1),12,1)) -> 24964 | AH7: =MAX(OFFSET(EPbed_Prop!$E$10,12*($AB7-1),4*(PlotControl!$C$4-1),12,1)) -> 29770 | AL7: =MAX(OFFSET(WWTF_Prop!$C$10,12*($AB7-1),4*(PlotControl!$C$4-1),12,1)) -> 9110.4 | AM7: =MAX(OFFSET(WWTF_Prop!$D$10,12*($AB7-1),4*(PlotControl!$C$4-1),12,1)) -> 9581.1 | AN7: =MAX(OFFSET(WWTF_Prop!$E$10,12*($AB7-1),4*(PlotControl!$C$4-1),12,1)) -> 10077 | AO7: =MAX(OFFSET(OSLA_Prop!$C$10,12*($AB7-1),4*(PlotControl!$C$4-1),12,1)) -> 9175.5 | AP7: =MAX(OFFSET(OSLA_Prop!$D$10,12*($AB7-1),4*(PlotControl!$C$4-1),12,1)) -> 9661.6 | AQ7: =MAX(OFFSET(OSLA_Prop!$E$10,12*($AB7-1),4*(PlotControl!$C$4-1),12,1)) -> 10150 | AR7: =MAX(OFFSET(WPsurf_Prop!$C$10,12*($AB7-1),4*(PlotControl!$C$4-1),12,1)) -> 9110.4 | AS7: =MAX(OFFSET(WPsurf_Prop!$D$10,12*($AB7-1),4*(PlotControl!$C$4-1),12,1)) -> 9581.1 | AT7: =MAX(OFFSET(WPsurf_Prop!$E$10,12*($AB7-1),4*(PlotControl!$C$4-1),12,1)) -> 10077 | AU7: =MAX(OFFSET(WPbed4_Prop!$C$10,12*($AB7-1),4*(PlotControl!$C$4-1),12,1)) -> 20929 | AV7: =MAX(OFFSET(WPbed4_Prop!$D$10,12*($AB7-1),4*(PlotControl!$C$4-1),12,1)) -> 24964 | AW7: =MAX(OFFSET(WPbed4_Prop!$E$10,12*($AB7-1),4*(PlotControl!$C$4-1),12,1)) -> 29770 | AX7: =MAX(OFFSET(WPbed4a_Prop!$C$10,12*($AB7-1),4*(PlotControl!$C$4-1),12,1)) -> 20929 | AY7: =MAX(OFFSET(WPbed4a_Prop!$D$10,12*($AB7-1),4*(PlotControl!$C$4-1),12,1)) -> 24964 | AZ7: =MAX(OFFSET(WPbed4a_Prop!$E$10,12*($AB7-1),4*(PlotControl!$C$4-1),12,1)) -> 29770 | BB7: 3 | BC7: =MAX(OFFSET(EPCat23_Part!$C$10,12*($BB7-1),4*(PlotControl!$C$4-1),12,1)) -> 9110.4 | BD7: =MAX(OFFSET(EPCat23_Part!$D$10,12*($BB7-1),4*(PlotControl!$C$4-1),12,1)) -> 9581.1 | BE7: =MAX(OFFSET(EPCat23_Part!$E$10,12*($BB7-1),4*(PlotControl!$C$4-1),12,1)) -> 10077 | BI7: =MAX(OFFSET(OSP_Part1!$C$10,12*($BB7-1),4*(PlotControl!$C$4-1),12,1)) -> 9110.4 | BJ7: =MAX(OFFSET(OSP_Part1!$D$10,12*($BB7-1),4*(PlotControl!$C$4-1),12,1)) -> 9581.1 | BK7: =MAX(OFFSET(OSP_Part1!$E$10,12*($BB7-1),4*(PlotControl!$C$4-1),12,1)) -> 10077 | BL7: =MAX(OFFSET(WWTF_Part!$C$10,12*($BB7-1),4*(PlotControl!$C$4-1),12,1)) -> 9110.4 | BM7: =MAX(OFFSET(WWTF_Part!$D$10,12*($BB7-1),4*(PlotControl!$C$4-1),12,1)) -> 9581.1 | BN7: =MAX(OFFSET(WWTF_Part!$E$10,12*($BB7-1),4*(PlotControl!$C$4-1),12,1)) -> 10077 | BO7: =MAX(OFFSET(OSLA_Part!$C$10,12*($BB7-1),4*(PlotControl!$C$4-1),12,1)) -> 9110.4 | BP7: =MAX(OFFSET(OSLA_Part!$D$10,12*($BB7-1),4*(PlotControl!$C$4-1),12,1)) -> 9581.1 | BQ7: =MAX(OFFSET(OSLA_Part!$E$10,12*($BB7-1),4*(PlotControl!$C$4-1),12,1)) -> 10077 | BR7: =MAX(OFFSET(WPsurf_Part!$C$10,12*($BB7-1),4*(PlotControl!$C$4-1),12,1)) -> 9110.4 | BS7: =MAX(OFFSET(WPsurf_Part!$D$10,12*($BB7-1),4*(PlotControl!$C$4-1),12,1)) -> 9581.1 | BT7: =MAX(OFFSET(WPsurf_Part!$E$10,12*($BB7-1),4*(PlotControl!$C$4-1),12,1)) -> 10077
A8: 4 | B8: =MAX(OFFSET(EPCat23_Dunka!$C$10,12*($A8-1),4*(PlotControl!$C$4-1),12,1)) -> 9181.3 | C8: =MAX(OFFSET(EPCat23_Dunka!$D$10,12*($A8-1),4*(PlotControl!$C$4-1),12,1)) -> 9645.7 | D8: =MAX(OFFSET(EPCat23_Dunka!$E$10,12*($A8-1),4*(PlotControl!$C$4-1),12,1)) -> 10160 | H8: =MAX(OFFSET(OSP_Dunka!$C$10,12*($A8-1),4*(PlotControl!$C$4-1),12,1)) -> 9110.4 | I8: =MAX(OFFSET(OSP_Dunka!$D$10,12*($A8-1),4*(PlotControl!$C$4-1),12,1)) -> 9581.1 | J8: =MAX(OFFSET(OSP_Dunka!$E$10,12*($A8-1),4*(PlotControl!$C$4-1),12,1)) -> 10077 | K8: =MAX(OFFSET(WWTF_Dunka!$C$10,12*($A8-1),4*(PlotControl!$C$4-1),12,1)) -> 9111.9 | L8: =MAX(OFFSET(WWTF_Dunka!$D$10,12*($A8-1),4*(PlotControl!$C$4-1),12,1)) -> 9582 | M8: =MAX(OFFSET(WWTF_Dunka!$E$10,12*($A8-1),4*(PlotControl!$C$4-1),12,1)) -> 10077 | N8: =MAX(OFFSET(OSLA_Dunka!$C$10,12*($A8-1),4*(PlotControl!$C$4-1),12,1)) -> 18032 | O8: =MAX(OFFSET(OSLA_Dunka!$D$10,12*($A8-1),4*(PlotControl!$C$4-1),12,1)) -> 20081 | P8: =MAX(OFFSET(OSLA_Dunka!$E$10,12*($A8-1),4*(PlotControl!$C$4-1),12,1)) -> 22669 | Q8: =MAX(OFFSET(WPsurf_Dunka!$C$10,12*($A8-1),4*(PlotControl!$C$4-1),12,1)) -> 9110.4 | R8: =MAX(OFFSET(WPsurf_Dunka!$D$10,12*($A8-1),4*(PlotControl!$C$4-1),12,1)) -> 9581.1 | S8: =MAX(OFFSET(WPsurf_Dunka!$E$10,12*($A8-1),4*(PlotControl!$C$4-1),12,1)) -> 10077 | AB8: 4 | AC8: =MAX(OFFSET(EPCat23_Prop!$C$10,12*($AB8-1),4*(PlotControl!$C$4-1),12,1)) -> 9111 | AD8: =MAX(OFFSET(EPCat23_Prop!$D$10,12*($AB8-1),4*(PlotControl!$C$4-1),12,1)) -> 9582 | AE8: =MAX(OFFSET(EPCat23_Prop!$E$10,12*($AB8-1),4*(PlotControl!$C$4-1),12,1)) -> 10077 | AF8: =MAX(OFFSET(EPbed_Prop!$C$10,12*($AB8-1),4*(PlotControl!$C$4-1),12,1)) -> 20929 | AG8: =MAX(OFFSET(EPbed_Prop!$D$10,12*($AB8-1),4*(PlotControl!$C$4-1),12,1)) -> 24964 | AH8: =MAX(OFFSET(EPbed_Prop!$E$10,12*($AB8-1),4*(PlotControl!$C$4-1),12,1)) -> 29770 | AL8: =MAX(OFFSET(WWTF_Prop!$C$10,12*($AB8-1),4*(PlotControl!$C$4-1),12,1)) -> 9110.4 | AM8: =MAX(OFFSET(WWTF_Prop!$D$10,12*($AB8-1),4*(PlotControl!$C$4-1),12,1)) -> 9581.1 | AN8: =MAX(OFFSET(WWTF_Prop!$E$10,12*($AB8-1),4*(PlotControl!$C$4-1),12,1)) -> 10077 | AO8: =MAX(OFFSET(OSLA_Prop!$C$10,12*($AB8-1),4*(PlotControl!$C$4-1),12,1)) -> 9356.9 | AP8: =MAX(OFFSET(OSLA_Prop!$D$10,12*($AB8-1),4*(PlotControl!$C$4-1),12,1)) -> 9894.6 | AQ8: =MAX(OFFSET(OSLA_Prop!$E$10,12*($AB8-1),4*(PlotControl!$C$4-1),12,1)) -> 10479 | AR8: =MAX(OFFSET(WPsurf_Prop!$C$10,12*($AB8-1),4*(PlotControl!$C$4-1),12,1)) -> 9110.4 | AS8: =MAX(OFFSET(WPsurf_Prop!$D$10,12*($AB8-1),4*(PlotControl!$C$4-1),12,1)) -> 9581.1 | AT8: =MAX(OFFSET(WPsurf_Prop!$E$10,12*($AB8-1),4*(PlotControl!$C$4-1),12,1)) -> 10077 | AU8: =MAX(OFFSET(WPbed4_Prop!$C$10,12*($AB8-1),4*(PlotControl!$C$4-1),12,1)) -> 20929 | AV8: =MAX(OFFSET(WPbed4_Prop!$D$10,12*($AB8-1),4*(PlotControl!$C$4-1),12,1)) -> 24964 | AW8: =MAX(OFFSET(WPbed4_Prop!$E$10,12*($AB8-1),4*(PlotControl!$C$4-1),12,1)) -> 29770 | AX8: =MAX(OFFSET(WPbed4a_Prop!$C$10,12*($AB8-1),4*(PlotControl!$C$4-1),12,1)) -> 20929 | AY8: =MAX(OFFSET(WPbed4a_Prop!$D$10,12*($AB8-1),4*(PlotControl!$C$4-1),12,1)) -> 24964 | AZ8: =MAX(OFFSET(WPbed4a_Prop!$E$10,12*($AB8-1),4*(PlotControl!$C$4-1),12,1)) -> 29770 | BB8: 4 | BC8: =MAX(OFFSET(EPCat23_Part!$C$10,12*($BB8-1),4*(PlotControl!$C$4-1),12,1)) -> 9110.4 | BD8: =MAX(OFFSET(EPCat23_Part!$D$10,12*($BB8-1),4*(PlotControl!$C$4-1),12,1)) -> 9581.1 | BE8: =MAX(OFFSET(EPCat23_Part!$E$10,12*($BB8-1),4*(PlotControl!$C$4-1),12,1)) -> 10077 | BI8: =MAX(OFFSET(OSP_Part1!$C$10,12*($BB8-1),4*(PlotControl!$C$4-1),12,1)) -> 9110.4 | BJ8: =MAX(OFFSET(OSP_Part1!$D$10,12*($BB8-1),4*(PlotControl!$C$4-1),12,1)) -> 9581.1 | BK8: =MAX(OFFSET(OSP_Part1!$E$10,12*($BB8-1),4*(PlotControl!$C$4-1),12,1)) -> 10077 | BL8: =MAX(OFFSET(WWTF_Part!$C$10,12*($BB8-1),4*(PlotControl!$C$4-1),12,1)) -> 9110.4 | BM8: =MAX(OFFSET(WWTF_Part!$D$10,12*($BB8-1),4*(PlotControl!$C$4-1),12,1)) -> 9581.1 | BN8: =MAX(OFFSET(WWTF_Part!$E$10,12*($BB8-1),4*(PlotControl!$C$4-1),12,1)) -> 10077 | BO8: =MAX(OFFSET(OSLA_Part!$C$10,12*($BB8-1),4*(PlotControl!$C$4-1),12,1)) -> 9110.4 | BP8: =MAX(OFFSET(OSLA_Part!$D$10,12*($BB8-1),4*(PlotControl!$C$4-1),12,1)) -> 9581.1 | BQ8: =MAX(OFFSET(OSLA_Part!$E$10,12*($BB8-1),4*(PlotControl!$C$4-1),12,1)) -> 10077 | BR8: =MAX(OFFSET(WPsurf_Part!$C$10,12*($BB8-1),4*(PlotControl!$C$4-1),12,1)) -> 9110.4 | BS8: =MAX(OFFSET(WPsurf_Part!$D$10,12*($BB8-1),4*(PlotControl!$C$4-1),12,1)) -> 9581.1 | BT8: =MAX(OFFSET(WPsurf_Part!$E$10,12*($BB8-1),4*(PlotControl!$C$4-1),12,1)) -> 10077
A9: 5 | B9: =MAX(OFFSET(EPCat23_Dunka!$C$10,12*($A9-1),4*(PlotControl!$C$4-1),12,1)) -> 9223.2 | C9: =MAX(OFFSET(EPCat23_Dunka!$D$10,12*($A9-1),4*(PlotControl!$C$4-1),12,1)) -> 9684.7 | D9: =MAX(OFFSET(EPCat23_Dunka!$E$10,12*($A9-1),4*(PlotControl!$C$4-1),12,1)) -> 10220 | H9: =MAX(OFFSET(OSP_Dunka!$C$10,12*($A9-1),4*(PlotControl!$C$4-1),12,1)) -> 9110.4 | I9: =MAX(OFFSET(OSP_Dunka!$D$10,12*($A9-1),4*(PlotControl!$C$4-1),12,1)) -> 9581.1 | J9: =MAX(OFFSET(OSP_Dunka!$E$10,12*($A9-1),4*(PlotControl!$C$4-1),12,1)) -> 10077 | K9: =MAX(OFFSET(WWTF_Dunka!$C$10,12*($A9-1),4*(PlotControl!$C$4-1),12,1)) -> 9114.2 | L9: =MAX(OFFSET(WWTF_Dunka!$D$10,12*($A9-1),4*(PlotControl!$C$4-1),12,1)) -> 9583.5 | M9: =MAX(OFFSET(WWTF_Dunka!$E$10,12*($A9-1),4*(PlotControl!$C$4-1),12,1)) -> 10078 | N9: =MAX(OFFSET(OSLA_Dunka!$C$10,12*($A9-1),4*(PlotControl!$C$4-1),12,1)) -> 19802 | O9: =MAX(OFFSET(OSLA_Dunka!$D$10,12*($A9-1),4*(PlotControl!$C$4-1),12,1)) -> 22241 | P9: =MAX(OFFSET(OSLA_Dunka!$E$10,12*($A9-1),4*(PlotControl!$C$4-1),12,1)) -> 24995 | Q9: =MAX(OFFSET(WPsurf_Dunka!$C$10,12*($A9-1),4*(PlotControl!$C$4-1),12,1)) -> 9110.4 | R9: =MAX(OFFSET(WPsurf_Dunka!$D$10,12*($A9-1),4*(PlotControl!$C$4-1),12,1)) -> 9581.1 | S9: =MAX(OFFSET(WPsurf_Dunka!$E$10,12*($A9-1),4*(PlotControl!$C$4-1),12,1)) -> 10077 | AB9: 5 | AC9: =MAX(OFFSET(EPCat23_Prop!$C$10,12*($AB9-1),4*(PlotControl!$C$4-1),12,1)) -> 9112.4 | AD9: =MAX(OFFSET(EPCat23_Prop!$D$10,12*($AB9-1),4*(PlotControl!$C$4-1),12,1)) -> 9583.2 | AE9: =MAX(OFFSET(EPCat23_Prop!$E$10,12*($AB9-1),4*(PlotControl!$C$4-1),12,1)) -> 10078 | AF9: =MAX(OFFSET(EPbed_Prop!$C$10,12*($AB9-1),4*(PlotControl!$C$4-1),12,1)) -> 20929 | AG9: =MAX(OFFSET(EPbed_Prop!$D$10,12*($AB9-1),4*(PlotControl!$C$4-1),12,1)) -> 24964 | AH9: =MAX(OFFSET(EPbed_Prop!$E$10,12*($AB9-1),4*(PlotControl!$C$4-1),12,1)) -> 29770 | AL9: =MAX(OFFSET(WWTF_Prop!$C$10,12*($AB9-1),4*(PlotControl!$C$4-1),12,1)) -> 9110.4 | AM9: =MAX(OFFSET(WWTF_Prop!$D$10,12*($AB9-1),4*(PlotControl!$C$4-1),12,1)) -> 9581.1 | AN9: =MAX(OFFSET(WWTF_Prop!$E$10,12*($AB9-1),4*(PlotControl!$C$4-1),12,1)) -> 10077 | AO9: =MAX(OFFSET(OSLA_Prop!$C$10,12*($AB9-1),4*(PlotControl!$C$4-1),12,1)) -> 9742 | AP9: =MAX(OFFSET(OSLA_Prop!$D$10,12*($AB9-1),4*(PlotControl!$C$4-1),12,1)) -> 10375 | AQ9: =MAX(OFFSET(OSLA_Prop!$E$10,12*($AB9-1),4*(PlotControl!$C$4-1),12,1)) -> 11281 | AR9: =MAX(OFFSET(WPsurf_Prop!$C$10,12*($AB9-1),4*(PlotControl!$C$4-1),12,1)) -> 9110.4 | AS9: =MAX(OFFSET(WPsurf_Prop!$D$10,12*($AB9-1),4*(PlotControl!$C$4-1),12,1)) -> 9581.1 | AT9: =MAX(OFFSET(WPsurf_Prop!$E$10,12*($AB9-1),4*(PlotControl!$C$4-1),12,1)) -> 10077 | AU9: =MAX(OFFSET(WPbed4_Prop!$C$10,12*($AB9-1),4*(PlotControl!$C$4-1),12,1)) -> 20929 | AV9: =MAX(OFFSET(WPbed4_Prop!$D$10,12*($AB9-1),4*(PlotControl!$C$4-1),12,1)) -> 24964 | AW9: =MAX(OFFSET(WPbed4_Prop!$E$10,12*($AB9-1),4*(PlotControl!$C$4-1),12,1)) -> 29770 | AX9: =MAX(OFFSET(WPbed4a_Prop!$C$10,12*($AB9-1),4*(PlotControl!$C$4-1),12,1)) -> 20929 | AY9: =MAX(OFFSET(WPbed4a_Prop!$D$10,12*($AB9-1),4*(PlotControl!$C$4-1),12,1)) -> 24964 | AZ9: =MAX(OFFSET(WPbed4a_Prop!$E$10,12*($AB9-1),4*(PlotControl!$C$4-1),12,1)) -> 29770 | BB9: 5 | BC9: =MAX(OFFSET(EPCat23_Part!$C$10,12*($BB9-1),4*(PlotControl!$C$4-1),12,1)) -> 9110.4 | BD9: =MAX(OFFSET(EPCat23_Part!$D$10,12*($BB9-1),4*(PlotControl!$C$4-1),12,1)) -> 9581.1 | BE9: =MAX(OFFSET(EPCat23_Part!$E$10,12*($BB9-1),4*(PlotControl!$C$4-1),12,1)) -> 10077 | BI9: =MAX(OFFSET(OSP_Part1!$C$10,12*($BB9-1),4*(PlotControl!$C$4-1),12,1)) -> 9110.4 | BJ9: =MAX(OFFSET(OSP_Part1!$D$10,12*($BB9-1),4*(PlotControl!$C$4-1),12,1)) -> 9581.1 | BK9: =MAX(OFFSET(OSP_Part1!$E$10,12*($BB9-1),4*(PlotControl!$C$4-1),12,1)) -> 10077 | BL9: =MAX(OFFSET(WWTF_Part!$C$10,12*($BB9-1),4*(PlotControl!$C$4-1),12,1)) -> 9110.4 | BM9: =MAX(OFFSET(WWTF_Part!$D$10,12*($BB9-1),4*(PlotControl!$C$4-1),12,1)) -> 9581.1 | BN9: =MAX(OFFSET(WWTF_Part!$E$10,12*($BB9-1),4*(PlotControl!$C$4-1),12,1)) -> 10077 | BO9: =MAX(OFFSET(OSLA_Part!$C$10,12*($BB9-1),4*(PlotControl!$C$4-1),12,1)) -> 9110.4 | BP9: =MAX(OFFSET(OSLA_Part!$D$10,12*($BB9-1),4*(PlotControl!$C$4-1),12,1)) -> 9581.1 | BQ9: =MAX(OFFSET(OSLA_Part!$E$10,12*($BB9-1),4*(PlotControl!$C$4-1),12,1)) -> 10077 | BR9: =MAX(OFFSET(WPsurf_Part!$C$10,12*($BB9-1),4*(PlotControl!$C$4-1),12,1)) -> 9110.4 | BS9: =MAX(OFFSET(WPsurf_Part!$D$10,12*($BB9-1),4*(PlotControl!$C$4-1),12,1)) -> 9581.1 | BT9: =MAX(OFFSET(WPsurf_Part!$E$10,12*($BB9-1),4*(PlotControl!$C$4-1),12,1)) -> 10077
A10: 6 | B10: =MAX(OFFSET(EPCat23_Dunka!$C$10,12*($A10-1),4*(PlotControl!$C$4-1),12,1)) -> 9252.4 | C10: =MAX(OFFSET(EPCat23_Dunka!$D$10,12*($A10-1),4*(PlotControl!$C$4-1),12,1)) -> 9736.6 | D10: =MAX(OFFSET(EPCat23_Dunka!$E$10,12*($A10-1),4*(PlotControl!$C$4-1),12,1)) -> 10311 | H10: =MAX(OFFSET(OSP_Dunka!$C$10,12*($A10-1),4*(PlotControl!$C$4-1),12,1)) -> 9110.4 | I10: =MAX(OFFSET(OSP_Dunka!$D$10,12*($A10-1),4*(PlotControl!$C$4-1),12,1)) -> 9581.1 | J10: =MAX(OFFSET(OSP_Dunka!$E$10,12*($A10-1),4*(PlotControl!$C$4-1),12,1)) -> 10077 | K10: =MAX(OFFSET(WWTF_Dunka!$C$10,12*($A10-1),4*(PlotControl!$C$4-1),12,1)) -> 9117.8 | L10: =MAX(OFFSET(WWTF_Dunka!$D$10,12*($A10-1),4*(PlotControl!$C$4-1),12,1)) -> 9585.6 | M10: =MAX(OFFSET(WWTF_Dunka!$E$10,12*($A10-1),4*(PlotControl!$C$4-1),12,1)) -> 10081 | N10: =MAX(OFFSET(OSLA_Dunka!$C$10,12*($A10-1),4*(PlotControl!$C$4-1),12,1)) -> 21507 | O10: =MAX(OFFSET(OSLA_Dunka!$D$10,12*($A10-1),4*(PlotControl!$C$4-1),12,1)) -> 24233 | P10: =MAX(OFFSET(OSLA_Dunka!$E$10,12*($A10-1),4*(PlotControl!$C$4-1),12,1)) -> 27282 | Q10: =MAX(OFFSET(WPsurf_Dunka!$C$10,12*($A10-1),4*(PlotControl!$C$4-1),12,1)) -> 9110.4 | R10: =MAX(OFFSET(WPsurf_Dunka!$D$10,12*($A10-1),4*(PlotControl!$C$4-1),12,1)) -> 9581.1 | S10: =MAX(OFFSET(WPsurf_Dunka!$E$10,12*($A10-1),4*(PlotControl!$C$4-1),12,1)) -> 10077 | AB10: 6 | AC10: =MAX(OFFSET(EPCat23_Prop!$C$10,12*($AB10-1),4*(PlotControl!$C$4-1),12,1)) -> 9113.5 | AD10: =MAX(OFFSET(EPCat23_Prop!$D$10,12*($AB10-1),4*(PlotControl!$C$4-1),12,1)) -> 9585.7 | AE10: =MAX(OFFSET(EPCat23_Prop!$E$10,12*($AB10-1),4*(PlotControl!$C$4-1),12,1)) -> 10081 | AF10: =MAX(OFFSET(EPbed_Prop!$C$10,12*($AB10-1),4*(PlotControl!$C$4-1),12,1)) -> 20929 | AG10: =MAX(OFFSET(EPbed_Prop!$D$10,12*($AB10-1),4*(PlotControl!$C$4-1),12,1)) -> 24964 | AH10: =MAX(OFFSET(EPbed_Prop!$E$10,12*($AB10-1),4*(PlotControl!$C$4-1),12,1)) -> 29770 | AL10: =MAX(OFFSET(WWTF_Prop!$C$10,12*($AB10-1),4*(PlotControl!$C$4-1),12,1)) -> 9110.4 | AM10: =MAX(OFFSET(WWTF_Prop!$D$10,12*($AB10-1),4*(PlotControl!$C$4-1),12,1)) -> 9581.1 | AN10: =MAX(OFFSET(WWTF_Prop!$E$10,12*($AB10-1),4*(PlotControl!$C$4-1),12,1)) -> 10077 | AO10: =MAX(OFFSET(OSLA_Prop!$C$10,12*($AB10-1),4*(PlotControl!$C$4-1),12,1)) -> 10315 | AP10: =MAX(OFFSET(OSLA_Prop!$D$10,12*($AB10-1),4*(PlotControl!$C$4-1),12,1)) -> 11256 | AQ10: =MAX(OFFSET(OSLA_Prop!$E$10,12*($AB10-1),4*(PlotControl!$C$4-1),12,1)) -> 12722 | AR10: =MAX(OFFSET(WPsurf_Prop!$C$10,12*($AB10-1),4*(PlotControl!$C$4-1),12,1)) -> 9110.4 | AS10: =MAX(OFFSET(WPsurf_Prop!$D$10,12*($AB10-1),4*(PlotControl!$C$4-1),12,1)) -> 9581.1 | AT10: =MAX(OFFSET(WPsurf_Prop!$E$10,12*($AB10-1),4*(PlotControl!$C$4-1),12,1)) -> 10077 | AU10: =MAX(OFFSET(WPbed4_Prop!$C$10,12*($AB10-1),4*(PlotControl!$C$4-1),12,1)) -> 20929 | AV10: =MAX(OFFSET(WPbed4_Prop!$D$10,12*($AB10-1),4*(PlotControl!$C$4-1),12,1)) -> 24964 | AW10: =MAX(OFFSET(WPbed4_Prop!$E$10,12*($AB10-1),4*(PlotControl!$C$4-1),12,1)) -> 29770 | AX10: =MAX(OFFSET(WPbed4a_Prop!$C$10,12*($AB10-1),4*(PlotControl!$C$4-1),12,1)) -> 20929 | AY10: =MAX(OFFSET(WPbed4a_Prop!$D$10,12*($AB10-1),4*(PlotControl!$C$4-1),12,1)) -> 24964 | AZ10: =MAX(OFFSET(WPbed4a_Prop!$E$10,12*($AB10-1),4*(PlotControl!$C$4-1),12,1)) -> 29770 | BB10: 6 | BC10: =MAX(OFFSET(EPCat23_Part!$C$10,12*($BB10-1),4*(PlotControl!$C$4-1),12,1)) -> 9110.4 | BD10: =MAX(OFFSET(EPCat23_Part!$D$10,12*($BB10-1),4*(PlotControl!$C$4-1),12,1)) -> 9581.1 | BE10: =MAX(OFFSET(EPCat23_Part!$E$10,12*($BB10-1),4*(PlotControl!$C$4-1),12,1)) -> 10077 | BI10: =MAX(OFFSET(OSP_Part1!$C$10,12*($BB10-1),4*(PlotControl!$C$4-1),12,1)) -> 9110.4 | BJ10: =MAX(OFFSET(OSP_Part1!$D$10,12*($BB10-1),4*(PlotControl!$C$4-1),12,1)) -> 9581.1 | BK10: =MAX(OFFSET(OSP_Part1!$E$10,12*($BB10-1),4*(PlotControl!$C$4-1),12,1)) -> 10077 | BL10: =MAX(OFFSET(WWTF_Part!$C$10,12*($BB10-1),4*(PlotControl!$C$4-1),12,1)) -> 9110.4 | BM10: =MAX(OFFSET(WWTF_Part!$D$10,12*($BB10-1),4*(PlotControl!$C$4-1),12,1)) -> 9581.1 | BN10: =MAX(OFFSET(WWTF_Part!$E$10,12*($BB10-1),4*(PlotControl!$C$4-1),12,1)) -> 10077 | BO10: =MAX(OFFSET(OSLA_Part!$C$10,12*($BB10-1),4*(PlotControl!$C$4-1),12,1)) -> 9110.4 | BP10: =MAX(OFFSET(OSLA_Part!$D$10,12*($BB10-1),4*(PlotControl!$C$4-1),12,1)) -> 9581.1 | BQ10: =MAX(OFFSET(OSLA_Part!$E$10,12*($BB10-1),4*(PlotControl!$C$4-1),12,1)) -> 10077 | BR10: =MAX(OFFSET(WPsurf_Part!$C$10,12*($BB10-1),4*(PlotControl!$C$4-1),12,1)) -> 9110.4 | BS10: =MAX(OFFSET(WPsurf_Part!$D$10,12*($BB10-1),4*(PlotControl!$C$4-1),12,1)) -> 9581.1 | BT10: =MAX(OFFSET(WPsurf_Part!$E$10,12*($BB10-1),4*(PlotControl!$C$4-1),12,1)) -> 10077
A11: 7 | B11: =MAX(OFFSET(EPCat23_Dunka!$C$10,12*($A11-1),4*(PlotControl!$C$4-1),12,1)) -> 9298.5 | C11: =MAX(OFFSET(EPCat23_Dunka!$D$10,12*($A11-1),4*(PlotControl!$C$4-1),12,1)) -> 9814.9 | D11: =MAX(OFFSET(EPCat23_Dunka!$E$10,12*($A11-1),4*(PlotControl!$C$4-1),12,1)) -> 10406 | H11: =MAX(OFFSET(OSP_Dunka!$C$10,12*($A11-1),4*(PlotControl!$C$4-1),12,1)) -> 9110.4 | I11: =MAX(OFFSET(OSP_Dunka!$D$10,12*($A11-1),4*(PlotControl!$C$4-1),12,1)) -> 9581.1 | J11: =MAX(OFFSET(OSP_Dunka!$E$10,12*($A11-1),4*(PlotControl!$C$4-1),12,1)) -> 10077 | K11: =MAX(OFFSET(WWTF_Dunka!$C$10,12*($A11-1),4*(PlotControl!$C$4-1),12,1)) -> 9121 | L11: =MAX(OFFSET(WWTF_Dunka!$D$10,12*($A11-1),4*(PlotControl!$C$4-1),12,1)) -> 9589.9 | M11: =MAX(OFFSET(WWTF_Dunka!$E$10,12*($A11-1),4*(PlotControl!$C$4-1),12,1)) -> 10085 | N11: =MAX(OFFSET(OSLA_Dunka!$C$10,12*($A11-1),4*(PlotControl!$C$4-1),12,1)) -> 23126 | O11: =MAX(OFFSET(OSLA_Dunka!$D$10,12*($A11-1),4*(PlotControl!$C$4-1),12,1)) -> 25909 | P11: =MAX(OFFSET(OSLA_Dunka!$E$10,12*($A11-1),4*(PlotControl!$C$4-1),12,1)) -> 29415 | Q11: =MAX(OFFSET(WPsurf_Dunka!$C$10,12*($A11-1),4*(PlotControl!$C$4-1),12,1)) -> 9110.4 | R11: =MAX(OFFSET(WPsurf_Dunka!$D$10,12*($A11-1),4*(PlotControl!$C$4-1),12,1)) -> 9581.1 | S11: =MAX(OFFSET(WPsurf_Dunka!$E$10,12*($A11-1),4*(PlotControl!$C$4-1),12,1)) -> 10077 | AB11: 7 | AC11: =MAX(OFFSET(EPCat23_Prop!$C$10,12*($AB11-1),4*(PlotControl!$C$4-1),12,1)) -> 9115.6 | AD11: =MAX(OFFSET(EPCat23_Prop!$D$10,12*($AB11-1),4*(PlotControl!$C$4-1),12,1)) -> 9592.6 | AE11: =MAX(OFFSET(EPCat23_Prop!$E$10,12*($AB11-1),4*(PlotControl!$C$4-1),12,1)) -> 10092 | AF11: =MAX(OFFSET(EPbed_Prop!$C$10,12*($AB11-1),4*(PlotControl!$C$4-1),12,1)) -> 20929 | AG11: =MAX(OFFSET(EPbed_Prop!$D$10,12*($AB11-1),4*(PlotControl!$C$4-1),12,1)) -> 24964 | AH11: =MAX(OFFSET(EPbed_Prop!$E$10,12*($AB11-1),4*(PlotControl!$C$4-1),12,1)) -> 29770 | AL11: =MAX(OFFSET(WWTF_Prop!$C$10,12*($AB11-1),4*(PlotControl!$C$4-1),12,1)) -> 9110.4 | AM11: =MAX(OFFSET(WWTF_Prop!$D$10,12*($AB11-1),4*(PlotControl!$C$4-1),12,1)) -> 9581.1 | AN11: =MAX(OFFSET(WWTF_Prop!$E$10,12*($AB11-1),4*(PlotControl!$C$4-1),12,1)) -> 10077 | AO11: =MAX(OFFSET(OSLA_Prop!$C$10,12*($AB11-1),4*(PlotControl!$C$4-1),12,1)) -> 11202 | AP11: =MAX(OFFSET(OSLA_Prop!$D$10,12*($AB11-1),4*(PlotControl!$C$4-1),12,1)) -> 12483 | AQ11: =MAX(OFFSET(OSLA_Prop!$E$10,12*($AB11-1),4*(PlotControl!$C$4-1),12,1)) -> 14543 | AR11: =MAX(OFFSET(WPsurf_Prop!$C$10,12*($AB11-1),4*(PlotControl!$C$4-1),12,1)) -> 9110.4 | AS11: =MAX(OFFSET(WPsurf_Prop!$D$10,12*($AB11-1),4*(PlotControl!$C$4-1),12,1)) -> 9581.1 | AT11: =MAX(OFFSET(WPsurf_Prop!$E$10,12*($AB11-1),4*(PlotControl!$C$4-1),12,1)) -> 10077 | AU11: =MAX(OFFSET(WPbed4_Prop!$C$10,12*($AB11-1),4*(PlotControl!$C$4-1),12,1)) -> 20929 | AV11: =MAX(OFFSET(WPbed4_Prop!$D$10,12*($AB11-1),4*(PlotControl!$C$4-1),12,1)) -> 24964 | AW11: =MAX(OFFSET(WPbed4_Prop!$E$10,12*($AB11-1),4*(PlotControl!$C$4-1),12,1)) -> 29770 | AX11: =MAX(OFFSET(WPbed4a_Prop!$C$10,12*($AB11-1),4*(PlotControl!$C$4-1),12,1)) -> 20929 | AY11: =MAX(OFFSET(WPbed4a_Prop!$D$10,12*($AB11-1),4*(PlotControl!$C$4-1),12,1)) -> 24964 | AZ11: =MAX(OFFSET(WPbed4a_Prop!$E$10,12*($AB11-1),4*(PlotControl!$C$4-1),12,1)) -> 29770 | BB11: 7 | BC11: =MAX(OFFSET(EPCat23_Part!$C$10,12*($BB11-1),4*(PlotControl!$C$4-1),12,1)) -> 9110.4 | BD11: =MAX(OFFSET(EPCat23_Part!$D$10,12*($BB11-1),4*(PlotControl!$C$4-1),12,1)) -> 9581.1 | BE11: =MAX(OFFSET(EPCat23_Part!$E$10,12*($BB11-1),4*(PlotControl!$C$4-1),12,1)) -> 10077 | BI11: =MAX(OFFSET(OSP_Part1!$C$10,12*($BB11-1),4*(PlotControl!$C$4-1),12,1)) -> 9110.4 | BJ11: =MAX(OFFSET(OSP_Part1!$D$10,12*($BB11-1),4*(PlotControl!$C$4-1),12,1)) -> 9581.1 | BK11: =MAX(OFFSET(OSP_Part1!$E$10,12*($BB11-1),4*(PlotControl!$C$4-1),12,1)) -> 10077 | BL11: =MAX(OFFSET(WWTF_Part!$C$10,12*($BB11-1),4*(PlotControl!$C$4-1),12,1)) -> 9110.4 | BM11: =MAX(OFFSET(WWTF_Part!$D$10,12*($BB11-1),4*(PlotControl!$C$4-1),12,1)) -> 9581.1 | BN11: =MAX(OFFSET(WWTF_Part!$E$10,12*($BB11-1),4*(PlotControl!$C$4-1),12,1)) -> 10077 | BO11: =MAX(OFFSET(OSLA_Part!$C$10,12*($BB11-1),4*(PlotControl!$C$4-1),12,1)) -> 9110.4 | BP11: =MAX(OFFSET(OSLA_Part!$D$10,12*($BB11-1),4*(PlotControl!$C$4-1),12,1)) -> 9581.1 | BQ11: =MAX(OFFSET(OSLA_Part!$E$10,12*($BB11-1),4*(PlotControl!$C$4-1),12,1)) -> 10077 | BR11: =MAX(OFFSET(WPsurf_Part!$C$10,12*($BB11-1),4*(PlotControl!$C$4-1),12,1)) -> 9110.4 | BS11: =MAX(OFFSET(WPsurf_Part!$D$10,12*($BB11-1),4*(PlotControl!$C$4-1),12,1)) -> 9581.1 | BT11: =MAX(OFFSET(WPsurf_Part!$E$10,12*($BB11-1),4*(PlotControl!$C$4-1),12,1)) -> 10077
A12: 8 | B12: =MAX(OFFSET(EPCat23_Dunka!$C$10,12*($A12-1),4*(PlotControl!$C$4-1),12,1)) -> 9349.2 | C12: =MAX(OFFSET(EPCat23_Dunka!$D$10,12*($A12-1),4*(PlotControl!$C$4-1),12,1)) -> 9899.5 | D12: =MAX(OFFSET(EPCat23_Dunka!$E$10,12*($A12-1),4*(PlotControl!$C$4-1),12,1)) -> 10582 | H12: =MAX(OFFSET(OSP_Dunka!$C$10,12*($A12-1),4*(PlotControl!$C$4-1),12,1)) -> 9110.5 | I12: =MAX(OFFSET(OSP_Dunka!$D$10,12*($A12-1),4*(PlotControl!$C$4-1),12,1)) -> 9581.1 | J12: =MAX(OFFSET(OSP_Dunka!$E$10,12*($A12-1),4*(PlotControl!$C$4-1),12,1)) -> 10077 | K12: =MAX(OFFSET(WWTF_Dunka!$C$10,12*($A12-1),4*(PlotControl!$C$4-1),12,1)) -> 9125.7 | L12: =MAX(OFFSET(WWTF_Dunka!$D$10,12*($A12-1),4*(PlotControl!$C$4-1),12,1)) -> 9593.6 | M12: =MAX(OFFSET(WWTF_Dunka!$E$10,12*($A12-1),4*(PlotControl!$C$4-1),12,1)) -> 10091 | N12: =MAX(OFFSET(OSLA_Dunka!$C$10,12*($A12-1),4*(PlotControl!$C$4-1),12,1)) -> 24397 | O12: =MAX(OFFSET(OSLA_Dunka!$D$10,12*($A12-1),4*(PlotControl!$C$4-1),12,1)) -> 27463 | P12: =MAX(OFFSET(OSLA_Dunka!$E$10,12*($A12-1),4*(PlotControl!$C$4-1),12,1)) -> 31314 | Q12: =MAX(OFFSET(WPsurf_Dunka!$C$10,12*($A12-1),4*(PlotControl!$C$4-1),12,1)) -> 9110.4 | R12: =MAX(OFFSET(WPsurf_Dunka!$D$10,12*($A12-1),4*(PlotControl!$C$4-1),12,1)) -> 9581.1 | S12: =MAX(OFFSET(WPsurf_Dunka!$E$10,12*($A12-1),4*(PlotControl!$C$4-1),12,1)) -> 10077 | AB12: 8 | AC12: =MAX(OFFSET(EPCat23_Prop!$C$10,12*($AB12-1),4*(PlotControl!$C$4-1),12,1)) -> 9126.3 | AD12: =MAX(OFFSET(EPCat23_Prop!$D$10,12*($AB12-1),4*(PlotControl!$C$4-1),12,1)) -> 9596 | AE12: =MAX(OFFSET(EPCat23_Prop!$E$10,12*($AB12-1),4*(PlotControl!$C$4-1),12,1)) -> 10110 | AF12: =MAX(OFFSET(EPbed_Prop!$C$10,12*($AB12-1),4*(PlotControl!$C$4-1),12,1)) -> 20929 | AG12: =MAX(OFFSET(EPbed_Prop!$D$10,12*($AB12-1),4*(PlotControl!$C$4-1),12,1)) -> 24964 | AH12: =MAX(OFFSET(EPbed_Prop!$E$10,12*($AB12-1),4*(PlotControl!$C$4-1),12,1)) -> 29770 | AL12: =MAX(OFFSET(WWTF_Prop!$C$10,12*($AB12-1),4*(PlotControl!$C$4-1),12,1)) -> 9110.4 | AM12: =MAX(OFFSET(WWTF_Prop!$D$10,12*($AB12-1),4*(PlotControl!$C$4-1),12,1)) -> 9581.1 | AN12: =MAX(OFFSET(WWTF_Prop!$E$10,12*($AB12-1),4*(PlotControl!$C$4-1),12,1)) -> 10077 | AO12: =MAX(OFFSET(OSLA_Prop!$C$10,12*($AB12-1),4*(PlotControl!$C$4-1),12,1)) -> 12244 | AP12: =MAX(OFFSET(OSLA_Prop!$D$10,12*($AB12-1),4*(PlotControl!$C$4-1),12,1)) -> 13995 | AQ12: =MAX(OFFSET(OSLA_Prop!$E$10,12*($AB12-1),4*(PlotControl!$C$4-1),12,1)) -> 16585 | AR12: =MAX(OFFSET(WPsurf_Prop!$C$10,12*($AB12-1),4*(PlotControl!$C$4-1),12,1)) -> 9110.4 | AS12: =MAX(OFFSET(WPsurf_Prop!$D$10,12*($AB12-1),4*(PlotControl!$C$4-1),12,1)) -> 9581.1 | AT12: =MAX(OFFSET(WPsurf_Prop!$E$10,12*($AB12-1),4*(PlotControl!$C$4-1),12,1)) -> 10077 | AU12: =MAX(OFFSET(WPbed4_Prop!$C$10,12*($AB12-1),4*(PlotControl!$C$4-1),12,1)) -> 20929 | AV12: =MAX(OFFSET(WPbed4_Prop!$D$10,12*($AB12-1),4*(PlotControl!$C$4-1),12,1)) -> 24964 | AW12: =MAX(OFFSET(WPbed4_Prop!$E$10,12*($AB12-1),4*(PlotControl!$C$4-1),12,1)) -> 29770 | AX12: =MAX(OFFSET(WPbed4a_Prop!$C$10,12*($AB12-1),4*(PlotControl!$C$4-1),12,1)) -> 20929 | AY12: =MAX(OFFSET(WPbed4a_Prop!$D$10,12*($AB12-1),4*(PlotControl!$C$4-1),12,1)) -> 24964 | AZ12: =MAX(OFFSET(WPbed4a_Prop!$E$10,12*($AB12-1),4*(PlotControl!$C$4-1),12,1)) -> 29770 | BB12: 8 | BC12: =MAX(OFFSET(EPCat23_Part!$C$10,12*($BB12-1),4*(PlotControl!$C$4-1),12,1)) -> 9110.4 | BD12: =MAX(OFFSET(EPCat23_Part!$D$10,12*($BB12-1),4*(PlotControl!$C$4-1),12,1)) -> 9581.1 | BE12: =MAX(OFFSET(EPCat23_Part!$E$10,12*($BB12-1),4*(PlotControl!$C$4-1),12,1)) -> 10077 | BI12: =MAX(OFFSET(OSP_Part1!$C$10,12*($BB12-1),4*(PlotControl!$C$4-1),12,1)) -> 9110.4 | BJ12: =MAX(OFFSET(OSP_Part1!$D$10,12*($BB12-1),4*(PlotControl!$C$4-1),12,1)) -> 9581.1 | BK12: =MAX(OFFSET(OSP_Part1!$E$10,12*($BB12-1),4*(PlotControl!$C$4-1),12,1)) -> 10077 | BL12: =MAX(OFFSET(WWTF_Part!$C$10,12*($BB12-1),4*(PlotControl!$C$4-1),12,1)) -> 9110.4 | BM12: =MAX(OFFSET(WWTF_Part!$D$10,12*($BB12-1),4*(PlotControl!$C$4-1),12,1)) -> 9581.1 | BN12: =MAX(OFFSET(WWTF_Part!$E$10,12*($BB12-1),4*(PlotControl!$C$4-1),12,1)) -> 10077 | BO12: =MAX(OFFSET(OSLA_Part!$C$10,12*($BB12-1),4*(PlotControl!$C$4-1),12,1)) -> 9110.4 | BP12: =MAX(OFFSET(OSLA_Part!$D$10,12*($BB12-1),4*(PlotControl!$C$4-1),12,1)) -> 9581.1 | BQ12: =MAX(OFFSET(OSLA_Part!$E$10,12*($BB12-1),4*(PlotControl!$C$4-1),12,1)) -> 10077 | BR12: =MAX(OFFSET(WPsurf_Part!$C$10,12*($BB12-1),4*(PlotControl!$C$4-1),12,1)) -> 9110.4 | BS12: =MAX(OFFSET(WPsurf_Part!$D$10,12*($BB12-1),4*(PlotControl!$C$4-1),12,1)) -> 9581.1 | BT12: =MAX(OFFSET(WPsurf_Part!$E$10,12*($BB12-1),4*(PlotControl!$C$4-1),12,1)) -> 10077
A13: 9 | B13: =MAX(OFFSET(EPCat23_Dunka!$C$10,12*($A13-1),4*(PlotControl!$C$4-1),12,1)) -> 9413 | C13: =MAX(OFFSET(EPCat23_Dunka!$D$10,12*($A13-1),4*(PlotControl!$C$4-1),12,1)) -> 9985.1 | D13: =MAX(OFFSET(EPCat23_Dunka!$E$10,12*($A13-1),4*(PlotControl!$C$4-1),12,1)) -> 10826 | H13: =MAX(OFFSET(OSP_Dunka!$C$10,12*($A13-1),4*(PlotControl!$C$4-1),12,1)) -> 9110.5 | I13: =MAX(OFFSET(OSP_Dunka!$D$10,12*($A13-1),4*(PlotControl!$C$4-1),12,1)) -> 9581.1 | J13: =MAX(OFFSET(OSP_Dunka!$E$10,12*($A13-1),4*(PlotControl!$C$4-1),12,1)) -> 10077 | K13: =MAX(OFFSET(WWTF_Dunka!$C$10,12*($A13-1),4*(PlotControl!$C$4-1),12,1)) -> 9132.3 | L13: =MAX(OFFSET(WWTF_Dunka!$D$10,12*($A13-1),4*(PlotControl!$C$4-1),12,1)) -> 9601.3 | M13: =MAX(OFFSET(WWTF_Dunka!$E$10,12*($A13-1),4*(PlotControl!$C$4-1),12,1)) -> 10102 | N13: =MAX(OFFSET(OSLA_Dunka!$C$10,12*($A13-1),4*(PlotControl!$C$4-1),12,1)) -> 25669 | O13: =MAX(OFFSET(OSLA_Dunka!$D$10,12*($A13-1),4*(PlotControl!$C$4-1),12,1)) -> 28989 | P13: =MAX(OFFSET(OSLA_Dunka!$E$10,12*($A13-1),4*(PlotControl!$C$4-1),12,1)) -> 32956 | Q13: =MAX(OFFSET(WPsurf_Dunka!$C$10,12*($A13-1),4*(PlotControl!$C$4-1),12,1)) -> 9110.4 | R13: =MAX(OFFSET(WPsurf_Dunka!$D$10,12*($A13-1),4*(PlotControl!$C$4-1),12,1)) -> 9581.1 | S13: =MAX(OFFSET(WPsurf_Dunka!$E$10,12*($A13-1),4*(PlotControl!$C$4-1),12,1)) -> 10077 | AB13: 9 | AC13: =MAX(OFFSET(EPCat23_Prop!$C$10,12*($AB13-1),4*(PlotControl!$C$4-1),12,1)) -> 9132.8 | AD13: =MAX(OFFSET(EPCat23_Prop!$D$10,12*($AB13-1),4*(PlotControl!$C$4-1),12,1)) -> 9600 | AE13: =MAX(OFFSET(EPCat23_Prop!$E$10,12*($AB13-1),4*(PlotControl!$C$4-1),12,1)) -> 10123 | AF13: =MAX(OFFSET(EPbed_Prop!$C$10,12*($AB13-1),4*(PlotControl!$C$4-1),12,1)) -> 20929 | AG13: =MAX(OFFSET(EPbed_Prop!$D$10,12*($AB13-1),4*(PlotControl!$C$4-1),12,1)) -> 24964 | AH13: =MAX(OFFSET(EPbed_Prop!$E$10,12*($AB13-1),4*(PlotControl!$C$4-1),12,1)) -> 29770 | AL13: =MAX(OFFSET(WWTF_Prop!$C$10,12*($AB13-1),4*(PlotControl!$C$4-1),12,1)) -> 9110.4 | AM13: =MAX(OFFSET(WWTF_Prop!$D$10,12*($AB13-1),4*(PlotControl!$C$4-1),12,1)) -> 9581.1 | AN13: =MAX(OFFSET(WWTF_Prop!$E$10,12*($AB13-1),4*(PlotControl!$C$4-1),12,1)) -> 10077 | AO13: =MAX(OFFSET(OSLA_Prop!$C$10,12*($AB13-1),4*(PlotControl!$C$4-1),12,1)) -> 13461 | AP13: =MAX(OFFSET(OSLA_Prop!$D$10,12*($AB13-1),4*(PlotControl!$C$4-1),12,1)) -> 15696 | AQ13: =MAX(OFFSET(OSLA_Prop!$E$10,12*($AB13-1),4*(PlotControl!$C$4-1),12,1)) -> 18820 | AR13: =MAX(OFFSET(WPsurf_Prop!$C$10,12*($AB13-1),4*(PlotControl!$C$4-1),12,1)) -> 9110.4 | AS13: =MAX(OFFSET(WPsurf_Prop!$D$10,12*($AB13-1),4*(PlotControl!$C$4-1),12,1)) -> 9581.1 | AT13: =MAX(OFFSET(WPsurf_Prop!$E$10,12*($AB13-1),4*(PlotControl!$C$4-1),12,1)) -> 10077 | AU13: =MAX(OFFSET(WPbed4_Prop!$C$10,12*($AB13-1),4*(PlotControl!$C$4-1),12,1)) -> 20929 | AV13: =MAX(OFFSET(WPbed4_Prop!$D$10,12*($AB13-1),4*(PlotControl!$C$4-1),12,1)) -> 24964 | AW13: =MAX(OFFSET(WPbed4_Prop!$E$10,12*($AB13-1),4*(PlotControl!$C$4-1),12,1)) -> 29770 | AX13: =MAX(OFFSET(WPbed4a_Prop!$C$10,12*($AB13-1),4*(PlotControl!$C$4-1),12,1)) -> 20929 | AY13: =MAX(OFFSET(WPbed4a_Prop!$D$10,12*($AB13-1),4*(PlotControl!$C$4-1),12,1)) -> 24964 | AZ13: =MAX(OFFSET(WPbed4a_Prop!$E$10,12*($AB13-1),4*(PlotControl!$C$4-1),12,1)) -> 29770 | BB13: 9 | BC13: =MAX(OFFSET(EPCat23_Part!$C$10,12*($BB13-1),4*(PlotControl!$C$4-1),12,1)) -> 9110.4 | BD13: =MAX(OFFSET(EPCat23_Part!$D$10,12*($BB13-1),4*(PlotControl!$C$4-1),12,1)) -> 9581.1 | BE13: =MAX(OFFSET(EPCat23_Part!$E$10,12*($BB13-1),4*(PlotControl!$C$4-1),12,1)) -> 10077 | BI13: =MAX(OFFSET(OSP_Part1!$C$10,12*($BB13-1),4*(PlotControl!$C$4-1),12,1)) -> 9110.4 | BJ13: =MAX(OFFSET(OSP_Part1!$D$10,12*($BB13-1),4*(PlotControl!$C$4-1),12,1)) -> 9581.1 | BK13: =MAX(OFFSET(OSP_Part1!$E$10,12*($BB13-1),4*(PlotControl!$C$4-1),12,1)) -> 10077 | BL13: =MAX(OFFSET(WWTF_Part!$C$10,12*($BB13-1),4*(PlotControl!$C$4-1),12,1)) -> 9110.4 | BM13: =MAX(OFFSET(WWTF_Part!$D$10,12*($BB13-1),4*(PlotControl!$C$4-1),12,1)) -> 9581.1 | BN13: =MAX(OFFSET(WWTF_Part!$E$10,12*($BB13-1),4*(PlotControl!$C$4-1),12,1)) -> 10077 | BO13: =MAX(OFFSET(OSLA_Part!$C$10,12*($BB13-1),4*(PlotControl!$C$4-1),12,1)) -> 9110.4 | BP13: =MAX(OFFSET(OSLA_Part!$D$10,12*($BB13-1),4*(PlotControl!$C$4-1),12,1)) -> 9581.1 | BQ13: =MAX(OFFSET(OSLA_Part!$E$10,12*($BB13-1),4*(PlotControl!$C$4-1),12,1)) -> 10077 | BR13: =MAX(OFFSET(WPsurf_Part!$C$10,12*($BB13-1),4*(PlotControl!$C$4-1),12,1)) -> 9110.4 | BS13: =MAX(OFFSET(WPsurf_Part!$D$10,12*($BB13-1),4*(PlotControl!$C$4-1),12,1)) -> 9581.1 | BT13: =MAX(OFFSET(WPsurf_Part!$E$10,12*($BB13-1),4*(PlotControl!$C$4-1),12,1)) -> 10077
A14: 10 | B14: =MAX(OFFSET(EPCat23_Dunka!$C$10,12*($A14-1),4*(PlotControl!$C$4-1),12,1)) -> 9505.4 | C14: =MAX(OFFSET(EPCat23_Dunka!$D$10,12*($A14-1),4*(PlotControl!$C$4-1),12,1)) -> 10123 | D14: =MAX(OFFSET(EPCat23_Dunka!$E$10,12*($A14-1),4*(PlotControl!$C$4-1),12,1)) -> 11204 | H14: =MAX(OFFSET(OSP_Dunka!$C$10,12*($A14-1),4*(PlotControl!$C$4-1),12,1)) -> 9110.5 | I14: =MAX(OFFSET(OSP_Dunka!$D$10,12*($A14-1),4*(PlotControl!$C$4-1),12,1)) -> 9581.1 | J14: =MAX(OFFSET(OSP_Dunka!$E$10,12*($A14-1),4*(PlotControl!$C$4-1),12,1)) -> 10077 | K14: =MAX(OFFSET(WWTF_Dunka!$C$10,12*($A14-1),4*(PlotControl!$C$4-1),12,1)) -> 9145.9 | L14: =MAX(OFFSET(WWTF_Dunka!$D$10,12*($A14-1),4*(PlotControl!$C$4-1),12,1)) -> 9613.8 | M14: =MAX(OFFSET(WWTF_Dunka!$E$10,12*($A14-1),4*(PlotControl!$C$4-1),12,1)) -> 10118 | N14: =MAX(OFFSET(OSLA_Dunka!$C$10,12*($A14-1),4*(PlotControl!$C$4-1),12,1)) -> 26800 | O14: =MAX(OFFSET(OSLA_Dunka!$D$10,12*($A14-1),4*(PlotControl!$C$4-1),12,1)) -> 30324 | P14: =MAX(OFFSET(OSLA_Dunka!$E$10,12*($A14-1),4*(PlotControl!$C$4-1),12,1)) -> 34502 | Q14: =MAX(OFFSET(WPsurf_Dunka!$C$10,12*($A14-1),4*(PlotControl!$C$4-1),12,1)) -> 9110.4 | R14: =MAX(OFFSET(WPsurf_Dunka!$D$10,12*($A14-1),4*(PlotControl!$C$4-1),12,1)) -> 9581.1 | S14: =MAX(OFFSET(WPsurf_Dunka!$E$10,12*($A14-1),4*(PlotControl!$C$4-1),12,1)) -> 10077 | AB14: 10 | AC14: =MAX(OFFSET(EPCat23_Prop!$C$10,12*($AB14-1),4*(PlotControl!$C$4-1),12,1)) -> 9152.3 | AD14: =MAX(OFFSET(EPCat23_Prop!$D$10,12*($AB14-1),4*(PlotControl!$C$4-1),12,1)) -> 9617.6 | AE14: =MAX(OFFSET(EPCat23_Prop!$E$10,12*($AB14-1),4*(PlotControl!$C$4-1),12,1)) -> 10148 | AF14: =MAX(OFFSET(EPbed_Prop!$C$10,12*($AB14-1),4*(PlotControl!$C$4-1),12,1)) -> 20929 | AG14: =MAX(OFFSET(EPbed_Prop!$D$10,12*($AB14-1),4*(PlotControl!$C$4-1),12,1)) -> 24964 | AH14: =MAX(OFFSET(EPbed_Prop!$E$10,12*($AB14-1),4*(PlotControl!$C$4-1),12,1)) -> 29770 | AL14: =MAX(OFFSET(WWTF_Prop!$C$10,12*($AB14-1),4*(PlotControl!$C$4-1),12,1)) -> 9110.4 | AM14: =MAX(OFFSET(WWTF_Prop!$D$10,12*($AB14-1),4*(PlotControl!$C$4-1),12,1)) -> 9581.1 | AN14: =MAX(OFFSET(WWTF_Prop!$E$10,12*($AB14-1),4*(PlotControl!$C$4-1),12,1)) -> 10077 | AO14: =MAX(OFFSET(OSLA_Prop!$C$10,12*($AB14-1),4*(PlotControl!$C$4-1),12,1)) -> 14893 | AP14: =MAX(OFFSET(OSLA_Prop!$D$10,12*($AB14-1),4*(PlotControl!$C$4-1),12,1)) -> 17433 | AQ14: =MAX(OFFSET(OSLA_Prop!$E$10,12*($AB14-1),4*(PlotControl!$C$4-1),12,1)) -> 20919 | AR14: =MAX(OFFSET(WPsurf_Prop!$C$10,12*($AB14-1),4*(PlotControl!$C$4-1),12,1)) -> 9110.4 | AS14: =MAX(OFFSET(WPsurf_Prop!$D$10,12*($AB14-1),4*(PlotControl!$C$4-1),12,1)) -> 9581.1 | AT14: =MAX(OFFSET(WPsurf_Prop!$E$10,12*($AB14-1),4*(PlotControl!$C$4-1),12,1)) -> 10077 | AU14: =MAX(OFFSET(WPbed4_Prop!$C$10,12*($AB14-1),4*(PlotControl!$C$4-1),12,1)) -> 20929 | AV14: =MAX(OFFSET(WPbed4_Prop!$D$10,12*($AB14-1),4*(PlotControl!$C$4-1),12,1)) -> 24964 | AW14: =MAX(OFFSET(WPbed4_Prop!$E$10,12*($AB14-1),4*(PlotControl!$C$4-1),12,1)) -> 29770 | AX14: =MAX(OFFSET(WPbed4a_Prop!$C$10,12*($AB14-1),4*(PlotControl!$C$4-1),12,1)) -> 20929 | AY14: =MAX(OFFSET(WPbed4a_Prop!$D$10,12*($AB14-1),4*(PlotControl!$C$4-1),12,1)) -> 24964 | AZ14: =MAX(OFFSET(WPbed4a_Prop!$E$10,12*($AB14-1),4*(PlotControl!$C$4-1),12,1)) -> 29770 | BB14: 10 | BC14: =MAX(OFFSET(EPCat23_Part!$C$10,12*($BB14-1),4*(PlotControl!$C$4-1),12,1)) -> 9110.4 | BD14: =MAX(OFFSET(EPCat23_Part!$D$10,12*($BB14-1),4*(PlotControl!$C$4-1),12,1)) -> 9581.1 | BE14: =MAX(OFFSET(EPCat23_Part!$E$10,12*($BB14-1),4*(PlotControl!$C$4-1),12,1)) -> 10077 | BI14: =MAX(OFFSET(OSP_Part1!$C$10,12*($BB14-1),4*(PlotControl!$C$4-1),12,1)) -> 9110.4 | BJ14: =MAX(OFFSET(OSP_Part1!$D$10,12*($BB14-1),4*(PlotControl!$C$4-1),12,1)) -> 9581.1 | BK14: =MAX(OFFSET(OSP_Part1!$E$10,12*($BB14-1),4*(PlotControl!$C$4-1),12,1)) -> 10077 | BL14: =MAX(OFFSET(WWTF_Part!$C$10,12*($BB14-1),4*(PlotControl!$C$4-1),12,1)) -> 9110.4 | BM14: =MAX(OFFSET(WWTF_Part!$D$10,12*($BB14-1),4*(PlotControl!$C$4-1),12,1)) -> 9581.1 | BN14: =MAX(OFFSET(WWTF_Part!$E$10,12*($BB14-1),4*(PlotControl!$C$4-1),12,1)) -> 10077 | BO14: =MAX(OFFSET(OSLA_Part!$C$10,12*($BB14-1),4*(PlotControl!$C$4-1),12,1)) -> 9110.4 | BP14: =MAX(OFFSET(OSLA_Part!$D$10,12*($BB14-1),4*(PlotControl!$C$4-1),12,1)) -> 9581.1 | BQ14: =MAX(OFFSET(OSLA_Part!$E$10,12*($BB14-1),4*(PlotControl!$C$4-1),12,1)) -> 10077 | BR14: =MAX(OFFSET(WPsurf_Part!$C$10,12*($BB14-1),4*(PlotControl!$C$4-1),12,1)) -> 9110.4 | BS14: =MAX(OFFSET(WPsurf_Part!$D$10,12*($BB14-1),4*(PlotControl!$C$4-1),12,1)) -> 9581.1 | BT14: =MAX(OFFSET(WPsurf_Part!$E$10,12*($BB14-1),4*(PlotControl!$C$4-1),12,1)) -> 10077
A15: 11 | B15: =MAX(OFFSET(EPCat23_Dunka!$C$10,12*($A15-1),4*(PlotControl!$C$4-1),12,1)) -> 9590.2 | C15: =MAX(OFFSET(EPCat23_Dunka!$D$10,12*($A15-1),4*(PlotControl!$C$4-1),12,1)) -> 10260 | D15: =MAX(OFFSET(EPCat23_Dunka!$E$10,12*($A15-1),4*(PlotControl!$C$4-1),12,1)) -> 11677 | H15: =MAX(OFFSET(OSP_Dunka!$C$10,12*($A15-1),4*(PlotControl!$C$4-1),12,1)) -> 9110.5 | I15: =MAX(OFFSET(OSP_Dunka!$D$10,12*($A15-1),4*(PlotControl!$C$4-1),12,1)) -> 9581.1 | J15: =MAX(OFFSET(OSP_Dunka!$E$10,12*($A15-1),4*(PlotControl!$C$4-1),12,1)) -> 10077 | K15: =MAX(OFFSET(WWTF_Dunka!$C$10,12*($A15-1),4*(PlotControl!$C$4-1),12,1)) -> 9161 | L15: =MAX(OFFSET(WWTF_Dunka!$D$10,12*($A15-1),4*(PlotControl!$C$4-1),12,1)) -> 9627.4 | M15: =MAX(OFFSET(WWTF_Dunka!$E$10,12*($A15-1),4*(PlotControl!$C$4-1),12,1)) -> 10127 | N15: =MAX(OFFSET(OSLA_Dunka!$C$10,12*($A15-1),4*(PlotControl!$C$4-1),12,1)) -> 27736 | O15: =MAX(OFFSET(OSLA_Dunka!$D$10,12*($A15-1),4*(PlotControl!$C$4-1),12,1)) -> 31529 | P15: =MAX(OFFSET(OSLA_Dunka!$E$10,12*($A15-1),4*(PlotControl!$C$4-1),12,1)) -> 35863 | Q15: =MAX(OFFSET(WPsurf_Dunka!$C$10,12*($A15-1),4*(PlotControl!$C$4-1),12,1)) -> 9110.4 | R15: =MAX(OFFSET(WPsurf_Dunka!$D$10,12*($A15-1),4*(PlotControl!$C$4-1),12,1)) -> 9581.1 | S15: =MAX(OFFSET(WPsurf_Dunka!$E$10,12*($A15-1),4*(PlotControl!$C$4-1),12,1)) -> 10077 | AB15: 11 | AC15: =MAX(OFFSET(EPCat23_Prop!$C$10,12*($AB15-1),4*(PlotControl!$C$4-1),12,1)) -> 9162.2 | AD15: =MAX(OFFSET(EPCat23_Prop!$D$10,12*($AB15-1),4*(PlotControl!$C$4-1),12,1)) -> 9644.9 | AE15: =MAX(OFFSET(EPCat23_Prop!$E$10,12*($AB15-1),4*(PlotControl!$C$4-1),12,1)) -> 10180 | AF15: =MAX(OFFSET(EPbed_Prop!$C$10,12*($AB15-1),4*(PlotControl!$C$4-1),12,1)) -> 20929 | AG15: =MAX(OFFSET(EPbed_Prop!$D$10,12*($AB15-1),4*(PlotControl!$C$4-1),12,1)) -> 24964 | AH15: =MAX(OFFSET(EPbed_Prop!$E$10,12*($AB15-1),4*(PlotControl!$C$4-1),12,1)) -> 29770 | AL15: =MAX(OFFSET(WWTF_Prop!$C$10,12*($AB15-1),4*(PlotControl!$C$4-1),12,1)) -> 9110.4 | AM15: =MAX(OFFSET(WWTF_Prop!$D$10,12*($AB15-1),4*(PlotControl!$C$4-1),12,1)) -> 9581.1 | AN15: =MAX(OFFSET(WWTF_Prop!$E$10,12*($AB15-1),4*(PlotControl!$C$4-1),12,1)) -> 10077 | AO15: =MAX(OFFSET(OSLA_Prop!$C$10,12*($AB15-1),4*(PlotControl!$C$4-1),12,1)) -> 16386 | AP15: =MAX(OFFSET(OSLA_Prop!$D$10,12*($AB15-1),4*(PlotControl!$C$4-1),12,1)) -> 19275 | AQ15: =MAX(OFFSET(OSLA_Prop!$E$10,12*($AB15-1),4*(PlotControl!$C$4-1),12,1)) -> 22776 | AR15: =MAX(OFFSET(WPsurf_Prop!$C$10,12*($AB15-1),4*(PlotControl!$C$4-1),12,1)) -> 9110.4 | AS15: =MAX(OFFSET(WPsurf_Prop!$D$10,12*($AB15-1),4*(PlotControl!$C$4-1),12,1)) -> 9581.1 | AT15: =MAX(OFFSET(WPsurf_Prop!$E$10,12*($AB15-1),4*(PlotControl!$C$4-1),12,1)) -> 10077 | AU15: =MAX(OFFSET(WPbed4_Prop!$C$10,12*($AB15-1),4*(PlotControl!$C$4-1),12,1)) -> 20929 | AV15: =MAX(OFFSET(WPbed4_Prop!$D$10,12*($AB15-1),4*(PlotControl!$C$4-1),12,1)) -> 24964 | AW15: =MAX(OFFSET(WPbed4_Prop!$E$10,12*($AB15-1),4*(PlotControl!$C$4-1),12,1)) -> 29770 | AX15: =MAX(OFFSET(WPbed4a_Prop!$C$10,12*($AB15-1),4*(PlotControl!$C$4-1),12,1)) -> 20929 | AY15: =MAX(OFFSET(WPbed4a_Prop!$D$10,12*($AB15-1),4*(PlotControl!$C$4-1),12,1)) -> 24964 | AZ15: =MAX(OFFSET(WPbed4a_Prop!$E$10,12*($AB15-1),4*(PlotControl!$C$4-1),12,1)) -> 29770 | BB15: 11 | BC15: =MAX(OFFSET(EPCat23_Part!$C$10,12*($BB15-1),4*(PlotControl!$C$4-1),12,1)) -> 9110.4 | BD15: =MAX(OFFSET(EPCat23_Part!$D$10,12*($BB15-1),4*(PlotControl!$C$4-1),12,1)) -> 9581.1 | BE15: =MAX(OFFSET(EPCat23_Part!$E$10,12*($BB15-1),4*(PlotControl!$C$4-1),12,1)) -> 10077 | BI15: =MAX(OFFSET(OSP_Part1!$C$10,12*($BB15-1),4*(PlotControl!$C$4-1),12,1)) -> 9110.4 | BJ15: =MAX(OFFSET(OSP_Part1!$D$10,12*($BB15-1),4*(PlotControl!$C$4-1),12,1)) -> 9581.1 | BK15: =MAX(OFFSET(OSP_Part1!$E$10,12*($BB15-1),4*(PlotControl!$C$4-1),12,1)) -> 10077 | BL15: =MAX(OFFSET(WWTF_Part!$C$10,12*($BB15-1),4*(PlotControl!$C$4-1),12,1)) -> 9110.4 | BM15: =MAX(OFFSET(WWTF_Part!$D$10,12*($BB15-1),4*(PlotControl!$C$4-1),12,1)) -> 9581.1 | BN15: =MAX(OFFSET(WWTF_Part!$E$10,12*($BB15-1),4*(PlotControl!$C$4-1),12,1)) -> 10077 | BO15: =MAX(OFFSET(OSLA_Part!$C$10,12*($BB15-1),4*(PlotControl!$C$4-1),12,1)) -> 9110.4 | BP15: =MAX(OFFSET(OSLA_Part!$D$10,12*($BB15-1),4*(PlotControl!$C$4-1),12,1)) -> 9581.1 | BQ15: =MAX(OFFSET(OSLA_Part!$E$10,12*($BB15-1),4*(PlotControl!$C$4-1),12,1)) -> 10077 | BR15: =MAX(OFFSET(WPsurf_Part!$C$10,12*($BB15-1),4*(PlotControl!$C$4-1),12,1)) -> 9110.4 | BS15: =MAX(OFFSET(WPsurf_Part!$D$10,12*($BB15-1),4*(PlotControl!$C$4-1),12,1)) -> 9581.1 | BT15: =MAX(OFFSET(WPsurf_Part!$E$10,12*($BB15-1),4*(PlotControl!$C$4-1),12,1)) -> 10077
A16: 12 | B16: =MAX(OFFSET(EPCat23_Dunka!$C$10,12*($A16-1),4*(PlotControl!$C$4-1),12,1)) -> 9697.5 | C16: =MAX(OFFSET(EPCat23_Dunka!$D$10,12*($A16-1),4*(PlotControl!$C$4-1),12,1)) -> 10442 | D16: =MAX(OFFSET(EPCat23_Dunka!$E$10,12*($A16-1),4*(PlotControl!$C$4-1),12,1)) -> 12240 | H16: =MAX(OFFSET(OSP_Dunka!$C$10,12*($A16-1),4*(PlotControl!$C$4-1),12,1)) -> 9110.5 | I16: =MAX(OFFSET(OSP_Dunka!$D$10,12*($A16-1),4*(PlotControl!$C$4-1),12,1)) -> 9581.1 | J16: =MAX(OFFSET(OSP_Dunka!$E$10,12*($A16-1),4*(PlotControl!$C$4-1),12,1)) -> 10077 | K16: =MAX(OFFSET(WWTF_Dunka!$C$10,12*($A16-1),4*(PlotControl!$C$4-1),12,1)) -> 9181.8 | L16: =MAX(OFFSET(WWTF_Dunka!$D$10,12*($A16-1),4*(PlotControl!$C$4-1),12,1)) -> 9651.7 | M16: =MAX(OFFSET(WWTF_Dunka!$E$10,12*($A16-1),4*(PlotControl!$C$4-1),12,1)) -> 10137 | N16: =MAX(OFFSET(OSLA_Dunka!$C$10,12*($A16-1),4*(PlotControl!$C$4-1),12,1)) -> 28708 | O16: =MAX(OFFSET(OSLA_Dunka!$D$10,12*($A16-1),4*(PlotControl!$C$4-1),12,1)) -> 32656 | P16: =MAX(OFFSET(OSLA_Dunka!$E$10,12*($A16-1),4*(PlotControl!$C$4-1),12,1)) -> 37051 | Q16: =MAX(OFFSET(WPsurf_Dunka!$C$10,12*($A16-1),4*(PlotControl!$C$4-1),12,1)) -> 9110.4 | R16: =MAX(OFFSET(WPsurf_Dunka!$D$10,12*($A16-1),4*(PlotControl!$C$4-1),12,1)) -> 9581.1 | S16: =MAX(OFFSET(WPsurf_Dunka!$E$10,12*($A16-1),4*(PlotControl!$C$4-1),12,1)) -> 10077 | AB16: 12 | AC16: =MAX(OFFSET(EPCat23_Prop!$C$10,12*($AB16-1),4*(PlotControl!$C$4-1),12,1)) -> 9180.1 | AD16: =MAX(OFFSET(EPCat23_Prop!$D$10,12*($AB16-1),4*(PlotControl!$C$4-1),12,1)) -> 9672.9 | AE16: =MAX(OFFSET(EPCat23_Prop!$E$10,12*($AB16-1),4*(PlotControl!$C$4-1),12,1)) -> 10231 | AF16: =MAX(OFFSET(EPbed_Prop!$C$10,12*($AB16-1),4*(PlotControl!$C$4-1),12,1)) -> 20929 | AG16: =MAX(OFFSET(EPbed_Prop!$D$10,12*($AB16-1),4*(PlotControl!$C$4-1),12,1)) -> 24964 | AH16: =MAX(OFFSET(EPbed_Prop!$E$10,12*($AB16-1),4*(PlotControl!$C$4-1),12,1)) -> 29770 | AL16: =MAX(OFFSET(WWTF_Prop!$C$10,12*($AB16-1),4*(PlotControl!$C$4-1),12,1)) -> 9110.4 | AM16: =MAX(OFFSET(WWTF_Prop!$D$10,12*($AB16-1),4*(PlotControl!$C$4-1),12,1)) -> 9581.1 | AN16: =MAX(OFFSET(WWTF_Prop!$E$10,12*($AB16-1),4*(PlotControl!$C$4-1),12,1)) -> 10077 | AO16: =MAX(OFFSET(OSLA_Prop!$C$10,12*($AB16-1),4*(PlotControl!$C$4-1),12,1)) -> 17837 | AP16: =MAX(OFFSET(OSLA_Prop!$D$10,12*($AB16-1),4*(PlotControl!$C$4-1),12,1)) -> 20971 | AQ16: =MAX(OFFSET(OSLA_Prop!$E$10,12*($AB16-1),4*(PlotControl!$C$4-1),12,1)) -> 24920 | AR16: =MAX(OFFSET(WPsurf_Prop!$C$10,12*($AB16-1),4*(PlotControl!$C$4-1),12,1)) -> 9110.4 | AS16: =MAX(OFFSET(WPsurf_Prop!$D$10,12*($AB16-1),4*(PlotControl!$C$4-1),12,1)) -> 9581.1 | AT16: =MAX(OFFSET(WPsurf_Prop!$E$10,12*($AB16-1),4*(PlotControl!$C$4-1),12,1)) -> 10077 | AU16: =MAX(OFFSET(WPbed4_Prop!$C$10,12*($AB16-1),4*(PlotControl!$C$4-1),12,1)) -> 20929 | AV16: =MAX(OFFSET(WPbed4_Prop!$D$10,12*($AB16-1),4*(PlotControl!$C$4-1),12,1)) -> 24964 | AW16: =MAX(OFFSET(WPbed4_Prop!$E$10,12*($AB16-1),4*(PlotControl!$C$4-1),12,1)) -> 29770 | AX16: =MAX(OFFSET(WPbed4a_Prop!$C$10,12*($AB16-1),4*(PlotControl!$C$4-1),12,1)) -> 20929 | AY16: =MAX(OFFSET(WPbed4a_Prop!$D$10,12*($AB16-1),4*(PlotControl!$C$4-1),12,1)) -> 24964 | AZ16: =MAX(OFFSET(WPbed4a_Prop!$E$10,12*($AB16-1),4*(PlotControl!$C$4-1),12,1)) -> 29770 | BB16: 12 | BC16: =MAX(OFFSET(EPCat23_Part!$C$10,12*($BB16-1),4*(PlotControl!$C$4-1),12,1)) -> 9110.4 | BD16: =MAX(OFFSET(EPCat23_Part!$D$10,12*($BB16-1),4*(PlotControl!$C$4-1),12,1)) -> 9581.1 | BE16: =MAX(OFFSET(EPCat23_Part!$E$10,12*($BB16-1),4*(PlotControl!$C$4-1),12,1)) -> 10077 | BI16: =MAX(OFFSET(OSP_Part1!$C$10,12*($BB16-1),4*(PlotControl!$C$4-1),12,1)) -> 9110.4 | BJ16: =MAX(OFFSET(OSP_Part1!$D$10,12*($BB16-1),4*(PlotControl!$C$4-1),12,1)) -> 9581.1 | BK16: =MAX(OFFSET(OSP_Part1!$E$10,12*($BB16-1),4*(PlotControl!$C$4-1),12,1)) -> 10077 | BL16: =MAX(OFFSET(WWTF_Part!$C$10,12*($BB16-1),4*(PlotControl!$C$4-1),12,1)) -> 9110.4 | BM16: =MAX(OFFSET(WWTF_Part!$D$10,12*($BB16-1),4*(PlotControl!$C$4-1),12,1)) -> 9581.1 | BN16: =MAX(OFFSET(WWTF_Part!$E$10,12*($BB16-1),4*(PlotControl!$C$4-1),12,1)) -> 10077 | BO16: =MAX(OFFSET(OSLA_Part!$C$10,12*($BB16-1),4*(PlotControl!$C$4-1),12,1)) -> 9110.5 | BP16: =MAX(OFFSET(OSLA_Part!$D$10,12*($BB16-1),4*(PlotControl!$C$4-1),12,1)) -> 9581.1 | BQ16: =MAX(OFFSET(OSLA_Part!$E$10,12*($BB16-1),4*(PlotControl!$C$4-1),12,1)) -> 10077 | BR16: =MAX(OFFSET(WPsurf_Part!$C$10,12*($BB16-1),4*(PlotControl!$C$4-1),12,1)) -> 9110.4 | BS16: =MAX(OFFSET(WPsurf_Part!$D$10,12*($BB16-1),4*(PlotControl!$C$4-1),12,1)) -> 9581.1 | BT16: =MAX(OFFSET(WPsurf_Part!$E$10,12*($BB16-1),4*(PlotControl!$C$4-1),12,1)) -> 10077
A17: 13 | B17: =MAX(OFFSET(EPCat23_Dunka!$C$10,12*($A17-1),4*(PlotControl!$C$4-1),12,1)) -> 9797.5 | C17: =MAX(OFFSET(EPCat23_Dunka!$D$10,12*($A17-1),4*(PlotControl!$C$4-1),12,1)) -> 10618 | D17: =MAX(OFFSET(EPCat23_Dunka!$E$10,12*($A17-1),4*(PlotControl!$C$4-1),12,1)) -> 12860 | H17: =MAX(OFFSET(OSP_Dunka!$C$10,12*($A17-1),4*(PlotControl!$C$4-1),12,1)) -> 9110.5 | I17: =MAX(OFFSET(OSP_Dunka!$D$10,12*($A17-1),4*(PlotControl!$C$4-1),12,1)) -> 9581.2 | J17: =MAX(OFFSET(OSP_Dunka!$E$10,12*($A17-1),4*(PlotControl!$C$4-1),12,1)) -> 10077 | K17: =MAX(OFFSET(WWTF_Dunka!$C$10,12*($A17-1),4*(PlotControl!$C$4-1),12,1)) -> 9204.8 | L17: =MAX(OFFSET(WWTF_Dunka!$D$10,12*($A17-1),4*(PlotControl!$C$4-1),12,1)) -> 9672.4 | M17: =MAX(OFFSET(WWTF_Dunka!$E$10,12*($A17-1),4*(PlotControl!$C$4-1),12,1)) -> 10173 | N17: =MAX(OFFSET(OSLA_Dunka!$C$10,12*($A17-1),4*(PlotControl!$C$4-1),12,1)) -> 29504 | O17: =MAX(OFFSET(OSLA_Dunka!$D$10,12*($A17-1),4*(PlotControl!$C$4-1),12,1)) -> 33672 | P17: =MAX(OFFSET(OSLA_Dunka!$E$10,12*($A17-1),4*(PlotControl!$C$4-1),12,1)) -> 38231 | Q17: =MAX(OFFSET(WPsurf_Dunka!$C$10,12*($A17-1),4*(PlotControl!$C$4-1),12,1)) -> 9110.4 | R17: =MAX(OFFSET(WPsurf_Dunka!$D$10,12*($A17-1),4*(PlotControl!$C$4-1),12,1)) -> 9581.1 | S17: =MAX(OFFSET(WPsurf_Dunka!$E$10,12*($A17-1),4*(PlotControl!$C$4-1),12,1)) -> 10077 | AB17: 13 | AC17: =MAX(OFFSET(EPCat23_Prop!$C$10,12*($AB17-1),4*(PlotControl!$C$4-1),12,1)) -> 9206.4 | AD17: =MAX(OFFSET(EPCat23_Prop!$D$10,12*($AB17-1),4*(PlotControl!$C$4-1),12,1)) -> 9719.9 | AE17: =MAX(OFFSET(EPCat23_Prop!$E$10,12*($AB17-1),4*(PlotControl!$C$4-1),12,1)) -> 10302 | AF17: =MAX(OFFSET(EPbed_Prop!$C$10,12*($AB17-1),4*(PlotControl!$C$4-1),12,1)) -> 20929 | AG17: =MAX(OFFSET(EPbed_Prop!$D$10,12*($AB17-1),4*(PlotControl!$C$4-1),12,1)) -> 24964 | AH17: =MAX(OFFSET(EPbed_Prop!$E$10,12*($AB17-1),4*(PlotControl!$C$4-1),12,1)) -> 29770 | AL17: =MAX(OFFSET(WWTF_Prop!$C$10,12*($AB17-1),4*(PlotControl!$C$4-1),12,1)) -> 9110.4 | AM17: =MAX(OFFSET(WWTF_Prop!$D$10,12*($AB17-1),4*(PlotControl!$C$4-1),12,1)) -> 9581.1 | AN17: =MAX(OFFSET(WWTF_Prop!$E$10,12*($AB17-1),4*(PlotControl!$C$4-1),12,1)) -> 10077 | AO17: =MAX(OFFSET(OSLA_Prop!$C$10,12*($AB17-1),4*(PlotControl!$C$4-1),12,1)) -> 19207 | AP17: =MAX(OFFSET(OSLA_Prop!$D$10,12*($AB17-1),4*(PlotControl!$C$4-1),12,1)) -> 22631 | AQ17: =MAX(OFFSET(OSLA_Prop!$E$10,12*($AB17-1),4*(PlotControl!$C$4-1),12,1)) -> 26683 | AR17: =MAX(OFFSET(WPsurf_Prop!$C$10,12*($AB17-1),4*(PlotControl!$C$4-1),12,1)) -> 9110.4 | AS17: =MAX(OFFSET(WPsurf_Prop!$D$10,12*($AB17-1),4*(PlotControl!$C$4-1),12,1)) -> 9581.1 | AT17: =MAX(OFFSET(WPsurf_Prop!$E$10,12*($AB17-1),4*(PlotControl!$C$4-1),12,1)) -> 10077 | AU17: =MAX(OFFSET(WPbed4_Prop!$C$10,12*($AB17-1),4*(PlotControl!$C$4-1),12,1)) -> 20929 | AV17: =MAX(OFFSET(WPbed4_Prop!$D$10,12*($AB17-1),4*(PlotControl!$C$4-1),12,1)) -> 24964 | AW17: =MAX(OFFSET(WPbed4_Prop!$E$10,12*($AB17-1),4*(PlotControl!$C$4-1),12,1)) -> 29770 | AX17: =MAX(OFFSET(WPbed4a_Prop!$C$10,12*($AB17-1),4*(PlotControl!$C$4-1),12,1)) -> 20929 | AY17: =MAX(OFFSET(WPbed4a_Prop!$D$10,12*($AB17-1),4*(PlotControl!$C$4-1),12,1)) -> 24964 | AZ17: =MAX(OFFSET(WPbed4a_Prop!$E$10,12*($AB17-1),4*(PlotControl!$C$4-1),12,1)) -> 29770 | BB17: 13 | BC17: =MAX(OFFSET(EPCat23_Part!$C$10,12*($BB17-1),4*(PlotControl!$C$4-1),12,1)) -> 9110.4 | BD17: =MAX(OFFSET(EPCat23_Part!$D$10,12*($BB17-1),4*(PlotControl!$C$4-1),12,1)) -> 9581.1 | BE17: =MAX(OFFSET(EPCat23_Part!$E$10,12*($BB17-1),4*(PlotControl!$C$4-1),12,1)) -> 10077 | BI17: =MAX(OFFSET(OSP_Part1!$C$10,12*($BB17-1),4*(PlotControl!$C$4-1),12,1)) -> 9110.4 | BJ17: =MAX(OFFSET(OSP_Part1!$D$10,12*($BB17-1),4*(PlotControl!$C$4-1),12,1)) -> 9581.1 | BK17: =MAX(OFFSET(OSP_Part1!$E$10,12*($BB17-1),4*(PlotControl!$C$4-1),12,1)) -> 10077 | BL17: =MAX(OFFSET(WWTF_Part!$C$10,12*($BB17-1),4*(PlotControl!$C$4-1),12,1)) -> 9110.4 | BM17: =MAX(OFFSET(WWTF_Part!$D$10,12*($BB17-1),4*(PlotControl!$C$4-1),12,1)) -> 9581.1 | BN17: =MAX(OFFSET(WWTF_Part!$E$10,12*($BB17-1),4*(PlotControl!$C$4-1),12,1)) -> 10077 | BO17: =MAX(OFFSET(OSLA_Part!$C$10,12*($BB17-1),4*(PlotControl!$C$4-1),12,1)) -> 9110.5 | BP17: =MAX(OFFSET(OSLA_Part!$D$10,12*($BB17-1),4*(PlotControl!$C$4-1),12,1)) -> 9581.1 | BQ17: =MAX(OFFSET(OSLA_Part!$E$10,12*($BB17-1),4*(PlotControl!$C$4-1),12,1)) -> 10077 | BR17: =MAX(OFFSET(WPsurf_Part!$C$10,12*($BB17-1),4*(PlotControl!$C$4-1),12,1)) -> 9110.4 | BS17: =MAX(OFFSET(WPsurf_Part!$D$10,12*($BB17-1),4*(PlotControl!$C$4-1),12,1)) -> 9581.1 | BT17: =MAX(OFFSET(WPsurf_Part!$E$10,12*($BB17-1),4*(PlotControl!$C$4-1),12,1)) -> 10077
A18: 14 | B18: =MAX(OFFSET(EPCat23_Dunka!$C$10,12*($A18-1),4*(PlotControl!$C$4-1),12,1)) -> 9870.2 | C18: =MAX(OFFSET(EPCat23_Dunka!$D$10,12*($A18-1),4*(PlotControl!$C$4-1),12,1)) -> 10847 | D18: =MAX(OFFSET(EPCat23_Dunka!$E$10,12*($A18-1),4*(PlotControl!$C$4-1),12,1)) -> 13468 | H18: =MAX(OFFSET(OSP_Dunka!$C$10,12*($A18-1),4*(PlotControl!$C$4-1),12,1)) -> 9110.5 | I18: =MAX(OFFSET(OSP_Dunka!$D$10,12*($A18-1),4*(PlotControl!$C$4-1),12,1)) -> 9581.2 | J18: =MAX(OFFSET(OSP_Dunka!$E$10,12*($A18-1),4*(PlotControl!$C$4-1),12,1)) -> 10077 | K18: =MAX(OFFSET(WWTF_Dunka!$C$10,12*($A18-1),4*(PlotControl!$C$4-1),12,1)) -> 9233.4 | L18: =MAX(OFFSET(WWTF_Dunka!$D$10,12*($A18-1),4*(PlotControl!$C$4-1),12,1)) -> 9695 | M18: =MAX(OFFSET(WWTF_Dunka!$E$10,12*($A18-1),4*(PlotControl!$C$4-1),12,1)) -> 10224 | N18: =MAX(OFFSET(OSLA_Dunka!$C$10,12*($A18-1),4*(PlotControl!$C$4-1),12,1)) -> 30387 | O18: =MAX(OFFSET(OSLA_Dunka!$D$10,12*($A18-1),4*(PlotControl!$C$4-1),12,1)) -> 34668 | P18: =MAX(OFFSET(OSLA_Dunka!$E$10,12*($A18-1),4*(PlotControl!$C$4-1),12,1)) -> 39350 | Q18: =MAX(OFFSET(WPsurf_Dunka!$C$10,12*($A18-1),4*(PlotControl!$C$4-1),12,1)) -> 9110.4 | R18: =MAX(OFFSET(WPsurf_Dunka!$D$10,12*($A18-1),4*(PlotControl!$C$4-1),12,1)) -> 9581.1 | S18: =MAX(OFFSET(WPsurf_Dunka!$E$10,12*($A18-1),4*(PlotControl!$C$4-1),12,1)) -> 10077 | AB18: 14 | AC18: =MAX(OFFSET(EPCat23_Prop!$C$10,12*($AB18-1),4*(PlotControl!$C$4-1),12,1)) -> 9223.8 | AD18: =MAX(OFFSET(EPCat23_Prop!$D$10,12*($AB18-1),4*(PlotControl!$C$4-1),12,1)) -> 9762.2 | AE18: =MAX(OFFSET(EPCat23_Prop!$E$10,12*($AB18-1),4*(PlotControl!$C$4-1),12,1)) -> 10393 | AF18: =MAX(OFFSET(EPbed_Prop!$C$10,12*($AB18-1),4*(PlotControl!$C$4-1),12,1)) -> 20929 | AG18: =MAX(OFFSET(EPbed_Prop!$D$10,12*($AB18-1),4*(PlotControl!$C$4-1),12,1)) -> 24964 | AH18: =MAX(OFFSET(EPbed_Prop!$E$10,12*($AB18-1),4*(PlotControl!$C$4-1),12,1)) -> 29770 | AL18: =MAX(OFFSET(WWTF_Prop!$C$10,12*($AB18-1),4*(PlotControl!$C$4-1),12,1)) -> 9110.4 | AM18: =MAX(OFFSET(WWTF_Prop!$D$10,12*($AB18-1),4*(PlotControl!$C$4-1),12,1)) -> 9581.1 | AN18: =MAX(OFFSET(WWTF_Prop!$E$10,12*($AB18-1),4*(PlotControl!$C$4-1),12,1)) -> 10077 | AO18: =MAX(OFFSET(OSLA_Prop!$C$10,12*($AB18-1),4*(PlotControl!$C$4-1),12,1)) -> 20581 | AP18: =MAX(OFFSET(OSLA_Prop!$D$10,12*($AB18-1),4*(PlotControl!$C$4-1),12,1)) -> 24126 | AQ18: =MAX(OFFSET(OSLA_Prop!$E$10,12*($AB18-1),4*(PlotControl!$C$4-1),12,1)) -> 28248 | AR18: =MAX(OFFSET(WPsurf_Prop!$C$10,12*($AB18-1),4*(PlotControl!$C$4-1),12,1)) -> 9110.4 | AS18: =MAX(OFFSET(WPsurf_Prop!$D$10,12*($AB18-1),4*(PlotControl!$C$4-1),12,1)) -> 9581.1 | AT18: =MAX(OFFSET(WPsurf_Prop!$E$10,12*($AB18-1),4*(PlotControl!$C$4-1),12,1)) -> 10077 | AU18: =MAX(OFFSET(WPbed4_Prop!$C$10,12*($AB18-1),4*(PlotControl!$C$4-1),12,1)) -> 20929 | AV18: =MAX(OFFSET(WPbed4_Prop!$D$10,12*($AB18-1),4*(PlotControl!$C$4-1),12,1)) -> 24964 | AW18: =MAX(OFFSET(WPbed4_Prop!$E$10,12*($AB18-1),4*(PlotControl!$C$4-1),12,1)) -> 29770 | AX18: =MAX(OFFSET(WPbed4a_Prop!$C$10,12*($AB18-1),4*(PlotControl!$C$4-1),12,1)) -> 20929 | AY18: =MAX(OFFSET(WPbed4a_Prop!$D$10,12*($AB18-1),4*(PlotControl!$C$4-1),12,1)) -> 24964 | AZ18: =MAX(OFFSET(WPbed4a_Prop!$E$10,12*($AB18-1),4*(PlotControl!$C$4-1),12,1)) -> 29770 | BB18: 14 | BC18: =MAX(OFFSET(EPCat23_Part!$C$10,12*($BB18-1),4*(PlotControl!$C$4-1),12,1)) -> 9110.4 | BD18: =MAX(OFFSET(EPCat23_Part!$D$10,12*($BB18-1),4*(PlotControl!$C$4-1),12,1)) -> 9581.1 | BE18: =MAX(OFFSET(EPCat23_Part!$E$10,12*($BB18-1),4*(PlotControl!$C$4-1),12,1)) -> 10077 | BI18: =MAX(OFFSET(OSP_Part1!$C$10,12*($BB18-1),4*(PlotControl!$C$4-1),12,1)) -> 9110.4 | BJ18: =MAX(OFFSET(OSP_Part1!$D$10,12*($BB18-1),4*(PlotControl!$C$4-1),12,1)) -> 9581.1 | BK18: =MAX(OFFSET(OSP_Part1!$E$10,12*($BB18-1),4*(PlotControl!$C$4-1),12,1)) -> 10077 | BL18: =MAX(OFFSET(WWTF_Part!$C$10,12*($BB18-1),4*(PlotControl!$C$4-1),12,1)) -> 9110.4 | BM18: =MAX(OFFSET(WWTF_Part!$D$10,12*($BB18-1),4*(PlotControl!$C$4-1),12,1)) -> 9581.1 | BN18: =MAX(OFFSET(WWTF_Part!$E$10,12*($BB18-1),4*(PlotControl!$C$4-1),12,1)) -> 10077 | BO18: =MAX(OFFSET(OSLA_Part!$C$10,12*($BB18-1),4*(PlotControl!$C$4-1),12,1)) -> 9112.6 | BP18: =MAX(OFFSET(OSLA_Part!$D$10,12*($BB18-1),4*(PlotControl!$C$4-1),12,1)) -> 9581.1 | BQ18: =MAX(OFFSET(OSLA_Part!$E$10,12*($BB18-1),4*(PlotControl!$C$4-1),12,1)) -> 10079 | BR18: =MAX(OFFSET(WPsurf_Part!$C$10,12*($BB18-1),4*(PlotControl!$C$4-1),12,1)) -> 9110.4 | BS18: =MAX(OFFSET(WPsurf_Part!$D$10,12*($BB18-1),4*(PlotControl!$C$4-1),12,1)) -> 9581.1 | BT18: =MAX(OFFSET(WPsurf_Part!$E$10,12*($BB18-1),4*(PlotControl!$C$4-1),12,1)) -> 10077
A19: 15 | B19: =MAX(OFFSET(EPCat23_Dunka!$C$10,12*($A19-1),4*(PlotControl!$C$4-1),12,1)) -> 9959.7 | C19: =MAX(OFFSET(EPCat23_Dunka!$D$10,12*($A19-1),4*(PlotControl!$C$4-1),12,1)) -> 11042 | D19: =MAX(OFFSET(EPCat23_Dunka!$E$10,12*($A19-1),4*(PlotControl!$C$4-1),12,1)) -> 14225 | H19: =MAX(OFFSET(OSP_Dunka!$C$10,12*($A19-1),4*(PlotControl!$C$4-1),12,1)) -> 9110.5 | I19: =MAX(OFFSET(OSP_Dunka!$D$10,12*($A19-1),4*(PlotControl!$C$4-1),12,1)) -> 9581.2 | J19: =MAX(OFFSET(OSP_Dunka!$E$10,12*($A19-1),4*(PlotControl!$C$4-1),12,1)) -> 10077 | K19: =MAX(OFFSET(WWTF_Dunka!$C$10,12*($A19-1),4*(PlotControl!$C$4-1),12,1)) -> 9254.2 | L19: =MAX(OFFSET(WWTF_Dunka!$D$10,12*($A19-1),4*(PlotControl!$C$4-1),12,1)) -> 9722.6 | M19: =MAX(OFFSET(WWTF_Dunka!$E$10,12*($A19-1),4*(PlotControl!$C$4-1),12,1)) -> 10242 | N19: =MAX(OFFSET(OSLA_Dunka!$C$10,12*($A19-1),4*(PlotControl!$C$4-1),12,1)) -> 31120 | O19: =MAX(OFFSET(OSLA_Dunka!$D$10,12*($A19-1),4*(PlotControl!$C$4-1),12,1)) -> 35534 | P19: =MAX(OFFSET(OSLA_Dunka!$E$10,12*($A19-1),4*(PlotControl!$C$4-1),12,1)) -> 40347 | Q19: =MAX(OFFSET(WPsurf_Dunka!$C$10,12*($A19-1),4*(PlotControl!$C$4-1),12,1)) -> 9110.4 | R19: =MAX(OFFSET(WPsurf_Dunka!$D$10,12*($A19-1),4*(PlotControl!$C$4-1),12,1)) -> 9581.1 | S19: =MAX(OFFSET(WPsurf_Dunka!$E$10,12*($A19-1),4*(PlotControl!$C$4-1),12,1)) -> 10077 | AB19: 15 | AC19: =MAX(OFFSET(EPCat23_Prop!$C$10,12*($AB19-1),4*(PlotControl!$C$4-1),12,1)) -> 9254.7 | AD19: =MAX(OFFSET(EPCat23_Prop!$D$10,12*($AB19-1),4*(PlotControl!$C$4-1),12,1)) -> 9804 | AE19: =MAX(OFFSET(EPCat23_Prop!$E$10,12*($AB19-1),4*(PlotControl!$C$4-1),12,1)) -> 10513 | AF19: =MAX(OFFSET(EPbed_Prop!$C$10,12*($AB19-1),4*(PlotControl!$C$4-1),12,1)) -> 20929 | AG19: =MAX(OFFSET(EPbed_Prop!$D$10,12*($AB19-1),4*(PlotControl!$C$4-1),12,1)) -> 24964 | AH19: =MAX(OFFSET(EPbed_Prop!$E$10,12*($AB19-1),4*(PlotControl!$C$4-1),12,1)) -> 29770 | AL19: =MAX(OFFSET(WWTF_Prop!$C$10,12*($AB19-1),4*(PlotControl!$C$4-1),12,1)) -> 9110.4 | AM19: =MAX(OFFSET(WWTF_Prop!$D$10,12*($AB19-1),4*(PlotControl!$C$4-1),12,1)) -> 9581.1 | AN19: =MAX(OFFSET(WWTF_Prop!$E$10,12*($AB19-1),4*(PlotControl!$C$4-1),12,1)) -> 10077 | AO19: =MAX(OFFSET(OSLA_Prop!$C$10,12*($AB19-1),4*(PlotControl!$C$4-1),12,1)) -> 21961 | AP19: =MAX(OFFSET(OSLA_Prop!$D$10,12*($AB19-1),4*(PlotControl!$C$4-1),12,1)) -> 25512 | AQ19: =MAX(OFFSET(OSLA_Prop!$E$10,12*($AB19-1),4*(PlotControl!$C$4-1),12,1)) -> 29863 | AR19: =MAX(OFFSET(WPsurf_Prop!$C$10,12*($AB19-1),4*(PlotControl!$C$4-1),12,1)) -> 9110.4 | AS19: =MAX(OFFSET(WPsurf_Prop!$D$10,12*($AB19-1),4*(PlotControl!$C$4-1),12,1)) -> 9581.1 | AT19: =MAX(OFFSET(WPsurf_Prop!$E$10,12*($AB19-1),4*(PlotControl!$C$4-1),12,1)) -> 10077 | AU19: =MAX(OFFSET(WPbed4_Prop!$C$10,12*($AB19-1),4*(PlotControl!$C$4-1),12,1)) -> 20929 | AV19: =MAX(OFFSET(WPbed4_Prop!$D$10,12*($AB19-1),4*(PlotControl!$C$4-1),12,1)) -> 24964 | AW19: =MAX(OFFSET(WPbed4_Prop!$E$10,12*($AB19-1),4*(PlotControl!$C$4-1),12,1)) -> 29770 | AX19: =MAX(OFFSET(WPbed4a_Prop!$C$10,12*($AB19-1),4*(PlotControl!$C$4-1),12,1)) -> 20929 | AY19: =MAX(OFFSET(WPbed4a_Prop!$D$10,12*($AB19-1),4*(PlotControl!$C$4-1),12,1)) -> 24964 | AZ19: =MAX(OFFSET(WPbed4a_Prop!$E$10,12*($AB19-1),4*(PlotControl!$C$4-1),12,1)) -> 29770 | BB19: 15 | BC19: =MAX(OFFSET(EPCat23_Part!$C$10,12*($BB19-1),4*(PlotControl!$C$4-1),12,1)) -> 9110.4 | BD19: =MAX(OFFSET(EPCat23_Part!$D$10,12*($BB19-1),4*(PlotControl!$C$4-1),12,1)) -> 9581.1 | BE19: =MAX(OFFSET(EPCat23_Part!$E$10,12*($BB19-1),4*(PlotControl!$C$4-1),12,1)) -> 10077 | BI19: =MAX(OFFSET(OSP_Part1!$C$10,12*($BB19-1),4*(PlotControl!$C$4-1),12,1)) -> 9110.4 | BJ19: =MAX(OFFSET(OSP_Part1!$D$10,12*($BB19-1),4*(PlotControl!$C$4-1),12,1)) -> 9581.1 | BK19: =MAX(OFFSET(OSP_Part1!$E$10,12*($BB19-1),4*(PlotControl!$C$4-1),12,1)) -> 10077 | BL19: =MAX(OFFSET(WWTF_Part!$C$10,12*($BB19-1),4*(PlotControl!$C$4-1),12,1)) -> 9110.4 | BM19: =MAX(OFFSET(WWTF_Part!$D$10,12*($BB19-1),4*(PlotControl!$C$4-1),12,1)) -> 9581.1 | BN19: =MAX(OFFSET(WWTF_Part!$E$10,12*($BB19-1),4*(PlotControl!$C$4-1),12,1)) -> 10077 | BO19: =MAX(OFFSET(OSLA_Part!$C$10,12*($BB19-1),4*(PlotControl!$C$4-1),12,1)) -> 9114.4 | BP19: =MAX(OFFSET(OSLA_Part!$D$10,12*($BB19-1),4*(PlotControl!$C$4-1),12,1)) -> 9585.2 | BQ19: =MAX(OFFSET(OSLA_Part!$E$10,12*($BB19-1),4*(PlotControl!$C$4-1),12,1)) -> 10082 | BR19: =MAX(OFFSET(WPsurf_Part!$C$10,12*($BB19-1),4*(PlotControl!$C$4-1),12,1)) -> 9110.4 | BS19: =MAX(OFFSET(WPsurf_Part!$D$10,12*($BB19-1),4*(PlotControl!$C$4-1),12,1)) -> 9581.1 | BT19: =MAX(OFFSET(WPsurf_Part!$E$10,12*($BB19-1),4*(PlotControl!$C$4-1),12,1)) -> 10077
A20: 16 | B20: =MAX(OFFSET(EPCat23_Dunka!$C$10,12*($A20-1),4*(PlotControl!$C$4-1),12,1)) -> 10041 | C20: =MAX(OFFSET(EPCat23_Dunka!$D$10,12*($A20-1),4*(PlotControl!$C$4-1),12,1)) -> 11245 | D20: =MAX(OFFSET(EPCat23_Dunka!$E$10,12*($A20-1),4*(PlotControl!$C$4-1),12,1)) -> 15046 | H20: =MAX(OFFSET(OSP_Dunka!$C$10,12*($A20-1),4*(PlotControl!$C$4-1),12,1)) -> 9110.5 | I20: =MAX(OFFSET(OSP_Dunka!$D$10,12*($A20-1),4*(PlotControl!$C$4-1),12,1)) -> 9581.3 | J20: =MAX(OFFSET(OSP_Dunka!$E$10,12*($A20-1),4*(PlotControl!$C$4-1),12,1)) -> 10077 | K20: =MAX(OFFSET(WWTF_Dunka!$C$10,12*($A20-1),4*(PlotControl!$C$4-1),12,1)) -> 9280.5 | L20: =MAX(OFFSET(WWTF_Dunka!$D$10,12*($A20-1),4*(PlotControl!$C$4-1),12,1)) -> 9770 | M20: =MAX(OFFSET(WWTF_Dunka!$E$10,12*($A20-1),4*(PlotControl!$C$4-1),12,1)) -> 10284 | N20: =MAX(OFFSET(OSLA_Dunka!$C$10,12*($A20-1),4*(PlotControl!$C$4-1),12,1)) -> 31822 | O20: =MAX(OFFSET(OSLA_Dunka!$D$10,12*($A20-1),4*(PlotControl!$C$4-1),12,1)) -> 36304 | P20: =MAX(OFFSET(OSLA_Dunka!$E$10,12*($A20-1),4*(PlotControl!$C$4-1),12,1)) -> 41125 | Q20: =MAX(OFFSET(WPsurf_Dunka!$C$10,12*($A20-1),4*(PlotControl!$C$4-1),12,1)) -> 9110.4 | R20: =MAX(OFFSET(WPsurf_Dunka!$D$10,12*($A20-1),4*(PlotControl!$C$4-1),12,1)) -> 9581.1 | S20: =MAX(OFFSET(WPsurf_Dunka!$E$10,12*($A20-1),4*(PlotControl!$C$4-1),12,1)) -> 10077 | AB20: 16 | AC20: =MAX(OFFSET(EPCat23_Prop!$C$10,12*($AB20-1),4*(PlotControl!$C$4-1),12,1)) -> 9290.4 | AD20: =MAX(OFFSET(EPCat23_Prop!$D$10,12*($AB20-1),4*(PlotControl!$C$4-1),12,1)) -> 9849.7 | AE20: =MAX(OFFSET(EPCat23_Prop!$E$10,12*($AB20-1),4*(PlotControl!$C$4-1),12,1)) -> 10662 | AF20: =MAX(OFFSET(EPbed_Prop!$C$10,12*($AB20-1),4*(PlotControl!$C$4-1),12,1)) -> 20929 | AG20: =MAX(OFFSET(EPbed_Prop!$D$10,12*($AB20-1),4*(PlotControl!$C$4-1),12,1)) -> 24964 | AH20: =MAX(OFFSET(EPbed_Prop!$E$10,12*($AB20-1),4*(PlotControl!$C$4-1),12,1)) -> 29770 | AL20: =MAX(OFFSET(WWTF_Prop!$C$10,12*($AB20-1),4*(PlotControl!$C$4-1),12,1)) -> 9110.4 | AM20: =MAX(OFFSET(WWTF_Prop!$D$10,12*($AB20-1),4*(PlotControl!$C$4-1),12,1)) -> 9581.1 | AN20: =MAX(OFFSET(WWTF_Prop!$E$10,12*($AB20-1),4*(PlotControl!$C$4-1),12,1)) -> 10077 | AO20: =MAX(OFFSET(OSLA_Prop!$C$10,12*($AB20-1),4*(PlotControl!$C$4-1),12,1)) -> 22946 | AP20: =MAX(OFFSET(OSLA_Prop!$D$10,12*($AB20-1),4*(PlotControl!$C$4-1),12,1)) -> 26891 | AQ20: =MAX(OFFSET(OSLA_Prop!$E$10,12*($AB20-1),4*(PlotControl!$C$4-1),12,1)) -> 31363 | AR20: =MAX(OFFSET(WPsurf_Prop!$C$10,12*($AB20-1),4*(PlotControl!$C$4-1),12,1)) -> 9110.4 | AS20: =MAX(OFFSET(WPsurf_Prop!$D$10,12*($AB20-1),4*(PlotControl!$C$4-1),12,1)) -> 9581.1 | AT20: =MAX(OFFSET(WPsurf_Prop!$E$10,12*($AB20-1),4*(PlotControl!$C$4-1),12,1)) -> 10077 | AU20: =MAX(OFFSET(WPbed4_Prop!$C$10,12*($AB20-1),4*(PlotControl!$C$4-1),12,1)) -> 20929 | AV20: =MAX(OFFSET(WPbed4_Prop!$D$10,12*($AB20-1),4*(PlotControl!$C$4-1),12,1)) -> 24964 | AW20: =MAX(OFFSET(WPbed4_Prop!$E$10,12*($AB20-1),4*(PlotControl!$C$4-1),12,1)) -> 29770 | AX20: =MAX(OFFSET(WPbed4a_Prop!$C$10,12*($AB20-1),4*(PlotControl!$C$4-1),12,1)) -> 20929 | AY20: =MAX(OFFSET(WPbed4a_Prop!$D$10,12*($AB20-1),4*(PlotControl!$C$4-1),12,1)) -> 24964 | AZ20: =MAX(OFFSET(WPbed4a_Prop!$E$10,12*($AB20-1),4*(PlotControl!$C$4-1),12,1)) -> 29770 | BB20: 16 | BC20: =MAX(OFFSET(EPCat23_Part!$C$10,12*($BB20-1),4*(PlotControl!$C$4-1),12,1)) -> 9110.4 | BD20: =MAX(OFFSET(EPCat23_Part!$D$10,12*($BB20-1),4*(PlotControl!$C$4-1),12,1)) -> 9581.1 | BE20: =MAX(OFFSET(EPCat23_Part!$E$10,12*($BB20-1),4*(PlotControl!$C$4-1),12,1)) -> 10077 | BI20: =MAX(OFFSET(OSP_Part1!$C$10,12*($BB20-1),4*(PlotControl!$C$4-1),12,1)) -> 9110.4 | BJ20: =MAX(OFFSET(OSP_Part1!$D$10,12*($BB20-1),4*(PlotControl!$C$4-1),12,1)) -> 9581.1 | BK20: =MAX(OFFSET(OSP_Part1!$E$10,12*($BB20-1),4*(PlotControl!$C$4-1),12,1)) -> 10077 | BL20: =MAX(OFFSET(WWTF_Part!$C$10,12*($BB20-1),4*(PlotControl!$C$4-1),12,1)) -> 9110.4 | BM20: =MAX(OFFSET(WWTF_Part!$D$10,12*($BB20-1),4*(PlotControl!$C$4-1),12,1)) -> 9581.1 | BN20: =MAX(OFFSET(WWTF_Part!$E$10,12*($BB20-1),4*(PlotControl!$C$4-1),12,1)) -> 10077 | BO20: =MAX(OFFSET(OSLA_Part!$C$10,12*($BB20-1),4*(PlotControl!$C$4-1),12,1)) -> 9129.1 | BP20: =MAX(OFFSET(OSLA_Part!$D$10,12*($BB20-1),4*(PlotControl!$C$4-1),12,1)) -> 9598.3 | BQ20: =MAX(OFFSET(OSLA_Part!$E$10,12*($BB20-1),4*(PlotControl!$C$4-1),12,1)) -> 10097 | BR20: =MAX(OFFSET(WPsurf_Part!$C$10,12*($BB20-1),4*(PlotControl!$C$4-1),12,1)) -> 9110.4 | BS20: =MAX(OFFSET(WPsurf_Part!$D$10,12*($BB20-1),4*(PlotControl!$C$4-1),12,1)) -> 9581.1 | BT20: =MAX(OFFSET(WPsurf_Part!$E$10,12*($BB20-1),4*(PlotControl!$C$4-1),12,1)) -> 10077
A21: 17 | B21: =MAX(OFFSET(EPCat23_Dunka!$C$10,12*($A21-1),4*(PlotControl!$C$4-1),12,1)) -> 10102 | C21: =MAX(OFFSET(EPCat23_Dunka!$D$10,12*($A21-1),4*(PlotControl!$C$4-1),12,1)) -> 11419 | D21: =MAX(OFFSET(EPCat23_Dunka!$E$10,12*($A21-1),4*(PlotControl!$C$4-1),12,1)) -> 15723 | H21: =MAX(OFFSET(OSP_Dunka!$C$10,12*($A21-1),4*(PlotControl!$C$4-1),12,1)) -> 9110.5 | I21: =MAX(OFFSET(OSP_Dunka!$D$10,12*($A21-1),4*(PlotControl!$C$4-1),12,1)) -> 9581.3 | J21: =MAX(OFFSET(OSP_Dunka!$E$10,12*($A21-1),4*(PlotControl!$C$4-1),12,1)) -> 10077 | K21: =MAX(OFFSET(WWTF_Dunka!$C$10,12*($A21-1),4*(PlotControl!$C$4-1),12,1)) -> 9316.8 | L21: =MAX(OFFSET(WWTF_Dunka!$D$10,12*($A21-1),4*(PlotControl!$C$4-1),12,1)) -> 9824.9 | M21: =MAX(OFFSET(WWTF_Dunka!$E$10,12*($A21-1),4*(PlotControl!$C$4-1),12,1)) -> 10358 | N21: =MAX(OFFSET(OSLA_Dunka!$C$10,12*($A21-1),4*(PlotControl!$C$4-1),12,1)) -> 32477 | O21: =MAX(OFFSET(OSLA_Dunka!$D$10,12*($A21-1),4*(PlotControl!$C$4-1),12,1)) -> 36975 | P21: =MAX(OFFSET(OSLA_Dunka!$E$10,12*($A21-1),4*(PlotControl!$C$4-1),12,1)) -> 41854 | Q21: =MAX(OFFSET(WPsurf_Dunka!$C$10,12*($A21-1),4*(PlotControl!$C$4-1),12,1)) -> 9110.4 | R21: =MAX(OFFSET(WPsurf_Dunka!$D$10,12*($A21-1),4*(PlotControl!$C$4-1),12,1)) -> 9581.1 | S21: =MAX(OFFSET(WPsurf_Dunka!$E$10,12*($A21-1),4*(PlotControl!$C$4-1),12,1)) -> 10077 | AB21: 17 | AC21: =MAX(OFFSET(EPCat23_Prop!$C$10,12*($AB21-1),4*(PlotControl!$C$4-1),12,1)) -> 9316.1 | AD21: =MAX(OFFSET(EPCat23_Prop!$D$10,12*($AB21-1),4*(PlotControl!$C$4-1),12,1)) -> 9923.4 | AE21: =MAX(OFFSET(EPCat23_Prop!$E$10,12*($AB21-1),4*(PlotControl!$C$4-1),12,1)) -> 10908 | AF21: =MAX(OFFSET(EPbed_Prop!$C$10,12*($AB21-1),4*(PlotControl!$C$4-1),12,1)) -> 20929 | AG21: =MAX(OFFSET(EPbed_Prop!$D$10,12*($AB21-1),4*(PlotControl!$C$4-1),12,1)) -> 24964 | AH21: =MAX(OFFSET(EPbed_Prop!$E$10,12*($AB21-1),4*(PlotControl!$C$4-1),12,1)) -> 29770 | AL21: =MAX(OFFSET(WWTF_Prop!$C$10,12*($AB21-1),4*(PlotControl!$C$4-1),12,1)) -> 9110.4 | AM21: =MAX(OFFSET(WWTF_Prop!$D$10,12*($AB21-1),4*(PlotControl!$C$4-1),12,1)) -> 9581.1 | AN21: =MAX(OFFSET(WWTF_Prop!$E$10,12*($AB21-1),4*(PlotControl!$C$4-1),12,1)) -> 10077 | AO21: =MAX(OFFSET(OSLA_Prop!$C$10,12*($AB21-1),4*(PlotControl!$C$4-1),12,1)) -> 24086 | AP21: =MAX(OFFSET(OSLA_Prop!$D$10,12*($AB21-1),4*(PlotControl!$C$4-1),12,1)) -> 28118 | AQ21: =MAX(OFFSET(OSLA_Prop!$E$10,12*($AB21-1),4*(PlotControl!$C$4-1),12,1)) -> 32763 | AR21: =MAX(OFFSET(WPsurf_Prop!$C$10,12*($AB21-1),4*(PlotControl!$C$4-1),12,1)) -> 9110.4 | AS21: =MAX(OFFSET(WPsurf_Prop!$D$10,12*($AB21-1),4*(PlotControl!$C$4-1),12,1)) -> 9581.1 | AT21: =MAX(OFFSET(WPsurf_Prop!$E$10,12*($AB21-1),4*(PlotControl!$C$4-1),12,1)) -> 10077 | AU21: =MAX(OFFSET(WPbed4_Prop!$C$10,12*($AB21-1),4*(PlotControl!$C$4-1),12,1)) -> 20929 | AV21: =MAX(OFFSET(WPbed4_Prop!$D$10,12*($AB21-1),4*(PlotControl!$C$4-1),12,1)) -> 24964 | AW21: =MAX(OFFSET(WPbed4_Prop!$E$10,12*($AB21-1),4*(PlotControl!$C$4-1),12,1)) -> 29770 | AX21: =MAX(OFFSET(WPbed4a_Prop!$C$10,12*($AB21-1),4*(PlotControl!$C$4-1),12,1)) -> 20929 | AY21: =MAX(OFFSET(WPbed4a_Prop!$D$10,12*($AB21-1),4*(PlotControl!$C$4-1),12,1)) -> 24964 | AZ21: =MAX(OFFSET(WPbed4a_Prop!$E$10,12*($AB21-1),4*(PlotControl!$C$4-1),12,1)) -> 29770 | BB21: 17 | BC21: =MAX(OFFSET(EPCat23_Part!$C$10,12*($BB21-1),4*(PlotControl!$C$4-1),12,1)) -> 9110.4 | BD21: =MAX(OFFSET(EPCat23_Part!$D$10,12*($BB21-1),4*(PlotControl!$C$4-1),12,1)) -> 9581.1 | BE21: =MAX(OFFSET(EPCat23_Part!$E$10,12*($BB21-1),4*(PlotControl!$C$4-1),12,1)) -> 10077 | BI21: =MAX(OFFSET(OSP_Part1!$C$10,12*($BB21-1),4*(PlotControl!$C$4-1),12,1)) -> 9110.4 | BJ21: =MAX(OFFSET(OSP_Part1!$D$10,12*($BB21-1),4*(PlotControl!$C$4-1),12,1)) -> 9581.1 | BK21: =MAX(OFFSET(OSP_Part1!$E$10,12*($BB21-1),4*(PlotControl!$C$4-1),12,1)) -> 10077 | BL21: =MAX(OFFSET(WWTF_Part!$C$10,12*($BB21-1),4*(PlotControl!$C$4-1),12,1)) -> 9110.4 | BM21: =MAX(OFFSET(WWTF_Part!$D$10,12*($BB21-1),4*(PlotControl!$C$4-1),12,1)) -> 9581.1 | BN21: =MAX(OFFSET(WWTF_Part!$E$10,12*($BB21-1),4*(PlotControl!$C$4-1),12,1)) -> 10077 | BO21: =MAX(OFFSET(OSLA_Part!$C$10,12*($BB21-1),4*(PlotControl!$C$4-1),12,1)) -> 9145.1 | BP21: =MAX(OFFSET(OSLA_Part!$D$10,12*($BB21-1),4*(PlotControl!$C$4-1),12,1)) -> 9617.3 | BQ21: =MAX(OFFSET(OSLA_Part!$E$10,12*($BB21-1),4*(PlotControl!$C$4-1),12,1)) -> 10140 | BR21: =MAX(OFFSET(WPsurf_Part!$C$10,12*($BB21-1),4*(PlotControl!$C$4-1),12,1)) -> 9110.4 | BS21: =MAX(OFFSET(WPsurf_Part!$D$10,12*($BB21-1),4*(PlotControl!$C$4-1),12,1)) -> 9581.1 | BT21: =MAX(OFFSET(WPsurf_Part!$E$10,12*($BB21-1),4*(PlotControl!$C$4-1),12,1)) -> 10077
A22: 18 | B22: =MAX(OFFSET(EPCat23_Dunka!$C$10,12*($A22-1),4*(PlotControl!$C$4-1),12,1)) -> 10148 | C22: =MAX(OFFSET(EPCat23_Dunka!$D$10,12*($A22-1),4*(PlotControl!$C$4-1),12,1)) -> 11590 | D22: =MAX(OFFSET(EPCat23_Dunka!$E$10,12*($A22-1),4*(PlotControl!$C$4-1),12,1)) -> 16296 | H22: =MAX(OFFSET(OSP_Dunka!$C$10,12*($A22-1),4*(PlotControl!$C$4-1),12,1)) -> 9110.5 | I22: =MAX(OFFSET(OSP_Dunka!$D$10,12*($A22-1),4*(PlotControl!$C$4-1),12,1)) -> 9581.4 | J22: =MAX(OFFSET(OSP_Dunka!$E$10,12*($A22-1),4*(PlotControl!$C$4-1),12,1)) -> 10077 | K22: =MAX(OFFSET(WWTF_Dunka!$C$10,12*($A22-1),4*(PlotControl!$C$4-1),12,1)) -> 9354.8 | L22: =MAX(OFFSET(WWTF_Dunka!$D$10,12*($A22-1),4*(PlotControl!$C$4-1),12,1)) -> 9880.1 | M22: =MAX(OFFSET(WWTF_Dunka!$E$10,12*($A22-1),4*(PlotControl!$C$4-1),12,1)) -> 10416 | N22: =MAX(OFFSET(OSLA_Dunka!$C$10,12*($A22-1),4*(PlotControl!$C$4-1),12,1)) -> 33031 | O22: =MAX(OFFSET(OSLA_Dunka!$D$10,12*($A22-1),4*(PlotControl!$C$4-1),12,1)) -> 37623 | P22: =MAX(OFFSET(OSLA_Dunka!$E$10,12*($A22-1),4*(PlotControl!$C$4-1),12,1)) -> 42623 | Q22: =MAX(OFFSET(WPsurf_Dunka!$C$10,12*($A22-1),4*(PlotControl!$C$4-1),12,1)) -> 9110.4 | R22: =MAX(OFFSET(WPsurf_Dunka!$D$10,12*($A22-1),4*(PlotControl!$C$4-1),12,1)) -> 9581.1 | S22: =MAX(OFFSET(WPsurf_Dunka!$E$10,12*($A22-1),4*(PlotControl!$C$4-1),12,1)) -> 10077 | AB22: 18 | AC22: =MAX(OFFSET(EPCat23_Prop!$C$10,12*($AB22-1),4*(PlotControl!$C$4-1),12,1)) -> 9339.5 | AD22: =MAX(OFFSET(EPCat23_Prop!$D$10,12*($AB22-1),4*(PlotControl!$C$4-1),12,1)) -> 9997.8 | AE22: =MAX(OFFSET(EPCat23_Prop!$E$10,12*($AB22-1),4*(PlotControl!$C$4-1),12,1)) -> 11222 | AF22: =MAX(OFFSET(EPbed_Prop!$C$10,12*($AB22-1),4*(PlotControl!$C$4-1),12,1)) -> 20929 | AG22: =MAX(OFFSET(EPbed_Prop!$D$10,12*($AB22-1),4*(PlotControl!$C$4-1),12,1)) -> 24964 | AH22: =MAX(OFFSET(EPbed_Prop!$E$10,12*($AB22-1),4*(PlotControl!$C$4-1),12,1)) -> 29770 | AL22: =MAX(OFFSET(WWTF_Prop!$C$10,12*($AB22-1),4*(PlotControl!$C$4-1),12,1)) -> 9110.4 | AM22: =MAX(OFFSET(WWTF_Prop!$D$10,12*($AB22-1),4*(PlotControl!$C$4-1),12,1)) -> 9581.1 | AN22: =MAX(OFFSET(WWTF_Prop!$E$10,12*($AB22-1),4*(PlotControl!$C$4-1),12,1)) -> 10077 | AO22: =MAX(OFFSET(OSLA_Prop!$C$10,12*($AB22-1),4*(PlotControl!$C$4-1),12,1)) -> 24963 | AP22: =MAX(OFFSET(OSLA_Prop!$D$10,12*($AB22-1),4*(PlotControl!$C$4-1),12,1)) -> 29138 | AQ22: =MAX(OFFSET(OSLA_Prop!$E$10,12*($AB22-1),4*(PlotControl!$C$4-1),12,1)) -> 34055 | AR22: =MAX(OFFSET(WPsurf_Prop!$C$10,12*($AB22-1),4*(PlotControl!$C$4-1),12,1)) -> 9110.4 | AS22: =MAX(OFFSET(WPsurf_Prop!$D$10,12*($AB22-1),4*(PlotControl!$C$4-1),12,1)) -> 9581.1 | AT22: =MAX(OFFSET(WPsurf_Prop!$E$10,12*($AB22-1),4*(PlotControl!$C$4-1),12,1)) -> 10077 | AU22: =MAX(OFFSET(WPbed4_Prop!$C$10,12*($AB22-1),4*(PlotControl!$C$4-1),12,1)) -> 20929 | AV22: =MAX(OFFSET(WPbed4_Prop!$D$10,12*($AB22-1),4*(PlotControl!$C$4-1),12,1)) -> 24964 | AW22: =MAX(OFFSET(WPbed4_Prop!$E$10,12*($AB22-1),4*(PlotControl!$C$4-1),12,1)) -> 29770 | AX22: =MAX(OFFSET(WPbed4a_Prop!$C$10,12*($AB22-1),4*(PlotControl!$C$4-1),12,1)) -> 20929 | AY22: =MAX(OFFSET(WPbed4a_Prop!$D$10,12*($AB22-1),4*(PlotControl!$C$4-1),12,1)) -> 24964 | AZ22: =MAX(OFFSET(WPbed4a_Prop!$E$10,12*($AB22-1),4*(PlotControl!$C$4-1),12,1)) -> 29770 | BB22: 18 | BC22: =MAX(OFFSET(EPCat23_Part!$C$10,12*($BB22-1),4*(PlotControl!$C$4-1),12,1)) -> 9110.4 | BD22: =MAX(OFFSET(EPCat23_Part!$D$10,12*($BB22-1),4*(PlotControl!$C$4-1),12,1)) -> 9581.2 | BE22: =MAX(OFFSET(EPCat23_Part!$E$10,12*($BB22-1),4*(PlotControl!$C$4-1),12,1)) -> 10077 | BI22: =MAX(OFFSET(OSP_Part1!$C$10,12*($BB22-1),4*(PlotControl!$C$4-1),12,1)) -> 9110.4 | BJ22: =MAX(OFFSET(OSP_Part1!$D$10,12*($BB22-1),4*(PlotControl!$C$4-1),12,1)) -> 9581.1 | BK22: =MAX(OFFSET(OSP_Part1!$E$10,12*($BB22-1),4*(PlotControl!$C$4-1),12,1)) -> 10077 | BL22: =MAX(OFFSET(WWTF_Part!$C$10,12*($BB22-1),4*(PlotControl!$C$4-1),12,1)) -> 9110.4 | BM22: =MAX(OFFSET(WWTF_Part!$D$10,12*($BB22-1),4*(PlotControl!$C$4-1),12,1)) -> 9581.1 | BN22: =MAX(OFFSET(WWTF_Part!$E$10,12*($BB22-1),4*(PlotControl!$C$4-1),12,1)) -> 10077 | BO22: =MAX(OFFSET(OSLA_Part!$C$10,12*($BB22-1),4*(PlotControl!$C$4-1),12,1)) -> 9158.6 | BP22: =MAX(OFFSET(OSLA_Part!$D$10,12*($BB22-1),4*(PlotControl!$C$4-1),12,1)) -> 9653.3 | BQ22: =MAX(OFFSET(OSLA_Part!$E$10,12*($BB22-1),4*(PlotControl!$C$4-1),12,1)) -> 10205 | BR22: =MAX(OFFSET(WPsurf_Part!$C$10,12*($BB22-1),4*(PlotControl!$C$4-1),12,1)) -> 9110.4 | BS22: =MAX(OFFSET(WPsurf_Part!$D$10,12*($BB22-1),4*(PlotControl!$C$4-1),12,1)) -> 9581.1 | BT22: =MAX(OFFSET(WPsurf_Part!$E$10,12*($BB22-1),4*(PlotControl!$C$4-1),12,1)) -> 10077
A23: 19 | B23: =MAX(OFFSET(EPCat23_Dunka!$C$10,12*($A23-1),4*(PlotControl!$C$4-1),12,1)) -> 10182 | C23: =MAX(OFFSET(EPCat23_Dunka!$D$10,12*($A23-1),4*(PlotControl!$C$4-1),12,1)) -> 11738 | D23: =MAX(OFFSET(EPCat23_Dunka!$E$10,12*($A23-1),4*(PlotControl!$C$4-1),12,1)) -> 16943 | H23: =MAX(OFFSET(OSP_Dunka!$C$10,12*($A23-1),4*(PlotControl!$C$4-1),12,1)) -> 9110.5 | I23: =MAX(OFFSET(OSP_Dunka!$D$10,12*($A23-1),4*(PlotControl!$C$4-1),12,1)) -> 9581.5 | J23: =MAX(OFFSET(OSP_Dunka!$E$10,12*($A23-1),4*(PlotControl!$C$4-1),12,1)) -> 10077 | K23: =MAX(OFFSET(WWTF_Dunka!$C$10,12*($A23-1),4*(PlotControl!$C$4-1),12,1)) -> 9397.2 | L23: =MAX(OFFSET(WWTF_Dunka!$D$10,12*($A23-1),4*(PlotControl!$C$4-1),12,1)) -> 9929 | M23: =MAX(OFFSET(WWTF_Dunka!$E$10,12*($A23-1),4*(PlotControl!$C$4-1),12,1)) -> 10492 | N23: =MAX(OFFSET(OSLA_Dunka!$C$10,12*($A23-1),4*(PlotControl!$C$4-1),12,1)) -> 33611 | O23: =MAX(OFFSET(OSLA_Dunka!$D$10,12*($A23-1),4*(PlotControl!$C$4-1),12,1)) -> 38193 | P23: =MAX(OFFSET(OSLA_Dunka!$E$10,12*($A23-1),4*(PlotControl!$C$4-1),12,1)) -> 43306 | Q23: =MAX(OFFSET(WPsurf_Dunka!$C$10,12*($A23-1),4*(PlotControl!$C$4-1),12,1)) -> 9110.4 | R23: =MAX(OFFSET(WPsurf_Dunka!$D$10,12*($A23-1),4*(PlotControl!$C$4-1),12,1)) -> 9581.1 | S23: =MAX(OFFSET(WPsurf_Dunka!$E$10,12*($A23-1),4*(PlotControl!$C$4-1),12,1)) -> 10077 | AB23: 19 | AC23: =MAX(OFFSET(EPCat23_Prop!$C$10,12*($AB23-1),4*(PlotControl!$C$4-1),12,1)) -> 9392.3 | AD23: =MAX(OFFSET(EPCat23_Prop!$D$10,12*($AB23-1),4*(PlotControl!$C$4-1),12,1)) -> 10078 | AE23: =MAX(OFFSET(EPCat23_Prop!$E$10,12*($AB23-1),4*(PlotControl!$C$4-1),12,1)) -> 11533 | AF23: =MAX(OFFSET(EPbed_Prop!$C$10,12*($AB23-1),4*(PlotControl!$C$4-1),12,1)) -> 20929 | AG23: =MAX(OFFSET(EPbed_Prop!$D$10,12*($AB23-1),4*(PlotControl!$C$4-1),12,1)) -> 24964 | AH23: =MAX(OFFSET(EPbed_Prop!$E$10,12*($AB23-1),4*(PlotControl!$C$4-1),12,1)) -> 29770 | AL23: =MAX(OFFSET(WWTF_Prop!$C$10,12*($AB23-1),4*(PlotControl!$C$4-1),12,1)) -> 9110.4 | AM23: =MAX(OFFSET(WWTF_Prop!$D$10,12*($AB23-1),4*(PlotControl!$C$4-1),12,1)) -> 9581.1 | AN23: =MAX(OFFSET(WWTF_Prop!$E$10,12*($AB23-1),4*(PlotControl!$C$4-1),12,1)) -> 10077 | AO23: =MAX(OFFSET(OSLA_Prop!$C$10,12*($AB23-1),4*(PlotControl!$C$4-1),12,1)) -> 25780 | AP23: =MAX(OFFSET(OSLA_Prop!$D$10,12*($AB23-1),4*(PlotControl!$C$4-1),12,1)) -> 30098 | AQ23: =MAX(OFFSET(OSLA_Prop!$E$10,12*($AB23-1),4*(PlotControl!$C$4-1),12,1)) -> 35190 | AR23: =MAX(OFFSET(WPsurf_Prop!$C$10,12*($AB23-1),4*(PlotControl!$C$4-1),12,1)) -> 9110.4 | AS23: =MAX(OFFSET(WPsurf_Prop!$D$10,12*($AB23-1),4*(PlotControl!$C$4-1),12,1)) -> 9581.1 | AT23: =MAX(OFFSET(WPsurf_Prop!$E$10,12*($AB23-1),4*(PlotControl!$C$4-1),12,1)) -> 10077 | AU23: =MAX(OFFSET(WPbed4_Prop!$C$10,12*($AB23-1),4*(PlotControl!$C$4-1),12,1)) -> 20929 | AV23: =MAX(OFFSET(WPbed4_Prop!$D$10,12*($AB23-1),4*(PlotControl!$C$4-1),12,1)) -> 24964 | AW23: =MAX(OFFSET(WPbed4_Prop!$E$10,12*($AB23-1),4*(PlotControl!$C$4-1),12,1)) -> 29770 | AX23: =MAX(OFFSET(WPbed4a_Prop!$C$10,12*($AB23-1),4*(PlotControl!$C$4-1),12,1)) -> 20929 | AY23: =MAX(OFFSET(WPbed4a_Prop!$D$10,12*($AB23-1),4*(PlotControl!$C$4-1),12,1)) -> 24964 | AZ23: =MAX(OFFSET(WPbed4a_Prop!$E$10,12*($AB23-1),4*(PlotControl!$C$4-1),12,1)) -> 29770 | BB23: 19 | BC23: =MAX(OFFSET(EPCat23_Part!$C$10,12*($BB23-1),4*(PlotControl!$C$4-1),12,1)) -> 9110.4 | BD23: =MAX(OFFSET(EPCat23_Part!$D$10,12*($BB23-1),4*(PlotControl!$C$4-1),12,1)) -> 9581.3 | BE23: =MAX(OFFSET(EPCat23_Part!$E$10,12*($BB23-1),4*(PlotControl!$C$4-1),12,1)) -> 10077 | BI23: =MAX(OFFSET(OSP_Part1!$C$10,12*($BB23-1),4*(PlotControl!$C$4-1),12,1)) -> 9110.4 | BJ23: =MAX(OFFSET(OSP_Part1!$D$10,12*($BB23-1),4*(PlotControl!$C$4-1),12,1)) -> 9581.1 | BK23: =MAX(OFFSET(OSP_Part1!$E$10,12*($BB23-1),4*(PlotControl!$C$4-1),12,1)) -> 10077 | BL23: =MAX(OFFSET(WWTF_Part!$C$10,12*($BB23-1),4*(PlotControl!$C$4-1),12,1)) -> 9110.4 | BM23: =MAX(OFFSET(WWTF_Part!$D$10,12*($BB23-1),4*(PlotControl!$C$4-1),12,1)) -> 9581.1 | BN23: =MAX(OFFSET(WWTF_Part!$E$10,12*($BB23-1),4*(PlotControl!$C$4-1),12,1)) -> 10077 | BO23: =MAX(OFFSET(OSLA_Part!$C$10,12*($BB23-1),4*(PlotControl!$C$4-1),12,1)) -> 9193.4 | BP23: =MAX(OFFSET(OSLA_Part!$D$10,12*($BB23-1),4*(PlotControl!$C$4-1),12,1)) -> 9706.2 | BQ23: =MAX(OFFSET(OSLA_Part!$E$10,12*($BB23-1),4*(PlotControl!$C$4-1),12,1)) -> 10320 | BR23: =MAX(OFFSET(WPsurf_Part!$C$10,12*($BB23-1),4*(PlotControl!$C$4-1),12,1)) -> 9110.4 | BS23: =MAX(OFFSET(WPsurf_Part!$D$10,12*($BB23-1),4*(PlotControl!$C$4-1),12,1)) -> 9581.1 | BT23: =MAX(OFFSET(WPsurf_Part!$E$10,12*($BB23-1),4*(PlotControl!$C$4-1),12,1)) -> 10077
A24: 20 | B24: =MAX(OFFSET(EPCat23_Dunka!$C$10,12*($A24-1),4*(PlotControl!$C$4-1),12,1)) -> 10215 | C24: =MAX(OFFSET(EPCat23_Dunka!$D$10,12*($A24-1),4*(PlotControl!$C$4-1),12,1)) -> 11868 | D24: =MAX(OFFSET(EPCat23_Dunka!$E$10,12*($A24-1),4*(PlotControl!$C$4-1),12,1)) -> 17441 | H24: =MAX(OFFSET(OSP_Dunka!$C$10,12*($A24-1),4*(PlotControl!$C$4-1),12,1)) -> 9110.5 | I24: =MAX(OFFSET(OSP_Dunka!$D$10,12*($A24-1),4*(PlotControl!$C$4-1),12,1)) -> 9581.6 | J24: =MAX(OFFSET(OSP_Dunka!$E$10,12*($A24-1),4*(PlotControl!$C$4-1),12,1)) -> 10077 | K24: =MAX(OFFSET(WWTF_Dunka!$C$10,12*($A24-1),4*(PlotControl!$C$4-1),12,1)) -> 9452.7 | L24: =MAX(OFFSET(WWTF_Dunka!$D$10,12*($A24-1),4*(PlotControl!$C$4-1),12,1)) -> 9978.7 | M24: =MAX(OFFSET(WWTF_Dunka!$E$10,12*($A24-1),4*(PlotControl!$C$4-1),12,1)) -> 10573 | N24: =MAX(OFFSET(OSLA_Dunka!$C$10,12*($A24-1),4*(PlotControl!$C$4-1),12,1)) -> 34028 | O24: =MAX(OFFSET(OSLA_Dunka!$D$10,12*($A24-1),4*(PlotControl!$C$4-1),12,1)) -> 38724 | P24: =MAX(OFFSET(OSLA_Dunka!$E$10,12*($A24-1),4*(PlotControl!$C$4-1),12,1)) -> 43879 | Q24: =MAX(OFFSET(WPsurf_Dunka!$C$10,12*($A24-1),4*(PlotControl!$C$4-1),12,1)) -> 9110.4 | R24: =MAX(OFFSET(WPsurf_Dunka!$D$10,12*($A24-1),4*(PlotControl!$C$4-1),12,1)) -> 9581.1 | S24: =MAX(OFFSET(WPsurf_Dunka!$E$10,12*($A24-1),4*(PlotControl!$C$4-1),12,1)) -> 10077 | AB24: 20 | AC24: =MAX(OFFSET(EPCat23_Prop!$C$10,12*($AB24-1),4*(PlotControl!$C$4-1),12,1)) -> 9450.3 | AD24: =MAX(OFFSET(EPCat23_Prop!$D$10,12*($AB24-1),4*(PlotControl!$C$4-1),12,1)) -> 10184 | AE24: =MAX(OFFSET(EPCat23_Prop!$E$10,12*($AB24-1),4*(PlotControl!$C$4-1),12,1)) -> 11961 | AF24: =MAX(OFFSET(EPbed_Prop!$C$10,12*($AB24-1),4*(PlotControl!$C$4-1),12,1)) -> 20929 | AG24: =MAX(OFFSET(EPbed_Prop!$D$10,12*($AB24-1),4*(PlotControl!$C$4-1),12,1)) -> 24964 | AH24: =MAX(OFFSET(EPbed_Prop!$E$10,12*($AB24-1),4*(PlotControl!$C$4-1),12,1)) -> 29770 | AL24: =MAX(OFFSET(WWTF_Prop!$C$10,12*($AB24-1),4*(PlotControl!$C$4-1),12,1)) -> 9110.4 | AM24: =MAX(OFFSET(WWTF_Prop!$D$10,12*($AB24-1),4*(PlotControl!$C$4-1),12,1)) -> 9581.1 | AN24: =MAX(OFFSET(WWTF_Prop!$E$10,12*($AB24-1),4*(PlotControl!$C$4-1),12,1)) -> 10077 | AO24: =MAX(OFFSET(OSLA_Prop!$C$10,12*($AB24-1),4*(PlotControl!$C$4-1),12,1)) -> 26439 | AP24: =MAX(OFFSET(OSLA_Prop!$D$10,12*($AB24-1),4*(PlotControl!$C$4-1),12,1)) -> 30992 | AQ24: =MAX(OFFSET(OSLA_Prop!$E$10,12*($AB24-1),4*(PlotControl!$C$4-1),12,1)) -> 36203 | AR24: =MAX(OFFSET(WPsurf_Prop!$C$10,12*($AB24-1),4*(PlotControl!$C$4-1),12,1)) -> 9110.4 | AS24: =MAX(OFFSET(WPsurf_Prop!$D$10,12*($AB24-1),4*(PlotControl!$C$4-1),12,1)) -> 9581.1 | AT24: =MAX(OFFSET(WPsurf_Prop!$E$10,12*($AB24-1),4*(PlotControl!$C$4-1),12,1)) -> 10077 | AU24: =MAX(OFFSET(WPbed4_Prop!$C$10,12*($AB24-1),4*(PlotControl!$C$4-1),12,1)) -> 20929 | AV24: =MAX(OFFSET(WPbed4_Prop!$D$10,12*($AB24-1),4*(PlotControl!$C$4-1),12,1)) -> 24964 | AW24: =MAX(OFFSET(WPbed4_Prop!$E$10,12*($AB24-1),4*(PlotControl!$C$4-1),12,1)) -> 29770 | AX24: =MAX(OFFSET(WPbed4a_Prop!$C$10,12*($AB24-1),4*(PlotControl!$C$4-1),12,1)) -> 20929 | AY24: =MAX(OFFSET(WPbed4a_Prop!$D$10,12*($AB24-1),4*(PlotControl!$C$4-1),12,1)) -> 24964 | AZ24: =MAX(OFFSET(WPbed4a_Prop!$E$10,12*($AB24-1),4*(PlotControl!$C$4-1),12,1)) -> 29770 | BB24: 20 | BC24: =MAX(OFFSET(EPCat23_Part!$C$10,12*($BB24-1),4*(PlotControl!$C$4-1),12,1)) -> 9110.5 | BD24: =MAX(OFFSET(EPCat23_Part!$D$10,12*($BB24-1),4*(PlotControl!$C$4-1),12,1)) -> 9581.5 | BE24: =MAX(OFFSET(EPCat23_Part!$E$10,12*($BB24-1),4*(PlotControl!$C$4-1),12,1)) -> 10077 | BI24: =MAX(OFFSET(OSP_Part1!$C$10,12*($BB24-1),4*(PlotControl!$C$4-1),12,1)) -> 9110.4 | BJ24: =MAX(OFFSET(OSP_Part1!$D$10,12*($BB24-1),4*(PlotControl!$C$4-1),12,1)) -> 9581.1 | BK24: =MAX(OFFSET(OSP_Part1!$E$10,12*($BB24-1),4*(PlotControl!$C$4-1),12,1)) -> 10077 | BL24: =MAX(OFFSET(WWTF_Part!$C$10,12*($BB24-1),4*(PlotControl!$C$4-1),12,1)) -> 9110.4 | BM24: =MAX(OFFSET(WWTF_Part!$D$10,12*($BB24-1),4*(PlotControl!$C$4-1),12,1)) -> 9581.1 | BN24: =MAX(OFFSET(WWTF_Part!$E$10,12*($BB24-1),4*(PlotControl!$C$4-1),12,1)) -> 10077 | BO24: =MAX(OFFSET(OSLA_Part!$C$10,12*($BB24-1),4*(PlotControl!$C$4-1),12,1)) -> 9226.4 | BP24: =MAX(OFFSET(OSLA_Part!$D$10,12*($BB24-1),4*(PlotControl!$C$4-1),12,1)) -> 9770.4 | BQ24: =MAX(OFFSET(OSLA_Part!$E$10,12*($BB24-1),4*(PlotControl!$C$4-1),12,1)) -> 10536 | BR24: =MAX(OFFSET(WPsurf_Part!$C$10,12*($BB24-1),4*(PlotControl!$C$4-1),12,1)) -> 9110.4 | BS24: =MAX(OFFSET(WPsurf_Part!$D$10,12*($BB24-1),4*(PlotControl!$C$4-1),12,1)) -> 9581.1 | BT24: =MAX(OFFSET(WPsurf_Part!$E$10,12*($BB24-1),4*(PlotControl!$C$4-1),12,1)) -> 10077
A25: 21 | B25: =MAX(OFFSET(EPCat23_Dunka!$C$10,12*($A25-1),4*(PlotControl!$C$4-1),12,1)) -> 10250 | C25: =MAX(OFFSET(EPCat23_Dunka!$D$10,12*($A25-1),4*(PlotControl!$C$4-1),12,1)) -> 11996 | D25: =MAX(OFFSET(EPCat23_Dunka!$E$10,12*($A25-1),4*(PlotControl!$C$4-1),12,1)) -> 17655 | H25: =MAX(OFFSET(OSP_Dunka!$C$10,12*($A25-1),4*(PlotControl!$C$4-1),12,1)) -> 9110.5 | I25: =MAX(OFFSET(OSP_Dunka!$D$10,12*($A25-1),4*(PlotControl!$C$4-1),12,1)) -> 9581.7 | J25: =MAX(OFFSET(OSP_Dunka!$E$10,12*($A25-1),4*(PlotControl!$C$4-1),12,1)) -> 10077 | K25: =MAX(OFFSET(WWTF_Dunka!$C$10,12*($A25-1),4*(PlotControl!$C$4-1),12,1)) -> 9507.8 | L25: =MAX(OFFSET(WWTF_Dunka!$D$10,12*($A25-1),4*(PlotControl!$C$4-1),12,1)) -> 10059 | M25: =MAX(OFFSET(WWTF_Dunka!$E$10,12*($A25-1),4*(PlotControl!$C$4-1),12,1)) -> 10680 | N25: =MAX(OFFSET(OSLA_Dunka!$C$10,12*($A25-1),4*(PlotControl!$C$4-1),12,1)) -> 34095 | O25: =MAX(OFFSET(OSLA_Dunka!$D$10,12*($A25-1),4*(PlotControl!$C$4-1),12,1)) -> 38793 | P25: =MAX(OFFSET(OSLA_Dunka!$E$10,12*($A25-1),4*(PlotControl!$C$4-1),12,1)) -> 43964 | Q25: =MAX(OFFSET(WPsurf_Dunka!$C$10,12*($A25-1),4*(PlotControl!$C$4-1),12,1)) -> 9110.4 | R25: =MAX(OFFSET(WPsurf_Dunka!$D$10,12*($A25-1),4*(PlotControl!$C$4-1),12,1)) -> 9581.1 | S25: =MAX(OFFSET(WPsurf_Dunka!$E$10,12*($A25-1),4*(PlotControl!$C$4-1),12,1)) -> 10077 | AB25: 21 | AC25: =MAX(OFFSET(EPCat23_Prop!$C$10,12*($AB25-1),4*(PlotControl!$C$4-1),12,1)) -> 9514.1 | AD25: =MAX(OFFSET(EPCat23_Prop!$D$10,12*($AB25-1),4*(PlotControl!$C$4-1),12,1)) -> 10343 | AE25: =MAX(OFFSET(EPCat23_Prop!$E$10,12*($AB25-1),4*(PlotControl!$C$4-1),12,1)) -> 12830 | AF25: =MAX(OFFSET(EPbed_Prop!$C$10,12*($AB25-1),4*(PlotControl!$C$4-1),12,1)) -> 20929 | AG25: =MAX(OFFSET(EPbed_Prop!$D$10,12*($AB25-1),4*(PlotControl!$C$4-1),12,1)) -> 24964 | AH25: =MAX(OFFSET(EPbed_Prop!$E$10,12*($AB25-1),4*(PlotControl!$C$4-1),12,1)) -> 29770 | AL25: =MAX(OFFSET(WWTF_Prop!$C$10,12*($AB25-1),4*(PlotControl!$C$4-1),12,1)) -> 9110.4 | AM25: =MAX(OFFSET(WWTF_Prop!$D$10,12*($AB25-1),4*(PlotControl!$C$4-1),12,1)) -> 9581.1 | AN25: =MAX(OFFSET(WWTF_Prop!$E$10,12*($AB25-1),4*(PlotControl!$C$4-1),12,1)) -> 10077 | AO25: =MAX(OFFSET(OSLA_Prop!$C$10,12*($AB25-1),4*(PlotControl!$C$4-1),12,1)) -> 26506 | AP25: =MAX(OFFSET(OSLA_Prop!$D$10,12*($AB25-1),4*(PlotControl!$C$4-1),12,1)) -> 31006 | AQ25: =MAX(OFFSET(OSLA_Prop!$E$10,12*($AB25-1),4*(PlotControl!$C$4-1),12,1)) -> 36228 | AR25: =MAX(OFFSET(WPsurf_Prop!$C$10,12*($AB25-1),4*(PlotControl!$C$4-1),12,1)) -> 9110.4 | AS25: =MAX(OFFSET(WPsurf_Prop!$D$10,12*($AB25-1),4*(PlotControl!$C$4-1),12,1)) -> 9581.1 | AT25: =MAX(OFFSET(WPsurf_Prop!$E$10,12*($AB25-1),4*(PlotControl!$C$4-1),12,1)) -> 10077 | AU25: =MAX(OFFSET(WPbed4_Prop!$C$10,12*($AB25-1),4*(PlotControl!$C$4-1),12,1)) -> 20929 | AV25: =MAX(OFFSET(WPbed4_Prop!$D$10,12*($AB25-1),4*(PlotControl!$C$4-1),12,1)) -> 24964 | AW25: =MAX(OFFSET(WPbed4_Prop!$E$10,12*($AB25-1),4*(PlotControl!$C$4-1),12,1)) -> 29770 | AX25: =MAX(OFFSET(WPbed4a_Prop!$C$10,12*($AB25-1),4*(PlotControl!$C$4-1),12,1)) -> 20929 | AY25: =MAX(OFFSET(WPbed4a_Prop!$D$10,12*($AB25-1),4*(PlotControl!$C$4-1),12,1)) -> 24964 | AZ25: =MAX(OFFSET(WPbed4a_Prop!$E$10,12*($AB25-1),4*(PlotControl!$C$4-1),12,1)) -> 29770 | BB25: 21 | BC25: =MAX(OFFSET(EPCat23_Part!$C$10,12*($BB25-1),4*(PlotControl!$C$4-1),12,1)) -> 9110.5 | BD25: =MAX(OFFSET(EPCat23_Part!$D$10,12*($BB25-1),4*(PlotControl!$C$4-1),12,1)) -> 9581.6 | BE25: =MAX(OFFSET(EPCat23_Part!$E$10,12*($BB25-1),4*(PlotControl!$C$4-1),12,1)) -> 10077 | BI25: =MAX(OFFSET(OSP_Part1!$C$10,12*($BB25-1),4*(PlotControl!$C$4-1),12,1)) -> 9110.4 | BJ25: =MAX(OFFSET(OSP_Part1!$D$10,12*($BB25-1),4*(PlotControl!$C$4-1),12,1)) -> 9581.1 | BK25: =MAX(OFFSET(OSP_Part1!$E$10,12*($BB25-1),4*(PlotControl!$C$4-1),12,1)) -> 10077 | BL25: =MAX(OFFSET(WWTF_Part!$C$10,12*($BB25-1),4*(PlotControl!$C$4-1),12,1)) -> 9110.4 | BM25: =MAX(OFFSET(WWTF_Part!$D$10,12*($BB25-1),4*(PlotControl!$C$4-1),12,1)) -> 9581.1 | BN25: =MAX(OFFSET(WWTF_Part!$E$10,12*($BB25-1),4*(PlotControl!$C$4-1),12,1)) -> 10077 | BO25: =MAX(OFFSET(OSLA_Part!$C$10,12*($BB25-1),4*(PlotControl!$C$4-1),12,1)) -> 9240.3 | BP25: =MAX(OFFSET(OSLA_Part!$D$10,12*($BB25-1),4*(PlotControl!$C$4-1),12,1)) -> 9804.9 | BQ25: =MAX(OFFSET(OSLA_Part!$E$10,12*($BB25-1),4*(PlotControl!$C$4-1),12,1)) -> 10746 | BR25: =MAX(OFFSET(WPsurf_Part!$C$10,12*($BB25-1),4*(PlotControl!$C$4-1),12,1)) -> 9110.4 | BS25: =MAX(OFFSET(WPsurf_Part!$D$10,12*($BB25-1),4*(PlotControl!$C$4-1),12,1)) -> 9581.1 | BT25: =MAX(OFFSET(WPsurf_Part!$E$10,12*($BB25-1),4*(PlotControl!$C$4-1),12,1)) -> 10077
A26: 22 | B26: =MAX(OFFSET(EPCat23_Dunka!$C$10,12*($A26-1),4*(PlotControl!$C$4-1),12,1)) -> 10273 | C26: =MAX(OFFSET(EPCat23_Dunka!$D$10,12*($A26-1),4*(PlotControl!$C$4-1),12,1)) -> 12028 | D26: =MAX(OFFSET(EPCat23_Dunka!$E$10,12*($A26-1),4*(PlotControl!$C$4-1),12,1)) -> 17688 | H26: =MAX(OFFSET(OSP_Dunka!$C$10,12*($A26-1),4*(PlotControl!$C$4-1),12,1)) -> 9150.9 | I26: =MAX(OFFSET(OSP_Dunka!$D$10,12*($A26-1),4*(PlotControl!$C$4-1),12,1)) -> 9623.4 | J26: =MAX(OFFSET(OSP_Dunka!$E$10,12*($A26-1),4*(PlotControl!$C$4-1),12,1)) -> 10110 | K26: =MAX(OFFSET(WWTF_Dunka!$C$10,12*($A26-1),4*(PlotControl!$C$4-1),12,1)) -> 9565.9 | L26: =MAX(OFFSET(WWTF_Dunka!$D$10,12*($A26-1),4*(PlotControl!$C$4-1),12,1)) -> 10156 | M26: =MAX(OFFSET(WWTF_Dunka!$E$10,12*($A26-1),4*(PlotControl!$C$4-1),12,1)) -> 10789 | N26: =MAX(OFFSET(OSLA_Dunka!$C$10,12*($A26-1),4*(PlotControl!$C$4-1),12,1)) -> 33725 | O26: =MAX(OFFSET(OSLA_Dunka!$D$10,12*($A26-1),4*(PlotControl!$C$4-1),12,1)) -> 38275 | P26: =MAX(OFFSET(OSLA_Dunka!$E$10,12*($A26-1),4*(PlotControl!$C$4-1),12,1)) -> 43344 | Q26: =MAX(OFFSET(WPsurf_Dunka!$C$10,12*($A26-1),4*(PlotControl!$C$4-1),12,1)) -> 9110.4 | R26: =MAX(OFFSET(WPsurf_Dunka!$D$10,12*($A26-1),4*(PlotControl!$C$4-1),12,1)) -> 9581.1 | S26: =MAX(OFFSET(WPsurf_Dunka!$E$10,12*($A26-1),4*(PlotControl!$C$4-1),12,1)) -> 10077 | AB26: 22 | AC26: =MAX(OFFSET(EPCat23_Prop!$C$10,12*($AB26-1),4*(PlotControl!$C$4-1),12,1)) -> 9606.1 | AD26: =MAX(OFFSET(EPCat23_Prop!$D$10,12*($AB26-1),4*(PlotControl!$C$4-1),12,1)) -> 10535 | AE26: =MAX(OFFSET(EPCat23_Prop!$E$10,12*($AB26-1),4*(PlotControl!$C$4-1),12,1)) -> 13646 | AF26: =MAX(OFFSET(EPbed_Prop!$C$10,12*($AB26-1),4*(PlotControl!$C$4-1),12,1)) -> 20929 | AG26: =MAX(OFFSET(EPbed_Prop!$D$10,12*($AB26-1),4*(PlotControl!$C$4-1),12,1)) -> 24964 | AH26: =MAX(OFFSET(EPbed_Prop!$E$10,12*($AB26-1),4*(PlotControl!$C$4-1),12,1)) -> 29770 | AL26: =MAX(OFFSET(WWTF_Prop!$C$10,12*($AB26-1),4*(PlotControl!$C$4-1),12,1)) -> 9110.4 | AM26: =MAX(OFFSET(WWTF_Prop!$D$10,12*($AB26-1),4*(PlotControl!$C$4-1),12,1)) -> 9581.1 | AN26: =MAX(OFFSET(WWTF_Prop!$E$10,12*($AB26-1),4*(PlotControl!$C$4-1),12,1)) -> 10077 | AO26: =MAX(OFFSET(OSLA_Prop!$C$10,12*($AB26-1),4*(PlotControl!$C$4-1),12,1)) -> 26528 | AP26: =MAX(OFFSET(OSLA_Prop!$D$10,12*($AB26-1),4*(PlotControl!$C$4-1),12,1)) -> 31012 | AQ26: =MAX(OFFSET(OSLA_Prop!$E$10,12*($AB26-1),4*(PlotControl!$C$4-1),12,1)) -> 36096 | AR26: =MAX(OFFSET(WPsurf_Prop!$C$10,12*($AB26-1),4*(PlotControl!$C$4-1),12,1)) -> 9110.4 | AS26: =MAX(OFFSET(WPsurf_Prop!$D$10,12*($AB26-1),4*(PlotControl!$C$4-1),12,1)) -> 9581.1 | AT26: =MAX(OFFSET(WPsurf_Prop!$E$10,12*($AB26-1),4*(PlotControl!$C$4-1),12,1)) -> 10077 | AU26: =MAX(OFFSET(WPbed4_Prop!$C$10,12*($AB26-1),4*(PlotControl!$C$4-1),12,1)) -> 20929 | AV26: =MAX(OFFSET(WPbed4_Prop!$D$10,12*($AB26-1),4*(PlotControl!$C$4-1),12,1)) -> 24964 | AW26: =MAX(OFFSET(WPbed4_Prop!$E$10,12*($AB26-1),4*(PlotControl!$C$4-1),12,1)) -> 29770 | AX26: =MAX(OFFSET(WPbed4a_Prop!$C$10,12*($AB26-1),4*(PlotControl!$C$4-1),12,1)) -> 20929 | AY26: =MAX(OFFSET(WPbed4a_Prop!$D$10,12*($AB26-1),4*(PlotControl!$C$4-1),12,1)) -> 24964 | AZ26: =MAX(OFFSET(WPbed4a_Prop!$E$10,12*($AB26-1),4*(PlotControl!$C$4-1),12,1)) -> 29770 | BB26: 22 | BC26: =MAX(OFFSET(EPCat23_Part!$C$10,12*($BB26-1),4*(PlotControl!$C$4-1),12,1)) -> 9110.5 | BD26: =MAX(OFFSET(EPCat23_Part!$D$10,12*($BB26-1),4*(PlotControl!$C$4-1),12,1)) -> 9581.7 | BE26: =MAX(OFFSET(EPCat23_Part!$E$10,12*($BB26-1),4*(PlotControl!$C$4-1),12,1)) -> 10077 | BI26: =MAX(OFFSET(OSP_Part1!$C$10,12*($BB26-1),4*(PlotControl!$C$4-1),12,1)) -> 9110.4 | BJ26: =MAX(OFFSET(OSP_Part1!$D$10,12*($BB26-1),4*(PlotControl!$C$4-1),12,1)) -> 9581.1 | BK26: =MAX(OFFSET(OSP_Part1!$E$10,12*($BB26-1),4*(PlotControl!$C$4-1),12,1)) -> 10077 | BL26: =MAX(OFFSET(WWTF_Part!$C$10,12*($BB26-1),4*(PlotControl!$C$4-1),12,1)) -> 9110.4 | BM26: =MAX(OFFSET(WWTF_Part!$D$10,12*($BB26-1),4*(PlotControl!$C$4-1),12,1)) -> 9581.1 | BN26: =MAX(OFFSET(WWTF_Part!$E$10,12*($BB26-1),4*(PlotControl!$C$4-1),12,1)) -> 10077 | BO26: =MAX(OFFSET(OSLA_Part!$C$10,12*($BB26-1),4*(PlotControl!$C$4-1),12,1)) -> 9252.3 | BP26: =MAX(OFFSET(OSLA_Part!$D$10,12*($BB26-1),4*(PlotControl!$C$4-1),12,1)) -> 9853.6 | BQ26: =MAX(OFFSET(OSLA_Part!$E$10,12*($BB26-1),4*(PlotControl!$C$4-1),12,1)) -> 10987 | BR26: =MAX(OFFSET(WPsurf_Part!$C$10,12*($BB26-1),4*(PlotControl!$C$4-1),12,1)) -> 9110.4 | BS26: =MAX(OFFSET(WPsurf_Part!$D$10,12*($BB26-1),4*(PlotControl!$C$4-1),12,1)) -> 9581.1 | BT26: =MAX(OFFSET(WPsurf_Part!$E$10,12*($BB26-1),4*(PlotControl!$C$4-1),12,1)) -> 10077
A27: 23 | B27: =MAX(OFFSET(EPCat23_Dunka!$C$10,12*($A27-1),4*(PlotControl!$C$4-1),12,1)) -> 10273 | C27: =MAX(OFFSET(EPCat23_Dunka!$D$10,12*($A27-1),4*(PlotControl!$C$4-1),12,1)) -> 11994 | D27: =MAX(OFFSET(EPCat23_Dunka!$E$10,12*($A27-1),4*(PlotControl!$C$4-1),12,1)) -> 17650 | H27: =MAX(OFFSET(OSP_Dunka!$C$10,12*($A27-1),4*(PlotControl!$C$4-1),12,1)) -> 9211.8 | I27: =MAX(OFFSET(OSP_Dunka!$D$10,12*($A27-1),4*(PlotControl!$C$4-1),12,1)) -> 9713.9 | J27: =MAX(OFFSET(OSP_Dunka!$E$10,12*($A27-1),4*(PlotControl!$C$4-1),12,1)) -> 10223 | K27: =MAX(OFFSET(WWTF_Dunka!$C$10,12*($A27-1),4*(PlotControl!$C$4-1),12,1)) -> 9652.3 | L27: =MAX(OFFSET(WWTF_Dunka!$D$10,12*($A27-1),4*(PlotControl!$C$4-1),12,1)) -> 10250 | M27: =MAX(OFFSET(WWTF_Dunka!$E$10,12*($A27-1),4*(PlotControl!$C$4-1),12,1)) -> 10915 | N27: =MAX(OFFSET(OSLA_Dunka!$C$10,12*($A27-1),4*(PlotControl!$C$4-1),12,1)) -> 33302 | O27: =MAX(OFFSET(OSLA_Dunka!$D$10,12*($A27-1),4*(PlotControl!$C$4-1),12,1)) -> 37750 | P27: =MAX(OFFSET(OSLA_Dunka!$E$10,12*($A27-1),4*(PlotControl!$C$4-1),12,1)) -> 42785 | Q27: =MAX(OFFSET(WPsurf_Dunka!$C$10,12*($A27-1),4*(PlotControl!$C$4-1),12,1)) -> 9110.4 | R27: =MAX(OFFSET(WPsurf_Dunka!$D$10,12*($A27-1),4*(PlotControl!$C$4-1),12,1)) -> 9581.1 | S27: =MAX(OFFSET(WPsurf_Dunka!$E$10,12*($A27-1),4*(PlotControl!$C$4-1),12,1)) -> 10077 | AB27: 23 | AC27: =MAX(OFFSET(EPCat23_Prop!$C$10,12*($AB27-1),4*(PlotControl!$C$4-1),12,1)) -> 9696 | AD27: =MAX(OFFSET(EPCat23_Prop!$D$10,12*($AB27-1),4*(PlotControl!$C$4-1),12,1)) -> 10727 | AE27: =MAX(OFFSET(EPCat23_Prop!$E$10,12*($AB27-1),4*(PlotControl!$C$4-1),12,1)) -> 14309 | AF27: =MAX(OFFSET(EPbed_Prop!$C$10,12*($AB27-1),4*(PlotControl!$C$4-1),12,1)) -> 20929 | AG27: =MAX(OFFSET(EPbed_Prop!$D$10,12*($AB27-1),4*(PlotControl!$C$4-1),12,1)) -> 24964 | AH27: =MAX(OFFSET(EPbed_Prop!$E$10,12*($AB27-1),4*(PlotControl!$C$4-1),12,1)) -> 29770 | AL27: =MAX(OFFSET(WWTF_Prop!$C$10,12*($AB27-1),4*(PlotControl!$C$4-1),12,1)) -> 9110.4 | AM27: =MAX(OFFSET(WWTF_Prop!$D$10,12*($AB27-1),4*(PlotControl!$C$4-1),12,1)) -> 9581.1 | AN27: =MAX(OFFSET(WWTF_Prop!$E$10,12*($AB27-1),4*(PlotControl!$C$4-1),12,1)) -> 10077 | AO27: =MAX(OFFSET(OSLA_Prop!$C$10,12*($AB27-1),4*(PlotControl!$C$4-1),12,1)) -> 26545 | AP27: =MAX(OFFSET(OSLA_Prop!$D$10,12*($AB27-1),4*(PlotControl!$C$4-1),12,1)) -> 30980 | AQ27: =MAX(OFFSET(OSLA_Prop!$E$10,12*($AB27-1),4*(PlotControl!$C$4-1),12,1)) -> 35965 | AR27: =MAX(OFFSET(WPsurf_Prop!$C$10,12*($AB27-1),4*(PlotControl!$C$4-1),12,1)) -> 9110.4 | AS27: =MAX(OFFSET(WPsurf_Prop!$D$10,12*($AB27-1),4*(PlotControl!$C$4-1),12,1)) -> 9581.1 | AT27: =MAX(OFFSET(WPsurf_Prop!$E$10,12*($AB27-1),4*(PlotControl!$C$4-1),12,1)) -> 10077 | AU27: =MAX(OFFSET(WPbed4_Prop!$C$10,12*($AB27-1),4*(PlotControl!$C$4-1),12,1)) -> 20929 | AV27: =MAX(OFFSET(WPbed4_Prop!$D$10,12*($AB27-1),4*(PlotControl!$C$4-1),12,1)) -> 24964 | AW27: =MAX(OFFSET(WPbed4_Prop!$E$10,12*($AB27-1),4*(PlotControl!$C$4-1),12,1)) -> 29770 | AX27: =MAX(OFFSET(WPbed4a_Prop!$C$10,12*($AB27-1),4*(PlotControl!$C$4-1),12,1)) -> 20929 | AY27: =MAX(OFFSET(WPbed4a_Prop!$D$10,12*($AB27-1),4*(PlotControl!$C$4-1),12,1)) -> 24964 | AZ27: =MAX(OFFSET(WPbed4a_Prop!$E$10,12*($AB27-1),4*(PlotControl!$C$4-1),12,1)) -> 29770 | BB27: 23 | BC27: =MAX(OFFSET(EPCat23_Part!$C$10,12*($BB27-1),4*(PlotControl!$C$4-1),12,1)) -> 9110.6 | BD27: =MAX(OFFSET(EPCat23_Part!$D$10,12*($BB27-1),4*(PlotControl!$C$4-1),12,1)) -> 9582.1 | BE27: =MAX(OFFSET(EPCat23_Part!$E$10,12*($BB27-1),4*(PlotControl!$C$4-1),12,1)) -> 10077 | BI27: =MAX(OFFSET(OSP_Part1!$C$10,12*($BB27-1),4*(PlotControl!$C$4-1),12,1)) -> 9110.4 | BJ27: =MAX(OFFSET(OSP_Part1!$D$10,12*($BB27-1),4*(PlotControl!$C$4-1),12,1)) -> 9581.1 | BK27: =MAX(OFFSET(OSP_Part1!$E$10,12*($BB27-1),4*(PlotControl!$C$4-1),12,1)) -> 10077 | BL27: =MAX(OFFSET(WWTF_Part!$C$10,12*($BB27-1),4*(PlotControl!$C$4-1),12,1)) -> 9110.4 | BM27: =MAX(OFFSET(WWTF_Part!$D$10,12*($BB27-1),4*(PlotControl!$C$4-1),12,1)) -> 9581.1 | BN27: =MAX(OFFSET(WWTF_Part!$E$10,12*($BB27-1),4*(PlotControl!$C$4-1),12,1)) -> 10077 | BO27: =MAX(OFFSET(OSLA_Part!$C$10,12*($BB27-1),4*(PlotControl!$C$4-1),12,1)) -> 9266.4 | BP27: =MAX(OFFSET(OSLA_Part!$D$10,12*($BB27-1),4*(PlotControl!$C$4-1),12,1)) -> 9931.9 | BQ27: =MAX(OFFSET(OSLA_Part!$E$10,12*($BB27-1),4*(PlotControl!$C$4-1),12,1)) -> 11309 | BR27: =MAX(OFFSET(WPsurf_Part!$C$10,12*($BB27-1),4*(PlotControl!$C$4-1),12,1)) -> 9110.4 | BS27: =MAX(OFFSET(WPsurf_Part!$D$10,12*($BB27-1),4*(PlotControl!$C$4-1),12,1)) -> 9581.1 | BT27: =MAX(OFFSET(WPsurf_Part!$E$10,12*($BB27-1),4*(PlotControl!$C$4-1),12,1)) -> 10077
A28: 24 | B28: =MAX(OFFSET(EPCat23_Dunka!$C$10,12*($A28-1),4*(PlotControl!$C$4-1),12,1)) -> 10244 | C28: =MAX(OFFSET(EPCat23_Dunka!$D$10,12*($A28-1),4*(PlotControl!$C$4-1),12,1)) -> 11957 | D28: =MAX(OFFSET(EPCat23_Dunka!$E$10,12*($A28-1),4*(PlotControl!$C$4-1),12,1)) -> 17561 | H28: =MAX(OFFSET(OSP_Dunka!$C$10,12*($A28-1),4*(PlotControl!$C$4-1),12,1)) -> 9285.2 | I28: =MAX(OFFSET(OSP_Dunka!$D$10,12*($A28-1),4*(PlotControl!$C$4-1),12,1)) -> 9821.2 | J28: =MAX(OFFSET(OSP_Dunka!$E$10,12*($A28-1),4*(PlotControl!$C$4-1),12,1)) -> 10434 | K28: =MAX(OFFSET(WWTF_Dunka!$C$10,12*($A28-1),4*(PlotControl!$C$4-1),12,1)) -> 9744.1 | L28: =MAX(OFFSET(WWTF_Dunka!$D$10,12*($A28-1),4*(PlotControl!$C$4-1),12,1)) -> 10335 | M28: =MAX(OFFSET(WWTF_Dunka!$E$10,12*($A28-1),4*(PlotControl!$C$4-1),12,1)) -> 11054 | N28: =MAX(OFFSET(OSLA_Dunka!$C$10,12*($A28-1),4*(PlotControl!$C$4-1),12,1)) -> 32916 | O28: =MAX(OFFSET(OSLA_Dunka!$D$10,12*($A28-1),4*(PlotControl!$C$4-1),12,1)) -> 37278 | P28: =MAX(OFFSET(OSLA_Dunka!$E$10,12*($A28-1),4*(PlotControl!$C$4-1),12,1)) -> 42078 | Q28: =MAX(OFFSET(WPsurf_Dunka!$C$10,12*($A28-1),4*(PlotControl!$C$4-1),12,1)) -> 9110.4 | R28: =MAX(OFFSET(WPsurf_Dunka!$D$10,12*($A28-1),4*(PlotControl!$C$4-1),12,1)) -> 9581.1 | S28: =MAX(OFFSET(WPsurf_Dunka!$E$10,12*($A28-1),4*(PlotControl!$C$4-1),12,1)) -> 10077 | AB28: 24 | AC28: =MAX(OFFSET(EPCat23_Prop!$C$10,12*($AB28-1),4*(PlotControl!$C$4-1),12,1)) -> 9792.4 | AD28: =MAX(OFFSET(EPCat23_Prop!$D$10,12*($AB28-1),4*(PlotControl!$C$4-1),12,1)) -> 10923 | AE28: =MAX(OFFSET(EPCat23_Prop!$E$10,12*($AB28-1),4*(PlotControl!$C$4-1),12,1)) -> 14927 | AF28: =MAX(OFFSET(EPbed_Prop!$C$10,12*($AB28-1),4*(PlotControl!$C$4-1),12,1)) -> 20929 | AG28: =MAX(OFFSET(EPbed_Prop!$D$10,12*($AB28-1),4*(PlotControl!$C$4-1),12,1)) -> 24964 | AH28: =MAX(OFFSET(EPbed_Prop!$E$10,12*($AB28-1),4*(PlotControl!$C$4-1),12,1)) -> 29770 | AL28: =MAX(OFFSET(WWTF_Prop!$C$10,12*($AB28-1),4*(PlotControl!$C$4-1),12,1)) -> 9110.4 | AM28: =MAX(OFFSET(WWTF_Prop!$D$10,12*($AB28-1),4*(PlotControl!$C$4-1),12,1)) -> 9581.1 | AN28: =MAX(OFFSET(WWTF_Prop!$E$10,12*($AB28-1),4*(PlotControl!$C$4-1),12,1)) -> 10077 | AO28: =MAX(OFFSET(OSLA_Prop!$C$10,12*($AB28-1),4*(PlotControl!$C$4-1),12,1)) -> 26561 | AP28: =MAX(OFFSET(OSLA_Prop!$D$10,12*($AB28-1),4*(PlotControl!$C$4-1),12,1)) -> 30901 | AQ28: =MAX(OFFSET(OSLA_Prop!$E$10,12*($AB28-1),4*(PlotControl!$C$4-1),12,1)) -> 35858 | AR28: =MAX(OFFSET(WPsurf_Prop!$C$10,12*($AB28-1),4*(PlotControl!$C$4-1),12,1)) -> 9110.4 | AS28: =MAX(OFFSET(WPsurf_Prop!$D$10,12*($AB28-1),4*(PlotControl!$C$4-1),12,1)) -> 9581.1 | AT28: =MAX(OFFSET(WPsurf_Prop!$E$10,12*($AB28-1),4*(PlotControl!$C$4-1),12,1)) -> 10077 | AU28: =MAX(OFFSET(WPbed4_Prop!$C$10,12*($AB28-1),4*(PlotControl!$C$4-1),12,1)) -> 20929 | AV28: =MAX(OFFSET(WPbed4_Prop!$D$10,12*($AB28-1),4*(PlotControl!$C$4-1),12,1)) -> 24964 | AW28: =MAX(OFFSET(WPbed4_Prop!$E$10,12*($AB28-1),4*(PlotControl!$C$4-1),12,1)) -> 29770 | AX28: =MAX(OFFSET(WPbed4a_Prop!$C$10,12*($AB28-1),4*(PlotControl!$C$4-1),12,1)) -> 20929 | AY28: =MAX(OFFSET(WPbed4a_Prop!$D$10,12*($AB28-1),4*(PlotControl!$C$4-1),12,1)) -> 24964 | AZ28: =MAX(OFFSET(WPbed4a_Prop!$E$10,12*($AB28-1),4*(PlotControl!$C$4-1),12,1)) -> 29770 | BB28: 24 | BC28: =MAX(OFFSET(EPCat23_Part!$C$10,12*($BB28-1),4*(PlotControl!$C$4-1),12,1)) -> 9110.9 | BD28: =MAX(OFFSET(EPCat23_Part!$D$10,12*($BB28-1),4*(PlotControl!$C$4-1),12,1)) -> 9582.8 | BE28: =MAX(OFFSET(EPCat23_Part!$E$10,12*($BB28-1),4*(PlotControl!$C$4-1),12,1)) -> 10077 | BI28: =MAX(OFFSET(OSP_Part1!$C$10,12*($BB28-1),4*(PlotControl!$C$4-1),12,1)) -> 9110.4 | BJ28: =MAX(OFFSET(OSP_Part1!$D$10,12*($BB28-1),4*(PlotControl!$C$4-1),12,1)) -> 9581.1 | BK28: =MAX(OFFSET(OSP_Part1!$E$10,12*($BB28-1),4*(PlotControl!$C$4-1),12,1)) -> 10077 | BL28: =MAX(OFFSET(WWTF_Part!$C$10,12*($BB28-1),4*(PlotControl!$C$4-1),12,1)) -> 9110.4 | BM28: =MAX(OFFSET(WWTF_Part!$D$10,12*($BB28-1),4*(PlotControl!$C$4-1),12,1)) -> 9581.1 | BN28: =MAX(OFFSET(WWTF_Part!$E$10,12*($BB28-1),4*(PlotControl!$C$4-1),12,1)) -> 10077 | BO28: =MAX(OFFSET(OSLA_Part!$C$10,12*($BB28-1),4*(PlotControl!$C$4-1),12,1)) -> 9303.9 | BP28: =MAX(OFFSET(OSLA_Part!$D$10,12*($BB28-1),4*(PlotControl!$C$4-1),12,1)) -> 10005 | BQ28: =MAX(OFFSET(OSLA_Part!$E$10,12*($BB28-1),4*(PlotControl!$C$4-1),12,1)) -> 11650 | BR28: =MAX(OFFSET(WPsurf_Part!$C$10,12*($BB28-1),4*(PlotControl!$C$4-1),12,1)) -> 9110.4 | BS28: =MAX(OFFSET(WPsurf_Part!$D$10,12*($BB28-1),4*(PlotControl!$C$4-1),12,1)) -> 9581.1 | BT28: =MAX(OFFSET(WPsurf_Part!$E$10,12*($BB28-1),4*(PlotControl!$C$4-1),12,1)) -> 10077
A29: 25 | B29: =MAX(OFFSET(EPCat23_Dunka!$C$10,12*($A29-1),4*(PlotControl!$C$4-1),12,1)) -> 10185 | C29: =MAX(OFFSET(EPCat23_Dunka!$D$10,12*($A29-1),4*(PlotControl!$C$4-1),12,1)) -> 11876 | D29: =MAX(OFFSET(EPCat23_Dunka!$E$10,12*($A29-1),4*(PlotControl!$C$4-1),12,1)) -> 17375 | H29: =MAX(OFFSET(OSP_Dunka!$C$10,12*($A29-1),4*(PlotControl!$C$4-1),12,1)) -> 9355.1 | I29: =MAX(OFFSET(OSP_Dunka!$D$10,12*($A29-1),4*(PlotControl!$C$4-1),12,1)) -> 9906.5 | J29: =MAX(OFFSET(OSP_Dunka!$E$10,12*($A29-1),4*(PlotControl!$C$4-1),12,1)) -> 10674 | K29: =MAX(OFFSET(WWTF_Dunka!$C$10,12*($A29-1),4*(PlotControl!$C$4-1),12,1)) -> 9822.9 | L29: =MAX(OFFSET(WWTF_Dunka!$D$10,12*($A29-1),4*(PlotControl!$C$4-1),12,1)) -> 10422 | M29: =MAX(OFFSET(WWTF_Dunka!$E$10,12*($A29-1),4*(PlotControl!$C$4-1),12,1)) -> 11182 | N29: =MAX(OFFSET(OSLA_Dunka!$C$10,12*($A29-1),4*(PlotControl!$C$4-1),12,1)) -> 32337 | O29: =MAX(OFFSET(OSLA_Dunka!$D$10,12*($A29-1),4*(PlotControl!$C$4-1),12,1)) -> 36791 | P29: =MAX(OFFSET(OSLA_Dunka!$E$10,12*($A29-1),4*(PlotControl!$C$4-1),12,1)) -> 41660 | Q29: =MAX(OFFSET(WPsurf_Dunka!$C$10,12*($A29-1),4*(PlotControl!$C$4-1),12,1)) -> 9110.4 | R29: =MAX(OFFSET(WPsurf_Dunka!$D$10,12*($A29-1),4*(PlotControl!$C$4-1),12,1)) -> 9581.1 | S29: =MAX(OFFSET(WPsurf_Dunka!$E$10,12*($A29-1),4*(PlotControl!$C$4-1),12,1)) -> 10077 | AB29: 25 | AC29: =MAX(OFFSET(EPCat23_Prop!$C$10,12*($AB29-1),4*(PlotControl!$C$4-1),12,1)) -> 9879.5 | AD29: =MAX(OFFSET(EPCat23_Prop!$D$10,12*($AB29-1),4*(PlotControl!$C$4-1),12,1)) -> 11055 | AE29: =MAX(OFFSET(EPCat23_Prop!$E$10,12*($AB29-1),4*(PlotControl!$C$4-1),12,1)) -> 15431 | AF29: =MAX(OFFSET(EPbed_Prop!$C$10,12*($AB29-1),4*(PlotControl!$C$4-1),12,1)) -> 20929 | AG29: =MAX(OFFSET(EPbed_Prop!$D$10,12*($AB29-1),4*(PlotControl!$C$4-1),12,1)) -> 24964 | AH29: =MAX(OFFSET(EPbed_Prop!$E$10,12*($AB29-1),4*(PlotControl!$C$4-1),12,1)) -> 29770 | AL29: =MAX(OFFSET(WWTF_Prop!$C$10,12*($AB29-1),4*(PlotControl!$C$4-1),12,1)) -> 9110.4 | AM29: =MAX(OFFSET(WWTF_Prop!$D$10,12*($AB29-1),4*(PlotControl!$C$4-1),12,1)) -> 9581.1 | AN29: =MAX(OFFSET(WWTF_Prop!$E$10,12*($AB29-1),4*(PlotControl!$C$4-1),12,1)) -> 10077 | AO29: =MAX(OFFSET(OSLA_Prop!$C$10,12*($AB29-1),4*(PlotControl!$C$4-1),12,1)) -> 26534 | AP29: =MAX(OFFSET(OSLA_Prop!$D$10,12*($AB29-1),4*(PlotControl!$C$4-1),12,1)) -> 30809 | AQ29: =MAX(OFFSET(OSLA_Prop!$E$10,12*($AB29-1),4*(PlotControl!$C$4-1),12,1)) -> 35637 | AR29: =MAX(OFFSET(WPsurf_Prop!$C$10,12*($AB29-1),4*(PlotControl!$C$4-1),12,1)) -> 9110.4 | AS29: =MAX(OFFSET(WPsurf_Prop!$D$10,12*($AB29-1),4*(PlotControl!$C$4-1),12,1)) -> 9581.1 | AT29: =MAX(OFFSET(WPsurf_Prop!$E$10,12*($AB29-1),4*(PlotControl!$C$4-1),12,1)) -> 10077 | AU29: =MAX(OFFSET(WPbed4_Prop!$C$10,12*($AB29-1),4*(PlotControl!$C$4-1),12,1)) -> 20929 | AV29: =MAX(OFFSET(WPbed4_Prop!$D$10,12*($AB29-1),4*(PlotControl!$C$4-1),12,1)) -> 24964 | AW29: =MAX(OFFSET(WPbed4_Prop!$E$10,12*($AB29-1),4*(PlotControl!$C$4-1),12,1)) -> 29770 | AX29: =MAX(OFFSET(WPbed4a_Prop!$C$10,12*($AB29-1),4*(PlotControl!$C$4-1),12,1)) -> 20929 | AY29: =MAX(OFFSET(WPbed4a_Prop!$D$10,12*($AB29-1),4*(PlotControl!$C$4-1),12,1)) -> 24964 | AZ29: =MAX(OFFSET(WPbed4a_Prop!$E$10,12*($AB29-1),4*(PlotControl!$C$4-1),12,1)) -> 29770 | BB29: 25 | BC29: =MAX(OFFSET(EPCat23_Part!$C$10,12*($BB29-1),4*(PlotControl!$C$4-1),12,1)) -> 9111.5 | BD29: =MAX(OFFSET(EPCat23_Part!$D$10,12*($BB29-1),4*(PlotControl!$C$4-1),12,1)) -> 9583.8 | BE29: =MAX(OFFSET(EPCat23_Part!$E$10,12*($BB29-1),4*(PlotControl!$C$4-1),12,1)) -> 10084 | BI29: =MAX(OFFSET(OSP_Part1!$C$10,12*($BB29-1),4*(PlotControl!$C$4-1),12,1)) -> 9110.4 | BJ29: =MAX(OFFSET(OSP_Part1!$D$10,12*($BB29-1),4*(PlotControl!$C$4-1),12,1)) -> 9581.1 | BK29: =MAX(OFFSET(OSP_Part1!$E$10,12*($BB29-1),4*(PlotControl!$C$4-1),12,1)) -> 10077 | BL29: =MAX(OFFSET(WWTF_Part!$C$10,12*($BB29-1),4*(PlotControl!$C$4-1),12,1)) -> 9110.4 | BM29: =MAX(OFFSET(WWTF_Part!$D$10,12*($BB29-1),4*(PlotControl!$C$4-1),12,1)) -> 9581.1 | BN29: =MAX(OFFSET(WWTF_Part!$E$10,12*($BB29-1),4*(PlotControl!$C$4-1),12,1)) -> 10077 | BO29: =MAX(OFFSET(OSLA_Part!$C$10,12*($BB29-1),4*(PlotControl!$C$4-1),12,1)) -> 9320.2 | BP29: =MAX(OFFSET(OSLA_Part!$D$10,12*($BB29-1),4*(PlotControl!$C$4-1),12,1)) -> 10099 | BQ29: =MAX(OFFSET(OSLA_Part!$E$10,12*($BB29-1),4*(PlotControl!$C$4-1),12,1)) -> 11991 | BR29: =MAX(OFFSET(WPsurf_Part!$C$10,12*($BB29-1),4*(PlotControl!$C$4-1),12,1)) -> 9110.4 | BS29: =MAX(OFFSET(WPsurf_Part!$D$10,12*($BB29-1),4*(PlotControl!$C$4-1),12,1)) -> 9581.1 | BT29: =MAX(OFFSET(WPsurf_Part!$E$10,12*($BB29-1),4*(PlotControl!$C$4-1),12,1)) -> 10077
A30: 26 | B30: =MAX(OFFSET(EPCat23_Dunka!$C$10,12*($A30-1),4*(PlotControl!$C$4-1),12,1)) -> 10133 | C30: =MAX(OFFSET(EPCat23_Dunka!$D$10,12*($A30-1),4*(PlotControl!$C$4-1),12,1)) -> 11771 | D30: =MAX(OFFSET(EPCat23_Dunka!$E$10,12*($A30-1),4*(PlotControl!$C$4-1),12,1)) -> 17153 | H30: =MAX(OFFSET(OSP_Dunka!$C$10,12*($A30-1),4*(PlotControl!$C$4-1),12,1)) -> 9428.9 | I30: =MAX(OFFSET(OSP_Dunka!$D$10,12*($A30-1),4*(PlotControl!$C$4-1),12,1)) -> 9991.6 | J30: =MAX(OFFSET(OSP_Dunka!$E$10,12*($A30-1),4*(PlotControl!$C$4-1),12,1)) -> 10938 | K30: =MAX(OFFSET(WWTF_Dunka!$C$10,12*($A30-1),4*(PlotControl!$C$4-1),12,1)) -> 9891.6 | L30: =MAX(OFFSET(WWTF_Dunka!$D$10,12*($A30-1),4*(PlotControl!$C$4-1),12,1)) -> 10505 | M30: =MAX(OFFSET(WWTF_Dunka!$E$10,12*($A30-1),4*(PlotControl!$C$4-1),12,1)) -> 11288 | N30: =MAX(OFFSET(OSLA_Dunka!$C$10,12*($A30-1),4*(PlotControl!$C$4-1),12,1)) -> 31771 | O30: =MAX(OFFSET(OSLA_Dunka!$D$10,12*($A30-1),4*(PlotControl!$C$4-1),12,1)) -> 36434 | P30: =MAX(OFFSET(OSLA_Dunka!$E$10,12*($A30-1),4*(PlotControl!$C$4-1),12,1)) -> 41380 | Q30: =MAX(OFFSET(WPsurf_Dunka!$C$10,12*($A30-1),4*(PlotControl!$C$4-1),12,1)) -> 9110.4 | R30: =MAX(OFFSET(WPsurf_Dunka!$D$10,12*($A30-1),4*(PlotControl!$C$4-1),12,1)) -> 9581.1 | S30: =MAX(OFFSET(WPsurf_Dunka!$E$10,12*($A30-1),4*(PlotControl!$C$4-1),12,1)) -> 10077 | AB30: 26 | AC30: =MAX(OFFSET(EPCat23_Prop!$C$10,12*($AB30-1),4*(PlotControl!$C$4-1),12,1)) -> 9942.6 | AD30: =MAX(OFFSET(EPCat23_Prop!$D$10,12*($AB30-1),4*(PlotControl!$C$4-1),12,1)) -> 11234 | AE30: =MAX(OFFSET(EPCat23_Prop!$E$10,12*($AB30-1),4*(PlotControl!$C$4-1),12,1)) -> 15689 | AF30: =MAX(OFFSET(EPbed_Prop!$C$10,12*($AB30-1),4*(PlotControl!$C$4-1),12,1)) -> 20929 | AG30: =MAX(OFFSET(EPbed_Prop!$D$10,12*($AB30-1),4*(PlotControl!$C$4-1),12,1)) -> 24964 | AH30: =MAX(OFFSET(EPbed_Prop!$E$10,12*($AB30-1),4*(PlotControl!$C$4-1),12,1)) -> 29770 | AL30: =MAX(OFFSET(WWTF_Prop!$C$10,12*($AB30-1),4*(PlotControl!$C$4-1),12,1)) -> 9110.4 | AM30: =MAX(OFFSET(WWTF_Prop!$D$10,12*($AB30-1),4*(PlotControl!$C$4-1),12,1)) -> 9581.1 | AN30: =MAX(OFFSET(WWTF_Prop!$E$10,12*($AB30-1),4*(PlotControl!$C$4-1),12,1)) -> 10077 | AO30: =MAX(OFFSET(OSLA_Prop!$C$10,12*($AB30-1),4*(PlotControl!$C$4-1),12,1)) -> 26495 | AP30: =MAX(OFFSET(OSLA_Prop!$D$10,12*($AB30-1),4*(PlotControl!$C$4-1),12,1)) -> 30696 | AQ30: =MAX(OFFSET(OSLA_Prop!$E$10,12*($AB30-1),4*(PlotControl!$C$4-1),12,1)) -> 35479 | AR30: =MAX(OFFSET(WPsurf_Prop!$C$10,12*($AB30-1),4*(PlotControl!$C$4-1),12,1)) -> 9110.4 | AS30: =MAX(OFFSET(WPsurf_Prop!$D$10,12*($AB30-1),4*(PlotControl!$C$4-1),12,1)) -> 9581.1 | AT30: =MAX(OFFSET(WPsurf_Prop!$E$10,12*($AB30-1),4*(PlotControl!$C$4-1),12,1)) -> 10077 | AU30: =MAX(OFFSET(WPbed4_Prop!$C$10,12*($AB30-1),4*(PlotControl!$C$4-1),12,1)) -> 20929 | AV30: =MAX(OFFSET(WPbed4_Prop!$D$10,12*($AB30-1),4*(PlotControl!$C$4-1),12,1)) -> 24964 | AW30: =MAX(OFFSET(WPbed4_Prop!$E$10,12*($AB30-1),4*(PlotControl!$C$4-1),12,1)) -> 29770 | AX30: =MAX(OFFSET(WPbed4a_Prop!$C$10,12*($AB30-1),4*(PlotControl!$C$4-1),12,1)) -> 20929 | AY30: =MAX(OFFSET(WPbed4a_Prop!$D$10,12*($AB30-1),4*(PlotControl!$C$4-1),12,1)) -> 24964 | AZ30: =MAX(OFFSET(WPbed4a_Prop!$E$10,12*($AB30-1),4*(PlotControl!$C$4-1),12,1)) -> 29770 | BB30: 26 | BC30: =MAX(OFFSET(EPCat23_Part!$C$10,12*($BB30-1),4*(PlotControl!$C$4-1),12,1)) -> 9116.2 | BD30: =MAX(OFFSET(EPCat23_Part!$D$10,12*($BB30-1),4*(PlotControl!$C$4-1),12,1)) -> 9589 | BE30: =MAX(OFFSET(EPCat23_Part!$E$10,12*($BB30-1),4*(PlotControl!$C$4-1),12,1)) -> 10099 | BI30: =MAX(OFFSET(OSP_Part1!$C$10,12*($BB30-1),4*(PlotControl!$C$4-1),12,1)) -> 9110.4 | BJ30: =MAX(OFFSET(OSP_Part1!$D$10,12*($BB30-1),4*(PlotControl!$C$4-1),12,1)) -> 9581.1 | BK30: =MAX(OFFSET(OSP_Part1!$E$10,12*($BB30-1),4*(PlotControl!$C$4-1),12,1)) -> 10077 | BL30: =MAX(OFFSET(WWTF_Part!$C$10,12*($BB30-1),4*(PlotControl!$C$4-1),12,1)) -> 9110.4 | BM30: =MAX(OFFSET(WWTF_Part!$D$10,12*($BB30-1),4*(PlotControl!$C$4-1),12,1)) -> 9581.1 | BN30: =MAX(OFFSET(WWTF_Part!$E$10,12*($BB30-1),4*(PlotControl!$C$4-1),12,1)) -> 10077 | BO30: =MAX(OFFSET(OSLA_Part!$C$10,12*($BB30-1),4*(PlotControl!$C$4-1),12,1)) -> 9332.1 | BP30: =MAX(OFFSET(OSLA_Part!$D$10,12*($BB30-1),4*(PlotControl!$C$4-1),12,1)) -> 10191 | BQ30: =MAX(OFFSET(OSLA_Part!$E$10,12*($BB30-1),4*(PlotControl!$C$4-1),12,1)) -> 12400 | BR30: =MAX(OFFSET(WPsurf_Part!$C$10,12*($BB30-1),4*(PlotControl!$C$4-1),12,1)) -> 9110.4 | BS30: =MAX(OFFSET(WPsurf_Part!$D$10,12*($BB30-1),4*(PlotControl!$C$4-1),12,1)) -> 9581.1 | BT30: =MAX(OFFSET(WPsurf_Part!$E$10,12*($BB30-1),4*(PlotControl!$C$4-1),12,1)) -> 10077
A31: 27 | B31: =MAX(OFFSET(EPCat23_Dunka!$C$10,12*($A31-1),4*(PlotControl!$C$4-1),12,1)) -> 10101 | C31: =MAX(OFFSET(EPCat23_Dunka!$D$10,12*($A31-1),4*(PlotControl!$C$4-1),12,1)) -> 11669 | D31: =MAX(OFFSET(EPCat23_Dunka!$E$10,12*($A31-1),4*(PlotControl!$C$4-1),12,1)) -> 16810 | H31: =MAX(OFFSET(OSP_Dunka!$C$10,12*($A31-1),4*(PlotControl!$C$4-1),12,1)) -> 9478.4 | I31: =MAX(OFFSET(OSP_Dunka!$D$10,12*($A31-1),4*(PlotControl!$C$4-1),12,1)) -> 10077 | J31: =MAX(OFFSET(OSP_Dunka!$E$10,12*($A31-1),4*(PlotControl!$C$4-1),12,1)) -> 11188 | K31: =MAX(OFFSET(WWTF_Dunka!$C$10,12*($A31-1),4*(PlotControl!$C$4-1),12,1)) -> 9957 | L31: =MAX(OFFSET(WWTF_Dunka!$D$10,12*($A31-1),4*(PlotControl!$C$4-1),12,1)) -> 10580 | M31: =MAX(OFFSET(WWTF_Dunka!$E$10,12*($A31-1),4*(PlotControl!$C$4-1),12,1)) -> 11392 | N31: =MAX(OFFSET(OSLA_Dunka!$C$10,12*($A31-1),4*(PlotControl!$C$4-1),12,1)) -> 31162 | O31: =MAX(OFFSET(OSLA_Dunka!$D$10,12*($A31-1),4*(PlotControl!$C$4-1),12,1)) -> 35973 | P31: =MAX(OFFSET(OSLA_Dunka!$E$10,12*($A31-1),4*(PlotControl!$C$4-1),12,1)) -> 40733 | Q31: =MAX(OFFSET(WPsurf_Dunka!$C$10,12*($A31-1),4*(PlotControl!$C$4-1),12,1)) -> 9110.4 | R31: =MAX(OFFSET(WPsurf_Dunka!$D$10,12*($A31-1),4*(PlotControl!$C$4-1),12,1)) -> 9581.1 | S31: =MAX(OFFSET(WPsurf_Dunka!$E$10,12*($A31-1),4*(PlotControl!$C$4-1),12,1)) -> 10077 | AB31: 27 | AC31: =MAX(OFFSET(EPCat23_Prop!$C$10,12*($AB31-1),4*(PlotControl!$C$4-1),12,1)) -> 9986.2 | AD31: =MAX(OFFSET(EPCat23_Prop!$D$10,12*($AB31-1),4*(PlotControl!$C$4-1),12,1)) -> 11302 | AE31: =MAX(OFFSET(EPCat23_Prop!$E$10,12*($AB31-1),4*(PlotControl!$C$4-1),12,1)) -> 15887 | AF31: =MAX(OFFSET(EPbed_Prop!$C$10,12*($AB31-1),4*(PlotControl!$C$4-1),12,1)) -> 20929 | AG31: =MAX(OFFSET(EPbed_Prop!$D$10,12*($AB31-1),4*(PlotControl!$C$4-1),12,1)) -> 24964 | AH31: =MAX(OFFSET(EPbed_Prop!$E$10,12*($AB31-1),4*(PlotControl!$C$4-1),12,1)) -> 29770 | AL31: =MAX(OFFSET(WWTF_Prop!$C$10,12*($AB31-1),4*(PlotControl!$C$4-1),12,1)) -> 9110.4 | AM31: =MAX(OFFSET(WWTF_Prop!$D$10,12*($AB31-1),4*(PlotControl!$C$4-1),12,1)) -> 9581.1 | AN31: =MAX(OFFSET(WWTF_Prop!$E$10,12*($AB31-1),4*(PlotControl!$C$4-1),12,1)) -> 10077 | AO31: =MAX(OFFSET(OSLA_Prop!$C$10,12*($AB31-1),4*(PlotControl!$C$4-1),12,1)) -> 26476 | AP31: =MAX(OFFSET(OSLA_Prop!$D$10,12*($AB31-1),4*(PlotControl!$C$4-1),12,1)) -> 30583 | AQ31: =MAX(OFFSET(OSLA_Prop!$E$10,12*($AB31-1),4*(PlotControl!$C$4-1),12,1)) -> 35408 | AR31: =MAX(OFFSET(WPsurf_Prop!$C$10,12*($AB31-1),4*(PlotControl!$C$4-1),12,1)) -> 9110.4 | AS31: =MAX(OFFSET(WPsurf_Prop!$D$10,12*($AB31-1),4*(PlotControl!$C$4-1),12,1)) -> 9581.1 | AT31: =MAX(OFFSET(WPsurf_Prop!$E$10,12*($AB31-1),4*(PlotControl!$C$4-1),12,1)) -> 10077 | AU31: =MAX(OFFSET(WPbed4_Prop!$C$10,12*($AB31-1),4*(PlotControl!$C$4-1),12,1)) -> 20929 | AV31: =MAX(OFFSET(WPbed4_Prop!$D$10,12*($AB31-1),4*(PlotControl!$C$4-1),12,1)) -> 24964 | AW31: =MAX(OFFSET(WPbed4_Prop!$E$10,12*($AB31-1),4*(PlotControl!$C$4-1),12,1)) -> 29770 | AX31: =MAX(OFFSET(WPbed4a_Prop!$C$10,12*($AB31-1),4*(PlotControl!$C$4-1),12,1)) -> 20929 | AY31: =MAX(OFFSET(WPbed4a_Prop!$D$10,12*($AB31-1),4*(PlotControl!$C$4-1),12,1)) -> 24964 | AZ31: =MAX(OFFSET(WPbed4a_Prop!$E$10,12*($AB31-1),4*(PlotControl!$C$4-1),12,1)) -> 29770 | BB31: 27 | BC31: =MAX(OFFSET(EPCat23_Part!$C$10,12*($BB31-1),4*(PlotControl!$C$4-1),12,1)) -> 9118.4 | BD31: =MAX(OFFSET(EPCat23_Part!$D$10,12*($BB31-1),4*(PlotControl!$C$4-1),12,1)) -> 9591.8 | BE31: =MAX(OFFSET(EPCat23_Part!$E$10,12*($BB31-1),4*(PlotControl!$C$4-1),12,1)) -> 10109 | BI31: =MAX(OFFSET(OSP_Part1!$C$10,12*($BB31-1),4*(PlotControl!$C$4-1),12,1)) -> 9110.4 | BJ31: =MAX(OFFSET(OSP_Part1!$D$10,12*($BB31-1),4*(PlotControl!$C$4-1),12,1)) -> 9581.1 | BK31: =MAX(OFFSET(OSP_Part1!$E$10,12*($BB31-1),4*(PlotControl!$C$4-1),12,1)) -> 10077 | BL31: =MAX(OFFSET(WWTF_Part!$C$10,12*($BB31-1),4*(PlotControl!$C$4-1),12,1)) -> 9110.4 | BM31: =MAX(OFFSET(WWTF_Part!$D$10,12*($BB31-1),4*(PlotControl!$C$4-1),12,1)) -> 9581.1 | BN31: =MAX(OFFSET(WWTF_Part!$E$10,12*($BB31-1),4*(PlotControl!$C$4-1),12,1)) -> 10077 | BO31: =MAX(OFFSET(OSLA_Part!$C$10,12*($BB31-1),4*(PlotControl!$C$4-1),12,1)) -> 9357.9 | BP31: =MAX(OFFSET(OSLA_Part!$D$10,12*($BB31-1),4*(PlotControl!$C$4-1),12,1)) -> 10284 | BQ31: =MAX(OFFSET(OSLA_Part!$E$10,12*($BB31-1),4*(PlotControl!$C$4-1),12,1)) -> 12831 | BR31: =MAX(OFFSET(WPsurf_Part!$C$10,12*($BB31-1),4*(PlotControl!$C$4-1),12,1)) -> 9110.4 | BS31: =MAX(OFFSET(WPsurf_Part!$D$10,12*($BB31-1),4*(PlotControl!$C$4-1),12,1)) -> 9581.1 | BT31: =MAX(OFFSET(WPsurf_Part!$E$10,12*($BB31-1),4*(PlotControl!$C$4-1),12,1)) -> 10077
A32: 28 | B32: =MAX(OFFSET(EPCat23_Dunka!$C$10,12*($A32-1),4*(PlotControl!$C$4-1),12,1)) -> 10078 | C32: =MAX(OFFSET(EPCat23_Dunka!$D$10,12*($A32-1),4*(PlotControl!$C$4-1),12,1)) -> 11540 | D32: =MAX(OFFSET(EPCat23_Dunka!$E$10,12*($A32-1),4*(PlotControl!$C$4-1),12,1)) -> 16424 | H32: =MAX(OFFSET(OSP_Dunka!$C$10,12*($A32-1),4*(PlotControl!$C$4-1),12,1)) -> 9503.4 | I32: =MAX(OFFSET(OSP_Dunka!$D$10,12*($A32-1),4*(PlotControl!$C$4-1),12,1)) -> 10149 | J32: =MAX(OFFSET(OSP_Dunka!$E$10,12*($A32-1),4*(PlotControl!$C$4-1),12,1)) -> 11416 | K32: =MAX(OFFSET(WWTF_Dunka!$C$10,12*($A32-1),4*(PlotControl!$C$4-1),12,1)) -> 10008 | L32: =MAX(OFFSET(WWTF_Dunka!$D$10,12*($A32-1),4*(PlotControl!$C$4-1),12,1)) -> 10648 | M32: =MAX(OFFSET(WWTF_Dunka!$E$10,12*($A32-1),4*(PlotControl!$C$4-1),12,1)) -> 11504 | N32: =MAX(OFFSET(OSLA_Dunka!$C$10,12*($A32-1),4*(PlotControl!$C$4-1),12,1)) -> 30625 | O32: =MAX(OFFSET(OSLA_Dunka!$D$10,12*($A32-1),4*(PlotControl!$C$4-1),12,1)) -> 35518 | P32: =MAX(OFFSET(OSLA_Dunka!$E$10,12*($A32-1),4*(PlotControl!$C$4-1),12,1)) -> 40428 | Q32: =MAX(OFFSET(WPsurf_Dunka!$C$10,12*($A32-1),4*(PlotControl!$C$4-1),12,1)) -> 9110.4 | R32: =MAX(OFFSET(WPsurf_Dunka!$D$10,12*($A32-1),4*(PlotControl!$C$4-1),12,1)) -> 9581.1 | S32: =MAX(OFFSET(WPsurf_Dunka!$E$10,12*($A32-1),4*(PlotControl!$C$4-1),12,1)) -> 10077 | AB32: 28 | AC32: =MAX(OFFSET(EPCat23_Prop!$C$10,12*($AB32-1),4*(PlotControl!$C$4-1),12,1)) -> 10020 | AD32: =MAX(OFFSET(EPCat23_Prop!$D$10,12*($AB32-1),4*(PlotControl!$C$4-1),12,1)) -> 11345 | AE32: =MAX(OFFSET(EPCat23_Prop!$E$10,12*($AB32-1),4*(PlotControl!$C$4-1),12,1)) -> 15895 | AF32: =MAX(OFFSET(EPbed_Prop!$C$10,12*($AB32-1),4*(PlotControl!$C$4-1),12,1)) -> 20929 | AG32: =MAX(OFFSET(EPbed_Prop!$D$10,12*($AB32-1),4*(PlotControl!$C$4-1),12,1)) -> 24964 | AH32: =MAX(OFFSET(EPbed_Prop!$E$10,12*($AB32-1),4*(PlotControl!$C$4-1),12,1)) -> 29770 | AL32: =MAX(OFFSET(WWTF_Prop!$C$10,12*($AB32-1),4*(PlotControl!$C$4-1),12,1)) -> 9110.4 | AM32: =MAX(OFFSET(WWTF_Prop!$D$10,12*($AB32-1),4*(PlotControl!$C$4-1),12,1)) -> 9581.1 | AN32: =MAX(OFFSET(WWTF_Prop!$E$10,12*($AB32-1),4*(PlotControl!$C$4-1),12,1)) -> 10077 | AO32: =MAX(OFFSET(OSLA_Prop!$C$10,12*($AB32-1),4*(PlotControl!$C$4-1),12,1)) -> 26458 | AP32: =MAX(OFFSET(OSLA_Prop!$D$10,12*($AB32-1),4*(PlotControl!$C$4-1),12,1)) -> 30519 | AQ32: =MAX(OFFSET(OSLA_Prop!$E$10,12*($AB32-1),4*(PlotControl!$C$4-1),12,1)) -> 35315 | AR32: =MAX(OFFSET(WPsurf_Prop!$C$10,12*($AB32-1),4*(PlotControl!$C$4-1),12,1)) -> 9110.4 | AS32: =MAX(OFFSET(WPsurf_Prop!$D$10,12*($AB32-1),4*(PlotControl!$C$4-1),12,1)) -> 9581.1 | AT32: =MAX(OFFSET(WPsurf_Prop!$E$10,12*($AB32-1),4*(PlotControl!$C$4-1),12,1)) -> 10077 | AU32: =MAX(OFFSET(WPbed4_Prop!$C$10,12*($AB32-1),4*(PlotControl!$C$4-1),12,1)) -> 20929 | AV32: =MAX(OFFSET(WPbed4_Prop!$D$10,12*($AB32-1),4*(PlotControl!$C$4-1),12,1)) -> 24964 | AW32: =MAX(OFFSET(WPbed4_Prop!$E$10,12*($AB32-1),4*(PlotControl!$C$4-1),12,1)) -> 29770 | AX32: =MAX(OFFSET(WPbed4a_Prop!$C$10,12*($AB32-1),4*(PlotControl!$C$4-1),12,1)) -> 20929 | AY32: =MAX(OFFSET(WPbed4a_Prop!$D$10,12*($AB32-1),4*(PlotControl!$C$4-1),12,1)) -> 24964 | AZ32: =MAX(OFFSET(WPbed4a_Prop!$E$10,12*($AB32-1),4*(PlotControl!$C$4-1),12,1)) -> 29770 | BB32: 28 | BC32: =MAX(OFFSET(EPCat23_Part!$C$10,12*($BB32-1),4*(PlotControl!$C$4-1),12,1)) -> 9122.1 | BD32: =MAX(OFFSET(EPCat23_Part!$D$10,12*($BB32-1),4*(PlotControl!$C$4-1),12,1)) -> 9600.2 | BE32: =MAX(OFFSET(EPCat23_Part!$E$10,12*($BB32-1),4*(PlotControl!$C$4-1),12,1)) -> 10125 | BI32: =MAX(OFFSET(OSP_Part1!$C$10,12*($BB32-1),4*(PlotControl!$C$4-1),12,1)) -> 9110.4 | BJ32: =MAX(OFFSET(OSP_Part1!$D$10,12*($BB32-1),4*(PlotControl!$C$4-1),12,1)) -> 9581.1 | BK32: =MAX(OFFSET(OSP_Part1!$E$10,12*($BB32-1),4*(PlotControl!$C$4-1),12,1)) -> 10077 | BL32: =MAX(OFFSET(WWTF_Part!$C$10,12*($BB32-1),4*(PlotControl!$C$4-1),12,1)) -> 9110.4 | BM32: =MAX(OFFSET(WWTF_Part!$D$10,12*($BB32-1),4*(PlotControl!$C$4-1),12,1)) -> 9581.1 | BN32: =MAX(OFFSET(WWTF_Part!$E$10,12*($BB32-1),4*(PlotControl!$C$4-1),12,1)) -> 10077 | BO32: =MAX(OFFSET(OSLA_Part!$C$10,12*($BB32-1),4*(PlotControl!$C$4-1),12,1)) -> 9384.1 | BP32: =MAX(OFFSET(OSLA_Part!$D$10,12*($BB32-1),4*(PlotControl!$C$4-1),12,1)) -> 10411 | BQ32: =MAX(OFFSET(OSLA_Part!$E$10,12*($BB32-1),4*(PlotControl!$C$4-1),12,1)) -> 13257 | BR32: =MAX(OFFSET(WPsurf_Part!$C$10,12*($BB32-1),4*(PlotControl!$C$4-1),12,1)) -> 9110.4 | BS32: =MAX(OFFSET(WPsurf_Part!$D$10,12*($BB32-1),4*(PlotControl!$C$4-1),12,1)) -> 9581.1 | BT32: =MAX(OFFSET(WPsurf_Part!$E$10,12*($BB32-1),4*(PlotControl!$C$4-1),12,1)) -> 10077
A33: 29 | B33: =MAX(OFFSET(EPCat23_Dunka!$C$10,12*($A33-1),4*(PlotControl!$C$4-1),12,1)) -> 10022 | C33: =MAX(OFFSET(EPCat23_Dunka!$D$10,12*($A33-1),4*(PlotControl!$C$4-1),12,1)) -> 11451 | D33: =MAX(OFFSET(EPCat23_Dunka!$E$10,12*($A33-1),4*(PlotControl!$C$4-1),12,1)) -> 16233 | H33: =MAX(OFFSET(OSP_Dunka!$C$10,12*($A33-1),4*(PlotControl!$C$4-1),12,1)) -> 9537.3 | I33: =MAX(OFFSET(OSP_Dunka!$D$10,12*($A33-1),4*(PlotControl!$C$4-1),12,1)) -> 10224 | J33: =MAX(OFFSET(OSP_Dunka!$E$10,12*($A33-1),4*(PlotControl!$C$4-1),12,1)) -> 11609 | K33: =MAX(OFFSET(WWTF_Dunka!$C$10,12*($A33-1),4*(PlotControl!$C$4-1),12,1)) -> 10066 | L33: =MAX(OFFSET(WWTF_Dunka!$D$10,12*($A33-1),4*(PlotControl!$C$4-1),12,1)) -> 10724 | M33: =MAX(OFFSET(WWTF_Dunka!$E$10,12*($A33-1),4*(PlotControl!$C$4-1),12,1)) -> 11618 | N33: =MAX(OFFSET(OSLA_Dunka!$C$10,12*($A33-1),4*(PlotControl!$C$4-1),12,1)) -> 30021 | O33: =MAX(OFFSET(OSLA_Dunka!$D$10,12*($A33-1),4*(PlotControl!$C$4-1),12,1)) -> 34944 | P33: =MAX(OFFSET(OSLA_Dunka!$E$10,12*($A33-1),4*(PlotControl!$C$4-1),12,1)) -> 40241 | Q33: =MAX(OFFSET(WPsurf_Dunka!$C$10,12*($A33-1),4*(PlotControl!$C$4-1),12,1)) -> 9110.4 | R33: =MAX(OFFSET(WPsurf_Dunka!$D$10,12*($A33-1),4*(PlotControl!$C$4-1),12,1)) -> 9581.1 | S33: =MAX(OFFSET(WPsurf_Dunka!$E$10,12*($A33-1),4*(PlotControl!$C$4-1),12,1)) -> 10077 | AB33: 29 | AC33: =MAX(OFFSET(EPCat23_Prop!$C$10,12*($AB33-1),4*(PlotControl!$C$4-1),12,1)) -> 10010 | AD33: =MAX(OFFSET(EPCat23_Prop!$D$10,12*($AB33-1),4*(PlotControl!$C$4-1),12,1)) -> 11353 | AE33: =MAX(OFFSET(EPCat23_Prop!$E$10,12*($AB33-1),4*(PlotControl!$C$4-1),12,1)) -> 15857 | AF33: =MAX(OFFSET(EPbed_Prop!$C$10,12*($AB33-1),4*(PlotControl!$C$4-1),12,1)) -> 20929 | AG33: =MAX(OFFSET(EPbed_Prop!$D$10,12*($AB33-1),4*(PlotControl!$C$4-1),12,1)) -> 24964 | AH33: =MAX(OFFSET(EPbed_Prop!$E$10,12*($AB33-1),4*(PlotControl!$C$4-1),12,1)) -> 29770 | AL33: =MAX(OFFSET(WWTF_Prop!$C$10,12*($AB33-1),4*(PlotControl!$C$4-1),12,1)) -> 9110.4 | AM33: =MAX(OFFSET(WWTF_Prop!$D$10,12*($AB33-1),4*(PlotControl!$C$4-1),12,1)) -> 9581.1 | AN33: =MAX(OFFSET(WWTF_Prop!$E$10,12*($AB33-1),4*(PlotControl!$C$4-1),12,1)) -> 10077 | AO33: =MAX(OFFSET(OSLA_Prop!$C$10,12*($AB33-1),4*(PlotControl!$C$4-1),12,1)) -> 26337 | AP33: =MAX(OFFSET(OSLA_Prop!$D$10,12*($AB33-1),4*(PlotControl!$C$4-1),12,1)) -> 30467 | AQ33: =MAX(OFFSET(OSLA_Prop!$E$10,12*($AB33-1),4*(PlotControl!$C$4-1),12,1)) -> 35188 | AR33: =MAX(OFFSET(WPsurf_Prop!$C$10,12*($AB33-1),4*(PlotControl!$C$4-1),12,1)) -> 9110.4 | AS33: =MAX(OFFSET(WPsurf_Prop!$D$10,12*($AB33-1),4*(PlotControl!$C$4-1),12,1)) -> 9581.1 | AT33: =MAX(OFFSET(WPsurf_Prop!$E$10,12*($AB33-1),4*(PlotControl!$C$4-1),12,1)) -> 10077 | AU33: =MAX(OFFSET(WPbed4_Prop!$C$10,12*($AB33-1),4*(PlotControl!$C$4-1),12,1)) -> 20929 | AV33: =MAX(OFFSET(WPbed4_Prop!$D$10,12*($AB33-1),4*(PlotControl!$C$4-1),12,1)) -> 24964 | AW33: =MAX(OFFSET(WPbed4_Prop!$E$10,12*($AB33-1),4*(PlotControl!$C$4-1),12,1)) -> 29770 | AX33: =MAX(OFFSET(WPbed4a_Prop!$C$10,12*($AB33-1),4*(PlotControl!$C$4-1),12,1)) -> 20929 | AY33: =MAX(OFFSET(WPbed4a_Prop!$D$10,12*($AB33-1),4*(PlotControl!$C$4-1),12,1)) -> 24964 | AZ33: =MAX(OFFSET(WPbed4a_Prop!$E$10,12*($AB33-1),4*(PlotControl!$C$4-1),12,1)) -> 29770 | BB33: 29 | BC33: =MAX(OFFSET(EPCat23_Part!$C$10,12*($BB33-1),4*(PlotControl!$C$4-1),12,1)) -> 9122.5 | BD33: =MAX(OFFSET(EPCat23_Part!$D$10,12*($BB33-1),4*(PlotControl!$C$4-1),12,1)) -> 9611.2 | BE33: =MAX(OFFSET(EPCat23_Part!$E$10,12*($BB33-1),4*(PlotControl!$C$4-1),12,1)) -> 10139 | BI33: =MAX(OFFSET(OSP_Part1!$C$10,12*($BB33-1),4*(PlotControl!$C$4-1),12,1)) -> 9110.4 | BJ33: =MAX(OFFSET(OSP_Part1!$D$10,12*($BB33-1),4*(PlotControl!$C$4-1),12,1)) -> 9581.1 | BK33: =MAX(OFFSET(OSP_Part1!$E$10,12*($BB33-1),4*(PlotControl!$C$4-1),12,1)) -> 10077 | BL33: =MAX(OFFSET(WWTF_Part!$C$10,12*($BB33-1),4*(PlotControl!$C$4-1),12,1)) -> 9110.4 | BM33: =MAX(OFFSET(WWTF_Part!$D$10,12*($BB33-1),4*(PlotControl!$C$4-1),12,1)) -> 9581.1 | BN33: =MAX(OFFSET(WWTF_Part!$E$10,12*($BB33-1),4*(PlotControl!$C$4-1),12,1)) -> 10077 | BO33: =MAX(OFFSET(OSLA_Part!$C$10,12*($BB33-1),4*(PlotControl!$C$4-1),12,1)) -> 9391.6 | BP33: =MAX(OFFSET(OSLA_Part!$D$10,12*($BB33-1),4*(PlotControl!$C$4-1),12,1)) -> 10601 | BQ33: =MAX(OFFSET(OSLA_Part!$E$10,12*($BB33-1),4*(PlotControl!$C$4-1),12,1)) -> 13645 | BR33: =MAX(OFFSET(WPsurf_Part!$C$10,12*($BB33-1),4*(PlotControl!$C$4-1),12,1)) -> 9110.4 | BS33: =MAX(OFFSET(WPsurf_Part!$D$10,12*($BB33-1),4*(PlotControl!$C$4-1),12,1)) -> 9581.1 | BT33: =MAX(OFFSET(WPsurf_Part!$E$10,12*($BB33-1),4*(PlotControl!$C$4-1),12,1)) -> 10077
A34: 30 | B34: =MAX(OFFSET(EPCat23_Dunka!$C$10,12*($A34-1),4*(PlotControl!$C$4-1),12,1)) -> 9964.6 | C34: =MAX(OFFSET(EPCat23_Dunka!$D$10,12*($A34-1),4*(PlotControl!$C$4-1),12,1)) -> 11304 | D34: =MAX(OFFSET(EPCat23_Dunka!$E$10,12*($A34-1),4*(PlotControl!$C$4-1),12,1)) -> 15934 | H34: =MAX(OFFSET(OSP_Dunka!$C$10,12*($A34-1),4*(PlotControl!$C$4-1),12,1)) -> 9576.3 | I34: =MAX(OFFSET(OSP_Dunka!$D$10,12*($A34-1),4*(PlotControl!$C$4-1),12,1)) -> 10292 | J34: =MAX(OFFSET(OSP_Dunka!$E$10,12*($A34-1),4*(PlotControl!$C$4-1),12,1)) -> 11759 | K34: =MAX(OFFSET(WWTF_Dunka!$C$10,12*($A34-1),4*(PlotControl!$C$4-1),12,1)) -> 10122 | L34: =MAX(OFFSET(WWTF_Dunka!$D$10,12*($A34-1),4*(PlotControl!$C$4-1),12,1)) -> 10773 | M34: =MAX(OFFSET(WWTF_Dunka!$E$10,12*($A34-1),4*(PlotControl!$C$4-1),12,1)) -> 11695 | N34: =MAX(OFFSET(OSLA_Dunka!$C$10,12*($A34-1),4*(PlotControl!$C$4-1),12,1)) -> 29465 | O34: =MAX(OFFSET(OSLA_Dunka!$D$10,12*($A34-1),4*(PlotControl!$C$4-1),12,1)) -> 34404 | P34: =MAX(OFFSET(OSLA_Dunka!$E$10,12*($A34-1),4*(PlotControl!$C$4-1),12,1)) -> 39999 | Q34: =MAX(OFFSET(WPsurf_Dunka!$C$10,12*($A34-1),4*(PlotControl!$C$4-1),12,1)) -> 9110.4 | R34: =MAX(OFFSET(WPsurf_Dunka!$D$10,12*($A34-1),4*(PlotControl!$C$4-1),12,1)) -> 9581.1 | S34: =MAX(OFFSET(WPsurf_Dunka!$E$10,12*($A34-1),4*(PlotControl!$C$4-1),12,1)) -> 10077 | AB34: 30 | AC34: =MAX(OFFSET(EPCat23_Prop!$C$10,12*($AB34-1),4*(PlotControl!$C$4-1),12,1)) -> 10014 | AD34: =MAX(OFFSET(EPCat23_Prop!$D$10,12*($AB34-1),4*(PlotControl!$C$4-1),12,1)) -> 11302 | AE34: =MAX(OFFSET(EPCat23_Prop!$E$10,12*($AB34-1),4*(PlotControl!$C$4-1),12,1)) -> 15842 | AF34: =MAX(OFFSET(EPbed_Prop!$C$10,12*($AB34-1),4*(PlotControl!$C$4-1),12,1)) -> 20929 | AG34: =MAX(OFFSET(EPbed_Prop!$D$10,12*($AB34-1),4*(PlotControl!$C$4-1),12,1)) -> 24964 | AH34: =MAX(OFFSET(EPbed_Prop!$E$10,12*($AB34-1),4*(PlotControl!$C$4-1),12,1)) -> 29770 | AL34: =MAX(OFFSET(WWTF_Prop!$C$10,12*($AB34-1),4*(PlotControl!$C$4-1),12,1)) -> 9110.4 | AM34: =MAX(OFFSET(WWTF_Prop!$D$10,12*($AB34-1),4*(PlotControl!$C$4-1),12,1)) -> 9581.1 | AN34: =MAX(OFFSET(WWTF_Prop!$E$10,12*($AB34-1),4*(PlotControl!$C$4-1),12,1)) -> 10077 | AO34: =MAX(OFFSET(OSLA_Prop!$C$10,12*($AB34-1),4*(PlotControl!$C$4-1),12,1)) -> 26232 | AP34: =MAX(OFFSET(OSLA_Prop!$D$10,12*($AB34-1),4*(PlotControl!$C$4-1),12,1)) -> 30353 | AQ34: =MAX(OFFSET(OSLA_Prop!$E$10,12*($AB34-1),4*(PlotControl!$C$4-1),12,1)) -> 35086 | AR34: =MAX(OFFSET(WPsurf_Prop!$C$10,12*($AB34-1),4*(PlotControl!$C$4-1),12,1)) -> 9110.4 | AS34: =MAX(OFFSET(WPsurf_Prop!$D$10,12*($AB34-1),4*(PlotControl!$C$4-1),12,1)) -> 9581.1 | AT34: =MAX(OFFSET(WPsurf_Prop!$E$10,12*($AB34-1),4*(PlotControl!$C$4-1),12,1)) -> 10077 | AU34: =MAX(OFFSET(WPbed4_Prop!$C$10,12*($AB34-1),4*(PlotControl!$C$4-1),12,1)) -> 20929 | AV34: =MAX(OFFSET(WPbed4_Prop!$D$10,12*($AB34-1),4*(PlotControl!$C$4-1),12,1)) -> 24964 | AW34: =MAX(OFFSET(WPbed4_Prop!$E$10,12*($AB34-1),4*(PlotControl!$C$4-1),12,1)) -> 29770 | AX34: =MAX(OFFSET(WPbed4a_Prop!$C$10,12*($AB34-1),4*(PlotControl!$C$4-1),12,1)) -> 20929 | AY34: =MAX(OFFSET(WPbed4a_Prop!$D$10,12*($AB34-1),4*(PlotControl!$C$4-1),12,1)) -> 24964 | AZ34: =MAX(OFFSET(WPbed4a_Prop!$E$10,12*($AB34-1),4*(PlotControl!$C$4-1),12,1)) -> 29770 | BB34: 30 | BC34: =MAX(OFFSET(EPCat23_Part!$C$10,12*($BB34-1),4*(PlotControl!$C$4-1),12,1)) -> 9129.6 | BD34: =MAX(OFFSET(EPCat23_Part!$D$10,12*($BB34-1),4*(PlotControl!$C$4-1),12,1)) -> 9623.7 | BE34: =MAX(OFFSET(EPCat23_Part!$E$10,12*($BB34-1),4*(PlotControl!$C$4-1),12,1)) -> 10169 | BI34: =MAX(OFFSET(OSP_Part1!$C$10,12*($BB34-1),4*(PlotControl!$C$4-1),12,1)) -> 9110.4 | BJ34: =MAX(OFFSET(OSP_Part1!$D$10,12*($BB34-1),4*(PlotControl!$C$4-1),12,1)) -> 9581.1 | BK34: =MAX(OFFSET(OSP_Part1!$E$10,12*($BB34-1),4*(PlotControl!$C$4-1),12,1)) -> 10077 | BL34: =MAX(OFFSET(WWTF_Part!$C$10,12*($BB34-1),4*(PlotControl!$C$4-1),12,1)) -> 9110.4 | BM34: =MAX(OFFSET(WWTF_Part!$D$10,12*($BB34-1),4*(PlotControl!$C$4-1),12,1)) -> 9581.1 | BN34: =MAX(OFFSET(WWTF_Part!$E$10,12*($BB34-1),4*(PlotControl!$C$4-1),12,1)) -> 10077 | BO34: =MAX(OFFSET(OSLA_Part!$C$10,12*($BB34-1),4*(PlotControl!$C$4-1),12,1)) -> 9414 | BP34: =MAX(OFFSET(OSLA_Part!$D$10,12*($BB34-1),4*(PlotControl!$C$4-1),12,1)) -> 10759 | BQ34: =MAX(OFFSET(OSLA_Part!$E$10,12*($BB34-1),4*(PlotControl!$C$4-1),12,1)) -> 14056 | BR34: =MAX(OFFSET(WPsurf_Part!$C$10,12*($BB34-1),4*(PlotControl!$C$4-1),12,1)) -> 9110.4 | BS34: =MAX(OFFSET(WPsurf_Part!$D$10,12*($BB34-1),4*(PlotControl!$C$4-1),12,1)) -> 9581.1 | BT34: =MAX(OFFSET(WPsurf_Part!$E$10,12*($BB34-1),4*(PlotControl!$C$4-1),12,1)) -> 10077
A35: 31 | B35: =MAX(OFFSET(EPCat23_Dunka!$C$10,12*($A35-1),4*(PlotControl!$C$4-1),12,1)) -> 9890.2 | C35: =MAX(OFFSET(EPCat23_Dunka!$D$10,12*($A35-1),4*(PlotControl!$C$4-1),12,1)) -> 11177 | D35: =MAX(OFFSET(EPCat23_Dunka!$E$10,12*($A35-1),4*(PlotControl!$C$4-1),12,1)) -> 15576 | H35: =MAX(OFFSET(OSP_Dunka!$C$10,12*($A35-1),4*(PlotControl!$C$4-1),12,1)) -> 9600 | I35: =MAX(OFFSET(OSP_Dunka!$D$10,12*($A35-1),4*(PlotControl!$C$4-1),12,1)) -> 10348 | J35: =MAX(OFFSET(OSP_Dunka!$E$10,12*($A35-1),4*(PlotControl!$C$4-1),12,1)) -> 11951 | K35: =MAX(OFFSET(WWTF_Dunka!$C$10,12*($A35-1),4*(PlotControl!$C$4-1),12,1)) -> 10176 | L35: =MAX(OFFSET(WWTF_Dunka!$D$10,12*($A35-1),4*(PlotControl!$C$4-1),12,1)) -> 10831 | M35: =MAX(OFFSET(WWTF_Dunka!$E$10,12*($A35-1),4*(PlotControl!$C$4-1),12,1)) -> 11797 | N35: =MAX(OFFSET(OSLA_Dunka!$C$10,12*($A35-1),4*(PlotControl!$C$4-1),12,1)) -> 29006 | O35: =MAX(OFFSET(OSLA_Dunka!$D$10,12*($A35-1),4*(PlotControl!$C$4-1),12,1)) -> 33817 | P35: =MAX(OFFSET(OSLA_Dunka!$E$10,12*($A35-1),4*(PlotControl!$C$4-1),12,1)) -> 39774 | Q35: =MAX(OFFSET(WPsurf_Dunka!$C$10,12*($A35-1),4*(PlotControl!$C$4-1),12,1)) -> 9110.4 | R35: =MAX(OFFSET(WPsurf_Dunka!$D$10,12*($A35-1),4*(PlotControl!$C$4-1),12,1)) -> 9581.1 | S35: =MAX(OFFSET(WPsurf_Dunka!$E$10,12*($A35-1),4*(PlotControl!$C$4-1),12,1)) -> 10077 | AB35: 31 | AC35: =MAX(OFFSET(EPCat23_Prop!$C$10,12*($AB35-1),4*(PlotControl!$C$4-1),12,1)) -> 10000 | AD35: =MAX(OFFSET(EPCat23_Prop!$D$10,12*($AB35-1),4*(PlotControl!$C$4-1),12,1)) -> 11256 | AE35: =MAX(OFFSET(EPCat23_Prop!$E$10,12*($AB35-1),4*(PlotControl!$C$4-1),12,1)) -> 15783 | AF35: =MAX(OFFSET(EPbed_Prop!$C$10,12*($AB35-1),4*(PlotControl!$C$4-1),12,1)) -> 20929 | AG35: =MAX(OFFSET(EPbed_Prop!$D$10,12*($AB35-1),4*(PlotControl!$C$4-1),12,1)) -> 24964 | AH35: =MAX(OFFSET(EPbed_Prop!$E$10,12*($AB35-1),4*(PlotControl!$C$4-1),12,1)) -> 29770 | AL35: =MAX(OFFSET(WWTF_Prop!$C$10,12*($AB35-1),4*(PlotControl!$C$4-1),12,1)) -> 9110.4 | AM35: =MAX(OFFSET(WWTF_Prop!$D$10,12*($AB35-1),4*(PlotControl!$C$4-1),12,1)) -> 9581.1 | AN35: =MAX(OFFSET(WWTF_Prop!$E$10,12*($AB35-1),4*(PlotControl!$C$4-1),12,1)) -> 10077 | AO35: =MAX(OFFSET(OSLA_Prop!$C$10,12*($AB35-1),4*(PlotControl!$C$4-1),12,1)) -> 26168 | AP35: =MAX(OFFSET(OSLA_Prop!$D$10,12*($AB35-1),4*(PlotControl!$C$4-1),12,1)) -> 30215 | AQ35: =MAX(OFFSET(OSLA_Prop!$E$10,12*($AB35-1),4*(PlotControl!$C$4-1),12,1)) -> 34814 | AR35: =MAX(OFFSET(WPsurf_Prop!$C$10,12*($AB35-1),4*(PlotControl!$C$4-1),12,1)) -> 9110.4 | AS35: =MAX(OFFSET(WPsurf_Prop!$D$10,12*($AB35-1),4*(PlotControl!$C$4-1),12,1)) -> 9581.1 | AT35: =MAX(OFFSET(WPsurf_Prop!$E$10,12*($AB35-1),4*(PlotControl!$C$4-1),12,1)) -> 10077 | AU35: =MAX(OFFSET(WPbed4_Prop!$C$10,12*($AB35-1),4*(PlotControl!$C$4-1),12,1)) -> 20929 | AV35: =MAX(OFFSET(WPbed4_Prop!$D$10,12*($AB35-1),4*(PlotControl!$C$4-1),12,1)) -> 24964 | AW35: =MAX(OFFSET(WPbed4_Prop!$E$10,12*($AB35-1),4*(PlotControl!$C$4-1),12,1)) -> 29770 | AX35: =MAX(OFFSET(WPbed4a_Prop!$C$10,12*($AB35-1),4*(PlotControl!$C$4-1),12,1)) -> 20929 | AY35: =MAX(OFFSET(WPbed4a_Prop!$D$10,12*($AB35-1),4*(PlotControl!$C$4-1),12,1)) -> 24964 | AZ35: =MAX(OFFSET(WPbed4a_Prop!$E$10,12*($AB35-1),4*(PlotControl!$C$4-1),12,1)) -> 29770 | BB35: 31 | BC35: =MAX(OFFSET(EPCat23_Part!$C$10,12*($BB35-1),4*(PlotControl!$C$4-1),12,1)) -> 9132 | BD35: =MAX(OFFSET(EPCat23_Part!$D$10,12*($BB35-1),4*(PlotControl!$C$4-1),12,1)) -> 9639.6 | BE35: =MAX(OFFSET(EPCat23_Part!$E$10,12*($BB35-1),4*(PlotControl!$C$4-1),12,1)) -> 10218 | BI35: =MAX(OFFSET(OSP_Part1!$C$10,12*($BB35-1),4*(PlotControl!$C$4-1),12,1)) -> 9110.4 | BJ35: =MAX(OFFSET(OSP_Part1!$D$10,12*($BB35-1),4*(PlotControl!$C$4-1),12,1)) -> 9581.1 | BK35: =MAX(OFFSET(OSP_Part1!$E$10,12*($BB35-1),4*(PlotControl!$C$4-1),12,1)) -> 10077 | BL35: =MAX(OFFSET(WWTF_Part!$C$10,12*($BB35-1),4*(PlotControl!$C$4-1),12,1)) -> 9110.4 | BM35: =MAX(OFFSET(WWTF_Part!$D$10,12*($BB35-1),4*(PlotControl!$C$4-1),12,1)) -> 9581.1 | BN35: =MAX(OFFSET(WWTF_Part!$E$10,12*($BB35-1),4*(PlotControl!$C$4-1),12,1)) -> 10077 | BO35: =MAX(OFFSET(OSLA_Part!$C$10,12*($BB35-1),4*(PlotControl!$C$4-1),12,1)) -> 9440.1 | BP35: =MAX(OFFSET(OSLA_Part!$D$10,12*($BB35-1),4*(PlotControl!$C$4-1),12,1)) -> 10890 | BQ35: =MAX(OFFSET(OSLA_Part!$E$10,12*($BB35-1),4*(PlotControl!$C$4-1),12,1)) -> 14464 | BR35: =MAX(OFFSET(WPsurf_Part!$C$10,12*($BB35-1),4*(PlotControl!$C$4-1),12,1)) -> 9110.4 | BS35: =MAX(OFFSET(WPsurf_Part!$D$10,12*($BB35-1),4*(PlotControl!$C$4-1),12,1)) -> 9581.1 | BT35: =MAX(OFFSET(WPsurf_Part!$E$10,12*($BB35-1),4*(PlotControl!$C$4-1),12,1)) -> 10077
